Workbook

Sheet Deckblatt
B1: Krankenhaus: | C1: <Hier Krankenhausnamen eintragen> | F1: Tabelle: | G1: =GetPage(C2) -> 1/25
B2: Datum: | C2: =TEXT(TODAY(),"T.M.jjjj") -> 29.3.2022 | D2: <== Falls ein Festes Datum verwendet werden soll, diese Formel einfach überschreiben
E3: =IF(ISNUMBER(F4),F4,"<x>") -> 2021
B4: Excel-Arbeitsmappe zur Aufstellung der Entgelte und Budgetermittlung (AEB) | E4: =IF(ISNUMBER(F4),F4-1,"<x-1>") -> 2020 | F4: 2021
B5: im DRG Vergütungssystem nach § 11 Abs. 4 des Krankenhausentgeltgesetzes (KHEntgG) | E5: =IF(ISNUMBER(F4),F4-2,"<x-2>") -> 2019
E6: =IF(ISNUMBER(F4),F4-3,"<x-3>") -> 2018
A7: Lfd. Nr. | B7: Arbeitsblatt | C7: Inhalt
A9: 1 | B9: Absenkungen | C9: Festlegung wann abgesenkte Bewertungsrelationen berücksichtigt werden
A10: 2 | B10: E1 VVJ | C10: E1 Aufstellung der Fallpauschalen für das Krankenhaus (Daten 2019, Katalog 2019)
A11: 3 | B11: E1 VJ | C11: E1 Aufstellung der Fallpauschalen für das Krankenhaus (Daten 2020, Katalog 2020)
A12: 4 | B12: E1 VJÜ | C12: E1 Aufstellung der Fallpauschalen für das Krankenhaus (Daten 2020, Katalog 2021)
A13: 5 | B13: E1 F | C13: E1 Aufstellung der Fallpauschalen für das Krankenhaus (Forderung, Katalog 2021)
A14: 6 | B14: E1 V | C14: E1 Aufstellung der Fallpauschalen für das Krankenhaus (Vereinbarung, Katalog 2021)
A15: 7 | B15: E2 VVJ | C15: E2 Aufstellung der Zusatzentgelte für das Krankenhaus (Katalog 2019)
A16: 8 | B16: E2 VJ | C16: E2 Aufstellung der Zusatzentgelte für das Krankenhaus (Katalog 2020)
A17: 9 | B17: E2 F | C17: E2 Aufstellung der Zusatzentgelte für das Krankenhaus (Forderung, Katalog 2021)
A18: 10 | B18: E2 V | C18: E2 Aufstellung der Zusatzentgelte für das Krankenhaus (Vereinbarung, Katalog 2021)
A19: 11 | B19: E3.1 VVJ | C19: E3 Aufstellung der nach § 6 KHEntgG krankenhausindividuell verhandelten Entgelte (Daten 2019)
A20: 12 | B20: E3.1 VJ | C20: E3 Aufstellung der nach § 6 KHEntgG krankenhausindividuell verhandelten Entgelte (Daten 2020, ggf. hochgerechnet)
A21: 13 | B21: E3.1 F | C21: E3 Aufstellung der nach § 6 KHEntgG krankenhausindividuell verhandelten Entgelte (Forderung 2021)
A22: 14 | B22: E3.1 V | C22: E3 Aufstellung der nach § 6 KHEntgG krankenhausindividuell verhandelten Entgelte (Vereinbarung 2021)
A23: 15 | B23: E3.2 VVJ | C23: E3.2 Aufstellung der Zusatzentgelte (Daten 2019)
A24: 16 | B24: E3.2 VJ | C24: E3.2 Aufstellung der Zusatzentgelte (Daten 2020, ggf. hochgerechnet)
A25: 17 | B25: E3.2 F | C25: E3.2 Aufstellung der Zusatzentgelte (Forderung 2021)
A26: 18 | B26: E3.2 V | C26: E3.2 Aufstellung der Zusatzentgelte (Vereinbarung 2021)
A27: 19 | B27: E3.3 VVJ | C27: E3.3 Aufstellung der tagesbezogenen Entgelte (IST-Daten 2019)
A28: 20 | B28: E3.3 VJ | C28: E3.3 Aufstellung der tagesbezogenen Entgelte (IST-Daten 2020, ggf. hochgerechnet)
A29: 21 | B29: E3.3 F | C29: E3.3 Aufstellung der tagesbezogenen Entgelte (Forderung 2021)
A30: 22 | B30: E3.3 V | C30: E3.3 Aufstellung der tagesbezogenen Entgelte (Vereinbarung 2021)
A31: 23 | B31: B1 | C31: B1 Erlösbudget nach § 4 KHEntgG
A32: 24 | B32: Import | C32: Tabelle für Datenimport

Sheet Absenkungen
A1: Krankenhaus: | J1: Tabelle: | K1: =GetPage(K2) -> 2/25 | L1: =SUM(#REF!) -> 
A2: =Krankenhausname -> <Hier Krankenhausnamen eintragen> | J2: Datum: | K2: =AEB_Datum -> 29.3.2022
A4: Festlegung wann abgesenkte Bewertungsrelationen berücksichtigt werden
A8: Jahr | B8: DRG | C8: Abteilungsart | D8: Abgesenkt | F8: Bitte vor Ausfüllen der weiteren Tabellen hier eintragen, für welche DRGs in welchen Jahren die abgesenkten Bewertungsrelationen verwendet werden müssen.
A9: =VVJ -> 2019 | B9: I68E | C9: HA | D9: N
A10: =VVJ -> 2019 | B10: I68E | C10: BA | D10: N
A11: =VVJ -> 2019 | B11: I68D | C11: HA | D11: N
A12: =VVJ -> 2019 | B12: I68D | C12: BA | D12: N
A13: =VJ -> 2020 | B13: I68E | C13: HA | D13: N
A14: =VJ -> 2020 | B14: I68E | C14: BA | D14: N
A15: =VJ -> 2020 | B15: I68D | C15: HA | D15: N
A16: =VJ -> 2020 | B16: I68D | C16: BA | D16: N
A17: =Bezugsjahr -> 2021 | B17: I68E | C17: HA | D17: N
A18: 2021 | B18: I68E | C18: BA | D18: N
A19: 2021 | B19: I68D | C19: HA | D19: N
A20: 2021 | B20: I68D | C20: BA | D20: N
A21: 2021 | B21: I68F | C21: HA | D21: N
A22: 2021 | B22: I68F | C22: BA | D22: N

Sheet E1 VVJ
A1: Krankenhaus: | P1: Tabelle: | Q1: =GetPage(Q2) -> 3/25 | R1: =SUM(R15:R18) -> 2
A2: =Krankenhausname -> <Hier Krankenhausnamen eintragen> | P2: Datum: | Q2: =AEB_Datum -> 29.3.2022
A4: ="E1 Aufstellung der Fallpauschalen für das Krankenhaus (Daten " & VVJ & ", Katalog " & VVJ &")" -> E1 Aufstellung der Fallpauschalen für das Krankenhaus (Daten 2019, Katalog 2019)
C5: =IF(A5="","",CalcDRG(A5,Bezugsjahr-2,"HA",4)) ->  | D5: =IF(A5="",0,IF(ISERROR((B5*C5))=TRUE,0,(B5*C5))) -> 0 | G5: =IF(A5="","",CalcDRG(A5,Bezugsjahr-2,"HA",11)) ->  | H5: =IF(A5="",0,IF(F5<=0,0,IF(ISERROR(G5*F5)=TRUE,0,(G5*F5)))) -> 0 | K5: =IF(A5="","",CalcDRG(A5,Bezugsjahr-2,"HA",8)) ->  | L5: =IF(A5="",0,IF(K5<=0,0,IF(ISERROR(K5*J5)=TRUE,0,(K5*J5)))) -> 0 | O5: =IF(A5="","",CalcDRG(A5,Bezugsjahr-2,"HA",10)) ->  | P5: =IF(A5="",0,IF(O5<=0,0,IF(ISERROR(O5*N5)=TRUE,0,(O5*N5)))) -> 0 | Q5: =IF(A5="",0,IF(ISERROR(D5-H5-L5+P5)=TRUE,0,(D5-H5-L5+P5))) -> 0
C6: =IF(A6="","",CalcDRG(A6,Bezugsjahr-2,"HA",5)) ->  | D6: 0 | G6: =IF(A6="","",CalcDRG(A6,Bezugsjahr-2,"HA",11)) ->  | H6: 0 | K6: =IF(A6="","",CalcDRG(A6,Bezugsjahr-2,"HA",8)) ->  | L6: =IF(A6="",0,IF(J6<=0,0,IF(ISERROR(K6*J6)=TRUE,0,(K6*J6)))) -> 0 | O6: =IF(A6="","",CalcDRG(A6,Bezugsjahr-2,"HA",10)) ->  | P6: =IF(A6="",0,IF(N6<=0,0,IF(ISERROR(O6*N6)=TRUE,0,(O6*N6)))) -> 0 | Q6: 0
C7: =IF(A7="","",CalcDRG(A7,Bezugsjahr-2,"BA",4)) ->  | D7: 0 | G7: =IF(A7="","",CalcDRG(A7,Bezugsjahr-2,"BA",13)) ->  | H7: 0 | K7: =IF(A7="","",CalcDRG(A7,Bezugsjahr-2,"BA",10)) ->  | L7: =IF(A7="",0,IF(J7<=0,0,IF(ISERROR(K7*J7)=TRUE,0,(K7*J7)))) -> 0 | O7: =IF(A7="","",CalcDRG(A7,Bezugsjahr-2,"BA",12)) ->  | P7: =IF(A7="",0,IF(N7<=0,0,IF(ISERROR(O7*N7)=TRUE,0,(O7*N7)))) -> 0 | Q7: 0
C8: =IF(A8="","",CalcDRG(A8,Bezugsjahr-2,"BA",5)) ->  | D8: 0 | G8: =IF(A8="","",CalcDRG(A8,Bezugsjahr-2,"BA",13)) ->  | H8: 0 | K8: =IF(A8="","",CalcDRG(A8,Bezugsjahr-2,"BA",10)) ->  | L8: =IF(A8="",0,IF(J8<=0,0,IF(ISERROR(K8*J8)=TRUE,0,(K8*J8)))) -> 0 | O8: =IF(A8="","",CalcDRG(A8,Bezugsjahr-2,"BA",12)) ->  | P8: =IF(A8="",0,IF(N8<=0,0,IF(ISERROR(O8*N8)=TRUE,0,(O8*N8)))) -> 0 | Q8: 0
C9: =IF(A9="","",CalcDRG(A9,Bezugsjahr-2,"BA",6)) ->  | D9: 0 | G9: =IF(A9="","",CalcDRG(A9,Bezugsjahr-2,"BA",13)) ->  | H9: 0 | K9: =IF(A9="","",CalcDRG(A9,Bezugsjahr-2,"BA",10)) ->  | L9: =IF(A9="",0,IF(J9<=0,0,IF(ISERROR(K9*J9)=TRUE,0,(K9*J9)))) -> 0 | O9: =IF(A9="","",CalcDRG(A9,Bezugsjahr-2,"BA",12)) ->  | P9: =IF(A9="",0,IF(N9<=0,0,IF(ISERROR(O9*N9)=TRUE,0,(O9*N9)))) -> 0 | Q9: 0
C10: =IF(A10="","",CalcDRG(A10,Bezugsjahr-2,"BA",7)) ->  | D10: 0 | G10: =IF(A10="","",CalcDRG(A10,Bezugsjahr-2,"BA",13)) ->  | H10: 0 | K10: =IF(A10="","",CalcDRG(A10,Bezugsjahr-2,"BA",10)) ->  | L10: =IF(A10="",0,IF(J10<=0,0,IF(ISERROR(K10*J10)=TRUE,0,(K10*J10)))) -> 0 | O10: =IF(A10="","",CalcDRG(A10,Bezugsjahr-2,"BA",12)) ->  | P10: =IF(A10="",0,IF(N10<=0,0,IF(ISERROR(O10*N10)=TRUE,0,(O10*N10)))) -> 0 | Q10: 0
E12: davon Verlegungen | I12: davon Kurzlieger | M12: davon Langlieger
A13: DRG Nr. | B13: Fallzahl (Anzahl der DRG) | C13: Bewertungs-relation nach Fall- pauschalen katalog | D13: S der Bewertungs-relationen ohne Zu- und Abschläge (Sp. 2x3) | E13: Anzahl der Verlegungs- fälle | F13: Anzahl der Tage mit Abschlag bei Verlegung | G13: Bewertungs- relation je Tag bei Verlegung | H13: S der Abschläge für Verlegungen (Sp. 6x7) | I13: Anzahl der Kurzlieger- fälle | J13: Anzahl der Tage mit uGVD- Abschlag | K13: Bewertungs- relation je Tag bei uGVD- Abschlag | L13: S der uGVD- Abschläge (Sp. 10x11) | M13: Anzahl der Langlieger- fälle | N13: Anzahl der Tage mit oGVD- Zuschlag | O13: Bewertungs- relation je Tag bei oGVD- Zuschlag | P13: S der oGVD- Zuschläge (Sp. 14x15) | Q13: S der effektiven Bewertungs- relationen (Sp. 4 - (Sp.8+ Sp. 12)+Sp. 16)
A14: 1 | B14: 2 | C14: 3 | D14: 4 | E14: 5 | F14: 6 | G14: 7 | H14: 8 | I14: 9 | J14: 10 | K14: 11 | L14: 12 | M14: 13 | N14: 14 | O14: 15 | P14: 16 | Q14: 17
A15: DRGs mit Bewertungsrelationen für Hauptabteilungen | R15: 1
A16: o01b | B16: 10 | C16: =IF(A16="","",CalcDRG(A16,Bezugsjahr-2,"HA",4)) -> 2.967 | D16: =IF(A16="",0,IF(ISERROR((B16*C16))=TRUE,0,(B16*C16))) -> 29.67 | G16: =IF(A16="","",CalcDRG(A16,Bezugsjahr-2,"HA",11)) -> 0.101 | H16: =IF(A16="",0,IF(F16<=0,0,IF(ISERROR(G16*F16)=TRUE,0,(G16*F16)))) -> 0 | K16: =IF(A16="","",CalcDRG(A16,Bezugsjahr-2,"HA",8)) -> 0.338 | L16: =IF(A16="",0,IF(K16<=0,0,IF(ISERROR(K16*J16)=TRUE,0,(K16*J16)))) -> 0 | O16: =IF(A16="","",CalcDRG(A16,Bezugsjahr-2,"HA",10)) -> 0.106 | P16: =IF(A16="",0,IF(O16<=0,0,IF(ISERROR(O16*N16)=TRUE,0,(O16*N16)))) -> 0 | Q16: =IF(A16="",0,IF(ISERROR(D16-H16-L16+P16)=TRUE,0,(D16-H16-L16+P16))) -> 29.67
A17: DRGs mit Bewertungsrelation bei Hauptabteilung und Beleghebamme | R17: 1
A18: o01b | B18: 10 | C18: =IF(A18="","",CalcDRG(A18,Bezugsjahr-2,"HA",5)) -> 2.809 | D18: =IF(A18="",0,IF(ISERROR((B18*C18))=TRUE,0,(B18*C18))) -> 28.09 | G18: =IF(A18="","",CalcDRG(A18,Bezugsjahr-2,"HA",11)) -> 0.101 | H18: =IF(A18="",0,IF(F18<=0,0,IF(ISERROR(G18*F18)=TRUE,0,(G18*F18)))) -> 0 | K18: =IF(A18="","",CalcDRG(A18,Bezugsjahr-2,"HA",8)) -> 0.338 | L18: =IF(A18="",0,IF(J18<=0,0,IF(ISERROR(K18*J18)=TRUE,0,(K18*J18)))) -> 0 | O18: =IF(A18="","",CalcDRG(A18,Bezugsjahr-2,"HA",10)) -> 0.106 | P18: =IF(A18="",0,IF(N18<=0,0,IF(ISERROR(O18*N18)=TRUE,0,(O18*N18)))) -> 0 | Q18: =IF(A18="",0,IF(ISERROR(D18-H18-L18+P18)=TRUE,0,(D18-H18-L18+P18))) -> 28.09
A19: DRGs mit Bewertungsrelation bei Belegoperateur | R19: 1
A20: o01b | B20: 10 | C20: =IF(A20="","",CalcDRG(A20,Bezugsjahr-2,"BA",4)) -> 2.527 | D20: =IF(A20="",0,IF(ISERROR((B20*C20))=TRUE,0,(B20*C20))) -> 25.27 | G20: =IF(A20="","",CalcDRG(A20,Bezugsjahr-2,"BA",13)) -> 0.088 | H20: =IF(A20="",0,IF(F20<=0,0,IF(ISERROR(G20*F20)=TRUE,0,(G20*F20)))) -> 0 | K20: =IF(A20="","",CalcDRG(A20,Bezugsjahr-2,"BA",10)) -> 0.296 | L20: =IF(A20="",0,IF(J20<=0,0,IF(ISERROR(K20*J20)=TRUE,0,(K20*J20)))) -> 0 | O20: =IF(A20="","",CalcDRG(A20,Bezugsjahr-2,"BA",12)) -> 0.092 | P20: =IF(A20="",0,IF(N20<=0,0,IF(ISERROR(O20*N20)=TRUE,0,(O20*N20)))) -> 0 | Q20: =IF(A20="",0,IF(ISERROR(D20-H20-L20+P20)=TRUE,0,(D20-H20-L20+P20))) -> 25.27
A21: DRGs mit Bewertungsrelation bei Belegoperateur und Beleganästhesist | R21: 1
A22: o01b | B22: 10 | C22: =IF(A22="","",CalcDRG(A22,Bezugsjahr-2,"BA",5)) -> 2.45 | D22: =IF(A22="",0,IF(ISERROR((B22*C22))=TRUE,0,(B22*C22))) -> 24.5 | G22: =IF(A22="","",CalcDRG(A22,Bezugsjahr-2,"BA",13)) -> 0.088 | H22: =IF(A22="",0,IF(F22<=0,0,IF(ISERROR(G22*F22)=TRUE,0,(G22*F22)))) -> 0 | K22: =IF(A22="","",CalcDRG(A22,Bezugsjahr-2,"BA",10)) -> 0.296 | L22: =IF(A22="",0,IF(J22<=0,0,IF(ISERROR(K22*J22)=TRUE,0,(K22*J22)))) -> 0 | O22: =IF(A22="","",CalcDRG(A22,Bezugsjahr-2,"BA",12)) -> 0.092 | P22: =IF(A22="",0,IF(N22<=0,0,IF(ISERROR(O22*N22)=TRUE,0,(O22*N22)))) -> 0 | Q22: =IF(A22="",0,IF(ISERROR(D22-H22-L22+P22)=TRUE,0,(D22-H22-L22+P22))) -> 24.5
A23: DRGs mit Bewertungsrelation bei Belegoperateur und Beleghebamme | R23: 1
A24: o01b | B24: 10 | C24: =IF(A24="","",CalcDRG(A24,Bezugsjahr-2,"BA",6)) -> 2.369 | D24: =IF(A24="",0,IF(ISERROR((B24*C24))=TRUE,0,(B24*C24))) -> 23.69 | G24: =IF(A24="","",CalcDRG(A24,Bezugsjahr-2,"BA",13)) -> 0.088 | H24: =IF(A24="",0,IF(F24<=0,0,IF(ISERROR(G24*F24)=TRUE,0,(G24*F24)))) -> 0 | K24: =IF(A24="","",CalcDRG(A24,Bezugsjahr-2,"BA",10)) -> 0.296 | L24: =IF(A24="",0,IF(J24<=0,0,IF(ISERROR(K24*J24)=TRUE,0,(K24*J24)))) -> 0 | O24: =IF(A24="","",CalcDRG(A24,Bezugsjahr-2,"BA",12)) -> 0.092 | P24: =IF(A24="",0,IF(N24<=0,0,IF(ISERROR(O24*N24)=TRUE,0,(O24*N24)))) -> 0 | Q24: =IF(A24="",0,IF(ISERROR(D24-H24-L24+P24)=TRUE,0,(D24-H24-L24+P24))) -> 23.69
A25: DRGs mit Bewertungsrelation bei Belegoperateur, -anästhesist und -hebamme | R25: 1
A26: o01b | B26: 10 | C26: =IF(A26="","",CalcDRG(A26,Bezugsjahr-2,"BA",7)) -> 2.293 | D26: =IF(A26="",0,IF(ISERROR((B26*C26))=TRUE,0,(B26*C26))) -> 22.93 | G26: =IF(A26="","",CalcDRG(A26,Bezugsjahr-2,"BA",13)) -> 0.088 | H26: =IF(A26="",0,IF(F26<=0,0,IF(ISERROR(G26*F26)=TRUE,0,(G26*F26)))) -> 0 | K26: =IF(A26="","",CalcDRG(A26,Bezugsjahr-2,"BA",10)) -> 0.296 | L26: =IF(A26="",0,IF(J26<=0,0,IF(ISERROR(K26*J26)=TRUE,0,(K26*J26)))) -> 0 | O26: =IF(A26="","",CalcDRG(A26,Bezugsjahr-2,"BA",12)) -> 0.092 | P26: =IF(A26="",0,IF(N26<=0,0,IF(ISERROR(O26*N26)=TRUE,0,(O26*N26)))) -> 0 | Q26: =IF(A26="",0,IF(ISERROR(D26-H26-L26+P26)=TRUE,0,(D26-H26-L26+P26))) -> 22.93
A27: @
A28: SUMME | B28: =SUM(B16:B26) -> 60 | D28: =SUM(D16:D26) -> 154.15 | E28: =SUM(E16:E26) -> 0 | F28: =SUM(F16:F26) -> 0 | H28: =SUM(H16:H26) -> 0 | I28: =SUM(I16:I26) -> 0 | J28: =SUM(J16:J26) -> 0 | L28: =SUM(L16:L26) -> 0 | M28: =SUM(M16:M26) -> 0 | N28: =SUM(N16:N26) -> 0 | P28: =SUM(P16:P26) -> 0 | Q28: =SUM(Q16:Q26) -> 154.15
A29: Jahresfälle
A30: Summe
A31: Überlieger
A32: Summe | B32: =B30+B28 -> 60 | D32: =D30+D28 -> 154.15 | E32: =E30+E28 -> 0 | F32: =F30+F28 -> 0 | H32: =H30+H28 -> 0 | I32: =I30+I28 -> 0 | J32: =J30+J28 -> 0 | L32: =L30+L28 -> 0 | M32: =M30+M28 -> 0 | N32: =N30+N28 -> 0 | P32: =P30+P28 -> 0 | Q32: =Q30+Q28 -> 154.15
A33: insgesamt

Sheet E1 VJ
A1: Krankenhaus: | P1: Tabelle: | Q1: =GetPage(Q2) -> 4/25 | R1: =SUM(R15:R25) -> 6
A2: =Krankenhausname -> <Hier Krankenhausnamen eintragen> | P2: Datum: | Q2: =AEB_Datum -> 29.3.2022
A4: ="E1 Aufstellung der Fallpauschalen für das Krankenhaus (Daten " & VJ & ", Katalog " & VJ &")" -> E1 Aufstellung der Fallpauschalen für das Krankenhaus (Daten 2020, Katalog 2020)
C5: =IF(A5="","",CalcDRG(A5,Bezugsjahr-1,"HA",4)) ->  | D5: =IF(A5="",0,IF(ISERROR((B5*C5))=TRUE,0,(B5*C5))) -> 0 | G5: =IF(A5="","",CalcDRG(A5,Bezugsjahr-1,"HA",11)) ->  | H5: =IF(A5="",0,IF(F5<=0,0,IF(ISERROR(G5*F5)=TRUE,0,(G5*F5)))) -> 0 | K5: =IF(A5="","",CalcDRG(A5,Bezugsjahr-1,"HA",8)) ->  | L5: =IF(A5="",0,IF(K5<=0,0,IF(ISERROR(K5*J5)=TRUE,0,(K5*J5)))) -> 0 | O5: =IF(A5="","",CalcDRG(A5,Bezugsjahr-1,"HA",10)) ->  | P5: =IF(A5="",0,IF(O5<=0,0,IF(ISERROR(O5*N5)=TRUE,0,(O5*N5)))) -> 0 | Q5: =IF(A5="",0,IF(ISERROR(D5-H5-L5+P5)=TRUE,0,(D5-H5-L5+P5))) -> 0
C6: =IF(A6="","",CalcDRG(A6,Bezugsjahr-1,"HA",5)) ->  | D6: 0 | G6: =IF(A6="","",CalcDRG(A6,Bezugsjahr-1,"HA",11)) ->  | H6: 0 | K6: =IF(A6="","",CalcDRG(A6,Bezugsjahr-1,"HA",8)) ->  | L6: =IF(A6="",0,IF(J6<=0,0,IF(ISERROR(K6*J6)=TRUE,0,(K6*J6)))) -> 0 | O6: =IF(A6="","",CalcDRG(A6,Bezugsjahr-1,"HA",10)) ->  | P6: =IF(A6="",0,IF(N6<=0,0,IF(ISERROR(O6*N6)=TRUE,0,(O6*N6)))) -> 0 | Q6: 0
C7: =IF(A7="","",CalcDRG(A7,Bezugsjahr-1,"BA",4)) ->  | D7: 0 | G7: =IF(A7="","",CalcDRG(A7,Bezugsjahr-1,"BA",13)) ->  | H7: 0 | K7: =IF(A7="","",CalcDRG(A7,Bezugsjahr-1,"BA",10)) ->  | L7: =IF(A7="",0,IF(J7<=0,0,IF(ISERROR(K7*J7)=TRUE,0,(K7*J7)))) -> 0 | O7: =IF(A7="","",CalcDRG(A7,Bezugsjahr-1,"BA",12)) ->  | P7: =IF(A7="",0,IF(N7<=0,0,IF(ISERROR(O7*N7)=TRUE,0,(O7*N7)))) -> 0 | Q7: 0
C8: =IF(A8="","",CalcDRG(A8,Bezugsjahr-1,"BA",5)) ->  | D8: 0 | G8: =IF(A8="","",CalcDRG(A8,Bezugsjahr-1,"BA",13)) ->  | H8: 0 | K8: =IF(A8="","",CalcDRG(A8,Bezugsjahr-1,"BA",10)) ->  | L8: =IF(A8="",0,IF(J8<=0,0,IF(ISERROR(K8*J8)=TRUE,0,(K8*J8)))) -> 0 | O8: =IF(A8="","",CalcDRG(A8,Bezugsjahr-1,"BA",12)) ->  | P8: =IF(A8="",0,IF(N8<=0,0,IF(ISERROR(O8*N8)=TRUE,0,(O8*N8)))) -> 0 | Q8: 0
C9: =IF(A9="","",CalcDRG(A9,Bezugsjahr-1,"BA",6)) ->  | D9: 0 | G9: =IF(A9="","",CalcDRG(A9,Bezugsjahr-1,"BA",13)) ->  | H9: 0 | K9: =IF(A9="","",CalcDRG(A9,Bezugsjahr-1,"BA",10)) ->  | L9: =IF(A9="",0,IF(J9<=0,0,IF(ISERROR(K9*J9)=TRUE,0,(K9*J9)))) -> 0 | O9: =IF(A9="","",CalcDRG(A9,Bezugsjahr-1,"BA",12)) ->  | P9: =IF(A9="",0,IF(N9<=0,0,IF(ISERROR(O9*N9)=TRUE,0,(O9*N9)))) -> 0 | Q9: 0
C10: =IF(A10="","",CalcDRG(A10,Bezugsjahr-1,"BA",7)) ->  | D10: 0 | G10: =IF(A10="","",CalcDRG(A10,Bezugsjahr-1,"BA",13)) ->  | H10: 0 | K10: =IF(A10="","",CalcDRG(A10,Bezugsjahr-1,"BA",10)) ->  | L10: =IF(A10="",0,IF(J10<=0,0,IF(ISERROR(K10*J10)=TRUE,0,(K10*J10)))) -> 0 | O10: =IF(A10="","",CalcDRG(A10,Bezugsjahr-1,"BA",12)) ->  | P10: =IF(A10="",0,IF(N10<=0,0,IF(ISERROR(O10*N10)=TRUE,0,(O10*N10)))) -> 0 | Q10: 0
E12: davon Verlegungen | I12: davon Kurzlieger | M12: davon Langlieger | S12: Pflegeerlös
A13: DRG Nr. | B13: Fallzahl (Anzahl der DRG) | C13: Bewertungs-relation nach Fall- pauschalen katalog | D13: S der Bewertungs-relationen ohne Zu- und Abschläge (Sp. 2x3) | E13: Anzahl der Verlegungs- fälle | F13: Anzahl der Tage mit Abschlag bei Verlegung | G13: Bewertungs- relation je Tag bei Verlegung | H13: S der Abschläge für Verlegungen (Sp. 6x7) | I13: Anzahl der Kurzlieger- fälle | J13: Anzahl der Tage mit uGVD- Abschlag | K13: Bewertungs- relation je Tag bei uGVD- Abschlag | L13: S der uGVD- Abschläge (Sp. 10x11) | M13: Anzahl der Langlieger- fälle | N13: Anzahl der Tage mit oGVD- Zuschlag | O13: Bewertungs- relation je Tag bei oGVD- Zuschlag | P13: S der oGVD- Zuschläge (Sp. 14x15) | Q13: S der effektiven Bewertungs- relationen (Sp. 4 - (Sp.8+ Sp. 12)+Sp. 16) | S13: Anzahl der Berechnungs-tage | T13: Bewertungs-relation/Tag | U13: Summe der Pflegebewertungs-relationen (Sp.18x19)
A14: 1 | B14: 2 | C14: 3 | D14: 4 | E14: 5 | F14: 6 | G14: 7 | H14: 8 | I14: 9 | J14: 10 | K14: 11 | L14: 12 | M14: 13 | N14: 14 | O14: 15 | P14: 16 | Q14: 17 | S14: 18 | T14: 19 | U14: 20
A15: DRGs mit Bewertungsrelationen für Hauptabteilungen | R15: 1
A16: o01b | C16: =IF(A16="","",CalcDRG(A16,Bezugsjahr-1,"HA",4)) -> 2.362 | D16: =IF(A16="",0,IF(ISERROR((B16*C16))=TRUE,0,(B16*C16))) -> 0 | G16: =IF(A16="","",CalcDRG(A16,Bezugsjahr-1,"HA",11)) -> 0.068 | H16: =IF(A16="",0,IF(F16<=0,0,IF(ISERROR(G16*F16)=TRUE,0,(G16*F16)))) -> 0 | K16: =IF(A16="","",CalcDRG(A16,Bezugsjahr-1,"HA",8)) -> 0.206 | L16: =IF(A16="",0,IF(K16<=0,0,IF(ISERROR(K16*J16)=TRUE,0,(K16*J16)))) -> 0 | O16: =IF(A16="","",CalcDRG(A16,Bezugsjahr-1,"HA",10)) -> 0.072 | P16: =IF(A16="",0,IF(O16<=0,0,IF(ISERROR(O16*N16)=TRUE,0,(O16*N16)))) -> 0 | Q16: =IF(A16="",0,IF(ISERROR(D16-H16-L16+P16)=TRUE,0,(D16-H16-L16+P16))) -> 0 | T16: =IF(A16="","",CalcDRG(A16,Bezugsjahr-1,"HA",14)) -> 0.7604 | U16: =IF(A16="",0,IF(T16<=0,0,IF(ISERROR(T16*S16)=TRUE,0,(T16*S16)))) -> 0
A17: DRGs mit Bewertungsrelation bei Hauptabteilung und Beleghebamme | R17: 1
A18: o01b | C18: =IF(A18="","",CalcDRG(A18,Bezugsjahr-1,"HA",5)) -> 2.188 | D18: =IF(A18="",0,IF(ISERROR((B18*C18))=TRUE,0,(B18*C18))) -> 0 | G18: =IF(A18="","",CalcDRG(A18,Bezugsjahr-1,"HA",11)) -> 0.068 | H18: =IF(A18="",0,IF(F18<=0,0,IF(ISERROR(G18*F18)=TRUE,0,(G18*F18)))) -> 0 | K18: =IF(A18="","",CalcDRG(A18,Bezugsjahr-1,"HA",8)) -> 0.206 | L18: =IF(A18="",0,IF(J18<=0,0,IF(ISERROR(K18*J18)=TRUE,0,(K18*J18)))) -> 0 | O18: =IF(A18="","",CalcDRG(A18,Bezugsjahr-1,"HA",10)) -> 0.072 | P18: =IF(A18="",0,IF(N18<=0,0,IF(ISERROR(O18*N18)=TRUE,0,(O18*N18)))) -> 0 | Q18: =IF(A18="",0,IF(ISERROR(D18-H18-L18+P18)=TRUE,0,(D18-H18-L18+P18))) -> 0 | T18: =IF(A18="","",CalcDRG(A18,Bezugsjahr-1,"HA",14)) -> 0.7604 | U18: =IF(A18="",0,IF(T18<=0,0,IF(ISERROR(T18*S18)=TRUE,0,(T18*S18)))) -> 0
A19: DRGs mit Bewertungsrelation bei Belegoperateur | R19: 1
A20: o01b | C20: =IF(A20="","",CalcDRG(A20,Bezugsjahr-1,"BA",4)) -> 1.924 | D20: =IF(A20="",0,IF(ISERROR((B20*C20))=TRUE,0,(B20*C20))) -> 0 | G20: =IF(A20="","",CalcDRG(A20,Bezugsjahr-1,"BA",13)) -> 0.056 | H20: =IF(A20="",0,IF(F20<=0,0,IF(ISERROR(G20*F20)=TRUE,0,(G20*F20)))) -> 0 | K20: =IF(A20="","",CalcDRG(A20,Bezugsjahr-1,"BA",10)) -> 0.169 | L20: =IF(A20="",0,IF(J20<=0,0,IF(ISERROR(K20*J20)=TRUE,0,(K20*J20)))) -> 0 | O20: =IF(A20="","",CalcDRG(A20,Bezugsjahr-1,"BA",12)) -> 0.059 | P20: =IF(A20="",0,IF(N20<=0,0,IF(ISERROR(O20*N20)=TRUE,0,(O20*N20)))) -> 0 | Q20: =IF(A20="",0,IF(ISERROR(D20-H20-L20+P20)=TRUE,0,(D20-H20-L20+P20))) -> 0 | T20: =IF(A20="","",CalcDRG(A20,Bezugsjahr-1,"BA",16)) -> 0.7604 | U20: =IF(A20="",0,IF(T20<=0,0,IF(ISERROR(T20*S20)=TRUE,0,(T20*S20)))) -> 0
A21: DRGs mit Bewertungsrelation bei Belegoperateur und Beleganästhesist | R21: 1
A22: o01b | C22: =IF(A22="","",CalcDRG(A22,Bezugsjahr-1,"BA",5)) -> 1.843 | D22: =IF(A22="",0,IF(ISERROR((B22*C22))=TRUE,0,(B22*C22))) -> 0 | G22: =IF(A22="","",CalcDRG(A22,Bezugsjahr-1,"BA",13)) -> 0.056 | H22: =IF(A22="",0,IF(F22<=0,0,IF(ISERROR(G22*F22)=TRUE,0,(G22*F22)))) -> 0 | K22: =IF(A22="","",CalcDRG(A22,Bezugsjahr-1,"BA",10)) -> 0.169 | L22: =IF(A22="",0,IF(J22<=0,0,IF(ISERROR(K22*J22)=TRUE,0,(K22*J22)))) -> 0 | O22: =IF(A22="","",CalcDRG(A22,Bezugsjahr-1,"BA",12)) -> 0.059 | P22: =IF(A22="",0,IF(N22<=0,0,IF(ISERROR(O22*N22)=TRUE,0,(O22*N22)))) -> 0 | Q22: =IF(A22="",0,IF(ISERROR(D22-H22-L22+P22)=TRUE,0,(D22-H22-L22+P22))) -> 0 | T22: =IF(A22="","",CalcDRG(A22,Bezugsjahr-1,"BA",16)) -> 0.7604 | U22: =IF(A22="",0,IF(T22<=0,0,IF(ISERROR(T22*S22)=TRUE,0,(T22*S22)))) -> 0
A23: DRGs mit Bewertungsrelation bei Belegoperateur und Beleghebamme | R23: 1
A24: o01b | C24: =IF(A24="","",CalcDRG(A24,Bezugsjahr-1,"BA",6)) -> 1.75 | D24: =IF(A24="",0,IF(ISERROR((B24*C24))=TRUE,0,(B24*C24))) -> 0 | G24: =IF(A24="","",CalcDRG(A24,Bezugsjahr-1,"BA",13)) -> 0.056 | H24: =IF(A24="",0,IF(F24<=0,0,IF(ISERROR(G24*F24)=TRUE,0,(G24*F24)))) -> 0 | K24: =IF(A24="","",CalcDRG(A24,Bezugsjahr-1,"BA",10)) -> 0.169 | L24: =IF(A24="",0,IF(J24<=0,0,IF(ISERROR(K24*J24)=TRUE,0,(K24*J24)))) -> 0 | O24: =IF(A24="","",CalcDRG(A24,Bezugsjahr-1,"BA",12)) -> 0.059 | P24: =IF(A24="",0,IF(N24<=0,0,IF(ISERROR(O24*N24)=TRUE,0,(O24*N24)))) -> 0 | Q24: =IF(A24="",0,IF(ISERROR(D24-H24-L24+P24)=TRUE,0,(D24-H24-L24+P24))) -> 0 | T24: =IF(A24="","",CalcDRG(A24,Bezugsjahr-1,"BA",16)) -> 0.7604 | U24: =IF(A24="",0,IF(T24<=0,0,IF(ISERROR(T24*S24)=TRUE,0,(T24*S24)))) -> 0
A25: DRGs mit Bewertungsrelation bei Belegoperateur, -anästhesist und -hebamme | R25: 1
A26: o01b | C26: =IF(A26="","",CalcDRG(A26,Bezugsjahr-1,"BA",7)) -> 1.669 | D26: =IF(A26="",0,IF(ISERROR((B26*C26))=TRUE,0,(B26*C26))) -> 0 | G26: =IF(A26="","",CalcDRG(A26,Bezugsjahr-1,"BA",13)) -> 0.056 | H26: =IF(A26="",0,IF(F26<=0,0,IF(ISERROR(G26*F26)=TRUE,0,(G26*F26)))) -> 0 | K26: =IF(A26="","",CalcDRG(A26,Bezugsjahr-1,"BA",10)) -> 0.169 | L26: =IF(A26="",0,IF(J26<=0,0,IF(ISERROR(K26*J26)=TRUE,0,(K26*J26)))) -> 0 | O26: =IF(A26="","",CalcDRG(A26,Bezugsjahr-1,"BA",12)) -> 0.059 | P26: =IF(A26="",0,IF(N26<=0,0,IF(ISERROR(O26*N26)=TRUE,0,(O26*N26)))) -> 0 | Q26: =IF(A26="",0,IF(ISERROR(D26-H26-L26+P26)=TRUE,0,(D26-H26-L26+P26))) -> 0 | T26: =IF(A26="","",CalcDRG(A26,Bezugsjahr-1,"BA",16)) -> 0.7604 | U26: =IF(A26="",0,IF(T26<=0,0,IF(ISERROR(T26*S26)=TRUE,0,(T26*S26)))) -> 0
A27: @
A28: SUMME | B28: =SUM(B16:B26) -> 0 | D28: =SUM(D16:D26) -> 0 | E28: =SUM(E16:E26) -> 0 | F28: =SUM(F16:F26) -> 0 | H28: =SUM(H16:H26) -> 0 | I28: =SUM(I16:I26) -> 0 | J28: =SUM(J16:J26) -> 0 | L28: =SUM(L16:L26) -> 0 | M28: =SUM(M16:M26) -> 0 | N28: =SUM(N16:N26) -> 0 | P28: =SUM(P16:P26) -> 0 | Q28: =SUM(Q16:Q26) -> 0 | S28: =SUM(S16:S26) -> 0 | U28: =SUM(U16:U21) -> 0
A29: Jahresfälle
A30: Summe
A31: Überlieger
A32: Summe | B32: =B30+B28 -> 0 | D32: =D30+D28 -> 0 | E32: =E30+E28 -> 0 | F32: =F30+F28 -> 0 | H32: =H30+H28 -> 0 | I32: =I30+I28 -> 0 | J32: =J30+J28 -> 0 | L32: =L30+L28 -> 0 | M32: =M30+M28 -> 0 | N32: =N30+N28 -> 0 | P32: =P30+P28 -> 0 | Q32: =Q30+Q28 -> 0 | S32: =S30+S28 -> 0 | U32: =U30+U28 -> 0
A33: insgesamt

Sheet E1 VJÜ
A1: Krankenhaus: | R1: =SUM(R15:R15) -> 1 | T1: Tabelle: | U1: =GetPage(U2) -> 5/25
A2: =Krankenhausname -> <Hier Krankenhausnamen eintragen> | T2: Datum: | U2: =AEB_Datum -> 29.3.2022
A4: ="E1 Aufstellung der Fallpauschalen für das Krankenhaus (Daten " & VJ & ", Katalog " & BJ &")" -> E1 Aufstellung der Fallpauschalen für das Krankenhaus (Daten 2020, Katalog 2021)
C5: =IF(A5="","",CalcDRG(A5,Bezugsjahr,"HA",4)) ->  | D5: =IF(A5="",0,IF(ISERROR((B5*C5))=TRUE,0,(B5*C5))) -> 0 | G5: =IF(A5="","",CalcDRG(A5,Bezugsjahr,"HA",11)) ->  | H5: =IF(A5="",0,IF(F5<=0,0,IF(ISERROR(G5*F5)=TRUE,0,(G5*F5)))) -> 0 | K5: =IF(A5="","",CalcDRG(A5,Bezugsjahr,"HA",8)) ->  | L5: =IF(A5="",0,IF(K5<=0,0,IF(ISERROR(K5*J5)=TRUE,0,(K5*J5)))) -> 0 | O5: =IF(A5="","",CalcDRG(A5,Bezugsjahr,"HA",10)) ->  | P5: =IF(A5="",0,IF(O5<=0,0,IF(ISERROR(O5*N5)=TRUE,0,(O5*N5)))) -> 0 | Q5: =IF(A5="",0,IF(ISERROR(D5-H5-L5+P5)=TRUE,0,(D5-H5-L5+P5))) -> 0 | T5: =IF(A5="","",CalcDRG(A5,Bezugsjahr,"HA",14)) ->  | U5: =IF(A5="",0,IF(T5<=0,0,IF(ISERROR(T5*S5)=TRUE,0,(T5*S5)))) -> 0
C6: =IF(A6="","",CalcDRG(A6,Bezugsjahr,"HA",5)) ->  | D6: 0 | G6: =IF(A6="","",CalcDRG(A6,Bezugsjahr,"HA",11)) ->  | H6: 0 | K6: =IF(A6="","",CalcDRG(A6,Bezugsjahr,"HA",8)) ->  | L6: =IF(A6="",0,IF(J6<=0,0,IF(ISERROR(K6*J6)=TRUE,0,(K6*J6)))) -> 0 | O6: =IF(A6="","",CalcDRG(A6,Bezugsjahr,"HA",10)) ->  | P6: =IF(A6="",0,IF(N6<=0,0,IF(ISERROR(O6*N6)=TRUE,0,(O6*N6)))) -> 0 | Q6: 0 | T6: =IF(A6="","",CalcDRG(A6,Bezugsjahr,"HA",14)) ->  | U6: =IF(A6="",0,IF(S6<=0,0,IF(ISERROR(T6*S6)=TRUE,0,(T6*S6)))) -> 0
C7: =IF(A7="","",CalcDRG(A7,Bezugsjahr,"BA",4)) ->  | D7: 0 | G7: =IF(A7="","",CalcDRG(A7,Bezugsjahr,"BA",13)) ->  | H7: 0 | K7: =IF(A7="","",CalcDRG(A7,Bezugsjahr,"BA",10)) ->  | L7: =IF(A7="",0,IF(J7<=0,0,IF(ISERROR(K7*J7)=TRUE,0,(K7*J7)))) -> 0 | O7: =IF(A7="","",CalcDRG(A7,Bezugsjahr,"BA",12)) ->  | P7: =IF(A7="",0,IF(N7<=0,0,IF(ISERROR(O7*N7)=TRUE,0,(O7*N7)))) -> 0 | Q7: 0 | T7: =IF(A7="","",CalcDRG(A7,Bezugsjahr,"BA",16)) ->  | U7: =IF(A7="",0,IF(S7<=0,0,IF(ISERROR(T7*S7)=TRUE,0,(T7*S7)))) -> 0
C8: =IF(A8="","",CalcDRG(A8,Bezugsjahr,"BA",5)) ->  | D8: 0 | G8: =IF(A8="","",CalcDRG(A8,Bezugsjahr,"BA",13)) ->  | H8: 0 | K8: =IF(A8="","",CalcDRG(A8,Bezugsjahr,"BA",10)) ->  | L8: =IF(A8="",0,IF(J8<=0,0,IF(ISERROR(K8*J8)=TRUE,0,(K8*J8)))) -> 0 | O8: =IF(A8="","",CalcDRG(A8,Bezugsjahr,"BA",12)) ->  | P8: =IF(A8="",0,IF(N8<=0,0,IF(ISERROR(O8*N8)=TRUE,0,(O8*N8)))) -> 0 | Q8: 0 | T8: =IF(A8="","",CalcDRG(A8,Bezugsjahr,"BA",16)) ->  | U8: =IF(A8="",0,IF(S8<=0,0,IF(ISERROR(T8*S8)=TRUE,0,(T8*S8)))) -> 0
C9: =IF(A9="","",CalcDRG(A9,Bezugsjahr,"BA",6)) ->  | D9: 0 | G9: =IF(A9="","",CalcDRG(A9,Bezugsjahr,"BA",13)) ->  | H9: 0 | K9: =IF(A9="","",CalcDRG(A9,Bezugsjahr,"BA",10)) ->  | L9: =IF(A9="",0,IF(J9<=0,0,IF(ISERROR(K9*J9)=TRUE,0,(K9*J9)))) -> 0 | O9: =IF(A9="","",CalcDRG(A9,Bezugsjahr,"BA",12)) ->  | P9: =IF(A9="",0,IF(N9<=0,0,IF(ISERROR(O9*N9)=TRUE,0,(O9*N9)))) -> 0 | Q9: 0 | T9: =IF(A9="","",CalcDRG(A9,Bezugsjahr,"BA",16)) ->  | U9: =IF(A9="",0,IF(S9<=0,0,IF(ISERROR(T9*S9)=TRUE,0,(T9*S9)))) -> 0
C10: =IF(A10="","",CalcDRG(A10,Bezugsjahr,"BA",7)) ->  | D10: 0 | G10: =IF(A10="","",CalcDRG(A10,Bezugsjahr,"BA",13)) ->  | H10: 0 | K10: =IF(A10="","",CalcDRG(A10,Bezugsjahr,"BA",10)) ->  | L10: =IF(A10="",0,IF(J10<=0,0,IF(ISERROR(K10*J10)=TRUE,0,(K10*J10)))) -> 0 | O10: =IF(A10="","",CalcDRG(A10,Bezugsjahr,"BA",12)) ->  | P10: =IF(A10="",0,IF(N10<=0,0,IF(ISERROR(O10*N10)=TRUE,0,(O10*N10)))) -> 0 | Q10: 0 | T10: =IF(A10="","",CalcDRG(A10,Bezugsjahr,"BA",16)) ->  | U10: =IF(A10="",0,IF(S10<=0,0,IF(ISERROR(T10*S10)=TRUE,0,(T10*S10)))) -> 0
E12: davon Verlegungen | I12: davon Kurzlieger | M12: davon Langlieger | S12: Pflegeerlös
A13: DRG Nr. | B13: Fallzahl (Anzahl der DRG) | C13: Bewertungs-relation nach Fall- pauschalen katalog | D13: S der Bewertungs-relationen ohne Zu- und Abschläge (Sp. 2x3) | E13: Anzahl der Verlegungs- fälle | F13: Anzahl der Tage mit Abschlag bei Verlegung | G13: Bewertungs- relation je Tag bei Verlegung | H13: S der Abschläge für Verlegungen (Sp. 6x7) | I13: Anzahl der Kurzlieger- fälle | J13: Anzahl der Tage mit uGVD- Abschlag | K13: Bewertungs- relation je Tag bei uGVD- Abschlag | L13: S der uGVD- Abschläge (Sp. 10x11) | M13: Anzahl der Langlieger- fälle | N13: Anzahl der Tage mit oGVD- Zuschlag | O13: Bewertungs- relation je Tag bei oGVD- Zuschlag | P13: S der oGVD- Zuschläge (Sp. 14x15) | Q13: S der effektiven Bewertungs- relationen (Sp. 4 - (Sp.8+ Sp. 12)+Sp. 16) | S13: Anzahl der Berechnungs-tage | T13: Bewertungs-relation/Tag | U13: Summe der Pflegebewertungs-relationen (Sp.18x19)
A14: 1 | B14: 2 | C14: 3 | D14: 4 | E14: 5 | F14: 6 | G14: 7 | H14: 8 | I14: 9 | J14: 10 | K14: 11 | L14: 12 | M14: 13 | N14: 14 | O14: 15 | P14: 16 | Q14: 17 | S14: 18 | T14: 19 | U14: 20
A15: DRGs mit Bewertungsrelationen für Hauptabteilungen | R15: 1
A16: o01b | C16: =IF(A16="","",CalcDRG(A16,Bezugsjahr,"HA",4)) -> 2.332 | D16: =IF(A16="",0,IF(ISERROR((B16*C16))=TRUE,0,(B16*C16))) -> 0 | G16: =IF(A16="","",CalcDRG(A16,Bezugsjahr,"HA",11)) -> 0.068 | H16: =IF(A16="",0,IF(F16<=0,0,IF(ISERROR(G16*F16)=TRUE,0,(G16*F16)))) -> 0 | K16: =IF(A16="","",CalcDRG(A16,Bezugsjahr,"HA",8)) -> 0.222 | L16: =IF(A16="",0,IF(K16<=0,0,IF(ISERROR(K16*J16)=TRUE,0,(K16*J16)))) -> 0 | O16: =IF(A16="","",CalcDRG(A16,Bezugsjahr,"HA",10)) -> 0.072 | P16: =IF(A16="",0,IF(O16<=0,0,IF(ISERROR(O16*N16)=TRUE,0,(O16*N16)))) -> 0 | Q16: =IF(A16="",0,IF(ISERROR(D16-H16-L16+P16)=TRUE,0,(D16-H16-L16+P16))) -> 0 | T16: =IF(A16="","",CalcDRG(A16,Bezugsjahr,"HA",14)) -> 0.756 | U16: =IF(A16="",0,IF(T16<=0,0,IF(ISERROR(T16*S16)=TRUE,0,(T16*S16)))) -> 0
A17: DRGs mit Bewertungsrelation bei Hauptabteilung und Beleghebamme | R17: 1
A18: o01b | C18: =IF(A18="","",CalcDRG(A18,Bezugsjahr,"HA",5)) -> 2.1 | D18: =IF(A18="",0,IF(ISERROR((B18*C18))=TRUE,0,(B18*C18))) -> 0 | G18: =IF(A18="","",CalcDRG(A18,Bezugsjahr,"HA",11)) -> 0.068 | H18: =IF(A18="",0,IF(F18<=0,0,IF(ISERROR(G18*F18)=TRUE,0,(G18*F18)))) -> 0 | K18: =IF(A18="","",CalcDRG(A18,Bezugsjahr,"HA",8)) -> 0.222 | L18: =IF(A18="",0,IF(J18<=0,0,IF(ISERROR(K18*J18)=TRUE,0,(K18*J18)))) -> 0 | O18: =IF(A18="","",CalcDRG(A18,Bezugsjahr,"HA",10)) -> 0.072 | P18: =IF(A18="",0,IF(N18<=0,0,IF(ISERROR(O18*N18)=TRUE,0,(O18*N18)))) -> 0 | Q18: =IF(A18="",0,IF(ISERROR(D18-H18-L18+P18)=TRUE,0,(D18-H18-L18+P18))) -> 0 | T18: =IF(A18="","",CalcDRG(A18,Bezugsjahr,"HA",14)) -> 0.756 | U18: =IF(A18="",0,IF(S18<=0,0,IF(ISERROR(T18*S18)=TRUE,0,(T18*S18)))) -> 0
A19: DRGs mit Bewertungsrelation bei Belegoperateur | R19: 1
A20: o01b | C20: =IF(A20="","",CalcDRG(A20,Bezugsjahr,"BA",4)) -> 1.88 | D20: =IF(A20="",0,IF(ISERROR((B20*C20))=TRUE,0,(B20*C20))) -> 0 | G20: =IF(A20="","",CalcDRG(A20,Bezugsjahr,"BA",13)) -> 0.055 | H20: =IF(A20="",0,IF(F20<=0,0,IF(ISERROR(G20*F20)=TRUE,0,(G20*F20)))) -> 0 | K20: =IF(A20="","",CalcDRG(A20,Bezugsjahr,"BA",10)) -> 0.179 | L20: =IF(A20="",0,IF(J20<=0,0,IF(ISERROR(K20*J20)=TRUE,0,(K20*J20)))) -> 0 | O20: =IF(A20="","",CalcDRG(A20,Bezugsjahr,"BA",12)) -> 0.058 | P20: =IF(A20="",0,IF(N20<=0,0,IF(ISERROR(O20*N20)=TRUE,0,(O20*N20)))) -> 0 | Q20: =IF(A20="",0,IF(ISERROR(D20-H20-L20+P20)=TRUE,0,(D20-H20-L20+P20))) -> 0 | T20: =IF(A20="","",CalcDRG(A20,Bezugsjahr,"BA",16)) -> 0.756 | U20: =IF(A20="",0,IF(S20<=0,0,IF(ISERROR(T20*S20)=TRUE,0,(T20*S20)))) -> 0
A21: DRGs mit Bewertungsrelation bei Belegoperateur und Beleganästhesist | R21: 1
A22: o01b | C22: =IF(A22="","",CalcDRG(A22,Bezugsjahr,"BA",5)) -> 1.802 | D22: =IF(A22="",0,IF(ISERROR((B22*C22))=TRUE,0,(B22*C22))) -> 0 | G22: =IF(A22="","",CalcDRG(A22,Bezugsjahr,"BA",13)) -> 0.055 | H22: =IF(A22="",0,IF(F22<=0,0,IF(ISERROR(G22*F22)=TRUE,0,(G22*F22)))) -> 0 | K22: =IF(A22="","",CalcDRG(A22,Bezugsjahr,"BA",10)) -> 0.179 | L22: =IF(A22="",0,IF(J22<=0,0,IF(ISERROR(K22*J22)=TRUE,0,(K22*J22)))) -> 0 | O22: =IF(A22="","",CalcDRG(A22,Bezugsjahr,"BA",12)) -> 0.058 | P22: =IF(A22="",0,IF(N22<=0,0,IF(ISERROR(O22*N22)=TRUE,0,(O22*N22)))) -> 0 | Q22: =IF(A22="",0,IF(ISERROR(D22-H22-L22+P22)=TRUE,0,(D22-H22-L22+P22))) -> 0 | T22: =IF(A22="","",CalcDRG(A22,Bezugsjahr,"BA",16)) -> 0.756 | U22: =IF(A22="",0,IF(S22<=0,0,IF(ISERROR(T22*S22)=TRUE,0,(T22*S22)))) -> 0
A23: DRGs mit Bewertungsrelation bei Belegoperateur und Beleghebamme | R23: 1
A24: o01b | C24: =IF(A24="","",CalcDRG(A24,Bezugsjahr,"BA",6)) -> 1.648 | D24: =IF(A24="",0,IF(ISERROR((B24*C24))=TRUE,0,(B24*C24))) -> 0 | G24: =IF(A24="","",CalcDRG(A24,Bezugsjahr,"BA",13)) -> 0.055 | H24: =IF(A24="",0,IF(F24<=0,0,IF(ISERROR(G24*F24)=TRUE,0,(G24*F24)))) -> 0 | K24: =IF(A24="","",CalcDRG(A24,Bezugsjahr,"BA",10)) -> 0.179 | L24: =IF(A24="",0,IF(J24<=0,0,IF(ISERROR(K24*J24)=TRUE,0,(K24*J24)))) -> 0 | O24: =IF(A24="","",CalcDRG(A24,Bezugsjahr,"BA",12)) -> 0.058 | P24: =IF(A24="",0,IF(N24<=0,0,IF(ISERROR(O24*N24)=TRUE,0,(O24*N24)))) -> 0 | Q24: =IF(A24="",0,IF(ISERROR(D24-H24-L24+P24)=TRUE,0,(D24-H24-L24+P24))) -> 0 | T24: =IF(A24="","",CalcDRG(A24,Bezugsjahr,"BA",16)) -> 0.756 | U24: =IF(A24="",0,IF(S24<=0,0,IF(ISERROR(T24*S24)=TRUE,0,(T24*S24)))) -> 0
A25: DRGs mit Bewertungsrelation bei Belegoperateur, -anästhesist und -hebamme | R25: 1
A26: o01b | C26: =IF(A26="","",CalcDRG(A26,Bezugsjahr,"BA",7)) -> 1.57 | D26: =IF(A26="",0,IF(ISERROR((B26*C26))=TRUE,0,(B26*C26))) -> 0 | G26: =IF(A26="","",CalcDRG(A26,Bezugsjahr,"BA",13)) -> 0.055 | H26: =IF(A26="",0,IF(F26<=0,0,IF(ISERROR(G26*F26)=TRUE,0,(G26*F26)))) -> 0 | K26: =IF(A26="","",CalcDRG(A26,Bezugsjahr,"BA",10)) -> 0.179 | L26: =IF(A26="",0,IF(J26<=0,0,IF(ISERROR(K26*J26)=TRUE,0,(K26*J26)))) -> 0 | O26: =IF(A26="","",CalcDRG(A26,Bezugsjahr,"BA",12)) -> 0.058 | P26: =IF(A26="",0,IF(N26<=0,0,IF(ISERROR(O26*N26)=TRUE,0,(O26*N26)))) -> 0 | Q26: =IF(A26="",0,IF(ISERROR(D26-H26-L26+P26)=TRUE,0,(D26-H26-L26+P26))) -> 0 | T26: =IF(A26="","",CalcDRG(A26,Bezugsjahr,"BA",16)) -> 0.756 | U26: =IF(A26="",0,IF(S26<=0,0,IF(ISERROR(T26*S26)=TRUE,0,(T26*S26)))) -> 0
A27: @
A28: SUMME | B28: =SUM(B16:B26) -> 0 | D28: =SUM(D16:D26) -> 0 | E28: =SUM(E16:E26) -> 0 | F28: =SUM(F16:F26) -> 0 | H28: =SUM(H16:H26) -> 0 | I28: =SUM(I16:I26) -> 0 | J28: =SUM(J16:J26) -> 0 | L28: =SUM(L16:L26) -> 0 | M28: =SUM(M16:M26) -> 0 | N28: =SUM(N16:N26) -> 0 | P28: =SUM(P16:P26) -> 0 | Q28: =SUM(Q16:Q26) -> 0 | S28: =SUM(S16:S26) -> 0 | U28: =SUM(U17:U26) -> 0
A29: Jahresfälle
A30: Summe
A31: Überlieger
A32: Summe | B32: =B30+B28 -> 0 | D32: =D30+D28 -> 0 | E32: =E30+E28 -> 0 | F32: =F30+F28 -> 0 | H32: =H30+H28 -> 0 | I32: =I30+I28 -> 0 | J32: =J30+J28 -> 0 | L32: =L30+L28 -> 0 | M32: =M30+M28 -> 0 | N32: =N30+N28 -> 0 | P32: =P30+P28 -> 0 | Q32: =Q30+Q28 -> 0 | S32: =S30+S28 -> 0 | U32: =U30+U28 -> 0
A33: insgesamt

Sheet E1 F
A1: Krankenhaus: | R1: =SUM(R15:R15) -> 1 | T1: Tabelle: | U1: =GetPage(U2) -> 6/25
A2: =Krankenhausname -> <Hier Krankenhausnamen eintragen> | T2: Datum: | U2: =AEB_Datum -> 29.3.2022
A4: ="E1 Aufstellung der Fallpauschalen für das Krankenhaus (Forderung, Katalog " & BJ &")" -> E1 Aufstellung der Fallpauschalen für das Krankenhaus (Forderung, Katalog 2021)
C5: =IF(A5="","",CalcDRG(A5,Bezugsjahr,"HA",4)) ->  | D5: =IF(A5="",0,IF(ISERROR((B5*C5))=TRUE,0,(B5*C5))) -> 0 | G5: =IF(A5="","",CalcDRG(A5,Bezugsjahr,"HA",11)) ->  | H5: =IF(A5="",0,IF(F5<=0,0,IF(ISERROR(G5*F5)=TRUE,0,(G5*F5)))) -> 0 | K5: =IF(A5="","",CalcDRG(A5,Bezugsjahr,"HA",8)) ->  | L5: =IF(A5="",0,IF(K5<=0,0,IF(ISERROR(K5*J5)=TRUE,0,(K5*J5)))) -> 0 | O5: =IF(A5="","",CalcDRG(A5,Bezugsjahr,"HA",10)) ->  | P5: =IF(A5="",0,IF(O5<=0,0,IF(ISERROR(O5*N5)=TRUE,0,(O5*N5)))) -> 0 | Q5: =IF(A5="",0,IF(ISERROR(D5-H5-L5+P5)=TRUE,0,(D5-H5-L5+P5))) -> 0 | T5: =IF(A5="","",CalcDRG(A5,Bezugsjahr,"HA",14)) ->  | U5: =IF(A5="",0,IF(T5<=0,0,IF(ISERROR(T5*S5)=TRUE,0,(T5*S5)))) -> 0
C6: =IF(A6="","",CalcDRG(A6,Bezugsjahr,"HA",5)) ->  | D6: 0 | G6: =IF(A6="","",CalcDRG(A6,Bezugsjahr,"HA",11)) ->  | H6: 0 | K6: =IF(A6="","",CalcDRG(A6,Bezugsjahr,"HA",8)) ->  | L6: =IF(A6="",0,IF(J6<=0,0,IF(ISERROR(K6*J6)=TRUE,0,(K6*J6)))) -> 0 | O6: =IF(A6="","",CalcDRG(A6,Bezugsjahr,"HA",10)) ->  | P6: =IF(A6="",0,IF(N6<=0,0,IF(ISERROR(O6*N6)=TRUE,0,(O6*N6)))) -> 0 | Q6: 0 | T6: =IF(A6="","",CalcDRG(A6,Bezugsjahr,"HA",14)) ->  | U6: 0
C7: =IF(A7="","",CalcDRG(A7,Bezugsjahr,"BA",4)) ->  | D7: 0 | G7: =IF(A7="","",CalcDRG(A7,Bezugsjahr,"BA",13)) ->  | H7: 0 | K7: =IF(A7="","",CalcDRG(A7,Bezugsjahr,"BA",10)) ->  | L7: =IF(A7="",0,IF(J7<=0,0,IF(ISERROR(K7*J7)=TRUE,0,(K7*J7)))) -> 0 | O7: =IF(A7="","",CalcDRG(A7,Bezugsjahr,"BA",12)) ->  | P7: =IF(A7="",0,IF(N7<=0,0,IF(ISERROR(O7*N7)=TRUE,0,(O7*N7)))) -> 0 | Q7: 0 | T7: =IF(A7="","",CalcDRG(A7,Bezugsjahr,"BA",16)) ->  | U7: 0
C8: =IF(A8="","",CalcDRG(A8,Bezugsjahr,"BA",5)) ->  | D8: 0 | G8: =IF(A8="","",CalcDRG(A8,Bezugsjahr,"BA",13)) ->  | H8: 0 | K8: =IF(A8="","",CalcDRG(A8,Bezugsjahr,"BA",10)) ->  | L8: =IF(A8="",0,IF(J8<=0,0,IF(ISERROR(K8*J8)=TRUE,0,(K8*J8)))) -> 0 | O8: =IF(A8="","",CalcDRG(A8,Bezugsjahr,"BA",12)) ->  | P8: =IF(A8="",0,IF(N8<=0,0,IF(ISERROR(O8*N8)=TRUE,0,(O8*N8)))) -> 0 | Q8: 0 | T8: =IF(A8="","",CalcDRG(A8,Bezugsjahr,"BA",16)) ->  | U8: 0
C9: =IF(A9="","",CalcDRG(A9,Bezugsjahr,"BA",6)) ->  | D9: 0 | G9: =IF(A9="","",CalcDRG(A9,Bezugsjahr,"BA",13)) ->  | H9: 0 | K9: =IF(A9="","",CalcDRG(A9,Bezugsjahr,"BA",10)) ->  | L9: =IF(A9="",0,IF(J9<=0,0,IF(ISERROR(K9*J9)=TRUE,0,(K9*J9)))) -> 0 | O9: =IF(A9="","",CalcDRG(A9,Bezugsjahr,"BA",12)) ->  | P9: =IF(A9="",0,IF(N9<=0,0,IF(ISERROR(O9*N9)=TRUE,0,(O9*N9)))) -> 0 | Q9: 0 | T9: =IF(A9="","",CalcDRG(A9,Bezugsjahr,"BA",16)) ->  | U9: 0
C10: =IF(A10="","",CalcDRG(A10,Bezugsjahr,"BA",7)) ->  | D10: 0 | G10: =IF(A10="","",CalcDRG(A10,Bezugsjahr,"BA",13)) ->  | H10: 0 | K10: =IF(A10="","",CalcDRG(A10,Bezugsjahr,"BA",10)) ->  | L10: =IF(A10="",0,IF(J10<=0,0,IF(ISERROR(K10*J10)=TRUE,0,(K10*J10)))) -> 0 | O10: =IF(A10="","",CalcDRG(A10,Bezugsjahr,"BA",12)) ->  | P10: =IF(A10="",0,IF(N10<=0,0,IF(ISERROR(O10*N10)=TRUE,0,(O10*N10)))) -> 0 | Q10: 0 | T10: =IF(A10="","",CalcDRG(A10,Bezugsjahr,"BA",16)) ->  | U10: 0
E12: davon Verlegungen | I12: davon Kurzlieger | M12: davon Langlieger | S12: Pflegeerlös
A13: DRG Nr. | B13: Fallzahl (Anzahl der DRG) | C13: Bewertungs-relation nach Fall- pauschalen katalog | D13: S der Bewertungs-relationen ohne Zu- und Abschläge (Sp. 2x3) | E13: Anzahl der Verlegungs- fälle | F13: Anzahl der Tage mit Abschlag bei Verlegung | G13: Bewertungs- relation je Tag bei Verlegung | H13: S der Abschläge für Verlegungen (Sp. 6x7) | I13: Anzahl der Kurzlieger- fälle | J13: Anzahl der Tage mit uGVD- Abschlag | K13: Bewertungs- relation je Tag bei uGVD- Abschlag | L13: S der uGVD- Abschläge (Sp. 10x11) | M13: Anzahl der Langlieger- fälle | N13: Anzahl der Tage mit oGVD- Zuschlag | O13: Bewertungs- relation je Tag bei oGVD- Zuschlag | P13: S der oGVD- Zuschläge (Sp. 14x15) | Q13: S der effektiven Bewertungs- relationen (Sp. 4 - (Sp.8+ Sp. 12)+Sp. 16) | S13: Anzahl der Berechnungs-tage | T13: Bewertungs-relation/Tag | U13: Summe der Pflegebewertungs-relationen (Sp.18x19)
A14: 1 | B14: 2 | C14: 3 | D14: 4 | E14: 5 | F14: 6 | G14: 7 | H14: 8 | I14: 9 | J14: 10 | K14: 11 | L14: 12 | M14: 13 | N14: 14 | O14: 15 | P14: 16 | Q14: 17 | S14: 18 | T14: 19 | U14: 20
A15: DRGs mit Bewertungsrelationen für Hauptabteilungen | R15: 1
A16: o01b | B16: 10 | C16: =IF(A16="","",CalcDRG(A16,Bezugsjahr,"HA",4)) -> 2.332 | D16: =IF(A16="",0,IF(ISERROR((B16*C16))=TRUE,0,(B16*C16))) -> 23.32 | G16: =IF(A16="","",CalcDRG(A16,Bezugsjahr,"HA",11)) -> 0.068 | H16: =IF(A16="",0,IF(F16<=0,0,IF(ISERROR(G16*F16)=TRUE,0,(G16*F16)))) -> 0 | K16: =IF(A16="","",CalcDRG(A16,Bezugsjahr,"HA",8)) -> 0.222 | L16: =IF(A16="",0,IF(K16<=0,0,IF(ISERROR(K16*J16)=TRUE,0,(K16*J16)))) -> 0 | O16: =IF(A16="","",CalcDRG(A16,Bezugsjahr,"HA",10)) -> 0.072 | P16: =IF(A16="",0,IF(O16<=0,0,IF(ISERROR(O16*N16)=TRUE,0,(O16*N16)))) -> 0 | Q16: =IF(A16="",0,IF(ISERROR(D16-H16-L16+P16)=TRUE,0,(D16-H16-L16+P16))) -> 23.32 | T16: =IF(A16="","",CalcDRG(A16,Bezugsjahr,"HA",14)) -> 0.756 | U16: =IF(A16="",0,IF(T16<=0,0,IF(ISERROR(T16*S16)=TRUE,0,(T16*S16)))) -> 0
A17: DRGs mit Bewertungsrelation bei Hauptabteilung und Beleghebamme | R17: 1
A18: o01b | B18: 10 | C18: =IF(A18="","",CalcDRG(A18,Bezugsjahr,"HA",5)) -> 2.1 | D18: =IF(A18="",0,IF(ISERROR((B18*C18))=TRUE,0,(B18*C18))) -> 21 | G18: =IF(A18="","",CalcDRG(A18,Bezugsjahr,"HA",11)) -> 0.068 | H18: =IF(A18="",0,IF(F18<=0,0,IF(ISERROR(G18*F18)=TRUE,0,(G18*F18)))) -> 0 | K18: =IF(A18="","",CalcDRG(A18,Bezugsjahr,"HA",8)) -> 0.222 | L18: =IF(A18="",0,IF(J18<=0,0,IF(ISERROR(K18*J18)=TRUE,0,(K18*J18)))) -> 0 | O18: =IF(A18="","",CalcDRG(A18,Bezugsjahr,"HA",10)) -> 0.072 | P18: =IF(A18="",0,IF(N18<=0,0,IF(ISERROR(O18*N18)=TRUE,0,(O18*N18)))) -> 0 | Q18: =IF(A18="",0,IF(ISERROR(D18-H18-L18+P18)=TRUE,0,(D18-H18-L18+P18))) -> 21 | T18: =IF(A18="","",CalcDRG(A18,Bezugsjahr,"HA",14)) -> 0.756 | U18: =IF(A18="",0,IF(T18<=0,0,IF(ISERROR(T18*S18)=TRUE,0,(T18*S18)))) -> 0
A19: DRGs mit Bewertungsrelation bei Belegoperateur | R19: 1
A20: o01b | B20: 10 | C20: =IF(A20="","",CalcDRG(A20,Bezugsjahr,"BA",4)) -> 1.88 | D20: =IF(A20="",0,IF(ISERROR((B20*C20))=TRUE,0,(B20*C20))) -> 18.8 | G20: =IF(A20="","",CalcDRG(A20,Bezugsjahr,"BA",13)) -> 0.055 | H20: =IF(A20="",0,IF(F20<=0,0,IF(ISERROR(G20*F20)=TRUE,0,(G20*F20)))) -> 0 | K20: =IF(A20="","",CalcDRG(A20,Bezugsjahr,"BA",10)) -> 0.179 | L20: =IF(A20="",0,IF(J20<=0,0,IF(ISERROR(K20*J20)=TRUE,0,(K20*J20)))) -> 0 | O20: =IF(A20="","",CalcDRG(A20,Bezugsjahr,"BA",12)) -> 0.058 | P20: =IF(A20="",0,IF(N20<=0,0,IF(ISERROR(O20*N20)=TRUE,0,(O20*N20)))) -> 0 | Q20: =IF(A20="",0,IF(ISERROR(D20-H20-L20+P20)=TRUE,0,(D20-H20-L20+P20))) -> 18.8 | T20: =IF(A20="","",CalcDRG(A20,Bezugsjahr,"BA",16)) -> 0.756 | U20: =IF(A20="",0,IF(T20<=0,0,IF(ISERROR(T20*S20)=TRUE,0,(T20*S20)))) -> 0
A21: DRGs mit Bewertungsrelation bei Belegoperateur und Beleganästhesist | R21: 1
A22: o01b | B22: 10 | C22: =IF(A22="","",CalcDRG(A22,Bezugsjahr,"BA",5)) -> 1.802 | D22: =IF(A22="",0,IF(ISERROR((B22*C22))=TRUE,0,(B22*C22))) -> 18.02 | G22: =IF(A22="","",CalcDRG(A22,Bezugsjahr,"BA",13)) -> 0.055 | H22: =IF(A22="",0,IF(F22<=0,0,IF(ISERROR(G22*F22)=TRUE,0,(G22*F22)))) -> 0 | K22: =IF(A22="","",CalcDRG(A22,Bezugsjahr,"BA",10)) -> 0.179 | L22: =IF(A22="",0,IF(J22<=0,0,IF(ISERROR(K22*J22)=TRUE,0,(K22*J22)))) -> 0 | O22: =IF(A22="","",CalcDRG(A22,Bezugsjahr,"BA",12)) -> 0.058 | P22: =IF(A22="",0,IF(N22<=0,0,IF(ISERROR(O22*N22)=TRUE,0,(O22*N22)))) -> 0 | Q22: =IF(A22="",0,IF(ISERROR(D22-H22-L22+P22)=TRUE,0,(D22-H22-L22+P22))) -> 18.02 | T22: =IF(A22="","",CalcDRG(A22,Bezugsjahr,"BA",16)) -> 0.756 | U22: =IF(A22="",0,IF(T22<=0,0,IF(ISERROR(T22*S22)=TRUE,0,(T22*S22)))) -> 0
A23: DRGs mit Bewertungsrelation bei Belegoperateur und Beleghebamme | R23: 1
A24: o01b | B24: 10 | C24: =IF(A24="","",CalcDRG(A24,Bezugsjahr,"BA",6)) -> 1.648 | D24: =IF(A24="",0,IF(ISERROR((B24*C24))=TRUE,0,(B24*C24))) -> 16.48 | G24: =IF(A24="","",CalcDRG(A24,Bezugsjahr,"BA",13)) -> 0.055 | H24: =IF(A24="",0,IF(F24<=0,0,IF(ISERROR(G24*F24)=TRUE,0,(G24*F24)))) -> 0 | K24: =IF(A24="","",CalcDRG(A24,Bezugsjahr,"BA",10)) -> 0.179 | L24: =IF(A24="",0,IF(J24<=0,0,IF(ISERROR(K24*J24)=TRUE,0,(K24*J24)))) -> 0 | O24: =IF(A24="","",CalcDRG(A24,Bezugsjahr,"BA",12)) -> 0.058 | P24: =IF(A24="",0,IF(N24<=0,0,IF(ISERROR(O24*N24)=TRUE,0,(O24*N24)))) -> 0 | Q24: =IF(A24="",0,IF(ISERROR(D24-H24-L24+P24)=TRUE,0,(D24-H24-L24+P24))) -> 16.48 | T24: =IF(A24="","",CalcDRG(A24,Bezugsjahr,"BA",16)) -> 0.756 | U24: =IF(A24="",0,IF(T24<=0,0,IF(ISERROR(T24*S24)=TRUE,0,(T24*S24)))) -> 0
A25: DRGs mit Bewertungsrelation bei Belegoperateur, -anästhesist und -hebamme | R25: 1
A26: o01b | B26: 10 | C26: =IF(A26="","",CalcDRG(A26,Bezugsjahr,"BA",7)) -> 1.57 | D26: =IF(A26="",0,IF(ISERROR((B26*C26))=TRUE,0,(B26*C26))) -> 15.7 | G26: =IF(A26="","",CalcDRG(A26,Bezugsjahr,"BA",13)) -> 0.055 | H26: =IF(A26="",0,IF(F26<=0,0,IF(ISERROR(G26*F26)=TRUE,0,(G26*F26)))) -> 0 | K26: =IF(A26="","",CalcDRG(A26,Bezugsjahr,"BA",10)) -> 0.179 | L26: =IF(A26="",0,IF(J26<=0,0,IF(ISERROR(K26*J26)=TRUE,0,(K26*J26)))) -> 0 | O26: =IF(A26="","",CalcDRG(A26,Bezugsjahr,"BA",12)) -> 0.058 | P26: =IF(A26="",0,IF(N26<=0,0,IF(ISERROR(O26*N26)=TRUE,0,(O26*N26)))) -> 0 | Q26: =IF(A26="",0,IF(ISERROR(D26-H26-L26+P26)=TRUE,0,(D26-H26-L26+P26))) -> 15.7 | T26: =IF(A26="","",CalcDRG(A26,Bezugsjahr,"BA",16)) -> 0.756 | U26: =IF(A26="",0,IF(T26<=0,0,IF(ISERROR(T26*S26)=TRUE,0,(T26*S26)))) -> 0
A27: @
A28: SUMME | B28: =SUM(B16:B26) -> 60 | D28: =SUM(D16:D26) -> 113.32 | E28: =SUM(E16:E26) -> 0 | F28: =SUM(F16:F26) -> 0 | H28: =SUM(H16:H26) -> 0 | I28: =SUM(I16:I26) -> 0 | J28: =SUM(J16:J26) -> 0 | L28: =SUM(L16:L26) -> 0 | M28: =SUM(M16:M26) -> 0 | N28: =SUM(N16:N26) -> 0 | P28: =SUM(P16:P26) -> 0 | Q28: =SUM(Q16:Q26) -> 113.32 | S28: =SUM(S16:S26) -> 0 | U28: =SUM(U16:U21) -> 0
A29: Jahresfälle
A30: Summe
A31: Überlieger
A32: Summe | B32: =B30+B28 -> 60 | D32: =D30+D28 -> 113.32 | E32: =E30+E28 -> 0 | F32: =F30+F28 -> 0 | H32: =H30+H28 -> 0 | I32: =I30+I28 -> 0 | J32: =J30+J28 -> 0 | L32: =L30+L28 -> 0 | M32: =M30+M28 -> 0 | N32: =N30+N28 -> 0 | P32: =P30+P28 -> 0 | Q32: =Q30+Q28 -> 113.32 | S32: =S30+S28 -> 0 | U32: =U30+U28 -> 0
A33: insgesamt

Sheet E1 V
A1: Krankenhaus: | R1: =SUM(R15:R15) -> 1 | T1: Tabelle: | U1: =GetPage(U2) -> 7/25
A2: =Krankenhausname -> <Hier Krankenhausnamen eintragen> | T2: Datum: | U2: =AEB_Datum -> 29.3.2022
A4: ="E1 Aufstellung der Fallpauschalen für das Krankenhaus (Vereinbarung, Katalog " & BJ &")" -> E1 Aufstellung der Fallpauschalen für das Krankenhaus (Vereinbarung, Katalog 2021)
C5: =IF(A5="","",CalcDRG(A5,Bezugsjahr,"HA",4)) ->  | D5: =IF(A5="",0,IF(ISERROR((B5*C5))=TRUE,0,(B5*C5))) -> 0 | G5: =IF(A5="","",CalcDRG(A5,Bezugsjahr,"HA",11)) ->  | H5: =IF(A5="",0,IF(F5<=0,0,IF(ISERROR(G5*F5)=TRUE,0,(G5*F5)))) -> 0 | K5: =IF(A5="","",CalcDRG(A5,Bezugsjahr,"HA",8)) ->  | L5: =IF(A5="",0,IF(K5<=0,0,IF(ISERROR(K5*J5)=TRUE,0,(K5*J5)))) -> 0 | O5: =IF(A5="","",CalcDRG(A5,Bezugsjahr,"HA",10)) ->  | P5: =IF(A5="",0,IF(O5<=0,0,IF(ISERROR(O5*N5)=TRUE,0,(O5*N5)))) -> 0 | Q5: =IF(A5="",0,IF(ISERROR(D5-H5-L5+P5)=TRUE,0,(D5-H5-L5+P5))) -> 0 | T5: =IF(A5="","",CalcDRG(A5,Bezugsjahr,"HA",14)) ->  | U5: =IF(A5="",0,IF(T5<=0,0,IF(ISERROR(T5*S5)=TRUE,0,(T5*S5)))) -> 0
C6: =IF(A6="","",CalcDRG(A6,Bezugsjahr,"HA",5)) ->  | D6: 0 | G6: =IF(A6="","",CalcDRG(A6,Bezugsjahr,"HA",11)) ->  | H6: 0 | K6: =IF(A6="","",CalcDRG(A6,Bezugsjahr,"HA",8)) ->  | L6: =IF(A6="",0,IF(J6<=0,0,IF(ISERROR(K6*J6)=TRUE,0,(K6*J6)))) -> 0 | O6: =IF(A6="","",CalcDRG(A6,Bezugsjahr,"HA",10)) ->  | P6: =IF(A6="",0,IF(N6<=0,0,IF(ISERROR(O6*N6)=TRUE,0,(O6*N6)))) -> 0 | Q6: 0 | T6: =IF(A6="","",CalcDRG(A6,Bezugsjahr,"HA",14)) ->  | U6: 0
C7: =IF(A7="","",CalcDRG(A7,Bezugsjahr,"BA",4)) ->  | D7: 0 | G7: =IF(A7="","",CalcDRG(A7,Bezugsjahr,"BA",13)) ->  | H7: 0 | K7: =IF(A7="","",CalcDRG(A7,Bezugsjahr,"BA",10)) ->  | L7: =IF(A7="",0,IF(J7<=0,0,IF(ISERROR(K7*J7)=TRUE,0,(K7*J7)))) -> 0 | O7: =IF(A7="","",CalcDRG(A7,Bezugsjahr,"BA",12)) ->  | P7: =IF(A7="",0,IF(N7<=0,0,IF(ISERROR(O7*N7)=TRUE,0,(O7*N7)))) -> 0 | Q7: 0 | T7: =IF(A7="","",CalcDRG(A7,Bezugsjahr,"BA",16)) ->  | U7: 0
C8: =IF(A8="","",CalcDRG(A8,Bezugsjahr,"BA",5)) ->  | D8: 0 | G8: =IF(A8="","",CalcDRG(A8,Bezugsjahr,"BA",13)) ->  | H8: 0 | K8: =IF(A8="","",CalcDRG(A8,Bezugsjahr,"BA",10)) ->  | L8: =IF(A8="",0,IF(J8<=0,0,IF(ISERROR(K8*J8)=TRUE,0,(K8*J8)))) -> 0 | O8: =IF(A8="","",CalcDRG(A8,Bezugsjahr,"BA",12)) ->  | P8: =IF(A8="",0,IF(N8<=0,0,IF(ISERROR(O8*N8)=TRUE,0,(O8*N8)))) -> 0 | Q8: 0 | T8: =IF(A8="","",CalcDRG(A8,Bezugsjahr,"BA",16)) ->  | U8: 0
C9: =IF(A9="","",CalcDRG(A9,Bezugsjahr,"BA",6)) ->  | D9: 0 | G9: =IF(A9="","",CalcDRG(A9,Bezugsjahr,"BA",13)) ->  | H9: 0 | K9: =IF(A9="","",CalcDRG(A9,Bezugsjahr,"BA",10)) ->  | L9: =IF(A9="",0,IF(J9<=0,0,IF(ISERROR(K9*J9)=TRUE,0,(K9*J9)))) -> 0 | O9: =IF(A9="","",CalcDRG(A9,Bezugsjahr,"BA",12)) ->  | P9: =IF(A9="",0,IF(N9<=0,0,IF(ISERROR(O9*N9)=TRUE,0,(O9*N9)))) -> 0 | Q9: 0 | T9: =IF(A9="","",CalcDRG(A9,Bezugsjahr,"BA",16)) ->  | U9: 0
C10: =IF(A10="","",CalcDRG(A10,Bezugsjahr,"BA",7)) ->  | D10: 0 | G10: =IF(A10="","",CalcDRG(A10,Bezugsjahr,"BA",13)) ->  | H10: 0 | K10: =IF(A10="","",CalcDRG(A10,Bezugsjahr,"BA",10)) ->  | L10: =IF(A10="",0,IF(J10<=0,0,IF(ISERROR(K10*J10)=TRUE,0,(K10*J10)))) -> 0 | O10: =IF(A10="","",CalcDRG(A10,Bezugsjahr,"BA",12)) ->  | P10: =IF(A10="",0,IF(N10<=0,0,IF(ISERROR(O10*N10)=TRUE,0,(O10*N10)))) -> 0 | Q10: 0 | T10: =IF(A10="","",CalcDRG(A10,Bezugsjahr,"BA",16)) ->  | U10: 0
E12: davon Verlegungen | I12: davon Kurzlieger | M12: davon Langlieger | S12: Pflegeerlös
A13: DRG Nr. | B13: Fallzahl (Anzahl der DRG) | C13: Bewertungs-relation nach Fall- pauschalen katalog | D13: S der Bewertungs-relationen ohne Zu- und Abschläge (Sp. 2x3) | E13: Anzahl der Verlegungs- fälle | F13: Anzahl der Tage mit Abschlag bei Verlegung | G13: Bewertungs- relation je Tag bei Verlegung | H13: S der Abschläge für Verlegungen (Sp. 6x7) | I13: Anzahl der Kurzlieger- fälle | J13: Anzahl der Tage mit uGVD- Abschlag | K13: Bewertungs- relation je Tag bei uGVD- Abschlag | L13: S der uGVD- Abschläge (Sp. 10x11) | M13: Anzahl der Langlieger- fälle | N13: Anzahl der Tage mit oGVD- Zuschlag | O13: Bewertungs- relation je Tag bei oGVD- Zuschlag | P13: S der oGVD- Zuschläge (Sp. 14x15) | Q13: S der effektiven Bewertungs- relationen (Sp. 4 - (Sp.8+ Sp. 12)+Sp. 16) | S13: Anzahl der Berechnungs-tage | T13: Bewertungs-relation/Tag | U13: Summe der Pflegebewertungs-relationen (Sp.18x19)
A14: 1 | B14: 2 | C14: 3 | D14: 4 | E14: 5 | F14: 6 | G14: 7 | H14: 8 | I14: 9 | J14: 10 | K14: 11 | L14: 12 | M14: 13 | N14: 14 | O14: 15 | P14: 16 | Q14: 17 | S14: 18 | T14: 19 | U14: 20
A15: DRGs mit Bewertungsrelationen für Hauptabteilungen | R15: 1
A16: o01b | B16: 10 | C16: =IF(A16="","",CalcDRG(A16,Bezugsjahr,"HA",4)) -> 2.332 | D16: =IF(A16="",0,IF(ISERROR((B16*C16))=TRUE,0,(B16*C16))) -> 23.32 | G16: =IF(A16="","",CalcDRG(A16,Bezugsjahr,"HA",11)) -> 0.068 | H16: =IF(A16="",0,IF(F16<=0,0,IF(ISERROR(G16*F16)=TRUE,0,(G16*F16)))) -> 0 | K16: =IF(A16="","",CalcDRG(A16,Bezugsjahr,"HA",8)) -> 0.222 | L16: =IF(A16="",0,IF(K16<=0,0,IF(ISERROR(K16*J16)=TRUE,0,(K16*J16)))) -> 0 | O16: =IF(A16="","",CalcDRG(A16,Bezugsjahr,"HA",10)) -> 0.072 | P16: =IF(A16="",0,IF(O16<=0,0,IF(ISERROR(O16*N16)=TRUE,0,(O16*N16)))) -> 0 | Q16: =IF(A16="",0,IF(ISERROR(D16-H16-L16+P16)=TRUE,0,(D16-H16-L16+P16))) -> 23.32 | T16: =IF(A16="","",CalcDRG(A16,Bezugsjahr,"HA",14)) -> 0.756 | U16: =IF(A16="",0,IF(T16<=0,0,IF(ISERROR(T16*S16)=TRUE,0,(T16*S16)))) -> 0
A17: DRGs mit Bewertungsrelation bei Hauptabteilung und Beleghebamme | R17: 1
A18: o01b | B18: 10 | C18: =IF(A18="","",CalcDRG(A18,Bezugsjahr,"HA",5)) -> 2.1 | D18: =IF(A18="",0,IF(ISERROR((B18*C18))=TRUE,0,(B18*C18))) -> 21 | G18: =IF(A18="","",CalcDRG(A18,Bezugsjahr,"HA",11)) -> 0.068 | H18: =IF(A18="",0,IF(F18<=0,0,IF(ISERROR(G18*F18)=TRUE,0,(G18*F18)))) -> 0 | K18: =IF(A18="","",CalcDRG(A18,Bezugsjahr,"HA",8)) -> 0.222 | L18: =IF(A18="",0,IF(J18<=0,0,IF(ISERROR(K18*J18)=TRUE,0,(K18*J18)))) -> 0 | O18: =IF(A18="","",CalcDRG(A18,Bezugsjahr,"HA",10)) -> 0.072 | P18: =IF(A18="",0,IF(N18<=0,0,IF(ISERROR(O18*N18)=TRUE,0,(O18*N18)))) -> 0 | Q18: =IF(A18="",0,IF(ISERROR(D18-H18-L18+P18)=TRUE,0,(D18-H18-L18+P18))) -> 21 | T18: =IF(A18="","",CalcDRG(A18,Bezugsjahr,"HA",14)) -> 0.756 | U18: =IF(A18="",0,IF(T18<=0,0,IF(ISERROR(T18*S18)=TRUE,0,(T18*S18)))) -> 0
A19: DRGs mit Bewertungsrelation bei Belegoperateur | R19: 1
A20: o01b | B20: 10 | C20: =IF(A20="","",CalcDRG(A20,Bezugsjahr,"BA",4)) -> 1.88 | D20: =IF(A20="",0,IF(ISERROR((B20*C20))=TRUE,0,(B20*C20))) -> 18.8 | G20: =IF(A20="","",CalcDRG(A20,Bezugsjahr,"BA",13)) -> 0.055 | H20: =IF(A20="",0,IF(F20<=0,0,IF(ISERROR(G20*F20)=TRUE,0,(G20*F20)))) -> 0 | K20: =IF(A20="","",CalcDRG(A20,Bezugsjahr,"BA",10)) -> 0.179 | L20: =IF(A20="",0,IF(J20<=0,0,IF(ISERROR(K20*J20)=TRUE,0,(K20*J20)))) -> 0 | O20: =IF(A20="","",CalcDRG(A20,Bezugsjahr,"BA",12)) -> 0.058 | P20: =IF(A20="",0,IF(N20<=0,0,IF(ISERROR(O20*N20)=TRUE,0,(O20*N20)))) -> 0 | Q20: =IF(A20="",0,IF(ISERROR(D20-H20-L20+P20)=TRUE,0,(D20-H20-L20+P20))) -> 18.8 | T20: =IF(A20="","",CalcDRG(A20,Bezugsjahr,"BA",16)) -> 0.756 | U20: =IF(A20="",0,IF(T20<=0,0,IF(ISERROR(T20*S20)=TRUE,0,(T20*S20)))) -> 0
A21: DRGs mit Bewertungsrelation bei Belegoperateur und Beleganästhesist | R21: 1
A22: o01b | B22: 10 | C22: =IF(A22="","",CalcDRG(A22,Bezugsjahr,"BA",5)) -> 1.802 | D22: =IF(A22="",0,IF(ISERROR((B22*C22))=TRUE,0,(B22*C22))) -> 18.02 | G22: =IF(A22="","",CalcDRG(A22,Bezugsjahr,"BA",13)) -> 0.055 | H22: =IF(A22="",0,IF(F22<=0,0,IF(ISERROR(G22*F22)=TRUE,0,(G22*F22)))) -> 0 | K22: =IF(A22="","",CalcDRG(A22,Bezugsjahr,"BA",10)) -> 0.179 | L22: =IF(A22="",0,IF(J22<=0,0,IF(ISERROR(K22*J22)=TRUE,0,(K22*J22)))) -> 0 | O22: =IF(A22="","",CalcDRG(A22,Bezugsjahr,"BA",12)) -> 0.058 | P22: =IF(A22="",0,IF(N22<=0,0,IF(ISERROR(O22*N22)=TRUE,0,(O22*N22)))) -> 0 | Q22: =IF(A22="",0,IF(ISERROR(D22-H22-L22+P22)=TRUE,0,(D22-H22-L22+P22))) -> 18.02 | T22: =IF(A22="","",CalcDRG(A22,Bezugsjahr,"BA",16)) -> 0.756 | U22: =IF(A22="",0,IF(T22<=0,0,IF(ISERROR(T22*S22)=TRUE,0,(T22*S22)))) -> 0
A23: DRGs mit Bewertungsrelation bei Belegoperateur und Beleghebamme | R23: 1
A24: o01b | B24: 10 | C24: =IF(A24="","",CalcDRG(A24,Bezugsjahr,"BA",6)) -> 1.648 | D24: =IF(A24="",0,IF(ISERROR((B24*C24))=TRUE,0,(B24*C24))) -> 16.48 | G24: =IF(A24="","",CalcDRG(A24,Bezugsjahr,"BA",13)) -> 0.055 | H24: =IF(A24="",0,IF(F24<=0,0,IF(ISERROR(G24*F24)=TRUE,0,(G24*F24)))) -> 0 | K24: =IF(A24="","",CalcDRG(A24,Bezugsjahr,"BA",10)) -> 0.179 | L24: =IF(A24="",0,IF(J24<=0,0,IF(ISERROR(K24*J24)=TRUE,0,(K24*J24)))) -> 0 | O24: =IF(A24="","",CalcDRG(A24,Bezugsjahr,"BA",12)) -> 0.058 | P24: =IF(A24="",0,IF(N24<=0,0,IF(ISERROR(O24*N24)=TRUE,0,(O24*N24)))) -> 0 | Q24: =IF(A24="",0,IF(ISERROR(D24-H24-L24+P24)=TRUE,0,(D24-H24-L24+P24))) -> 16.48 | T24: =IF(A24="","",CalcDRG(A24,Bezugsjahr,"BA",16)) -> 0.756 | U24: =IF(A24="",0,IF(T24<=0,0,IF(ISERROR(T24*S24)=TRUE,0,(T24*S24)))) -> 0
A25: DRGs mit Bewertungsrelation bei Belegoperateur, -anästhesist und -hebamme | R25: 1
A26: o01b | B26: 10 | C26: =IF(A26="","",CalcDRG(A26,Bezugsjahr,"BA",7)) -> 1.57 | D26: =IF(A26="",0,IF(ISERROR((B26*C26))=TRUE,0,(B26*C26))) -> 15.7 | G26: =IF(A26="","",CalcDRG(A26,Bezugsjahr,"BA",13)) -> 0.055 | H26: =IF(A26="",0,IF(F26<=0,0,IF(ISERROR(G26*F26)=TRUE,0,(G26*F26)))) -> 0 | K26: =IF(A26="","",CalcDRG(A26,Bezugsjahr,"BA",10)) -> 0.179 | L26: =IF(A26="",0,IF(J26<=0,0,IF(ISERROR(K26*J26)=TRUE,0,(K26*J26)))) -> 0 | O26: =IF(A26="","",CalcDRG(A26,Bezugsjahr,"BA",12)) -> 0.058 | P26: =IF(A26="",0,IF(N26<=0,0,IF(ISERROR(O26*N26)=TRUE,0,(O26*N26)))) -> 0 | Q26: =IF(A26="",0,IF(ISERROR(D26-H26-L26+P26)=TRUE,0,(D26-H26-L26+P26))) -> 15.7 | T26: =IF(A26="","",CalcDRG(A26,Bezugsjahr,"BA",16)) -> 0.756 | U26: =IF(A26="",0,IF(T26<=0,0,IF(ISERROR(T26*S26)=TRUE,0,(T26*S26)))) -> 0
A27: @
A28: SUMME | B28: =SUM(B16:B26) -> 60 | D28: =SUM(D16:D26) -> 113.32 | E28: =SUM(E16:E26) -> 0 | F28: =SUM(F16:F26) -> 0 | H28: =SUM(H16:H26) -> 0 | I28: =SUM(I16:I26) -> 0 | J28: =SUM(J16:J26) -> 0 | L28: =SUM(L16:L26) -> 0 | M28: =SUM(M16:M26) -> 0 | N28: =SUM(N16:N26) -> 0 | P28: =SUM(P16:P26) -> 0 | Q28: =SUM(Q16:Q26) -> 113.32 | S28: =SUM(S16:S26) -> 0 | U28: =SUM(U16:U26) -> 0
A29: Jahresfälle
A30: Summe
A31: Überlieger
A32: Summe | B32: =B30+B28 -> 60 | D32: =D30+D28 -> 113.32 | E32: =E30+E28 -> 0 | F32: =F30+F28 -> 0 | H32: =H30+H28 -> 0 | I32: =I30+I28 -> 0 | J32: =J30+J28 -> 0 | L32: =L30+L28 -> 0 | M32: =M30+M28 -> 0 | N32: =N30+N28 -> 0 | P32: =P30+P28 -> 0 | Q32: =Q30+Q28 -> 113.32 | S32: =S30+S28 -> 0 | U32: =U30+U28 -> 0
A33: insgesamt

Sheet E2 VVJ
A1: Krankenhaus: | C1: Tabelle: | D1: =GetPage(D2) -> 8/25
A2: =Krankenhausname -> <Hier Krankenhausnamen eintragen> | C2: Datum: | D2: =AEB_Datum -> 29.3.2022
A4: ="E2 Aufstellung der Zusatzentgelte für das Krankenhaus (Katalog " & VVJ & ")" -> E2 Aufstellung der Zusatzentgelte für das Krankenhaus (Katalog 2019)
A6: ZE-Nr | B6: Anzahl | C6: Entgetlhöhe | D6: Erlössumme
B7: der ZE | C7: lt. ZE-Katalog
A9: 1 | B9: 2 | C9: 3 | D9: 4
A10: ZE105.01 | B10: 10 | C10: =IF(A10="","",calcZE(A10,Bezugsjahr-2)) -> 239.24 | D10: =IF(A10="",0,IF(ISERROR((B10*C10))=TRUE,0,(B10*C10))) -> 2392.4
C11: =IF(A11="","",calcZE(A11,Bezugsjahr-2)) ->  | D11: =IF(A11="",0,IF(ISERROR((B11*C11))=TRUE,0,(B11*C11))) -> 0
C12: =IF(A12="","",calcZE(A12,Bezugsjahr-2)) ->  | D12: =IF(A12="",0,IF(ISERROR((B12*C12))=TRUE,0,(B12*C12))) -> 0
C13: =IF(A13="","",calcZE(A13,Bezugsjahr-2)) ->  | D13: =IF(A13="",0,IF(ISERROR((B13*C13))=TRUE,0,(B13*C13))) -> 0
C14: =IF(A14="","",calcZE(A14,Bezugsjahr-2)) ->  | D14: =IF(A14="",0,IF(ISERROR((B14*C14))=TRUE,0,(B14*C14))) -> 0
A15: Summe der ZE bezogen | B15: =SUM(B10:B14) -> 10 | D15: =SUM(D10:D14) -> 2392.4
A16: auf die Jahresfälle
A18: Summe der ZE bezogen
A19: auf die Überlieger
A21: Summe ZE insgesamt | B21: =B18+B15 -> 10 | D21: =D18+D15 -> 2392.4

Sheet E2 VJ
A1: Krankenhaus: | C1: Tabelle: | D1: =GetPage(D2) -> 9/25
A2: =Krankenhausname -> <Hier Krankenhausnamen eintragen> | C2: Datum: | D2: =AEB_Datum -> 29.3.2022
A4: ="E2 Aufstellung der Zusatzentgelte für das Krankenhaus (Katalog " & VJ & ")" -> E2 Aufstellung der Zusatzentgelte für das Krankenhaus (Katalog 2020)
A6: ZE-Nr | B6: Anzahl | C6: Entgetlhöhe | D6: Erlössumme
B7: der ZE | C7: lt. ZE-Katalog
A9: 1 | B9: 2 | C9: 3 | D9: 4
A10: ZE105.01 | B10: 10 | C10: =IF(A10="","",calcZE(A10,Bezugsjahr-1)) -> 230.16 | D10: =IF(A10="",0,IF(ISERROR((B10*C10))=TRUE,0,(B10*C10))) -> 2301.6
C11: =IF(A11="","",calcZE(A11,Bezugsjahr-1)) ->  | D11: 0
C12: =IF(A12="","",calcZE(A12,Bezugsjahr-1)) ->  | D12: 0
C13: =IF(A13="","",calcZE(A13,Bezugsjahr-1)) ->  | D13: =IF(A13="",0,IF(ISERROR((B13*C13))=TRUE,0,(B13*C13))) -> 0
C14: =IF(A14="","",calcZE(A14,Bezugsjahr-1)) ->  | D14: =IF(A14="",0,IF(ISERROR((B14*C14))=TRUE,0,(B14*C14))) -> 0
A15: Summe der ZE bezogen | B15: =SUM(B10:B14) -> 10 | D15: =SUM(D10:D14) -> 2301.6
A16: auf die Jahresfälle
A18: Summe der ZE bezogen
A19: auf die Überlieger
A21: Summe ZE insgesamt | B21: =B18+B15 -> 10 | D21: =D18+D15 -> 2301.6

Sheet E2 F
A1: Krankenhaus: | C1: Tabelle: | D1: =GetPage(D2) -> 10/25
A2: =Krankenhausname -> <Hier Krankenhausnamen eintragen> | C2: Datum: | D2: =AEB_Datum -> 29.3.2022
A4: ="E2 Aufstellung der Zusatzentgelte für das Krankenhaus (Forderung, Katalog " & BJ & ")" -> E2 Aufstellung der Zusatzentgelte für das Krankenhaus (Forderung, Katalog 2021)
A6: ZE-Nr | B6: Anzahl | C6: Entgetlhöhe | D6: Erlössumme
B7: der ZE | C7: lt. ZE-Katalog
A9: 1 | B9: 2 | C9: 3 | D9: 4
A10: ZE105.01 | B10: 10 | C10: =IF(A10="","",calcZE(A10,Bezugsjahr)) -> 226.83 | D10: =IF(A10="",0,IF(ISERROR((B10*C10))=TRUE,0,(B10*C10))) -> 2268.3
C11: =IF(A11="","",calcZE(A11,Bezugsjahr)) ->  | D11: 0
C12: =IF(A12="","",calcZE(A12,Bezugsjahr)) ->  | D12: 0
C13: =IF(A13="","",calcZE(A13,Bezugsjahr)) ->  | D13: 0
C14: =IF(A14="","",calcZE(A14,Bezugsjahr)) ->  | D14: 0
A15: Summe der ZE bezogen | B15: =SUM(B10:B14) -> 10 | D15: =SUM(D10:D14) -> 2268.3
A16: auf die Jahresfälle
A18: Summe der ZE bezogen
A19: auf die Überlieger
A21: Summe ZE insgesamt | B21: =B18+B15 -> 10 | D21: =D18+D15 -> 2268.3

Sheet E2 V
A1: Krankenhaus: | C1: Tabelle: | D1: =GetPage(D2) -> 11/25
A2: =Krankenhausname -> <Hier Krankenhausnamen eintragen> | C2: Datum: | D2: =AEB_Datum -> 29.3.2022
A4: ="E2 Aufstellung der Zusatzentgelte für das Krankenhaus (Vereinbarung, Katalog " & BJ & ")" -> E2 Aufstellung der Zusatzentgelte für das Krankenhaus (Vereinbarung, Katalog 2021)
A6: ZE-Nr | B6: Anzahl | C6: Entgetlhöhe | D6: Erlössumme
B7: der ZE | C7: lt. ZE-Katalog
A9: 1 | B9: 2 | C9: 3 | D9: 4
A10: ZE105.01 | B10: 10 | C10: =IF(A10="","",calcZE(A10,Bezugsjahr)) -> 226.83 | D10: =IF(A10="",0,IF(ISERROR((B10*C10))=TRUE,0,(B10*C10))) -> 2268.3
C11: =IF(A11="","",calcZE(A11,Bezugsjahr)) ->  | D11: 0
C12: =IF(A12="","",calcZE(A12,Bezugsjahr)) ->  | D12: 0
C13: =IF(A13="","",calcZE(A13,Bezugsjahr)) ->  | D13: 0
C14: =IF(A14="","",calcZE(A14,Bezugsjahr)) ->  | D14: 0
A15: Summe der ZE bezogen | B15: =SUM(B10:B14) -> 10 | D15: =SUM(D10:D14) -> 2268.3
A16: auf die Jahresfälle
A18: Summe der ZE bezogen
A19: auf die Überlieger
A21: Summe ZE insgesamt | B21: =B18+B15 -> 10 | D21: =D18+D15 -> 2268.3

Sheet E3.1 VVJ
A1: Krankenhaus: | T1: Tabelle: | U1: =GetPage(U2) -> 12/25
A2: =Krankenhausname -> <Hier Krankenhausnamen eintragen> | T2: Datum: | U2: =AEB_Datum -> 29.3.2022
A4: ="E3 Aufstellung der nach § 6 KHEntgG krankenhausindividuell verhandelten Entgelte (Daten " & VVJ &")" -> E3 Aufstellung der nach § 6 KHEntgG krankenhausindividuell verhandelten Entgelte (Daten 2019)
A5: E3.1 Aufstellung der fallbezogenen Entgelte
I7: davon Verlegungen | M7: davon Kurzlieger | Q7: davon Langlieger
B8: Untere | D8: Obere | H8: Brutto- | O8: Ab- | S8: Zu- | U8: Nettoerlös-
B9: Grenz- | D9: Grenz- | F9: ver- | H9: erlös- | J9: Anzahl | L9: Summe | N9: Anzahl | O9: schlag | P9: Summe | R9: Anzahl | S9: schlag | T9: Summe | U9: summe inkl.
B10: ver- | D10: ver- | F10: ein- | H10: summe- | J10: der | K10: Ab- | L10: der | N10: der | O10: je Tag | P10: der | R10: der | S10: je Tag | T10: der | U10: Zu- und
A11: Entgelt | B11: weil- | C11: Mittlere | D11: weil- | F11: barte | G11: Ent- | H11: ohne | I11: Anzahl | J11: Tage | K11: schlag | L11: Abschläge | M11: Anzahl | N11: Tage | O11: bei | P11: uGVD- | Q11: Anzahl | R11: Tage | S11: bei | T11: oGVD- | U11: Abschläge
A12: nach | B12: dauer: | C12: Verweil- | D12: dauer: | E12: Fall- | F12: Be- | G12: gelt- | H12: Zu- und | I12: der | J12: mit | K12: je Tag | L12: für Ver- | M12: der | N12: mit | O12: uGVD- | P12: Ab- | Q12: der | R12: mit | S12: oGVD- | T12: Zu- | U12: (in €)
A13: § 6 | B13: Erster | C13: dauer | D13: Erster | E13: zahl | F13: wer- | G13: höhe | H13: Ab- | I13: Verle- | J13: AB- | K13: bei Ver- | L13: legungen | M13: Kurz- | N13: uGVD- | O13: Unter- | P13: schläge | Q13: Lang- | R13: oGVD- | S13: Über- | T13: schläge | U13: (Sp.8-(Sp.
A14: KHEntgG | B14: Tag | D14: Tag | F14: tungs- | G14: (in €) | H14: schläge | I14: gungs- | J14: schlag | K14: legung | L14: (in €) | M14: lieger- | N14: Ab- | O14: schrei- | P14: (in €) | Q14: lieger- | R14: Zu- | S14: schrei- | T14: (in €) | U14: 12+16)+
B15: mit | D15: zusätz- | F15: re- | H15: (in €) | I15: fälle | J15: bei Ver- | K15: (in €) | L15: (Sp. 10x11) | M15: fälle | N15: schlag | O15: tung | P15: (Sp. | Q15: fälle | R15: Schlag | S15: tung | T15: (Sp. | U15: Sp. 20)
B16: Ab- | D16: liches | F16: lation | H16: (Sp. 5x7) | J16: legung | O16: (in €) | P16: 14x15) | S16: (in €) | T16: 18x19)
B17: Schlag | D17: Entgelt
A18: 1 | B18: 2 | C18: 3 | D18: 4 | E18: 5 | F18: 6 | G18: 7 | H18: 8 | I18: 9 | J18: 10 | K18: 11 | L18: 12 | M18: 13 | N18: 14 | O18: 15 | P18: 16 | Q18: 17 | R18: 18 | S18: 19 | T18: 20 | U18: 21
H19: =E19*G19 -> 0 | L19: =J19*K19 -> 0 | P19: =N19*O19 -> 0 | T19: =R19*S19 -> 0 | U19: =H19-(L19+P19)+T19 -> 0
H20: =E20*G20 -> 0 | L20: =J20*K20 -> 0 | P20: =N20*O20 -> 0 | T20: =R20*S20 -> 0 | U20: =H20-(L20+P20)+T20 -> 0
H21: =E21*G21 -> 0 | L21: =J21*K21 -> 0 | P21: =N21*O21 -> 0 | T21: =R21*S21 -> 0 | U21: =H21-(L21+P21)+T21 -> 0
H22: =E22*G22 -> 0 | L22: =J22*K22 -> 0 | P22: =N22*O22 -> 0 | T22: =R22*S22 -> 0 | U22: =H22-(L22+P22)+T22 -> 0
H23: =E23*G23 -> 0 | L23: =J23*K23 -> 0 | P23: =N23*O23 -> 0 | T23: =R23*S23 -> 0 | U23: =H23-(L23+P23)+T23 -> 0
A24: Summe: | E24: =SUM(E19:E23) -> 0 | F24: =SUM(F19:F23) -> 0 | H24: =SUM(H19:H23) -> 0 | I24: =SUM(I19:I23) -> 0 | J24: =SUM(J19:J23) -> 0 | L24: =SUM(L19:L23) -> 0 | M24: =SUM(M19:M23) -> 0 | N24: =SUM(N19:N23) -> 0 | P24: =SUM(P19:P23) -> 0 | Q24: =SUM(Q19:Q23) -> 0 | R24: =SUM(R19:R23) -> 0 | T24: =SUM(T19:T23) -> 0 | U24: =SUM(U19:U23) -> 0

Sheet E3.1 VJ
A1: Krankenhaus: | T1: Tabelle: | U1: =GetPage(U2) -> 13/25
A2: =Krankenhausname -> <Hier Krankenhausnamen eintragen> | T2: Datum: | U2: =AEB_Datum -> 29.3.2022
A4: ="E3 Aufstellung der nach § 6 KHEntgG krankenhausindividuell verhandelten Entgelte (Daten " & VJ &", ggf. hochgerechnet)" -> E3 Aufstellung der nach § 6 KHEntgG krankenhausindividuell verhandelten Entgelte (Daten 2020, ggf. hochgerechnet)
A5: E3.1 Aufstellung der fallbezogenen Entgelte
I7: davon Verlegungen | M7: davon Kurzlieger | Q7: davon Langlieger
B8: Untere | D8: Obere | H8: Brutto- | O8: Ab- | S8: Zu- | U8: Nettoerlös-
B9: Grenz- | D9: Grenz- | F9: ver- | H9: erlös- | J9: Anzahl | L9: Summe | N9: Anzahl | O9: schlag | P9: Summe | R9: Anzahl | S9: schlag | T9: Summe | U9: summe inkl.
B10: ver- | D10: ver- | F10: ein- | H10: summe- | J10: der | K10: Ab- | L10: der | N10: der | O10: je Tag | P10: der | R10: der | S10: je Tag | T10: der | U10: Zu- und
A11: Entgelt | B11: weil- | C11: Mittlere | D11: weil- | F11: barte | G11: Ent- | H11: ohne | I11: Anzahl | J11: Tage | K11: schlag | L11: Abschläge | M11: Anzahl | N11: Tage | O11: bei | P11: uGVD- | Q11: Anzahl | R11: Tage | S11: bei | T11: oGVD- | U11: Abschläge
A12: nach | B12: dauer: | C12: Verweil- | D12: dauer: | E12: Fall- | F12: Be- | G12: gelt- | H12: Zu- und | I12: der | J12: mit | K12: je Tag | L12: für Ver- | M12: der | N12: mit | O12: uGVD- | P12: Ab- | Q12: der | R12: mit | S12: oGVD- | T12: Zu- | U12: (in €)
A13: § 6 | B13: Erster | C13: dauer | D13: Erster | E13: zahl | F13: wer- | G13: höhe | H13: Ab- | I13: Verle- | J13: AB- | K13: bei Ver- | L13: legungen | M13: Kurz- | N13: uGVD- | O13: Unter- | P13: schläge | Q13: Lang- | R13: oGVD- | S13: Über- | T13: schläge | U13: (Sp.8-(Sp.
A14: KHEntgG | B14: Tag | D14: Tag | F14: tungs- | G14: (in €) | H14: schläge | I14: gungs- | J14: schlag | K14: legung | L14: (in €) | M14: lieger- | N14: Ab- | O14: schrei- | P14: (in €) | Q14: lieger- | R14: Zu- | S14: schrei- | T14: (in €) | U14: 12+16)+
B15: mit | D15: zusätz- | F15: re- | H15: (in €) | I15: fälle | J15: bei Ver- | K15: (in €) | L15: (Sp. 10x11) | M15: fälle | N15: schlag | O15: tung | P15: (Sp. | Q15: fälle | R15: Schlag | S15: tung | T15: (Sp. | U15: Sp. 20)
B16: Ab- | D16: liches | F16: lation | H16: (Sp. 5x7) | J16: legung | O16: (in €) | P16: 14x15) | S16: (in €) | T16: 18x19)
B17: Schlag | D17: Entgelt
A18: 1 | B18: 2 | C18: 3 | D18: 4 | E18: 5 | F18: 6 | G18: 7 | H18: 8 | I18: 9 | J18: 10 | K18: 11 | L18: 12 | M18: 13 | N18: 14 | O18: 15 | P18: 16 | Q18: 17 | R18: 18 | S18: 19 | T18: 20 | U18: 21
H19: =E19*G19 -> 0 | L19: =J19*K19 -> 0 | P19: =N19*O19 -> 0 | T19: =R19*S19 -> 0 | U19: =H19-(L19+P19)+T19 -> 0
H20: =E20*G20 -> 0 | L20: =J20*K20 -> 0 | P20: =N20*O20 -> 0 | T20: =R20*S20 -> 0 | U20: =H20-(L20+P20)+T20 -> 0
H21: =E21*G21 -> 0 | L21: =J21*K21 -> 0 | P21: =N21*O21 -> 0 | T21: =R21*S21 -> 0 | U21: =H21-(L21+P21)+T21 -> 0
H22: =E22*G22 -> 0 | L22: =J22*K22 -> 0 | P22: =N22*O22 -> 0 | T22: =R22*S22 -> 0 | U22: =H22-(L22+P22)+T22 -> 0
H23: =E23*G23 -> 0 | L23: =J23*K23 -> 0 | P23: =N23*O23 -> 0 | T23: =R23*S23 -> 0 | U23: =H23-(L23+P23)+T23 -> 0
A24: Summe: | E24: =SUM(E19:E23) -> 0 | F24: =SUM(F19:F23) -> 0 | H24: =SUM(H19:H23) -> 0 | I24: =SUM(I19:I23) -> 0 | J24: =SUM(J19:J23) -> 0 | L24: =SUM(L19:L23) -> 0 | M24: =SUM(M19:M23) -> 0 | N24: =SUM(N19:N23) -> 0 | P24: =SUM(P19:P23) -> 0 | Q24: =SUM(Q19:Q23) -> 0 | R24: =SUM(R19:R23) -> 0 | T24: =SUM(T19:T23) -> 0 | U24: =SUM(U19:U23) -> 0

Sheet E3.1 F
A1: Krankenhaus: | W1: Tabelle: | X1: =GetPage(X2) -> 14/25
A2: =Krankenhausname -> <Hier Krankenhausnamen eintragen> | W2: Datum: | X2: =AEB_Datum -> 29.3.2022
A4: ="E3 Aufstellung der nach § 6 KHEntgG krankenhausindividuell verhandelten Entgelte (Forderung "&Bezugsjahr&")" -> E3 Aufstellung der nach § 6 KHEntgG krankenhausindividuell verhandelten Entgelte (Forderung 2021)
A5: E3.1 Aufstellung der fallbezogenen Entgelte
I7: davon Verlegungen | M7: davon Kurzlieger | Q7: davon Langlieger | V7: Pflegeerlös
B8: Untere | D8: Obere | H8: Brutto- | O8: Ab- | S8: Zu- | U8: Nettoerlös- | V8: Anzahl der Berechnungs-tage | W8: Bewertungs-relation/Tag (nach Pflegeerlös-katalog oder vereinbarte Bewertungs-relation) | X8: Summe der Pflegebewertungs-relationen (Sp. 22x23) | Y8: Bewertungs-relation/Tag (nach Pflegeerlös-katalog)
B9: Grenz- | D9: Grenz- | F9: ver- | H9: erlös- | J9: Anzahl | L9: Summe | N9: Anzahl | O9: schlag | P9: Summe | R9: Anzahl | S9: schlag | T9: Summe | U9: summe inkl.
B10: ver- | D10: ver- | F10: ein- | H10: summe- | J10: der | K10: Ab- | L10: der | N10: der | O10: je Tag | P10: der | R10: der | S10: je Tag | T10: der | U10: Zu- und
A11: Entgelt | B11: weil- | C11: Mittlere | D11: weil- | F11: barte | G11: Ent- | H11: ohne | I11: Anzahl | J11: Tage | K11: schlag | L11: Abschläge | M11: Anzahl | N11: Tage | O11: bei | P11: uGVD- | Q11: Anzahl | R11: Tage | S11: bei | T11: oGVD- | U11: Abschläge
A12: nach | B12: dauer: | C12: Verweil- | D12: dauer: | E12: Fall- | F12: Be- | G12: gelt- | H12: Zu- und | I12: der | J12: mit | K12: je Tag | L12: für Ver- | M12: der | N12: mit | O12: uGVD- | P12: Ab- | Q12: der | R12: mit | S12: oGVD- | T12: Zu- | U12: (in €)
A13: § 6 | B13: Erster | C13: dauer | D13: Erster | E13: zahl | F13: wer- | G13: höhe | H13: Ab- | I13: Verle- | J13: AB- | K13: bei Ver- | L13: legungen | M13: Kurz- | N13: uGVD- | O13: Unter- | P13: schläge | Q13: Lang- | R13: oGVD- | S13: Über- | T13: schläge | U13: (Sp.8-(Sp.
A14: KHEntgG | B14: Tag | D14: Tag | F14: tungs- | G14: (in €) | H14: schläge | I14: gungs- | J14: schlag | K14: legung | L14: (in €) | M14: lieger- | N14: Ab- | O14: schrei- | P14: (in €) | Q14: lieger- | R14: Zu- | S14: schrei- | T14: (in €) | U14: 12+16)+
B15: mit | D15: zusätz- | F15: re- | H15: (in €) | I15: fälle | J15: bei Ver- | K15: (in €) | L15: (Sp. 10x11) | M15: fälle | N15: schlag | O15: tung | P15: (Sp. | Q15: fälle | R15: Schlag | S15: tung | T15: (Sp. | U15: Sp. 20)
B16: Ab- | D16: liches | F16: lation | H16: (Sp. 5x7) | J16: legung | O16: (in €) | P16: 14x15) | S16: (in €) | T16: 18x19)
B17: Schlag | D17: Entgelt
A18: 1 | B18: 2 | C18: 3 | D18: 4 | E18: 5 | F18: 6 | G18: 7 | H18: 8 | I18: 9 | J18: 10 | K18: 11 | L18: 12 | M18: 13 | N18: 14 | O18: 15 | P18: 16 | Q18: 17 | R18: 18 | S18: 19 | T18: 20 | U18: 21 | V18: 22 | W18: 23 | X18: 24
A19: W40Z | H19: =E19*G19 -> 0 | L19: =J19*K19 -> 0 | P19: =N19*O19 -> 0 | T19: =R19*S19 -> 0 | U19: =H19-(L19+P19)+T19 -> 0 | X19: =V19*W19 -> 0 | Y19: =IF(A19="","",calcPF(A19,BJ)) -> 1.2102
H20: =E20*G20 -> 0 | L20: =J20*K20 -> 0 | P20: =N20*O20 -> 0 | T20: =R20*S20 -> 0 | U20: =H20-(L20+P20)+T20 -> 0 | X20: =V20*W20 -> 0 | Y20: =IF(A20="","",calcPF(A20,BJ)) -> 
H21: =E21*G21 -> 0 | L21: =J21*K21 -> 0 | P21: =N21*O21 -> 0 | T21: =R21*S21 -> 0 | U21: =H21-(L21+P21)+T21 -> 0 | X21: =V21*W21 -> 0 | Y21: =IF(A21="","",calcPF(A21,BJ)) -> 
H22: =E22*G22 -> 0 | L22: =J22*K22 -> 0 | P22: =N22*O22 -> 0 | T22: =R22*S22 -> 0 | U22: =H22-(L22+P22)+T22 -> 0 | X22: =V22*W22 -> 0 | Y22: =IF(A22="","",calcPF(A22,BJ)) -> 
H23: =E23*G23 -> 0 | L23: =J23*K23 -> 0 | P23: =N23*O23 -> 0 | T23: =R23*S23 -> 0 | U23: =H23-(L23+P23)+T23 -> 0 | X23: =V23*W23 -> 0 | Y23: =IF(A23="","",calcPF(A23,BJ)) -> 
A24: Summe: | E24: =SUM(E19:E23) -> 0 | F24: =SUM(F19:F23) -> 0 | H24: =SUM(H19:H23) -> 0 | I24: =SUM(I19:I23) -> 0 | J24: =SUM(J19:J23) -> 0 | L24: =SUM(L19:L23) -> 0 | M24: =SUM(M19:M23) -> 0 | N24: =SUM(N19:N23) -> 0 | P24: =SUM(P19:P23) -> 0 | Q24: =SUM(Q19:Q23) -> 0 | R24: =SUM(R19:R23) -> 0 | T24: =SUM(T19:T23) -> 0 | U24: =SUM(U19:U23) -> 0 | V24: =SUM(V19:V23) -> 0 | X24: =SUM(X19:X23) -> 0

Sheet E3.1 V
A1: Krankenhaus: | W1: Tabelle: | X1: =GetPage(X2) -> 15/25
A2: =Krankenhausname -> <Hier Krankenhausnamen eintragen> | W2: Datum: | X2: =AEB_Datum -> 29.3.2022
A4: ="E3 Aufstellung der nach § 6 KHEntgG krankenhausindividuell verhandelten Entgelte (Vereinbarung "&Bezugsjahr&")" -> E3 Aufstellung der nach § 6 KHEntgG krankenhausindividuell verhandelten Entgelte (Vereinbarung 2021)
A5: E3.1 Aufstellung der fallbezogenen Entgelte
I7: davon Verlegungen | M7: davon Kurzlieger | Q7: davon Langlieger | V7: Pflegeerlös
B8: Untere | D8: Obere | H8: Brutto- | O8: Ab- | S8: Zu- | U8: Nettoerlös- | V8: Anzahl der Berechnungs-tage | W8: Bewertungs-relation/Tag (nach Pflegeerlös-katalog oder vereinbarte Bewertungs-relation) | X8: Summe der Pflegebewertungs-relationen (Sp. 22x23) | Y8: Bewertungs-relation/Tag (nach Pflegeerlös-katalog)
B9: Grenz- | D9: Grenz- | F9: ver- | H9: erlös- | J9: Anzahl | L9: Summe | N9: Anzahl | O9: schlag | P9: Summe | R9: Anzahl | S9: schlag | T9: Summe | U9: summe inkl.
B10: ver- | D10: ver- | F10: ein- | H10: summe- | J10: der | K10: Ab- | L10: der | N10: der | O10: je Tag | P10: der | R10: der | S10: je Tag | T10: der | U10: Zu- und
A11: Entgelt | B11: weil- | C11: Mittlere | D11: weil- | F11: barte | G11: Ent- | H11: ohne | I11: Anzahl | J11: Tage | K11: schlag | L11: Abschläge | M11: Anzahl | N11: Tage | O11: bei | P11: uGVD- | Q11: Anzahl | R11: Tage | S11: bei | T11: oGVD- | U11: Abschläge
A12: nach | B12: dauer: | C12: Verweil- | D12: dauer: | E12: Fall- | F12: Be- | G12: gelt- | H12: Zu- und | I12: der | J12: mit | K12: je Tag | L12: für Ver- | M12: der | N12: mit | O12: uGVD- | P12: Ab- | Q12: der | R12: mit | S12: oGVD- | T12: Zu- | U12: (in €)
A13: § 6 | B13: Erster | C13: dauer | D13: Erster | E13: zahl | F13: wer- | G13: höhe | H13: Ab- | I13: Verle- | J13: AB- | K13: bei Ver- | L13: legungen | M13: Kurz- | N13: uGVD- | O13: Unter- | P13: schläge | Q13: Lang- | R13: oGVD- | S13: Über- | T13: schläge | U13: (Sp.8-(Sp.
A14: KHEntgG | B14: Tag | D14: Tag | F14: tungs- | G14: (in €) | H14: schläge | I14: gungs- | J14: schlag | K14: legung | L14: (in €) | M14: lieger- | N14: Ab- | O14: schrei- | P14: (in €) | Q14: lieger- | R14: Zu- | S14: schrei- | T14: (in €) | U14: 12+16)+
B15: mit | D15: zusätz- | F15: re- | H15: (in €) | I15: fälle | J15: bei Ver- | K15: (in €) | L15: (Sp. 10x11) | M15: fälle | N15: schlag | O15: tung | P15: (Sp. | Q15: fälle | R15: Schlag | S15: tung | T15: (Sp. | U15: Sp. 20)
B16: Ab- | D16: liches | F16: lation | H16: (Sp. 5x7) | J16: legung | O16: (in €) | P16: 14x15) | S16: (in €) | T16: 18x19)
B17: Schlag | D17: Entgelt
A18: 1 | B18: 2 | C18: 3 | D18: 4 | E18: 5 | F18: 6 | G18: 7 | H18: 8 | I18: 9 | J18: 10 | K18: 11 | L18: 12 | M18: 13 | N18: 14 | O18: 15 | P18: 16 | Q18: 17 | R18: 18 | S18: 19 | T18: 20 | U18: 21 | V18: 22 | W18: 23 | X18: 24
H19: =E19*G19 -> 0 | L19: =J19*K19 -> 0 | P19: =N19*O19 -> 0 | T19: =R19*S19 -> 0 | U19: =H19-(L19+P19)+T19 -> 0 | X19: =V19*W19 -> 0 | Y19: =IF(A19="","",calcPF(A19,BJ)) -> 
H20: =E20*G20 -> 0 | L20: =J20*K20 -> 0 | P20: =N20*O20 -> 0 | T20: =R20*S20 -> 0 | U20: =H20-(L20+P20)+T20 -> 0 | X20: =V20*W20 -> 0 | Y20: =IF(A20="","",calcPF(A20,BJ)) -> 
H21: =E21*G21 -> 0 | L21: =J21*K21 -> 0 | P21: =N21*O21 -> 0 | T21: =R21*S21 -> 0 | U21: =H21-(L21+P21)+T21 -> 0 | X21: =V21*W21 -> 0 | Y21: =IF(A21="","",calcPF(A21,BJ)) -> 
H22: =E22*G22 -> 0 | L22: =J22*K22 -> 0 | P22: =N22*O22 -> 0 | T22: =R22*S22 -> 0 | U22: =H22-(L22+P22)+T22 -> 0 | X22: =V22*W22 -> 0 | Y22: =IF(A22="","",calcPF(A22,BJ)) -> 
H23: =E23*G23 -> 0 | L23: =J23*K23 -> 0 | P23: =N23*O23 -> 0 | T23: =R23*S23 -> 0 | U23: =H23-(L23+P23)+T23 -> 0 | X23: =V23*W23 -> 0 | Y23: =IF(A23="","",calcPF(A23,BJ)) -> 
A24: Summe: | E24: =SUM(E19:E23) -> 0 | F24: =SUM(F19:F23) -> 0 | H24: =SUM(H19:H23) -> 0 | I24: =SUM(I19:I23) -> 0 | J24: =SUM(J19:J23) -> 0 | L24: =SUM(L19:L23) -> 0 | M24: =SUM(M19:M23) -> 0 | N24: =SUM(N19:N23) -> 0 | P24: =SUM(P19:P23) -> 0 | Q24: =SUM(Q19:Q23) -> 0 | R24: =SUM(R19:R23) -> 0 | T24: =SUM(T19:T23) -> 0 | U24: =SUM(U19:U23) -> 0 | V24: =SUM(V19:V23) -> 0 | X24: =SUM(X19:X23) -> 0

Sheet E3.2 VVJ
A1: Krankenhaus: | C1: Tabelle: | D1: =GetPage(D2) -> 16/25
A2: =Krankenhausname -> <Hier Krankenhausnamen eintragen> | C2: Datum: | D2: =AEB_Datum -> 29.3.2022
A4: ="E3.2 Aufstellung der Zusatzentgelte (Daten " & VVJ &")" -> E3.2 Aufstellung der Zusatzentgelte (Daten 2019)
A6: Zusatzentgelt | B6: Anzahl | C6: Entgelt- | D6: Erlössumme
A7: nach | C7: höhe | D7: (Sp. 2x3)
A8: § 6 KHEntgG
A9: 1 | B9: 2 | C9: 3 | D9: 4
D10: =B10*C10 -> 0
D11: =B11*C11 -> 0
D12: =B12*C12 -> 0
D13: =B13*C13 -> 0
D14: =B14*C14 -> 0
A15: Summe: | B15: =SUM(B10:B14) -> 0 | D15: =SUM(D10:D14) -> 0

Sheet E3.2 VJ
A1: Krankenhaus: | C1: Tabelle: | D1: =GetPage(D2) -> 17/25
A2: =Krankenhausname -> <Hier Krankenhausnamen eintragen> | C2: Datum: | D2: =AEB_Datum -> 29.3.2022
A4: ="E3.2 Aufstellung der Zusatzentgelte (Daten " & VJ &", ggf. hochgerechnet)" -> E3.2 Aufstellung der Zusatzentgelte (Daten 2020, ggf. hochgerechnet)
A6: Zusatzentgelt | B6: Anzahl | C6: Entgelt- | D6: Erlössumme
A7: nach | C7: höhe | D7: (Sp. 2x3)
A8: § 6 KHEntgG
A9: 1 | B9: 2 | C9: 3 | D9: 4
D10: =B10*C10 -> 0
D11: 0
D12: 0
D13: 0
D14: 0
A15: Summe: | B15: =SUM(B10:B14) -> 0 | D15: =SUM(D10:D14) -> 0

Sheet E3.2 F
A1: Krankenhaus: | C1: Tabelle: | D1: =GetPage(D2) -> 18/25
A2: =Krankenhausname -> <Hier Krankenhausnamen eintragen> | C2: Datum: | D2: =AEB_Datum -> 29.3.2022
A4: ="E3.2 Aufstellung der Zusatzentgelte (Forderung " & Bezugsjahr&")" -> E3.2 Aufstellung der Zusatzentgelte (Forderung 2021)
A6: Zusatzentgelt | B6: Anzahl | C6: Entgelt- | D6: Erlössumme
A7: nach | C7: höhe | D7: (Sp. 2x3)
A8: § 6 KHEntgG
A9: 1 | B9: 2 | C9: 3 | D9: 4
D10: =B10*C10 -> 0
D11: 0
D12: 0
D13: 0
D14: 0
A15: Summe: | B15: =SUM(B10:B14) -> 0 | D15: =SUM(D10:D14) -> 0

Sheet E3.2 V
A1: Krankenhaus: | C1: Tabelle: | D1: =GetPage(D2) -> 19/25
A2: =Krankenhausname -> <Hier Krankenhausnamen eintragen> | C2: Datum: | D2: =AEB_Datum -> 29.3.2022
A4: ="E3.2 Aufstellung der Zusatzentgelte (Vereinbarung " & Bezugsjahr&")" -> E3.2 Aufstellung der Zusatzentgelte (Vereinbarung 2021)
A6: Zusatzentgelt | B6: Anzahl | C6: Entgelt- | D6: Erlössumme
A7: nach | C7: höhe | D7: (Sp. 2x3)
A8: § 6 KHEntgG
A9: 1 | B9: 2 | C9: 3 | D9: 4
D10: =B10*C10 -> 0
D11: 0
D12: 0
D13: 0
D14: 0
A15: Summe: | B15: =SUM(B10:B14) -> 0 | D15: =SUM(D10:D14) -> 0

Sheet E3.3 VVJ
A1: Krankenhaus: | D1: Tabelle: | E1: =GetPage(E2) -> 20/25
A2: =Krankenhausname -> <Hier Krankenhausnamen eintragen> | D2: Datum: | E2: =AEB_Datum -> 29.3.2022
A4: ="E3.3 Aufstellung der tagesbezogenen Entgelte (IST-Daten " & VVJ &")" -> E3.3 Aufstellung der tagesbezogenen Entgelte (IST-Daten 2019)
A6: Entgelt | B6: Fallzahl | C6: Tage | D6: Entgelt- | E6: Erlössumme
A7: nach | D7: höhe | E7: (Sp. 3x4)
A8: § 6 Abs.1 KHEntgG
A9: 1 | B9: 2 | C9: 3 | D9: 4 | E9: 5
E10: =C10*D10 -> 0
E11: 0
E12: 0
E13: 0
E14: =C14*D14 -> 0
A15: Summe: | B15: =SUM(B10:B14) -> 0 | C15: =SUM(C10:C14) -> 0 | E15: =SUM(E10:E14) -> 0

Sheet E3.3 VJ
A1: Krankenhaus: | D1: Tabelle: | E1: =GetPage(E2) -> 21/25
A2: =Krankenhausname -> <Hier Krankenhausnamen eintragen> | D2: Datum: | E2: =AEB_Datum -> 29.3.2022
A4: ="E3.3 Aufstellung der tagesbezogenen Entgelte (IST-Daten " & VJ &", ggf. hochgerechnet)" -> E3.3 Aufstellung der tagesbezogenen Entgelte (IST-Daten 2020, ggf. hochgerechnet)
A6: Entgelt | B6: Fallzahl | C6: Tage | D6: Entgelt- | E6: Erlössumme
A7: nach | D7: höhe | E7: (Sp. 3x4)
A8: § 6 Abs.1 KHEntgG
A9: 1 | B9: 2 | C9: 3 | D9: 4 | E9: 5
E10: =C10*D10 -> 0
E11: 0
E12: 0
E13: 0
E14: 0
A15: Summe: | B15: =SUM(B10:B14) -> 0 | C15: =SUM(C10:C14) -> 0 | E15: =SUM(E10:E14) -> 0

Sheet E3.3 F
A1: Krankenhaus: | G1: Tabelle: | H1: =GetPage(H2) -> 22/25
A2: =Krankenhausname -> <Hier Krankenhausnamen eintragen> | G2: Datum: | H2: =AEB_Datum -> 29.3.2022
A4: ="E3.3 Aufstellung der tagesbezogenen Entgelte (Forderung " & BJ &")" -> E3.3 Aufstellung der tagesbezogenen Entgelte (Forderung 2021)
F6: Pflegeerlös
A7: Entgelt nach § 6 Abs. 1 KHEntgG | B7: Fallzahl | C7: Tage | D7: Entgelt- höhe | E7: Erlössumme (Sp. 3x4) | F7: Anzahl der Berechnungstage | G7: Bewertungs-relation/Tag (nach Pflegeerlös-katalog oder vereinbarte Bewertungs-relation) | H7: Summe der Pflegebewertungs-relationen (Sp. 6x7) | I7: Bewertungs-relation/Tag (nach Pflegeerlös-katalog)
A15: 1 | B15: 2 | C15: 3 | D15: 4 | E15: 5 | F15: 6 | G15: 7 | H15: 8
A16: b11z | B16: 10 | C16: 10 | D16: 10 | E16: =C16*D16 -> 100 | F16: 10 | G16: 10 | H16: =F16*G16 -> 100 | I16: =IF(A16="","",calcPF(A16,BJ)) -> 1.4424
E17: 0 | H17: 0 | I17: =IF(A17="","",calcPF(A17,BJ)) -> 
E18: 0 | H18: 0 | I18: =IF(A18="","",calcPF(A18,BJ)) -> 
E19: 0 | H19: 0 | I19: =IF(A19="","",calcPF(A19,BJ)) -> 
E20: 0 | H20: 0 | I20: =IF(A20="","",calcPF(A20,BJ)) -> 
A21: Summe: | B21: =SUM(B16:B20) -> 10 | C21: =SUM(C16:C20) -> 10 | E21: =SUM(E16:E20) -> 100 | F21: =SUM(F16:F20) -> 10 | H21: =SUM(H16:H20) -> 100

Sheet E3.3 V
A1: Krankenhaus: | G1: Tabelle: | H1: =GetPage(H2) -> 23/25
A2: =Krankenhausname -> <Hier Krankenhausnamen eintragen> | G2: Datum: | H2: =AEB_Datum -> 29.3.2022
A4: ="E3.3 Aufstellung der tagesbezogenen Entgelte (Vereinbarung " & BJ &")" -> E3.3 Aufstellung der tagesbezogenen Entgelte (Vereinbarung 2021)
F6: Pflegeerlös
A7: Entgelt nach § 6 Abs. 1 KHEntgG | B7: Fallzahl | C7: Tage | D7: Entgelt- höhe | E7: Erlössumme (Sp. 3x4) | F7: Anzahl der Berechnungstage | G7: Bewertungs-relation/Tag (nach Pflegeerlös-katalog oder vereinbarte Bewertungs-relation) | H7: Summe der Pflegebewertungs-relationen (Sp. 6x7) | I7: Bewertungs-relation/Tag (nach Pflegeerlös-katalog)
A15: 1 | B15: 2 | C15: 3 | D15: 4 | E15: 5 | F15: 6 | G15: 7 | H15: 8
A16: b11z | B16: 10 | C16: 10 | D16: 10 | E16: =C16*D16 -> 100 | F16: 10 | G16: 10 | H16: =F16*G16 -> 100 | I16: =IF(A16="","",calcPF(A16,BJ)) -> 1.4424
E17: =C17*D17 -> 0 | H17: =F17*G17 -> 0 | I17: =IF(A17="","",calcPF(A17,BJ)) -> 
E18: =C18*D18 -> 0 | H18: =F18*G18 -> 0 | I18: =IF(A18="","",calcPF(A18,BJ)) -> 
E19: =C19*D19 -> 0 | H19: =F19*G19 -> 0 | I19: =IF(A19="","",calcPF(A19,BJ)) -> 
E20: =C20*D20 -> 0 | H20: =F20*G20 -> 0 | I20: =IF(A20="","",calcPF(A20,BJ)) -> 
A21: Summe: | B21: =SUM(B16:B20) -> 10 | C21: =SUM(C16:C20) -> 10 | E21: =SUM(E16:E20) -> 100 | F21: =SUM(F16:F20) -> 10 | H21: =SUM(H16:H20) -> 100

Sheet B1
A1: Krankenhaus: | C1: Tabelle: | D1: =GetPage(D2) -> 24/25
A2: =Krankenhausname -> <Hier Krankenhausnamen eintragen> | C2: Datum: | D2: =AEB_Datum -> 29.3.2022
A4: B1 Erlösbudget nach § 4 KHEntgG
A6: lfd. | B6: Berechnungsschritte | C6: Vereinbarung | D6: Vereinbarungs-zeitraum
A7: Nr. | C7: für das laufende
C8: Jahr
B9: 1 | C9: 2 | D9: 3
B10: Ermittlung des Erlösbudgets:
A11: 1 | B11: Summe der effektiven Bewertungsrelationen 1)
A12: 2 | B12: x abzurechnender Landesbasisfallwert nach § 10 Abs. 8 Satz 7
A13: 3 | B13: = Zwischensumme | C13: =C11*C12 -> 0 | D13: =D11*D12 -> 0
A14: 4 | B14: + Zusatzentgelte nach § 7 Abs. 1 Satz 2 Nr. 2
A15: 5 | B15: = Erlösbudget 2) | C15: =C13+C14 -> 0 | D15: =D13+D14 -> 0
B17: 1) Summe der effektiven Bewertungsrelationen für alle im Kalenderjahr entlassenen Fälle, einschließlich der Überlieger am Jahresbeginn.
B18: 2) Erlösbudget einschließlich der Erlöse bei Überschreitung der oberen Grenzverweildauer, der Abschläge bei Unterschreitung der unteren Grenzverweildauer und der Abschläge bei Verlegungen.

Sheet Import
A1: DRG | B1: Fallzahl | C1: Anzahl Verlegungsfälle | D1: Tage Verlegung | E1: Anzahl Kurzlieger | F1: Tage UGVD | G1: Anzahl Langlieger | H1: Tage OGVD | I1: Pflege-Tage
A2: B70I | B2: 6 | C2: 3 | D2: 8 | E2: 1 | F2: 2 | G2: 1 | H2: 2 | I2: 12 | K2: Bitte diese Testdaten durch Ihre Werte ersetzen!
A3: B71C | B3: 12 | C3: 2 | D3: 6 | E3: 1 | F3: 3 | G3: 2 | H3: 3 | I3: 32 | K3: Die Kopfzeile muss stehen bleiben, Daten die dort eingetragen werden, werden nicht übernommen.
A4: B71D | B4: 5 | C4: 2 | D4: 7 | E4: 1 | F4: 3 | G4: 1 | H4: 2 | I4: 33
A5: B73Z | B5: 17 | C5: 2 | D5: 5 | E5: 1 | F5: 2 | G5: 1 | H5: 1 | I5: 45
A6: A06C | B6: 2 | C6: 1 | D6: 2 | E6: 1 | F6: 2 | G6: 1 | H6: 2 | I6: 23
A7: A09C | B7: 12 | C7: 1 | D7: 1 | E7: 1 | F7: 3 | G7: 2 | H7: 4 | I7: 13
A8: A09C | B8: 9 | C8: 1 | D8: 2 | E8: 1 | F8: 2 | G8: 1 | H8: 4 | I8: 23
A9: A09E | B9: 1 | C9: 1 | D9: 1 | E9: 1 | F9: 2 | G9: 1 | H9: 3 | I9: 34
A10: A09F | B10: 4 | C10: 9 | D10: 8 | E10: 7 | F10: 6 | G10: 5 | H10: 4 | I10: 43
A11: A11D | B11: 16 | C11: 10 | D11: 11 | E11: 12 | F11: 13 | G11: 14 | H11: 15 | I11: 34
A12: A11F | B12: 3 | C12: 100 | D12: 200 | E12: 300 | F12: 400 | G12: 500 | H12: 600 | I12: 712
A13: A11H | B13: 5 | C13: 1 | I13: 2
A14: A11I | B14: 8 | C14: 2 | I14: 23
A15: A13D | B15: 3 | C15: 2 | I15: 12
A16: A13E | B16: 17 | C16: 1 | I16: 12
A17: A13G | B17: 10 | C17: 1 | I17: 12
A18: A13H | B18: 2 | C18: 1 | I18: 3
A19: B04B | B19: 16 | C19: 2 | I19: 2
A20: B04C | B20: 20 | C20: 1 | I20: 4
A21: B04D | B21: 10 | C21: 2 | I21: 12
A22: B05Z | B22: 2 | C22: 1 | I22: 23
A23: B17A | B23: 17 | C23: 1 | I23: 2
A24: B17D | B24: 10 | C24: 1 | I24: 2
A25: B17E | B25: 6 | C25: 1 | I25: 22
A26: B18Z | B26: 15 | C26: 2 | I26: 22
A27: B20C | B27: 19 | C27: 1 | I27: 3
A28: B63Z | B28: 1 | C28: 0 | I28: 4
A29: B64Z | B29: 9 | C29: 1 | I29: 2
A30: B66D | B30: 4 | C30: 1 | I30: 2
A31: B67B | B31: 3 | C31: 1 | I31: 4
A32: B69C | B32: 8 | C32: 2 | I32: 4
A33: B69D | B33: 2 | C33: 1 | I33: 2
A34: B70E | B34: 11 | C34: 2 | I34: 12
A35: B70F | B35: 3 | C35: 1 | I35: 23
A36: B70H | B36: 12 | C36: 3 | I36: 12
A37: I68E | B37: 12 | C37: 2 | I37: 3
A38: I68D | B38: 11 | C38: 1 | D38: 3 | E38: 2 | F38: 2 | G38: 2 | H38: 3 | I38: 2
A39: L90B | B39: 1 | I39: 1

Sheet HA2022 (hidden)
A1: Anlage 1 | N1: aG-DRG-Version 2022 und Pflegeerlöskatalog 2022
A2: Fallpauschalen-Katalog und Pflegeerlöskatalog
A3: Teil a) Bewertungsrelationen bei Versorgung durch Hauptabteilungen
A5: DRG | B5: Parti- tion | C5: Bezeichnung 6) | D5: Bewertungsrelation bei Hauptabteilung | E5: Bewertungsrelation bei Hauptabteilung und Beleghebamme | F5: Mittlere Verweil- dauer 1) | G5: Untere Grenz-verweildauer: Erster Tag mit Abschlag 2), 5) | H5: Untere Grenz-verweildauer: Bewertungs- relation pro Tag | I5: Obere Grenz-verweildauer: Erster Tag mit zusätzlichem Entgelt 3), 5) | J5: Obere Grenz-verweildauer: Bewertungs- relation pro Tag | K5: Externe Verlegung Abschlag pro Tag (Bewertungsrelation) | L5: Verlegungs- fallpauschale | M5: Ausnahme von Wiederaufnahme 4) | N5: Pflegeerlös Bewertungs-relation pro Tag
A6: 1 | B6: 2 | C6: 3 | D6: 4 | E6: 5 | F6: 6 | G6: 7 | H6: 8 | I6: 9 | J6: 10 | K6: 11 | L6: 12 | M6: 13 | N6: 14
A7: Prä-MDC
A8: A01A | B8: O | C8: Lebertransplantation mit Beatmung > 179 Stunden oder kombinierter Dünndarmtransplantation | D8: 20.023 | F8: 48.4 | G8: 15 | H8: 0.923 | I8: 66 | J8: 0.378 | L8: x | M8: x | N8: 3.2069
A9: A01B | B9: O | C9: Lebertransplantation ohne kombinierte Dünndarmtranspl. mit Beatmung > 59 und < 180 Std. od. mit Transplantatabstoßung od. mit komb. Nierentranspl. od. m. kombinierter Pankreastranspl. od. Alter < 6 J. oder od. m. intensivm. Komplexbeh. > 980 / 828 / - P. | D9: 11.724 | F9: 30.5 | G9: 9 | H9: 0.823 | I9: 48 | J9: 0.283 | L9: x | M9: x | N9: 2.4758
A10: A01C | B10: O | C10: Lebertransplantation ohne kombinierte Dünndarmtransplantation, ohne Beatmung > 59 Stunden, ohne Transplantatabstoßung, ohne komb. Nierentranspl., ohne kombinierte Pankreastranspl., Alter > 5 Jahre, ohne intensivmed. Komplexbehandlung > 980 / 828 / - P. | D10: 8.493 | F10: 22.9 | G10: 7 | H10: 0.697 | I10: 39 | J10: 0.244 | L10: x | M10: x | N10: 1.884
A11: A02Z | B11: O | C11: Transplantation von Niere und Pankreas | D11: 8.481 | F11: 24 | G11: 7 | H11: 0.673 | I11: 42 | J11: 0.238 | L11: x | M11: x | N11: 1.9471
A12: A03A | B12: O | C12: Lungentransplantation mit Beatmung > 179 Stunden | D12: 24.72 | F12: 49.8 | G12: 16 | H12: 1.214 | I12: 68 | J12: 0.415 | L12: x | M12: x | N12: 3.2068
A13: A03B | B13: O | C13: Lungentransplantation ohne Beatmung > 179 Stunden | D13: 11.861 | F13: 25.5 | G13: 7 | H13: 1.005 | I13: 38 | J13: 0.376 | L13: x | M13: x | N13: 2.2844
A14: A04B | B14: O | C14: Knochenmarktranspl. / Stammzelltransf., allogen, außer bei Plasmozytom oder mit Graft-versus-Host-Krankheit Grad III und IV, mit Gabe best. Stammzellen od. Alt. < 18 J., mit best. Entnahme od. Stammzellboost od. intensivmed. Komplexbeh. > 2058 / - / - P. | D14: 20.388 | F14: 50.8 | G14: 16 | H14: 1.008 | I14: 69 | J14: 0.4 | L14: x | M14: x | N14: 3.1628
A15: A04C | B15: O | C15: Knochenmarktransplantation / Stammzelltransfusion, allogen, < 18 J. od. GVHD Grad III/IV od. auß. b. Plasmozytom, mit Gabe best. Stammz. od. GVHD III/IV od. HLA-versch., mit best. Entn. od. SZ-Boost od. m. intensivm. Komplexbeh. > 1764 / 1932 / 2760 P. | D15: 18.897 | F15: 56.5 | G15: 18 | H15: 0.942 | I15: 74 | J15: 0.317 | L15: x | M15: x | N15: 3.0216
A16: A04D | B16: O | C16: Knochenmarktransplantation / Stammzelltransfusion, allogen, mit Graft-versus-Host-Krankheit Grad III und IV oder außer bei Plasmozytom, HLA-verschieden oder mit Komplexbehandlung bei multiresistenten Erregern | D16: 10.981 | F16: 39.2 | G16: 12 | H16: 0.814 | I16: 57 | J16: 0.269 | L16: x | M16: x | N16: 1.9851
A17: A04E | B17: O | C17: Knochenmarktransplantation / Stammzelltransfusion, allogen, außer bei Plasmozytom | D17: 9.468 | F17: 34.6 | G17: 11 | H17: 0.759 | I17: 50 | J17: 0.263 | L17: x | M17: x | N17: 1.9351
A18: A05Z | B18: O | C18: Herztransplantation | D18: 24.353 | F18: 85.5 | G18: 28 | H18: 0.605 | I18: 104 | J18: 0.236 | L18: x | M18: x | N18: 1.9866
A19: A06A | B19: O | C19: Beatmung > 1799 Stunden mit intensivmedizinischer Komplexbehandlung > 2940 / 5520 / 5520 Aufwandspunkte oder mit hochkomplexem Eingriff | D19: 42.399 | F19: 118.2 | I19: 136 | J19: 0.359 | L19: x | M19: x | N19: 4.3462
A20: A06B | B20: O | C20: Beatmung > 1799 Stunden mit komplexer OR-Prozedur oder Polytrauma, ohne hochkomplexen Eingriff, ohne intensivmedizinische Komplexbehandlung > 2940 / 5520 / 5520 Aufwandspunkte | D20: 34.37 | F20: 102.7 | I20: 121 | J20: 0.294 | L20: x | M20: x | N20: 3.8629
A21: A06C | B21: O | C21: Beatmung > 1799 Stunden, ohne komplexe OR-Prozedur, ohne Polytrauma, mit intensivmedizinischer Komplexbehandlung > 588 / 552 / 552 Aufwandspunkte | D21: 23.218 | F21: 103.4 | I21: 121 | J21: 0.191 | L21: x | M21: x | N21: 3.4617
A22: A07A | B22: O | C22: Beatmung > 999 Stunden oder > 499 Stunden mit intensivmedizinischer Komplexbehandlung > 4900 / 4600 / 4600 Aufwandspunkte, mit komplexer OR-Prozedur oder Polytrauma und int. Komplexbeh. > 3920 / 3680 / 3680 P. oder mit hochkompl. oder dreizeitigem Eingr. | D22: 30.683 | F22: 76.5 | G22: 25 | H22: 0.945 | I22: 95 | J22: 0.332 | L22: x | M22: x | N22: 3.9242
A23: A07B | B23: O | C23: Beatmung > 999 Stunden oder > 499 Stunden mit intensivmedizinischer Komplexbehandlung > 4900 / 4600 / 4600 P., mit komplexer OR-Prozedur und ECMO ab 384 Stunden oder mit Polytrauma oder Alter < 16 J. oder intensivmed. Komplexbeh. > - / 3220 / - P. | D23: 25.292 | F23: 68.9 | G23: 22 | H23: 0.96 | I23: 87 | J23: 0.32 | L23: x | M23: x | N23: 3.9555
A24: A07C | B24: O | C24: Beatmung > 999 Stunden oder > 499 Stunden mit intensivmed. Komplexbeh. > 4900 / 4600 / 4600 Punkte, mit komplexer OR-Prozedur, ohne ECMO ab 384 Stunden, ohne Polytrauma, Alter > 15 Jahre oder mit intensivmed. Komplexbeh. > 2352 / 1932 / 2760 Punkte | D24: 20.098 | F24: 65.2 | G24: 21 | H24: 0.827 | I24: 83 | J24: 0.228 | K24: 0.274 | M24: x | N24: 3.7012
A25: A07D | B25: O | C25: Beatmung > 999 Stunden ohne komplexe OR-Prozedur, ohne Polytrauma, Alter > 15 Jahre, mit intensivmedizinischer Komplexbehandlung > 1176 / 1380 / 2484 und < 2353 / 1933 / 2761 Aufwandspunkte, mit komplexer Diagnose oder komplizierender Konstellation | D25: 16.147 | F25: 53.2 | G25: 17 | H25: 0.836 | I25: 71 | J25: 0.198 | K25: 0.277 | M25: x | N25: 3.7752
A26: A07E | B26: O | C26: Beatmung > 999 Stunden ohne komplexe OR-Prozedur, ohne Polytrauma, Alter > 15 Jahre, ohne komplexe Diagnose, ohne komplizierende Konstellation, mit intensivmedizinischer Komplexbehandlung > 392 / 184 / 368 Aufwandspunkte oder Beatmung > 1799 Stunden | D26: 12.801 | F26: 61.8 | G26: 20 | H26: 0.591 | I26: 80 | J26: 0.14 | K26: 0.198 | M26: x | N26: 3.1421
A27: A07F | B27: O | C27: Beatmung > 999 Stunden ohne komplexe OR-Prozedur, ohne Polytrauma, Alter > 15 Jahre, ohne komplexe Diagnose, ohne komplizierende Konstellation, ohne intensivmedizinische Komplexbehandlung > 392 / 184 / 368 Aufwandspunkte, ohne Beatmung > 1799 Stunden | D27: 9.939 | F27: 60.5 | G27: 19 | H27: 0.481 | I27: 78 | J27: 0.111 | K27: 0.156 | M27: x | N27: 2.6228
A28: A09A | B28: O | C28: Beatmung > 499 Stunden oder > 249 Stunden mit IntK > 2352 / 1932 / 2208 P., mit hochkomplexem Eingriff oder komplexer OR-Prozedur, Alter < 16 Jahre, mit IntK > 1764 / 1932 / - Punkten oder mit sehr komplexem Eingriff und IntK > - / 2208 / - Punkten | D28: 22.582 | F28: 56.1 | G28: 18 | H28: 0.95 | I28: 74 | J28: 0.321 | L28: x | M28: x | N28: 3.6449
A29: A09B | B29: O | C29: Beatmung > 499 Stunden oder > 249 Stunden mit int. Komplexbeh. > 2352 / 1932 / 2208 Punkte, mit angeb. Fehlbild. oder Tumorerkr., Alter < 3 J. oder mit hochkompl. Eingr. oder mit kompl. OR-Proz. oder int. Komplexbeh. > 1764 / 1932 / - P., Alter < 16 J. | D29: 15.205 | F29: 40.9 | G29: 13 | H29: 0.898 | I29: 59 | J29: 0.307 | L29: x | M29: x | N29: 3.6583
A30: A09C | B30: O | C30: Beatmung > 499 Stunden oder > 249 Stunden mit intensivmedizinischer Komplexbeh. > 2352 / 1932 / 2208 P., mit komplexer OR-Prozedur oder Polytrauma oder int. Komplexbeh. > 1764 / 1656 / 2208 P. oder mit komplizierender Konstellation oder Alter < 16 Jahre | D30: 12.398 | F30: 33.9 | G30: 10 | H30: 0.961 | I30: 52 | J30: 0.243 | L30: x | M30: x | N30: 3.7368
A31: A09D | B31: O | C31: Beatmung > 499 Stunden, ohne komplexe OR-Prozedur, ohne Polytrauma, Alter > 15 Jahre, ohne komplizierende Konstellation, mit intensivmedizinischer Komplexbehandlung > 1470 / 1380 / 1656 und < 1765 / 1657 / 2209 Aufwandspunkte | D31: 11.826 | F31: 44.1 | G31: 14 | H31: 0.729 | I31: 62 | J31: 0.173 | K31: 0.243 | M31: x | N31: 3.2831
A32: A09E | B32: O | C32: Beatmung > 499 Stunden, ohne komplexe OR-Prozedur, ohne Polytrauma, Alter > 15 Jahre, ohne komplizierende Konstellation, mit intensivmedizinischer Komplexbehandlung > 1176 / 1104 / 1380 u. < 1471 / 1381 / 1657 Punkte, mit komplexer Diagnose oder Prozedur | D32: 9.538 | F32: 32 | G32: 10 | H32: 0.804 | I32: 49 | J32: 0.193 | K32: 0.267 | M32: x | N32: 3.6437
A33: A09F | B33: O | C33: Beatmung > 499 Stunden, ohne komplexe OR-Prozedur, ohne Polytrauma, Alter > 15 Jahre, ohne komplizierende Konstellation, ohne intensivmedizinische Komplexbehandlung > 1176 / 1104 / 1380 Aufwandspunkte, ohne komplexe Diagnose oder Prozedur | D33: 7.958 | F33: 31.6 | G33: 10 | H33: 0.695 | I33: 49 | J33: 0.169 | K33: 0.235 | M33: x | N33: 2.8871
A34: A11A | B34: O | C34: Beatmung > 249 Stunden oder > 95 Stunden mit intensivmedizinischer Komplexbehandlung > 1764 / 1656 / 1932 Aufwandspunkte, mit kompliz. Konstellation und best. OR-Prozedur, Alter < 16 Jahre oder mit intensivmed. Komplexbeh. > 1764 / 1656 / 2208 Aufwandsp. | D34: 19.205 | F34: 48 | G34: 15 | H34: 0.904 | I34: 66 | J34: 0.301 | K34: 0.295 | M34: x | N34: 3.4522
A35: A11B | B35: O | C35: Beatmung > 249 Stunden oder > 95 Stunden mit intensivmedizinischer Komplexbehandlung > 1764 / 1656 / 1656 Aufwandspunkte, mit hochkomplexem Eingriff oder best. Eingriff und best. intensivmed. Komplexbeh. oder Alter < 2 Jahre bei angeborener Fehlbildung | D35: 14.646 | F35: 35.1 | G35: 11 | H35: 0.861 | I35: 53 | J35: 0.294 | L35: x | M35: x | N35: 3.4952
A36: A11C | B36: O | C36: Beatmung > 249 Stunden oder > 95 Stunden mit intensivmed. Komplexbehandlung > 1764 / 1656 / 1656 Punkte, mit komplexer OR-Prozedur, Alter < 16 Jahre oder komplizierende Konstellation | D36: 10.052 | F36: 24.1 | G36: 7 | H36: 0.86 | I36: 42 | J36: 0.286 | L36: x | M36: x | N36: 3.0811
A37: A11D | B37: O | C37: Beatmung > 249 h oder > 95 h mit IntK > 1764 / 1656 / 1656 P. mit best. OR-Prozeduren u. kompliz. Konstell. oder EHEC oder generalisierte Mukositis ohne IntK > 1764 / 1656 / 1932 P. oder mit kompl. Diagnose u. Alter < 3 J. oder IntK > 980 / 1104 / - P. | D37: 9.136 | F37: 26.9 | G37: 8 | H37: 0.794 | I37: 45 | J37: 0.265 | L37: x | M37: x | N37: 3.036
A38: A11E | B38: O | C38: Beatmung > 249 Stunden, mit komplexer OR-Prozedur, ohne hochkomplexen Eingriff, ohne int. Komplexbeh. > 1764 / 1656 / 1656 P., ohne kompliz. Konstellation, Alter > 15 Jahre oder mit intensivmedizinischer Komplexbehandlung > 588 / 828 / - Aufwandspunkte | D38: 6.721 | F38: 21.5 | G38: 6 | H38: 0.867 | I38: 37 | J38: 0.198 | L38: x | M38: x | N38: 3.3414
A39: A11F | B39: O | C39: Beatmung > 249 Stunden oder > 95 Stunden mit intensivmedizinischer Komplexbehandlung > 1764 / 1656 / 1656 Aufwandspunkte, mit bestimmter OR-Prozedur oder kompliz. Konstellation oder intensivmed. Komplexbehandlung > - / - / 1104 P. oder Alter < 6 Jahre | D39: 6.35 | F39: 21.7 | G39: 6 | H39: 0.764 | I39: 40 | J39: 0.172 | K39: 0.236 | M39: x | N39: 3.2413
A40: A11G | B40: O | C40: Beatmung > 249 Stunden, ohne komplexe oder bestimmte OR-Prozedur, ohne intensivmed. Komplexbehandlung > 588 / 828 / 1104 Punkte, ohne kompliz. Konstellation, Alter > 5 Jahre, mit kompl. Diagnose oder Prozedur oder Alter < 16 J. oder äußerst schwere CC | D40: 5.805 | F40: 23.5 | G40: 7 | H40: 0.694 | I40: 41 | J40: 0.165 | K40: 0.227 | M40: x | N40: 2.8866
A41: A11H | B41: O | C41: Beatmung > 249 Stunden, ohne komplexe oder bestimmte OR-Prozedur, ohne IntK > 588 / 828 / 1104 Punkte, ohne komplizierende Konstellation, Alter > 15 Jahre, ohne komplexe Diagnose oder Prozedur, ohne äußerst schwere CC | D41: 4.092 | F41: 19.6 | G41: 6 | H41: 0.566 | I41: 36 | J41: 0.142 | K41: 0.193 | M41: x | N41: 3.08
A42: A13A | B42: O | C42: Beatmung > 95 Std. mit hochkompl. Eingriff oder mit int. Komplexbeh. > 1176 / 1380 / - P. oder mit kompl. OR-Prozedur oder bei Lymphom und Leukämie und int. Komplexbeh. > - / 1104 / 1104 P. oder mit kompliz. Konst. u. best. OR-Proz., Alter < 16 Jahre | D42: 11.298 | F42: 33.2 | G42: 10 | H42: 0.843 | I42: 51 | J42: 0.279 | L42: x | M42: x | N42: 3.2132
A43: A13B | B43: O | C43: Beatmung > 95 Stunden mit sehr komplexem Eingriff oder mit komplexer OR-Prozedur und komplizierender Konstellation oder mit best. OR-Proz. und kompliz. Konst., Alter < 16 Jahre od. mit intensivmed. Komplexbeh. > - / 1104 / 1104 Punkte und kompliz. Konst. | D43: 8.593 | F43: 23.1 | G43: 7 | H43: 0.723 | I43: 41 | J43: 0.251 | L43: x | M43: x | N43: 2.7945
A44: A13C | B44: O | C44: Beatmung > 95 Stunden mit komplexer OR-Prozedur, Alter < 6 Jahre oder mit bestimmter OR-Proz. und kompliz. Konstellation od. mit intensivmed. Komplexbeh. > - / - / 1104 Punkte od. Alter < 16 J., außer bei Lymphom und Leukämie, ohne kompliz. Konstellation | D44: 7.593 | F44: 25.2 | G44: 7 | H44: 0.727 | I44: 43 | J44: 0.217 | L44: x | M44: x | N44: 2.6758
A45: A13D | B45: O | C45: Beatmung > 95 Stunden mit komplexer OR-Prozedur, Alter > 5 Jahre oder mit IntK > - / 828 / - Punkte oder kompl. OR-Prozedur od. mit best. OR-Prozedur od. kompliz. Konst. od. mit IntK > 588 / 552 / 552 Punkte od. Alter < 16 Jahre bei bösartiger Neubildung | D45: 6.184 | F45: 19.4 | G45: 5 | H45: 0.708 | I45: 37 | J45: 0.153 | L45: x | M45: x | N45: 2.5332
A46: A13E | B46: O | C46: Beatmung > 95 Stunden, ohne komplexe OR-Prozedur, mit bestimmter OR-Prozedur oder komplizierender Konstellation oder mit intensivmedizinischer Komplexbehandlung > 588 / 552 / 552 Aufwandspunkte und < 1177 / 829 / 1105 Aufwandspunkte od. Alter < 16 Jahre | D46: 4.86 | F46: 18.5 | G46: 5 | H46: 0.691 | I46: 36 | J46: 0.156 | L46: x | M46: x | N46: 2.7245
A47: A13F | B47: O | C47: Beatmung > 95 Stunden, ohne bestimmte OR-Prozedur, ohne komplizierende Konstellation, ohne intensivmed. Komplexbeh. > 588 / 552 / 552 Aufwandspunkte, Alter > 15 Jahre, mit komplexer Diagnose oder Prozedur od. intensivmed. Komplexbeh. > - / 368 / - Punkte | D47: 3.383 | F47: 12.3 | G47: 3 | H47: 0.767 | I47: 26 | J47: 0.174 | K47: 0.23 | M47: x | N47: 3.0307
A48: A13G | B48: O | C48: Beatmung > 95 Stunden, mit bestimmter OR-Prozedur oder kompliz. Konstellation, mit äußerst schweren CC, verstorben oder verlegt < 9 Tage oder ohne best. OR-Proz., ohne kompliz. Konst., Alter > 15 J., ohne kompliz. Diagnose od. Prozedur, mit äuß. schw. CC | D48: 3.247 | F48: 15.7 | G48: 4 | H48: 0.596 | I48: 32 | J48: 0.132 | K48: 0.178 | M48: x | N48: 2.5491
A49: A13H | B49: O | C49: Beatmung > 95 Stunden mit bestimmter OR-Prozedur oder kompliz. Konstellation, ohne äußerst schwere CC, verstorben oder verlegt < 9 Tage oder ohne best. OR-Proz., ohne kompliz. Konst., Alter > 15 J., ohne kompliz. Diagnose oder Proz., ohne äuß. schw. CC | D49: 2.385 | F49: 11.1 | G49: 3 | H49: 0.569 | I49: 25 | J49: 0.144 | K49: 0.188 | M49: x | N49: 2.8208
A50: A15B | B50: O | C50: Knochenmarktransplantation / Stammzelltransfusion, autogen, außer bei Plasmozytom, Alter < 18 Jahre oder bestimmte Entnahme oder intensivmedizinische Komplexbehandlung > 588 / 552 / 552 Aufwandspunkte | D50: 7.636 | F50: 26.3 | G50: 8 | H50: 0.666 | I50: 42 | J50: 0.229 | L50: x | M50: x | N50: 2.3835
A51: A15C | B51: O | C51: Knochenmarktransplantation / Stammzelltransfusion, autogen, außer bei Plasmozytom, Alter > 17 Jahre, ohne bestimmte Entnahme oder bei Plasmozytom, mit bestimmter Entnahme oder intensivmedizinischer Komplexbehandlung > 392 / 368 / 368 Aufwandspunkte | D51: 6.043 | F51: 23.3 | G51: 7 | H51: 0.565 | I51: 35 | J51: 0.224 | L51: x | M51: x | N51: 1.2432
A52: A15D | B52: O | C52: Knochenmarktransplantation / Stammzelltransfusion, autogen, bei Plasmozytom, ohne bestimmte Entnahme | D52: 4.148 | F52: 19.2 | G52: 5 | H52: 0.461 | I52: 27 | J52: 0.184 | L52: x | M52: x | N52: 1.1352
A53: A17A | B53: O | C53: Nierentransplantation mit postoperativem Versagen des Nierentransplantates oder Alter < 16 Jahre oder AB0-inkompatible Transplantation oder schwerste CC | D53: 6.92 | F53: 23.5 | G53: 7 | H53: 0.613 | I53: 41 | J53: 0.244 | L53: x | M53: x | N53: 1.6965
A54: A17B | B54: O | C54: Nierentransplantation ohne postoperatives Versagen des Nierentransplantates, Alter > 15 Jahre oder ohne AB0-inkompatible Transplantation, ohne schwerste CC | D54: 4.911 | F54: 15.8 | G54: 4 | H54: 0.653 | I54: 27 | J54: 0.207 | L54: x | M54: x | N54: 1.4817
A55: A18Z | B55: O | C55: Beatmung > 999 Stunden und Transplantation von Leber, Lunge, Herz und Knochenmark oder Stammzelltransfusion | D55: 45.641 | F55: 102.7 | I55: 121 | J55: 0.393 | L55: x | M55: x | N55: 4.112
A56: A36A | B56: O | C56: Intensivmedizinische Komplexbehandlung > 980 / 1104 / 1656 Aufwandspunkte bei bestimmten Krankheiten und Störungen oder intensivmedizinische Komplexbehandlung > 588 / 552 / 552 P. bei Versagen und Abstoßung eines Transplantates hämatopoetischer Zellen | D56: 11.829 | F56: 38.7 | G56: 12 | H56: 0.832 | I56: 57 | J56: 0.279 | L56: x | M56: x | N56: 2.8415
A57: A36B | B57: O | C57: Intensivmedizinische Komplexbehandlung > 588 / 552 / 828 und < 981 / 1105 / 1657 Aufwandspunkte bei bestimmten Krankheiten und Störungen oder komplizierende Konstellation bei Versagen und Abstoßung eines Transplantates hämatopoetischer Zellen | D57: 7.053 | F57: 27.1 | G57: 8 | H57: 0.693 | I57: 45 | J57: 0.23 | L57: x | M57: x | N57: 2.372
A58: A36C | B58: O | C58: Intensivmedizinische Komplexbehandlung > - / - / 552 und < - / - / 829 Aufwandspunkte bei bestimmten Krankheiten und Störungen | D58: 5.38 | F58: 22.9 | G58: 7 | H58: 0.59 | I58: 41 | J58: 0.144 | L58: x | M58: x | N58: 2.2472
A59: A42A | B59: A | C59: Stammzellentnahme bei Eigenspender mit Chemotherapie oder mit schwersten CC, Alter > 15 Jahre | D59: 1.992 | F59: 15.4 | G59: 4 | H59: 0.384 | I59: 23 | J59: 0.124 | K59: 0.117 | M59: x | N59: 0.7733
A60: A42B | B60: A | C60: Stammzellentnahme bei Eigenspender, Alter < 16 Jahre oder ohne schwerste CC | D60: 2.285 | F60: 11.9 | G60: 3 | H60: 0.522 | I60: 22 | J60: 0.18 | K60: 0.162 | M60: x | N60: 1.8658
A61: A42C | B61: A | C61: Stammzellentnahme bei Eigenspender ohne Chemotherapie, Alter > 15 Jahre, ohne schwerste CC, ohne Sepsis, ohne komplizierende Konstellation | D61: 0.855 | F61: 4.9 | G61: 1 | H61: 0.508 | I61: 11 | J61: 0.157 | K61: 0.13 | M61: x | N61: 0.8365
A62: A60A | B62: M | C62: Versagen und Abstoßung eines Organtransplantates, mehr als ein Belegungstag, mit Entfernung eines Organtransplantates oder komplexer OR-Prozedur oder äußerst schweren CC oder komplizierender Konstellation | D62: 1.997 | F62: 13.9 | G62: 4 | H62: 0.328 | I62: 28 | J62: 0.134 | L62: x | M62: x | N62: 1.0626
A63: A60B | B63: M | C63: Versagen und Abstoßung eines Organtransplantates, mehr als ein Belegungstag, ohne Entfernung eines Organtransplantates, ohne komplexe OR-Prozedur, ohne äußerst schwere CC, ohne komplizierende Konstellation, Alter < 16 Jahre | D63: 0.84 | F63: 4.6 | I63: 10 | J63: 0.174 | L63: x | M63: x | N63: 1.4494
A64: A60C | B64: M | C64: Versagen und Abstoßung eines Organtransplantates, mehr als ein Belegungstag, ohne Entfernung eines Organtransplantates, ohne komplexe OR-Prozedur, ohne äußerst schwere CC, ohne komplizierende Konstellation, Alter > 15 Jahre | D64: 0.646 | F64: 6 | I64: 16 | J64: 0.1 | L64: x | M64: x | N64: 0.7218
A65: A60D | B65: M | C65: Versagen und Abstoßung eines Organtransplantates, ein Belegungstag | D65: 0.193 | F65: 1 | M65: x | N65: 1.1301
A66: A61A | B66: M | C66: Versagen und Abstoßung eines Transplantates hämatopoetischer Zellen mit äußerst schweren CC oder mit bestimmter akuter Graft-versus-Host-Krankheit, mehr als ein Belegungstag | D66: 2.962 | F66: 15.4 | G66: 4 | H66: 0.573 | I66: 32 | J66: 0.186 | K66: 0.175 | M66: x | N66: 1.4871
A67: A61B | B67: M | C67: Versagen und Abstoßung eines Transplantates hämatopoetischer Zellen ohne äußerst schwere CC, ohne bestimmte akute Graft-versus-Host-Krankheit oder ein Belegungstag, mit schweren CC oder Alter < 10 Jahre | D67: 1.117 | F67: 6.2 | G67: 1 | H67: 0.862 | I67: 17 | J67: 0.17 | K67: 0.146 | M67: x | N67: 1.4175
A68: A61C | B68: M | C68: Versagen und Abstoßung eines Transplantates hämatopoetischer Zellen ohne äußerst schwere oder schwere CC, ohne bestimmte akute Graft-versus-Host-Krankheit oder ein Belegungstag, Alter > 9 Jahre | D68: 0.515 | F68: 3 | G68: 1 | H68: 0.328 | I68: 7 | J68: 0.164 | K68: 0.122 | M68: x | N68: 1.0496
A69: A62Z | B69: M | C69: Evaluierungsaufenthalt vor Herztransplantation | D69: 2.881 | F69: 19.8 | G69: 6 | H69: 0.353 | I69: 36 | J69: 0.147 | K69: 0.118 | M69: x | N69: 1.0323
A70: A63Z | B70: M | C70: Evaluierungsaufenthalt vor Lungen- oder Herz-Lungen-Transplantation | D70: 2.125 | F70: 11.4 | G70: 3 | H70: 0.473 | I70: 23 | J70: 0.167 | K70: 0.153 | M70: x | N70: 0.9782
A71: A64Z | B71: M | C71: Evaluierungsaufenthalt vor Leber-, Dünndarm- oder Nieren-Pankreas-Transplantation | D71: 1.736 | F71: 10 | G71: 2 | H71: 0.467 | I71: 22 | J71: 0.152 | K71: 0.128 | M71: x | N71: 0.8333
A72: A66Z | B72: M | C72: Evaluierungsaufenthalt vor anderer Organtransplantation | D72: 1.032 | F72: 2.8 | G72: 1 | H72: 0.469 | I72: 6 | J72: 0.344 | K72: 0.253 | M72: x | N72: 0.9748
A73: A69Z | B73: M | C73: Evaluierungsaufenthalt vor Organtransplantation ohne Aufnahme auf eine Warteliste | D73: 1.878 | F73: 11 | G73: 3 | H73: 0.39 | I73: 24 | J73: 0.141 | K73: 0.13 | M73: x | N73: 0.8467
A74: MDC 01 Krankheiten und Störungen des Nervensystems
A75: B01A | B75: O | C75: Mehrzeitige komplexe OR-Prozeduren bei Krankheiten und Störungen des Nervensystems, mit komplizierender Konstellation oder Alter < 18 Jahre | D75: 6.979 | F75: 20.5 | G75: 6 | H75: 0.591 | I75: 38 | J75: 0.22 | K75: 0.193 | N75: 2.1889
A76: B01B | B76: O | C76: Mehrzeitige komplexe OR-Prozeduren bei Krankheiten und Störungen des Nervensystems, ohne komplizierende Konstellation, Alter > 17 Jahre | D76: 5.362 | F76: 21.2 | G76: 6 | H76: 0.411 | I76: 39 | J76: 0.169 | K76: 0.129 | N76: 1.3804
A77: B02A | B77: O | C77: Komplexe Kraniotomie oder Wirbelsäulen-Operation bei Neubildung des Nervensystems oder intensivmedizinischer Komplexbehandlung > 392 / 368 / - Punkte, Alter < 6 Jahre mit Eingriff bei BNB oder Alter < 16 Jahre und mehrzeitige komplexe OR-Prozedur | D77: 8.338 | F77: 24.2 | G77: 7 | H77: 0.582 | I77: 42 | J77: 0.192 | L77: x | N77: 2.3339
A78: B02B | B78: O | C78: Komplexe Kraniotomie oder WS-OP, Bestr. an mind. 9 T. od. best. Eingr. bei BNB mit intraop. Monit., Alt. < 18 J. od. b. BNB od. IntK > 392 / 368 / - P., mit schwersten CC, Alt. > 15 J. od. oh. mehrz. kompl. OR-Proz. od. Alt. > 5 J. od. oh. Eingr. bei BNB | D78: 7.355 | F78: 39.9 | G78: 12 | H78: 0.426 | I78: 58 | J78: 0.152 | L78: x | N78: 1.2232
A79: B02C | B79: O | C79: Komplexe Kraniotomie oder WS-OP, mehr als 8 Bestr., Alter > 17 J. oder ohne best. Eingr. bei BNB mit intraop. Monit. od. bei NB des Nervensystems oder IntK > 392 / 368 / - P., Alter > 15 J. od. oh. mehrz. kompl. OR-Proz. od. Alt. > 5 J., oh. schwerste CC | D79: 6.002 | F79: 20.5 | G79: 6 | H79: 0.681 | I79: 35 | J79: 0.232 | L79: x | N79: 2.4578
A80: B02D | B80: O | C80: Komplexe Kraniotomie oder Wirbelsäulen-Operation, außer bei Neubildung, ohne intensivmedizinische Komplexbehandlung > 392 / 368 / - Aufwandspunkte, Alter < 6 Jahre oder mit bestimmtem Eingriff, Alter < 18 Jahre oder mit best. komplizierenden Faktoren | D80: 3.809 | F80: 11.8 | G80: 3 | H80: 0.453 | I80: 25 | J80: 0.17 | L80: x | N80: 1.3513
A81: B02E | B81: O | C81: Komplexe Kraniotomie oder Wirbelsäulen-Operation, ohne bestimmten komplexen Eingriff, Alter > 5 Jahre, ohne bestimmte komplizierende Faktoren | D81: 3.563 | F81: 13.7 | G81: 4 | H81: 0.584 | I81: 28 | J81: 0.214 | L81: x | N81: 1.7004
A82: B03Z | B82: O | C82: Bestimmte Eingriffe an Wirbelsäule und Rückenmark bei bösartiger Neubildung oder mit intraoperativem Monitoring oder Eingriffe bei zerebraler Lähmung, Muskeldystrophie, Neuropathie oder nicht akuter Para- / Tetraplegie mit äußerst schweren CC | D82: 2.885 | F82: 10.7 | G82: 3 | H82: 0.293 | I82: 23 | J82: 0.133 | K82: 0.1 | N82: 1.047
A83: B04A | B83: O | C83: Interventionelle oder beidseitige Eingriffe an den extrakraniellen Gefäßen mit äußerst schweren CC | D83: 3.283 | F83: 12.2 | G83: 3 | H83: 0.683 | I83: 26 | J83: 0.157 | L83: x | N83: 1.7565
A84: B04B | B84: O | C84: Beidseitige Eingriffe an den extrakraniellen Gefäßen ohne äußerst schwere CC oder mehrzeitige Eingriffe an den extrakraniellen Gefäßen oder äußerst schwere CC | D84: 3.27 | F84: 14.8 | G84: 4 | H84: 0.44 | I84: 30 | J84: 0.104 | L84: x | N84: 1.3432
A85: B04C | B85: O | C85: Eingriffe an den extrakraniellen Gefäßen, ohne mehrzeitige Eingriffe, ohne beidseitige Eingriffe, ohne äußerst schwere CC | D85: 1.315 | F85: 5.2 | G85: 1 | H85: 0.421 | I85: 10 | J85: 0.08 | L85: x | N85: 0.9434
A86: B05Z | B86: O | C86: Dekompression bei Karpaltunnelsyndrom oder kleine Eingriffe an den Nerven | D86: 0.491 | F86: 2.4 | G86: 1 | H86: 0.132 | I86: 5 | J86: 0.065 | K86: 0.065 | N86: 0.8897
A87: B07Z | B87: O | C87: Eingriffe an peripheren Nerven, Hirnnerven und anderen Teilen des Nervensystems mit äußerst schweren CC oder komplizierender Diagnose | D87: 4.069 | F87: 19.2 | G87: 5 | H87: 0.411 | I87: 37 | J87: 0.089 | K87: 0.122 | N87: 1.4099
A88: B09Z | B88: O | C88: Andere Eingriffe am Schädel | D88: 1.125 | F88: 5.4 | G88: 1 | H88: 0.502 | I88: 12 | J88: 0.068 | K88: 0.082 | N88: 0.8391
A89: B12Z | B89: O | C89: Implantation eines Herzschrittmachers bei Krankheiten und Störungen des Nervensystems oder perkutan-transluminale Gefäßintervention an Herz und Koronargefäßen | D89: 2.317 | F89: 12.7 | G89: 3 | H89: 0.392 | I89: 26 | J89: 0.087 | K89: 0.114 | N89: 1.1216
A90: B15Z | B90: O | C90: Strahlentherapie bei Krankheiten und Störungen des Nervensystems, Bestrahlungen an mindestens 8 Tagen | D90: 2.423 | F90: 19 | G90: 5 | H90: 0.395 | I90: 34 | J90: 0.125 | L90: x | M90: x | N90: 0.8265
A91: B16A | B91: O | C91: Strahlentherapie bei Krankheiten und Störungen des Nervensystems, mehr als ein Belegungstag, Bestrahlungen an mindestens 5 Tagen | D91: 1.3 | F91: 9.5 | G91: 2 | H91: 0.427 | I91: 21 | J91: 0.135 | K91: 0.122 | M91: x | N91: 0.828
A92: B16B | B92: O | C92: Strahlentherapie bei Krankheiten und Störungen des Nervensystems, mehr als ein Belegungstag, Bestrahlungen an weniger als 5 Tagen | D92: 0.744 | F92: 4.9 | I92: 13 | J92: 0.104 | K92: 0.123 | M92: x | N92: 0.9003
A93: B17A | B93: O | C93: Eingriffe an peripheren Nerven, Hirnnerven und anderen Teilen des Nervensystems oder Eingriff bei zerebraler Lähmung, Muskeldystrophie oder Neuropathie, mit komplexer Diagnose oder Implantation eines Ereignis-Rekorders | D93: 2.068 | F93: 8.6 | G93: 2 | H93: 0.404 | I93: 17 | J93: 0.098 | K93: 0.126 | N93: 1.0338
A94: B17B | B94: O | C94: Eingriffe an peripheren Nerven, Hirnnerven und and. Teilen des Nervensystems oder Eingr. bei zerebr. Lähmung, Muskeldystr. od. Neurop., mit best. kompl. Eingr., Alter < 16 J. oder mit mäßig kompl. Eingr., Alter < 19 J. oder mit äuß. schw. oder schw. CC | D94: 1.729 | F94: 9.5 | G94: 2 | H94: 0.345 | I94: 23 | J94: 0.116 | K94: 0.098 | N94: 0.9994
A95: B17C | B95: O | C95: Eingriffe an peripheren Nerven, Hirnnerven und anderen Teilen des Nervensystems oder Eingriff bei zerebraler Lähmung, Muskeldystrophie oder Neuropathie, mit komplexem Eingriff | D95: 1.668 | F95: 4.4 | G95: 1 | H95: 0.194 | I95: 9 | J95: 0.062 | K95: 0.072 | N95: 0.7699
A96: B17D | B96: O | C96: Eingriffe an peripheren Nerven, Hirnnerven und anderen Teilen des Nervensystems oder Eingriff bei zerebraler Lähmung, Muskeldystrophie oder Neuropathie, mit mäßig komplexem Eingriff oder best. Eingriff und Alter < 19 J. oder schw. CC oder best. Diagnose | D96: 1.022 | F96: 4.4 | G96: 1 | H96: 0.364 | I96: 12 | J96: 0.073 | K96: 0.084 | N96: 0.7624
A97: B17E | B97: O | C97: Eingriffe an peripheren Nerven, Hirnnerven und anderen Teilen des Nervensystems oder Eingriff bei zerebraler Lähmung, Muskeldystrophie oder Neuropathie, ohne komplexe oder bestimmte Diagnose, ohne mäßig komplexen oder komplexen Eingriff | D97: 0.702 | F97: 2.8 | G97: 1 | H97: 0.192 | I97: 6 | J97: 0.064 | K97: 0.068 | N97: 0.845
A98: B18A | B98: O | C98: Komplexe Eingriffe an Wirbelsäule und Rückenmark bei Krankheiten und Störungen des Nervensystems | D98: 4.146 | F98: 19.6 | G98: 6 | H98: 0.332 | I98: 38 | J98: 0.084 | K98: 0.113 | N98: 1.1289
A99: B18B | B99: O | C99: Bestimmte Eingriffe an Wirbelsäule und Rückenmark bei Krankheiten und Störungen des Nervensystems außer bei bösartiger Neubildung oder Revision eines Ventrikelshuntes oder operative Eingriffe bei nicht akuter Para- / Tetraplegie | D99: 2.299 | F99: 10.8 | G99: 3 | H99: 0.265 | I99: 24 | J99: 0.069 | K99: 0.089 | N99: 0.9253
A100: B18C | B100: O | C100: Andere Eingriffe an Wirbelsäule und Rückenmark bei Krankheiten und Störungen des Nervensystems außer bei bösartiger Neubildung | D100: 1.666 | F100: 6.9 | G100: 1 | H100: 0.343 | I100: 15 | J100: 0.07 | K100: 0.087 | N100: 0.9887
A101: B18D | B101: O | C101: Mäßig komplexe Eingriffe an Wirbelsäule und Rückenmark bei Krankheiten und Störungen des Nervensystems außer bei bösartiger Neubildung | D101: 1.442 | F101: 7.6 | G101: 2 | H101: 0.207 | I101: 19 | J101: 0.058 | K101: 0.073 | N101: 0.8192
A102: B19A | B102: O | C102: Implantation, Revision und Entfernung von Neurostimulatoren und Neurostimulationselektroden bei Krankheiten und Störungen des Nervensystems mit Implantation oder Wechsel eines Neurostimulators | D102: 1.253 | F102: 3.1 | G102: 1 | H102: 0.157 | I102: 8 | J102: 0.059 | K102: 0.063 | N102: 0.8243
A103: B19B | B103: O | C103: Implantation, Revision und Entfernung von Neurostimulatoren und Neurostimulationselektroden bei Krankheiten und Störungen des Nervensystems mit Implantation oder Wechsel eines permanenten oder temporären Elektrodensystems | D103: 1.452 | F103: 2.8 | G103: 1 | H103: 0.121 | I103: 7 | J103: 0.061 | K103: 0.064 | N103: 0.8154
A104: B19C | B104: O | C104: Implantation, Revision und Entfernung von Neurostimulatoren und Neurostimulationselektroden bei Krankheiten und Störungen des Nervensystems ohne Implantation oder Wechsel von Neurostimulatoren und Elektrodensystemen | D104: 0.873 | F104: 3.2 | G104: 1 | H104: 0.372 | I104: 7 | J104: 0.062 | K104: 0.068 | N104: 0.8328
A105: B20A | B105: O | C105: Kraniotomie oder große Wirbelsäulen-Operation mit bestimmter komplexer Prozedur, Alter < 18 Jahre oder mit komplizierenden Faktoren, Alter < 16 Jahre | D105: 2.717 | F105: 8.4 | G105: 2 | H105: 0.454 | I105: 17 | J105: 0.197 | L105: x | N105: 1.6902
A106: B20B | B106: O | C106: Kraniotomie oder große WS-Operation mit komplexer Prozedur, Alter > 17 Jahre oder ohne bestimmte komplexe Prozedur, mit komplizierenden Faktoren, Alter > 15 Jahre | D106: 2.829 | F106: 9.9 | G106: 2 | H106: 0.463 | I106: 20 | J106: 0.172 | L106: x | N106: 1.2238
A107: B20C | B107: O | C107: Kraniotomie oder große Wirbelsäulen-Operation, Alter < 3 J. oder intervent. Eingriff oder Alter < 18 J. mit großem intrakraniellen Eingriff oder mit kompl. Diagnose oder best. Eingriffe bei Trigeminusneuralgie, Alter < 16 J. od. bei bösartiger Neubildung | D107: 2.068 | F107: 6.1 | G107: 1 | H107: 0.687 | I107: 14 | J107: 0.225 | L107: x | N107: 1.2941
A108: B20D | B108: O | C108: Kraniotomie oder große WS-OP mit komplexer Prozedur oder ohne komplexe Prozedur, Alter > 2 Jahre, mit komplexer Diagnose oder bestimmtem Eingriff bei Trigeminusneuralgie oder mit bestimmter Prozedur oder bei bösartiger Neubildung | D108: 2.016 | F108: 8 | G108: 2 | H108: 0.386 | I108: 18 | J108: 0.148 | L108: x | N108: 1.1967
A109: B20E | B109: O | C109: Kraniotomie oder große Wirbelsäulen-Operation ohne komplexe Prozedur, Alter > 2 Jahre, ohne komplexe Diagnose, ohne bestimmten Eingriff bei Trigeminusneuralgie, ohne bestimmte Prozedur, außer bei bösartiger Neubildung | D109: 1.572 | F109: 7.8 | G109: 2 | H109: 0.323 | I109: 17 | J109: 0.133 | L109: x | N109: 1.1721
A110: B21A | B110: O | C110: Implantation eines Neurostimulators zur Hirnstimulation, Mehrelektrodensystem, mit Sondenimplantation | D110: 8.52 | F110: 12.1 | G110: 3 | H110: 0.295 | I110: 20 | J110: 0.097 | K110: 0.09 | N110: 0.9611
A111: B21B | B111: O | C111: Implantation eines Neurostimulators zur Hirnstimulation, Mehrelektrodensystem, ohne Sondenimplantation | D111: 3.926 | F111: 3.5 | G111: 1 | H111: 0.154 | I111: 8 | J111: 0.088 | K111: 0.069 | N111: 1.068
A112: B36A | B112: O | C112: Intensivmedizinische Komplexbehandlung > 1764 / 1656 / 1656 Aufwandspunkte oder > 1176 / 1104 / 1104 Aufwandspunkte mit bestimmter OR-Prozedur oder Alter < 10 Jahre bei Krankheiten und Störungen des Nervensystems | D112: 10.656 | F112: 32.5 | G112: 10 | H112: 0.833 | I112: 50 | J112: 0.282 | L112: x | M112: x | N112: 3.3334
A113: B36B | B113: O | C113: Intensivmedizinische Komplexbehandlung > 1176 / 1104 / 1104 Aufwandspunkte ohne bestimmte OR-Prozedur oder > 588 / 552 / 552 Punkte mit best. OR-Prozedur oder best. hochaufw. Implantate oder Alter > 9 Jahre bei Krankheiten und Störungen des Nervensystems | D113: 7.653 | F113: 21.4 | G113: 6 | H113: 0.904 | I113: 37 | J113: 0.295 | L113: x | M113: x | N113: 3.4957
A114: B39A | B114: O | C114: Neurologische Komplexbehandlung des akuten Schlaganfalls mit bestimmter OR-Prozedur, mehr als 72 Stunden mit komplexem Eingriff oder mit komplizierender Konstellation oder intensivmedizinischer Komplexbehandlung > 392 / 368 / - Aufwandspunkte | D114: 4.45 | F114: 17.4 | G114: 5 | H114: 0.609 | I114: 35 | J114: 0.211 | L114: x | N114: 1.7623
A115: B39B | B115: O | C115: Neurologische Komplexbehandlung des akuten Schlaganfalls mit bestimmter OR-Prozedur, bis 72 Stunden mit komplexem Eingriff oder mehr als 72 Stunden, ohne kompl. Eingriff, ohne kompliz. Konst., ohne intensivmed. Komplexbehandlung > 392 / 368 / - Punkte | D115: 2.619 | F115: 11.2 | G115: 3 | H115: 0.545 | I115: 23 | J115: 0.136 | L115: x | N115: 1.5784
A116: B39C | B116: O | C116: Neurologische Komplexbehandlung des akuten Schlaganfalls mit best. OR-Prozedur, bis 72 Std., ohne kompl. Eing., ohne kompliz. Konst., ohne intensivmed. Komplexbeh. > 392 / 368 / - P. oder and. neurolog. Komplexbeh. des akuten Schlaganf., mehr als 72 Std. | D116: 2.11 | F116: 9.1 | G116: 2 | H116: 0.552 | I116: 19 | J116: 0.127 | L116: x | N116: 1.2623
A117: B42A | B117: A | C117: Frührehabilitation bei Krankheiten und Störungen des Nervensystems bis 27 Tage mit neurologischer Komplexbehandlung des akuten Schlaganfalls oder fachübergreifende u. andere Frührehabilitation mit neurologischer Komplexbehandlung des akuten Schlaganfalls | D117: 3.083 | F117: 23.6 | I117: 35 | J117: 0.09 | K117: 0.124 | N117: 1.3765
A118: B42B | B118: A | C118: Frührehabilitation bei Krankheiten und Störungen des Nervensystems bis 27 Tage ohne neurologische Komplexbehandlung des akuten Schlaganfalls | D118: 2.424 | F118: 20.8 | I118: 30 | J118: 0.08 | K118: 0.109 | N118: 1.256
A119: B44A | B119: A | C119: Geriatrische frührehabilitative Komplexbehandlung bei Krankheiten und Störungen des Nervensystems mit neurologischer Komplexbehandlung oder anderer neurologischer Komplexbehandlung des akuten Schlaganfalls bei schwerer motorischer Funktionseinschränkung | D119: 2.276 | F119: 23.9 | I119: 35 | J119: 0.066 | K119: 0.089 | N119: 1.0262
A120: B44B | B120: A | C120: Geriatrische frührehabilitative Komplexbehandlung bei Krankheiten und Störungen des Nervensystems mit anderer neurologischer Komplexbehandlung des akuten Schlaganfalls oder schwerer motorischer Funktionseinschränkung | D120: 1.514 | F120: 20.1 | I120: 30 | J120: 0.052 | K120: 0.071 | N120: 0.8835
A121: B44C | B121: A | C121: Geriatrische frührehabilitative Komplexbehandlung bei Krankheiten und Störungen des Nervensystems ohne Komplexbehandlung des akuten Schlaganfalls, ohne schwere motorische Funktionseinschränkung | D121: 1.304 | F121: 18 | I121: 25 | J121: 0.05 | K121: 0.068 | N121: 0.6851
A122: B45Z | B122: A | C122: Intensivmedizinische Komplexbehandlung > 392 / 368 / 828 Aufwandspunkte bei Krankheiten und Störungen des Nervensystems | D122: 4.618 | F122: 21.1 | G122: 6 | H122: 0.643 | I122: 38 | J122: 0.213 | K122: 0.204 | M122: x | N122: 2.3839
A123: B47A | B123: A | C123: Multimodale Schmerztherapie bei Krankheiten und Störungen des Nervensystems, mindestens 14 Behandlungstage | D123: 1.314 | F123: 16 | I123: 20 | J123: 0.059 | K123: 0.077 | M123: x | N123: 0.449
A124: B47B | B124: A | C124: Multimodale Schmerztherapie bei Krankheiten und Störungen des Nervensystems, weniger als 14 Behandlungstage | D124: 0.894 | F124: 10.1 | I124: 16 | J124: 0.059 | K124: 0.08 | M124: x | N124: 0.4784
A125: B48Z | B125: A | C125: Frührehabilitation bei Multipler Sklerose und zerebellarer Ataxie, nicht akuter Para- / Tetraplegie oder anderen neurologischen Erkrankungen | D125: 1.552 | F125: 17.8 | I125: 22 | J125: 0.06 | K125: 0.082 | N125: 0.6003
A126: B60A | B126: M | C126: Nicht akute Paraplegie / Tetraplegie, mehr als ein Belegungstag | D126: 0.918 | F126: 8.6 | G126: 2 | H126: 0.3 | I126: 20 | J126: 0.074 | K126: 0.093 | N126: 0.9052
A127: B60B | B127: M | C127: Nicht akute Paraplegie / Tetraplegie, ein Belegungstag | D127: 0.203 | F127: 1 | N127: 1.1388
A128: B61A | B128: M | C128: Bestimmte akute Erkrankungen und Verletzungen des Rückenmarks mit komplexem Eingriff, weniger als 14 Belegungstage, wegverlegt | D128: 3.573 | F128: 8.3 | G128: 2 | H128: 0.548 | I128: 15 | J128: 0.139 | L128: x | N128: 2.0341
A129: B63Z | B129: M | C129: Demenz und andere chronische Störungen der Hirnfunktion | D129: 0.599 | F129: 6 | G129: 1 | H129: 0.375 | I129: 14 | J129: 0.069 | K129: 0.085 | N129: 0.8472
A130: B66A | B130: M | C130: Neubildungen des Nervensystems mit äußerst schweren CC, mehr als ein Belegungstag, Alter < 10 Jahre oder mit komplizierender Konstellation | D130: 1.903 | F130: 11.8 | G130: 3 | H130: 0.447 | I130: 24 | J130: 0.152 | K130: 0.14 | M130: x | N130: 1.7513
A131: B66B | B131: M | C131: Neubildungen des Nervensystems mit äußerst schweren CC, mehr als ein Belegungstag, Alter > 9 Jahre, ohne komplizierende Konstellation | D131: 1.359 | F131: 12.3 | G131: 3 | H131: 0.333 | I131: 26 | J131: 0.077 | K131: 0.1 | M131: x | N131: 1.2324
A132: B66C | B132: M | C132: Neubildungen des Nervensystems, ein Belegungstag oder ohne äußerst schwere CC, Alter < 16 Jahre | D132: 0.623 | F132: 3.3 | G132: 1 | H132: 0.282 | I132: 7 | J132: 0.174 | K132: 0.134 | M132: x | N132: 1.9058
A133: B66D | B133: M | C133: Neubildungen des Nervensystems, ein Belegungstag oder ohne äußerst schwere CC, Alter > 15 Jahre | D133: 0.627 | F133: 5.6 | G133: 1 | H133: 0.385 | I133: 14 | J133: 0.077 | K133: 0.092 | M133: x | N133: 0.9371
A134: B67A | B134: M | C134: Morbus Parkinson mit äußerst schweren CC oder schwerster Beeinträchtigung | D134: 1.086 | F134: 11.8 | G134: 3 | H134: 0.266 | I134: 23 | J134: 0.064 | K134: 0.084 | N134: 1.0892
A135: B67B | B135: M | C135: Morbus Parkinson ohne äußerst schwere CC, ohne schwerste Beeinträchtigung | D135: 0.76 | F135: 8.4 | G135: 2 | H135: 0.249 | I135: 17 | J135: 0.063 | K135: 0.08 | N135: 0.7678
A136: B68A | B136: M | C136: Multiple Sklerose und zerebellare Ataxie mit äußerst schweren CC, mehr als ein Belegungstag | D136: 1.649 | F136: 16.6 | G136: 5 | H136: 0.269 | I136: 35 | J136: 0.069 | K136: 0.091 | N136: 1.1824
A137: B68B | B137: M | C137: Multiple Sklerose und zerebellare Ataxie, ein Belegungstag oder ohne äußerst schwere CC, Alter < 16 Jahre | D137: 0.736 | F137: 5 | G137: 1 | H137: 0.513 | I137: 12 | J137: 0.143 | K137: 0.119 | N137: 1.2083
A138: B68C | B138: M | C138: Multiple Sklerose und zerebellare Ataxie, ein Belegungstag oder ohne äußerst schwere CC, Alter > 15 Jahre, mit komplexer Diagnose | D138: 0.733 | F138: 5.8 | G138: 1 | H138: 0.529 | I138: 14 | J138: 0.087 | K138: 0.106 | N138: 0.6547
A139: B68D | B139: M | C139: Multiple Sklerose und zerebellare Ataxie, ein Belegungstag oder ohne äußerst schwere CC, Alter > 15 Jahre, ohne komplexe Diagnose | D139: 0.567 | F139: 6.1 | G139: 1 | H139: 0.395 | I139: 14 | J139: 0.064 | K139: 0.079 | N139: 0.6521
A140: B69A | B140: M | C140: Transitorische ischämische Attacke (TIA) und extrakranielle Gefäßverschlüsse mit neurologischer Komplexbehandlung des akuten Schlaganfalls, mehr als 72 Stunden | D140: 0.949 | F140: 5.7 | I140: 11 | J140: 0.115 | K140: 0.14 | N140: 1.5622
A141: B69B | B141: M | C141: Transitorische ischämische Attacke (TIA) und extrakranielle Gefäßverschlüsse mit neurologischer Komplexbehandlung des akuten Schlaganfalls, bis 72 Stunden, mit äußerst schweren CC | D141: 1.201 | F141: 8.8 | G141: 2 | H141: 0.386 | I141: 19 | J141: 0.092 | K141: 0.118 | N141: 1.2006
A142: B69C | B142: M | C142: Transitorische ischämische Attacke (TIA) und extrakranielle Gefäßverschlüsse mit neurol. Komplexbehandlung des akuten Schlaganfalls, bis 72 Std., ohne äußerst schw. CC oder mit anderer neurol. Komplexbeh. des akuten Schlaganfalls oder mit äuß. schw. CC | D142: 0.736 | F142: 4.4 | G142: 1 | H142: 0.322 | I142: 9 | J142: 0.115 | K142: 0.134 | N142: 1.2289
A143: B69D | B143: M | C143: Transitorische ischämische Attacke (TIA) und extrakranielle Gefäßverschlüsse ohne neurologische Komplexbehandlung des akuten Schlaganfalls, ohne andere neurologische Komplexbehandlung des akuten Schlaganfalls, ohne äußerst schwere CC | D143: 0.584 | F143: 4.3 | G143: 1 | H143: 0.321 | I143: 9 | J143: 0.093 | K143: 0.108 | N143: 0.8324
A144: B70A | B144: M | C144: Apoplexie mit neurologischer Komplexbehandlung des akuten Schlaganfalls, mehr als 72 Stunden, mit komplizierender Diagnose | D144: 1.725 | F144: 11 | G144: 3 | H144: 0.426 | I144: 22 | J144: 0.108 | L144: x | N144: 1.5494
A145: B70B | B145: M | C145: Apoplexie mit neurologischer Komplexbehandlung des akuten Schlaganfalls, mehr als 72 Stunden, ohne komplizierende Diagnose oder mit komplexem zerebrovaskulären Vasospasmus oder intensivmedizinischer Komplexbehandlung > 196 / 184 / - Aufwandspunkte | D145: 1.379 | F145: 8.3 | G145: 2 | H145: 0.453 | I145: 18 | J145: 0.114 | L145: x | N145: 1.4702
A146: B70C | B146: M | C146: Apoplexie ohne komplexen zerebrovask. Vasospasmus, mit neurol. Komplexbeh. des akuten Schlaganfalls bis 72 Std., mit komplizierender Diagnose oder systemischer Thrombolyse oder mit anderer neurol. Komplexbeh. des akuten Schlaganfalls, mehr als 72 Std. | D146: 1.159 | F146: 7.3 | G146: 1 | H146: 0.577 | I146: 15 | J146: 0.11 | K146: 0.138 | N146: 1.253
A147: B70D | B147: M | C147: Apoplexie ohne komplexen zerebrovaskulären Vasospasmus, ohne komplizierende Diagnose oder systemische Thrombolyse, mit neurol. Komplexbeh. des akuten Schlaganfalls bis 72 Stunden oder mit anderer neurol. Komplexbeh. des akuten Schlaganfalls bis 72 Std. | D147: 0.931 | F147: 6.3 | G147: 1 | H147: 0.457 | I147: 14 | J147: 0.101 | K147: 0.125 | N147: 1.142
A148: B70E | B148: M | C148: Apoplexie ohne neurologische Komplexbehandlung des akuten Schlaganfalls, ohne andere neurol. Komplexbeh. des akuten Schlaganfalls, mehr als 72 Stunden, ohne komplexen zerebrovask. Vasospasmus, mit komplizierender Diagnose oder systemischer Thrombolyse | D148: 1.131 | F148: 8.5 | G148: 2 | H148: 0.372 | I148: 18 | J148: 0.091 | K148: 0.117 | N148: 1.2422
A149: B70F | B149: M | C149: Apoplexie ohne neurologische Komplexbehandlung des akuten Schlaganfalls, ohne andere neurologische Komplexbehandlung des akuten Schlaganfalls, ohne komplexen zerebrovaskulären Vasospasmus, ohne komplizierende Diagnose, ohne systemische Thrombolyse | D149: 0.79 | F149: 7.4 | I149: 16 | J149: 0.073 | K149: 0.091 | N149: 0.8678
A150: B70G | B150: M | C150: Apoplexie mit neurologischer Komplexbehandlung des akuten Schlaganfalls oder mit anderer neurologischer Komplexbehandlung des akuten Schlaganfalls, verstorben < 4 Tage nach Aufnahme | D150: 0.722 | F150: 2.6 | L150: x | N150: 2.4001
A151: B70H | B151: M | C151: Apoplexie ohne neurologische Komplexbehandlung des akuten Schlaganfalls, ohne andere neurologische Komplexbehandlung des akuten Schlaganfalls, verstorben < 4 Tage nach Aufnahme | D151: 0.592 | F151: 2.4 | L151: x | N151: 2.3875
A152: B70I | B152: M | C152: Apoplexie, ein Belegungstag | D152: 0.286 | F152: 1 | N152: 1.3192
A153: B71A | B153: M | C153: Erkrankungen an Hirnnerven und peripheren Nerven mit komplexer Diagnose oder Komplexbehandlung der Hand, mehr als ein Belegungstag, mit äußerst schweren CC oder bei Para- / Tetraplegie mit äußerst schweren oder schweren CC | D153: 3.702 | F153: 22 | G153: 6 | H153: 0.521 | I153: 36 | J153: 0.116 | K153: 0.159 | N153: 1.4373
A154: B71B | B154: M | C154: Erkrankungen an Hirnnerven und peripheren Nerven mit komplexer Diagnose, mit schweren CC oder bei Para- / Tetraplegie oder mit Komplexbehandlung der Hand oder ohne komplexe Diagnose, mit äußerst schweren oder schweren CC, bei Para- / Tetraplegie | D154: 1.453 | F154: 12 | G154: 3 | H154: 0.359 | I154: 24 | J154: 0.084 | K154: 0.11 | N154: 0.902
A155: B71C | B155: M | C155: Erkrankungen an Hirnnerven und peripheren Nerven ohne Komplexbehandlung der Hand oder mit kompl. Diagnose, ohne schw. CC oder außer bei Para- / Tetraplegie oder ohne komplexe Diagnose, mit äußerst schweren oder schweren CC, außer bei Para- / Tetraplegie | D155: 1.002 | F155: 9.9 | G155: 2 | H155: 0.324 | I155: 21 | J155: 0.069 | K155: 0.089 | N155: 0.7257
A156: B71D | B156: M | C156: Erkrankungen an Hirnnerven und peripheren Nerven ohne komplexe Diagnose, ohne Komplexbehandlung der Hand, ohne äußerst schwere oder schwere CC | D156: 0.528 | F156: 4.5 | G156: 1 | H156: 0.309 | I156: 11 | J156: 0.081 | K156: 0.094 | N156: 0.659
A157: B72A | B157: M | C157: Infektion des Nervensystems, Alter < 16 Jahre | D157: 0.933 | F157: 6.9 | G157: 1 | H157: 0.717 | I157: 16 | J157: 0.131 | K157: 0.114 | N157: 1.4883
A158: B72B | B158: M | C158: Infektion des Nervensystems, mehr als ein Belegungstag | D158: 1.102 | F158: 9.8 | G158: 2 | H158: 0.363 | I158: 22 | J158: 0.078 | K158: 0.1 | N158: 0.8126
A159: B73Z | B159: M | C159: Virusmeningitis oder Infektion des Nervensystems, Alter > 15 Jahre oder ein Belegungstag | D159: 0.663 | F159: 5.5 | G159: 1 | H159: 0.42 | I159: 12 | J159: 0.084 | K159: 0.1 | N159: 0.8083
A160: B74Z | B160: M | C160: Komplexbehandlung bei multiresistenten Erregern bei Krankheiten und Störungen des Nervensystems | D160: 3.095 | F160: 31.1 | I160: 49 | J160: 0.069 | K160: 0.094 | N160: 1.281
A161: B75Z | B161: M | C161: Fieberkrämpfe | D161: 0.428 | F161: 2.8 | G161: 1 | H161: 0.208 | I161: 6 | J161: 0.105 | K161: 0.111 | N161: 1.2761
A162: B76B | B162: M | C162: Anfälle, ohne komplexe Diagnostik und Therapie, mehr als ein Belegungstag mit äußerst schweren CC oder Alter < 3 Jahre oder komplexer Diagnose oder EEG, Alter < 1 Jahr, mehr als ein Belegungstag oder mit bestimmter Diagnose, mit komplexer Diagnose | D162: 1.529 | F162: 11.5 | G162: 3 | H162: 0.375 | I162: 25 | J162: 0.09 | K162: 0.119 | N162: 1.5338
A163: B76C | B163: M | C163: Anfälle, ohne komplexe Diagnostik und Therapie, mehr als ein Belegungstag, mit schweren CC, Alter > 2 Jahre, ohne komplexe Diagnose oder EEG, Alter < 1 Jahr, mehr als ein Belegungstag oder mit bestimmter Diagnose, ohne komplexe Diagnose | D163: 0.985 | F163: 8 | G163: 2 | H163: 0.322 | I163: 18 | J163: 0.12 | K163: 0.107 | N163: 1.2446
A164: B76D | B164: M | C164: Anfälle, Alter < 6 Jahre oder komplizierende Diagnose oder EEG, mehr als ein Belegungstag | D164: 0.564 | F164: 4 | G164: 1 | H164: 0.323 | I164: 9 | J164: 0.095 | K164: 0.109 | N164: 1.1753
A165: B76E | B165: M | C165: Anfälle, ein Belegungstag oder ohne komplexe Diagnostik und Therapie, ohne äußerst schwere oder schwere CC, ohne EEG, ohne bestimmte Diagnose, Alter > 5 Jahre, ohne komplexe Diagnose | D165: 0.506 | F165: 3.9 | G165: 1 | H165: 0.285 | I165: 9 | J165: 0.089 | K165: 0.101 | N165: 0.9838
A166: B77Z | B166: M | C166: Kopfschmerzen | D166: 0.448 | F166: 3.3 | G166: 1 | H166: 0.221 | I166: 7 | J166: 0.094 | K166: 0.103 | N166: 0.7566
A167: B78A | B167: M | C167: Intrakranielle Verletzung, Alter < 6 Jahre oder mit komplizierender Diagnose | D167: 0.861 | F167: 6.2 | G167: 1 | H167: 0.544 | I167: 15 | J167: 0.095 | K167: 0.117 | N167: 1.3189
A168: B78B | B168: M | C168: Intrakranielle Verletzung, Alter > 5 Jahre, ohne komplizierende Diagnose | D168: 0.68 | F168: 5.4 | G168: 1 | H168: 0.418 | I168: 13 | J168: 0.087 | K168: 0.104 | N168: 1.1697
A169: B79Z | B169: M | C169: Schädelfrakturen, Somnolenz, Sopor | D169: 0.525 | F169: 3.7 | G169: 1 | H169: 0.3 | I169: 8 | J169: 0.097 | K169: 0.109 | N169: 1.3516
A170: B80Z | B170: M | C170: Andere Kopfverletzungen | D170: 0.293 | F170: 2.3 | G170: 1 | H170: 0.11 | I170: 5 | J170: 0.088 | K170: 0.087 | N170: 1.0796
A171: B81A | B171: M | C171: Andere Erkrankungen des Nervensystems mit komplexer Diagnose oder bestimmter aufwendiger / hochaufwendiger Behandlung | D171: 0.963 | F171: 6.7 | G171: 1 | H171: 0.638 | I171: 16 | J171: 0.097 | K171: 0.121 | N171: 1.1427
A172: B81B | B172: M | C172: Andere Erkrankungen des Nervensystems ohne komplexe Diagnose, ohne bestimmte aufwendige / hochaufwendige Behandlung | D172: 0.591 | F172: 5.1 | G172: 1 | H172: 0.347 | I172: 12 | J172: 0.08 | K172: 0.094 | N172: 0.7652
A173: B82Z | B173: M | C173: Andere Erkrankungen an peripheren Nerven | D173: 0.348 | F173: 3.1 | G173: 1 | H173: 0.162 | I173: 7 | J173: 0.076 | K173: 0.082 | N173: 0.6832
A174: B84Z | B174: M | C174: Vaskuläre Myelopathien | D174: 1.28 | F174: 9.4 | G174: 2 | H174: 0.419 | I174: 19 | J174: 0.093 | K174: 0.12 | N174: 0.9909
A175: B85A | B175: M | C175: Degenerative Krankheiten des Nervensystems mit hochkomplexer Diagnose oder mit äußerst schweren oder schweren CC, mehr als ein Belegungstag, mit komplexer Diagnose oder bestimmter aufwendiger / hochaufwendiger Behandlung | D175: 1.716 | F175: 14.9 | G175: 4 | H175: 0.337 | I175: 30 | J175: 0.08 | K175: 0.106 | N175: 1.2148
A176: B85B | B176: M | C176: Degenerative Krankheiten des Nervensystems mit äußerst schweren oder schweren CC, mehr als ein Belegungstag, ohne komplexe Diagnose, ohne hochkomplexe Diagnose, ohne bestimmte aufwendige / hochaufwendige Behandlung | D176: 1.037 | F176: 10 | G176: 2 | H176: 0.336 | I176: 22 | J176: 0.071 | K176: 0.091 | N176: 1.0441
A177: B85C | B177: M | C177: Degenerative Krankheiten des Nervensystems ohne hochkomplexe Diagnose, ohne äußerst schwere oder schwere CC oder ein Belegungstag, mit komplexer Diagnose, zerebrale Lähmungen oder Delirium | D177: 0.665 | F177: 6.5 | G177: 1 | H177: 0.46 | I177: 15 | J177: 0.071 | K177: 0.087 | N177: 0.941
A178: B85D | B178: M | C178: Degenerative Krankheiten des Nervensystems ohne hochkomplexe Diagnose, ohne äußerst schwere oder schwere CC oder ein Belegungstag, ohne komplexe Diagnose | D178: 0.543 | F178: 4.4 | G178: 1 | H178: 0.329 | I178: 11 | J178: 0.085 | K178: 0.098 | N178: 0.8496
A179: B86Z | B179: M | C179: Rückenmarkkompression, nicht näher bezeichnet und Krankheit des Rückenmarkes, nicht näher bezeichnet | D179: 0.71 | F179: 6.1 | G179: 1 | H179: 0.348 | I179: 14 | J179: 0.081 | K179: 0.098 | N179: 0.7192
A180: MDC 02 Krankheiten und Störungen des Auges
A181: C01A | B181: O | C181: Komplexer Eingriff bei penetrierenden Augenverletzungen oder bestimmte Orbitotomie | D181: 1.408 | F181: 6.6 | G181: 1 | H181: 0.272 | I181: 14 | J181: 0.083 | K181: 0.072 | N181: 0.7402
A182: C01B | B182: O | C182: Andere Eingriffe bei penetrierenden Augenverletzungen oder Amnionmembrantransplantation oder bestimmte Biopsie | D182: 0.806 | F182: 5.7 | G182: 1 | H182: 0.414 | I182: 14 | J182: 0.056 | K182: 0.068 | N182: 0.7836
A183: C02Z | B183: O | C183: Enukleationen und Eingriffe an der Orbita oder Strahlentherapie bei bösartiger Neubildung | D183: 1.44 | F183: 6.3 | G183: 1 | H183: 0.333 | I183: 14 | J183: 0.155 | K183: 0.091 | M183: x | N183: 0.8135
A184: C03A | B184: O | C184: Eingriffe Retina m. PPV, m. ECCE od. b. BNB Auge, m. best. Eingr. Retina od. Entf. Augapf. m. Impl. od. Endopht. od. Eingr. Orbita b. BNB Auge od. best. Eingr. Retina od. ECCE od. kompl. Eingr. od. BNB, Alter < 16 od. Enukl. u. Eingr. Orbita auß. b. BNB | D184: 1.084 | F184: 5.5 | G184: 1 | H184: 0.221 | I184: 12 | J184: 0.057 | K184: 0.069 | N184: 0.8075
A185: C03B | B185: O | C185: Eingriffe an der Retina mit Pars-plana-Vitrektomie, mit extrakapsulärer Extraktion der Linse (ECCE) oder bestimmtem Eingriff an der Retina oder komplexem Eingriff am Auge oder bei bösartiger Neubildung des Auges, Alter > 15 Jahre | D185: 0.812 | F185: 3.6 | G185: 1 | H185: 0.176 | I185: 7 | J185: 0.055 | K185: 0.062 | N185: 0.7184
A186: C03C | B186: O | C186: Eingriffe an der Retina mit Pars-plana-Vitrektomie, ohne extrakapsuläre Extraktion der Linse (ECCE), ohne bestimmten Eingriff an der Retina, ohne komplexen Eingriff am Auge, außer bei bösartiger Neubildung des Auges | D186: 0.671 | F186: 3.2 | G186: 1 | H186: 0.173 | I186: 7 | J186: 0.059 | K186: 0.064 | N186: 0.7623
A187: C04A | B187: O | C187: Hornhauttransplantation mit extrakapsulärer Extraktion der Linse (ECCE) oder Amnionmembrantransplantation oder komplexem Eingriff oder Pars-plana-Vitrektomie oder Alter < 16 Jahre | D187: 1.542 | F187: 6 | G187: 1 | H187: 0.237 | I187: 13 | J187: 0.154 | K187: 0.068 | M187: x | N187: 0.688
A188: C04B | B188: O | C188: Hornhauttransplantation ohne extrakapsuläre Extraktion der Linse (ECCE), ohne Amnionmembrantransplantation, ohne komplexen Eingriff, ohne Pars-plana-Vitrektomie, Alter > 15 Jahre | D188: 1.431 | F188: 5.7 | G188: 1 | H188: 0.23 | I188: 12 | J188: 0.147 | K188: 0.069 | M188: x | N188: 0.6892
A189: C05Z | B189: O | C189: Dakryozystorhinostomie | D189: 0.654 | F189: 3 | G189: 1 | H189: 0.227 | I189: 6 | J189: 0.056 | K189: 0.061 | N189: 0.7588
A190: C06Z | B190: O | C190: Komplexe Eingriffe bei Glaukom | D190: 0.765 | F190: 4.3 | G190: 1 | H190: 0.143 | I190: 10 | J190: 0.053 | K190: 0.061 | N190: 0.6665
A191: C07A | B191: O | C191: Andere Eingriffe bei Glaukom mit extrakapsulärer Extraktion der Linse (ECCE) oder komplexem Eingriff am Auge oder bestimmten Eingriffen bei Glaukom oder Alter < 6 Jahre | D191: 0.582 | F191: 2.7 | G191: 1 | H191: 0.115 | I191: 6 | J191: 0.06 | K191: 0.062 | N191: 0.7796
A192: C07B | B192: O | C192: Andere Eingriffe bei Glaukom ohne extrakapsuläre Extraktion der Linse (ECCE), ohne komplexen Eingriff am Auge, ohne bestimmte Eingriffe bei Glaukom, Alter > 5 Jahre | D192: 0.4 | F192: 3.4 | G192: 1 | H192: 0.175 | I192: 8 | J192: 0.054 | K192: 0.06 | N192: 0.7179
A193: C08A | B193: O | C193: Beidseitige extrakapsuläre Extraktion der Linse (ECCE) oder extrakapsuläre Extraktion der Linse oder bestimmte andere Eingriffe am Auge bei angeborener Fehlbildung der Linse | D193: 0.709 | F193: 3.3 | G193: 1 | H193: 0.295 | I193: 7 | J193: 0.061 | K193: 0.067 | N193: 0.8506
A194: C08B | B194: O | C194: Extrakapsuläre Extraktion der Linse (ECCE) ohne angeborene Fehlbildung der Linse oder bestimmte Eingriffe am Auge | D194: 0.431 | F194: 2.5 | G194: 1 | H194: 0.096 | I194: 5 | J194: 0.057 | K194: 0.058 | N194: 0.8547
A195: C10A | B195: O | C195: Eingriffe an den Augenmuskeln mit erhöhtem Aufwand | D195: 0.729 | F195: 2.6 | G195: 1 | H195: 0.186 | I195: 5 | J195: 0.065 | K195: 0.067 | N195: 1.2308
A196: C10B | B196: O | C196: Eingriffe an den Augenmuskeln ohne erhöhten Aufwand, mit komplexem Eingriff oder Alter < 6 Jahre | D196: 0.619 | F196: 2.4 | G196: 1 | H196: 0.147 | I196: 4 | J196: 0.092 | K196: 0.065 | N196: 1.218
A197: C10C | B197: O | C197: Eingriffe an den Augenmuskeln ohne erhöhten Aufwand, ohne komplexen Eingriff, Alter > 5 Jahre | D197: 0.561 | F197: 2.3 | G197: 1 | H197: 0.111 | I197: 4 | J197: 0.067 | K197: 0.067 | N197: 1.1596
A198: C12Z | B198: O | C198: Andere Rekonstruktionen der Augenlider | D198: 0.728 | F198: 3.5 | G198: 1 | H198: 0.329 | I198: 8 | J198: 0.06 | K198: 0.067 | N198: 0.7203
A199: C13Z | B199: O | C199: Eingriffe an Tränendrüse und Tränenwegen | D199: 0.483 | F199: 2.9 | G199: 1 | H199: 0.157 | I199: 7 | J199: 0.063 | K199: 0.067 | N199: 0.8816
A200: C14Z | B200: O | C200: Andere Eingriffe am Auge | D200: 0.441 | F200: 2.8 | G200: 1 | H200: 0.139 | I200: 6 | J200: 0.062 | K200: 0.065 | N200: 0.8397
A201: C15Z | B201: O | C201: Andere Eingriffe an der Retina | D201: 0.68 | F201: 3.4 | G201: 1 | H201: 0.243 | I201: 7 | J201: 0.055 | K201: 0.061 | N201: 0.7628
... 1068 more rows

Sheet HA2022A (hidden)
A1: Anlage 1 | O1: aG-DRG-Version 2022 und Pflegeerlöskatalog 2022
A2: Fallpauschalen-Katalog und Pflegeerlöskatalog
A3: Teil d) Bewertungsrelationen mit gezielter Absenkung in Abhängigkeit der Median-Fallzahl bei Versorgung durch Hauptabteilungen
A5: DRG | B5: Parti- tion | C5: Bezeichnung | D5: Bewertungsrelation bei Hauptabteilung | E5: Bewertungsrelation bei Hauptabteilung und Beleghebamme | F5: Mittlere Verweil- dauer 1) | G5: Untere Grenz-verweildauer: Erster Tag mit Abschlag 2), 5) | H5: Untere Grenz-verweildauer: Bewertungs- relation pro Tag | I5: Obere Grenz-verweildauer: Erster Tag mit zusätzlichem Entgelt 3), 5) | J5: Obere Grenz-verweildauer: Bewertungs- relation pro Tag | K5: Externe Verlegung Abschlag pro Tag (Bewertungsrelation) | L5: Verlegungs- fallpauschale | M5: Ausnahme von Wiederaufnahme 4) | N5: Median-Fallzahl | O5: Pflegeerlös Bewertungs-relation pro Tag
A6: 1 | B6: 2 | C6: 3 | D6: 4 | E6: 5 | F6: 6 | G6: 7 | H6: 8 | I6: 9 | J6: 10 | K6: 11 | L6: 12 | M6: 13 | N6: 14 | O6: 15
A7: MDC 08 Krankheiten und Störungen an Muskel-Skelett-System und Bindegewebe
A8: I68D | B8: M | C8: Nicht operativ behandelte Erkrankungen und Verletzungen WS, > 1 Belegungstag oder andere Femurfraktur, außer bei Diszitis oder infektiöser Spondylopathie, ohne Kreuzbeinfraktur, ohne best. mäßig aufw., aufw. od. hochaufw. Beh., mit Wirbelsäulenfraktur | D8: 0.494 | F8: 5.5 | G8: 1 | H8: 0.262 | I8: 12 | J8: 0.067 | K8: 0.081 | N8: 27 | O8: 0.7501
A9: I68E | B9: M | C9: Nicht operativ behandelte Erkrankungen und Verletzungen WS, > 1 Belegungstag oder andere Femurfraktur, außer bei Diszitis oder infektiöser Spondylopathie, ohne Kreuzbeinfraktur, ohne best. mäßig aufw., aufw. od. hochaufw. Beh., oh. Wirbelsäulenfraktur | D9: 0.401 | F9: 4.1 | G9: 1 | H9: 0.212 | I9: 10 | J9: 0.069 | K9: 0.079 | N9: 140 | O9: 0.6336
A10: I68F | B10: M | C10: Nicht operativ behandelte Erkrankungen und Verletzungen im Wirbelsäulenbereich, ein Belegungstag oder Prellung am Oberschenkel | D10: 0.184 | F10: 1 | N10: 40 | O10: 1.0087

Sheet BA2022 (hidden)
A1: Anlage 1 | P1: aG-DRG-Version 2022 und Pflegeerlöskatalog 2022
A2: Fallpauschalen-Katalog und Pflegeerlöskatalog
A3: Teil b) Bewertungsrelationen bei Versorgung durch Belegabteilungen
A5: DRG | B5: Parti- tion | C5: Bezeichnung 6) | D5: Bewertungsrelation bei Belegoperateur | E5: Bewertungsrelation bei Belegoperateur und Beleganästhesist | F5: Bewertungsrelation bei Belegoperateur und Beleghebamme | G5: Bewertungsrelation bei Belegoperateur, Beleganästhesist und Beleghebamme | H5: Mittlere Verweil- dauer 1) | I5: Untere Grenz-verweildauer: Erster Tag mit Abschlag 2), 5) | J5: Untere Grenz-verweildauer: Bewertungs- relation pro Tag | K5: Obere Grenz-verweildauer: Erster Tag mit zusätzlichem Entgelt 3), 5) | L5: Obere Grenz-verweildauer: Bewertungs- relation pro Tag | M5: Externe Verlegung Abschlag pro Tag (Bewertungsrelation) | N5: Verlegungs- fallpauschale | O5: Ausnahme von Wiederaufnahme 4) | P5: Pflegeerlös Bewertungs-relation pro Tag
A6: 1 | B6: 2 | C6: 3 | D6: 4 | E6: 5 | F6: 6 | G6: 7 | H6: 8 | I6: 9 | J6: 10 | K6: 11 | L6: 12 | M6: 13 | N6: 14 | O6: 15 | P6: 16
A7: Prä-MDC
A8: A13D | B8: O | C8: Beatmung > 95 Stunden mit komplexer OR-Prozedur, Alter > 5 Jahre oder mit IntK > - / 828 / - Punkte oder kompl. OR-Prozedur od. mit best. OR-Prozedur od. kompliz. Konst. od. mit IntK > 588 / 552 / 552 Punkte od. Alter < 16 Jahre bei bösartiger Neubildung | D8: 5.716 | E8: 5.528 | H8: 19.4 | I8: 5 | J8: 0.682 | K8: 37 | L8: 0.148 | N8: x | O8: x | P8: 2.5332
A9: A13E | B9: O | C9: Beatmung > 95 Stunden, ohne komplexe OR-Prozedur, mit bestimmter OR-Prozedur oder komplizierender Konstellation oder mit intensivmedizinischer Komplexbehandlung > 588 / 552 / 552 Aufwandspunkte und < 1177 / 829 / 1105 Aufwandspunkte od. Alter < 16 Jahre | D9: 4.625 | E9: 4.547 | H9: 18.5 | I9: 5 | J9: 0.672 | K9: 36 | L9: 0.153 | N9: x | O9: x | P9: 2.7245
A10: A13F | B10: O | C10: Beatmung > 95 Stunden, ohne bestimmte OR-Prozedur, ohne komplizierende Konstellation, ohne intensivmed. Komplexbeh. > 588 / 552 / 552 Aufwandspunkte, Alter > 15 Jahre, mit komplexer Diagnose oder Prozedur od. intensivmed. Komplexbeh. > - / 368 / - Punkte | D10: 3.28 | E10: 3.259 | H10: 12.3 | I10: 3 | J10: 0.754 | K10: 26 | L10: 0.172 | M10: 0.227 | O10: x | P10: 3.0307
A11: A13G | B11: O | C11: Beatmung > 95 Stunden, mit bestimmter OR-Prozedur oder kompliz. Konstellation, mit äußerst schweren CC, verstorben oder verlegt < 9 Tage oder ohne best. OR-Proz., ohne kompliz. Konst., Alter > 15 J., ohne kompliz. Diagnose od. Prozedur, mit äuß. schw. CC | D11: 3.116 | E11: 3.089 | H11: 15.7 | I11: 4 | J11: 0.581 | K11: 32 | L11: 0.129 | M11: 0.174 | O11: x | P11: 2.5491
A12: A13H | B12: O | C12: Beatmung > 95 Stunden mit bestimmter OR-Prozedur oder kompliz. Konstellation, ohne äußerst schwere CC, verstorben oder verlegt < 9 Tage oder ohne best. OR-Proz., ohne kompliz. Konst., Alter > 15 J., ohne kompliz. Diagnose oder Proz., ohne äuß. schw. CC | D12: 2.314 | E12: 2.305 | H12: 11.1 | I12: 3 | J12: 0.556 | K12: 25 | L12: 0.14 | M12: 0.184 | O12: x | P12: 2.8208
A13: A15C | B13: O | C13: Knochenmarktransplantation / Stammzelltransfusion, autogen, außer bei Plasmozytom, Alter > 17 Jahre, ohne bestimmte Entnahme oder bei Plasmozytom, mit bestimmter Entnahme oder intensivmedizinischer Komplexbehandlung > 392 / 368 / 368 Aufwandspunkte | D13: 5.505 | E13: 5.504 | H13: 23.3 | I13: 7 | J13: 0.499 | K13: 35 | L13: 0.201 | N13: x | O13: x | P13: 1.2432
A14: A15D | B14: O | C14: Knochenmarktransplantation / Stammzelltransfusion, autogen, bei Plasmozytom, ohne bestimmte Entnahme | D14: 3.701 | E14: 3.701 | H14: 19.2 | I14: 5 | J14: 0.388 | K14: 27 | L14: 0.161 | N14: x | O14: x | P14: 1.1352
A15: A42C | B15: A | C15: Stammzellentnahme bei Eigenspender ohne Chemotherapie, Alter > 15 Jahre, ohne schwerste CC, ohne Sepsis, ohne komplizierende Konstellation | D15: 0.731 | E15: 0.73 | H15: 4.9 | I15: 1 | J15: 0.426 | K15: 11 | L15: 0.13 | M15: 0.108 | O15: x | P15: 0.8365
A16: A60C | B16: M | C16: Versagen und Abstoßung eines Organtransplantates, mehr als ein Belegungstag, ohne Entfernung eines Organtransplantates, ohne komplexe OR-Prozedur, ohne äußerst schwere CC, ohne komplizierende Konstellation, Alter > 15 Jahre | D16: 0.522 | E16: 0.515 | H16: 6 | K16: 16 | L16: 0.083 | N16: x | O16: x | P16: 0.7218
A17: A60D | B17: M | C17: Versagen und Abstoßung eines Organtransplantates, ein Belegungstag | D17: 0.161 | E17: 0.16 | H17: 1 | O17: x | P17: 1.1301
A18: MDC 01 Krankheiten und Störungen des Nervensystems
A19: B04C | B19: O | C19: Eingriffe an den extrakraniellen Gefäßen, ohne mehrzeitige Eingriffe, ohne beidseitige Eingriffe, ohne äußerst schwere CC | D19: 1.098 | E19: 1.007 | H19: 5.6 | I19: 1 | J19: 0.221 | K19: 11 | L19: 0.064 | N19: x | P19: 0.9434
A20: B05Z | B20: O | C20: Dekompression bei Karpaltunnelsyndrom oder kleine Eingriffe an den Nerven | D20: 0.374 | E20: 0.327 | H20: 2.1 | I20: 1 | J20: 0.095 | K20: 5 | L20: 0.049 | M20: 0.047 | P20: 0.8897
A21: B09Z | B21: O | C21: Andere Eingriffe am Schädel | D21: 0.881 | E21: 0.799 | H21: 4.5 | I21: 1 | J21: 0.396 | K21: 11 | L21: 0.058 | M21: 0.068 | P21: 0.8391
A22: B15Z | B22: O | C22: Strahlentherapie bei Krankheiten und Störungen des Nervensystems, Bestrahlungen an mindestens 8 Tagen | D22: 2.031 | E22: 2.028 | H22: 18.6 | I22: 5 | J22: 0.332 | K22: 34 | L22: 0.106 | N22: x | O22: x | P22: 0.8265
A23: B16A | B23: O | C23: Strahlentherapie bei Krankheiten und Störungen des Nervensystems, mehr als ein Belegungstag, Bestrahlungen an mindestens 5 Tagen | D23: 1.101 | E23: 1.1 | H23: 9.5 | I23: 2 | J23: 0.361 | K23: 21 | L23: 0.114 | M23: 0.103 | O23: x | P23: 0.828
A24: B16B | B24: O | C24: Strahlentherapie bei Krankheiten und Störungen des Nervensystems, mehr als ein Belegungstag, Bestrahlungen an weniger als 5 Tagen | D24: 0.642 | E24: 0.64 | H24: 4.9 | K24: 13 | L24: 0.09 | M24: 0.107 | O24: x | P24: 0.9003
A25: B17B | B25: O | C25: Eingriffe an peripheren Nerven, Hirnnerven und and. Teilen des Nervensystems oder Eingr. bei zerebr. Lähmung, Muskeldystr. od. Neurop., mit best. kompl. Eingr., Alter < 16 J. oder mit mäßig kompl. Eingr., Alter < 19 J. oder mit äuß. schw. oder schw. CC | D25: 1.443 | E25: 1.36 | H25: 9.5 | I25: 2 | J25: 0.292 | K25: 23 | L25: 0.099 | M25: 0.084 | P25: 0.9994
A26: B17C | B26: O | C26: Eingriffe an peripheren Nerven, Hirnnerven und anderen Teilen des Nervensystems oder Eingriff bei zerebraler Lähmung, Muskeldystrophie oder Neuropathie, mit komplexem Eingriff | D26: 1.3 | E26: 1.138 | H26: 4.4 | I26: 1 | J26: 0.152 | K26: 9 | L26: 0.049 | M26: 0.057 | P26: 0.7699
A27: B17D | B27: O | C27: Eingriffe an peripheren Nerven, Hirnnerven und anderen Teilen des Nervensystems oder Eingriff bei zerebraler Lähmung, Muskeldystrophie oder Neuropathie, mit mäßig komplexem Eingriff oder best. Eingriff und Alter < 19 J. oder schw. CC oder best. Diagnose | D27: 0.799 | E27: 0.724 | H27: 3.5 | I27: 1 | J27: 0.287 | K27: 11 | L27: 0.067 | M27: 0.074 | P27: 0.7624
A28: B17E | B28: O | C28: Eingriffe an peripheren Nerven, Hirnnerven und anderen Teilen des Nervensystems oder Eingriff bei zerebraler Lähmung, Muskeldystrophie oder Neuropathie, ohne komplexe oder bestimmte Diagnose, ohne mäßig komplexen oder komplexen Eingriff | D28: 0.558 | E28: 0.49 | H28: 2.7 | I28: 1 | J28: 0.147 | K28: 6 | L28: 0.052 | M28: 0.054 | P28: 0.845
A29: B18A | B29: O | C29: Komplexe Eingriffe an Wirbelsäule und Rückenmark bei Krankheiten und Störungen des Nervensystems | D29: 3.519 | E29: 3.313 | H29: 19.6 | I29: 6 | J29: 0.285 | K29: 38 | L29: 0.072 | M29: 0.096 | P29: 1.1289
A30: B18B | B30: O | C30: Bestimmte Eingriffe an Wirbelsäule und Rückenmark bei Krankheiten und Störungen des Nervensystems außer bei bösartiger Neubildung oder Revision eines Ventrikelshuntes oder operative Eingriffe bei nicht akuter Para- / Tetraplegie | D30: 1.889 | E30: 1.747 | H30: 10.3 | I30: 2 | J30: 0.282 | K30: 23 | L30: 0.058 | M30: 0.075 | P30: 0.9253
A31: B18C | B31: O | C31: Andere Eingriffe an Wirbelsäule und Rückenmark bei Krankheiten und Störungen des Nervensystems außer bei bösartiger Neubildung | D31: 1.374 | E31: 1.259 | H31: 6.5 | I31: 1 | J31: 0.267 | K31: 15 | L31: 0.058 | M31: 0.072 | P31: 0.9887
A32: B18D | B32: O | C32: Mäßig komplexe Eingriffe an Wirbelsäule und Rückenmark bei Krankheiten und Störungen des Nervensystems außer bei bösartiger Neubildung | D32: 1.157 | E32: 1.054 | H32: 7.6 | I32: 2 | J32: 0.163 | K32: 19 | L32: 0.045 | M32: 0.057 | P32: 0.8192
A33: B19A | B33: O | C33: Implantation, Revision und Entfernung von Neurostimulatoren und Neurostimulationselektroden bei Krankheiten und Störungen des Nervensystems mit Implantation oder Wechsel eines Neurostimulators | D33: 1.12 | E33: 1.06 | H33: 3.1 | I33: 1 | J33: 0.107 | K33: 8 | L33: 0.042 | M33: 0.045 | P33: 0.8243
A34: B19B | B34: O | C34: Implantation, Revision und Entfernung von Neurostimulatoren und Neurostimulationselektroden bei Krankheiten und Störungen des Nervensystems mit Implantation oder Wechsel eines permanenten oder temporären Elektrodensystems | D34: 1.309 | E34: 1.251 | H34: 2.8 | I34: 1 | J34: 0.086 | K34: 7 | L34: 0.043 | M34: 0.045 | P34: 0.8154
A35: B19C | B35: O | C35: Implantation, Revision und Entfernung von Neurostimulatoren und Neurostimulationselektroden bei Krankheiten und Störungen des Nervensystems ohne Implantation oder Wechsel von Neurostimulatoren und Elektrodensystemen | D35: 0.713 | E35: 0.646 | H35: 3.2 | I35: 1 | J35: 0.284 | K35: 7 | L35: 0.047 | M35: 0.051 | P35: 0.8328
A36: B20B | B36: O | C36: Kraniotomie oder große WS-Operation mit komplexer Prozedur, Alter > 17 Jahre oder ohne bestimmte komplexe Prozedur, mit komplizierenden Faktoren, Alter > 15 Jahre | D36: 2.449 | E36: 2.275 | H36: 10.9 | I36: 3 | J36: 0.312 | K36: 21 | L36: 0.159 | N36: x | P36: 1.2238
A37: B20C | B37: O | C37: Kraniotomie oder große Wirbelsäulen-Operation, Alter < 3 J. oder intervent. Eingriff oder Alter < 18 J. mit großem intrakraniellen Eingriff oder mit kompl. Diagnose oder best. Eingriffe bei Trigeminusneuralgie, Alter < 16 J. od. bei bösartiger Neubildung | D37: 1.87 | E37: 1.768 | H37: 6.1 | I37: 1 | J37: 0.625 | K37: 14 | L37: 0.205 | N37: x | P37: 1.2941
A38: B20D | B38: O | C38: Kraniotomie oder große WS-OP mit komplexer Prozedur oder ohne komplexe Prozedur, Alter > 2 Jahre, mit komplexer Diagnose oder bestimmtem Eingriff bei Trigeminusneuralgie oder mit bestimmter Prozedur oder bei bösartiger Neubildung | D38: 1.734 | E38: 1.63 | H38: 7.3 | I38: 1 | J38: 0.494 | K38: 17 | L38: 0.125 | N38: x | P38: 1.1967
A39: B20E | B39: O | C39: Kraniotomie oder große Wirbelsäulen-Operation ohne komplexe Prozedur, Alter > 2 Jahre, ohne komplexe Diagnose, ohne bestimmten Eingriff bei Trigeminusneuralgie, ohne bestimmte Prozedur, außer bei bösartiger Neubildung | D39: 1.346 | E39: 1.268 | H39: 7.8 | I39: 2 | J39: 0.277 | K39: 17 | L39: 0.115 | N39: x | P39: 1.1721
A40: B63Z | B40: M | C40: Demenz und andere chronische Störungen der Hirnfunktion | D40: 0.49 | E40: 0.49 | H40: 6 | I40: 1 | J40: 0.29 | K40: 14 | L40: 0.057 | M40: 0.069 | P40: 0.8472
A41: B66D | B41: M | C41: Neubildungen des Nervensystems, ein Belegungstag oder ohne äußerst schwere CC, Alter > 15 Jahre | D41: 0.558 | E41: 0.557 | H41: 6.6 | I41: 1 | J41: 0.313 | K41: 15 | L41: 0.058 | M41: 0.072 | O41: x | P41: 0.9371
A42: B67B | B42: M | C42: Morbus Parkinson ohne äußerst schwere CC, ohne schwerste Beeinträchtigung | D42: 0.573 | E42: 0.573 | H42: 7.6 | I42: 2 | J42: 0.188 | K42: 16 | L42: 0.052 | M42: 0.066 | P42: 0.7678
A43: B68D | B43: M | C43: Multiple Sklerose und zerebellare Ataxie, ein Belegungstag oder ohne äußerst schwere CC, Alter > 15 Jahre, ohne komplexe Diagnose | D43: 0.459 | E43: 0.459 | H43: 6.1 | I43: 1 | J43: 0.317 | K43: 14 | L43: 0.052 | M43: 0.064 | P43: 0.6521
A44: B69D | B44: M | C44: Transitorische ischämische Attacke (TIA) und extrakranielle Gefäßverschlüsse ohne neurologische Komplexbehandlung des akuten Schlaganfalls, ohne andere neurologische Komplexbehandlung des akuten Schlaganfalls, ohne äußerst schwere CC | D44: 0.531 | E44: 0.531 | H44: 5.1 | I44: 1 | J44: 0.266 | K44: 10 | L44: 0.071 | M44: 0.085 | P44: 0.8324
A45: B70E | B45: M | C45: Apoplexie ohne neurologische Komplexbehandlung des akuten Schlaganfalls, ohne andere neurol. Komplexbeh. des akuten Schlaganfalls, mehr als 72 Stunden, ohne komplexen zerebrovask. Vasospasmus, mit komplizierender Diagnose oder systemischer Thrombolyse | D45: 1.013 | E45: 1.012 | H45: 8.5 | I45: 2 | J45: 0.334 | K45: 18 | L45: 0.083 | M45: 0.105 | P45: 1.2422
A46: B70F | B46: M | C46: Apoplexie ohne neurologische Komplexbehandlung des akuten Schlaganfalls, ohne andere neurologische Komplexbehandlung des akuten Schlaganfalls, ohne komplexen zerebrovaskulären Vasospasmus, ohne komplizierende Diagnose, ohne systemische Thrombolyse | D46: 0.694 | E46: 0.694 | H46: 8.3 | K46: 16 | L46: 0.058 | M46: 0.074 | P46: 0.8678
A47: B70G | B47: M | C47: Apoplexie mit neurologischer Komplexbehandlung des akuten Schlaganfalls oder mit anderer neurologischer Komplexbehandlung des akuten Schlaganfalls, verstorben < 4 Tage nach Aufnahme | D47: 0.703 | E47: 0.703 | H47: 2.6 | N47: x | P47: 2.4001
A48: B70H | B48: M | C48: Apoplexie ohne neurologische Komplexbehandlung des akuten Schlaganfalls, ohne andere neurologische Komplexbehandlung des akuten Schlaganfalls, verstorben < 4 Tage nach Aufnahme | D48: 0.556 | E48: 0.554 | H48: 2.4 | N48: x | P48: 2.3875
A49: B70I | B49: M | C49: Apoplexie, ein Belegungstag | D49: 0.271 | E49: 0.271 | H49: 1 | P49: 1.3192
A50: B71D | B50: M | C50: Erkrankungen an Hirnnerven und peripheren Nerven ohne komplexe Diagnose, ohne Komplexbehandlung der Hand, ohne äußerst schwere oder schwere CC | D50: 0.469 | E50: 0.468 | H50: 5.4 | I50: 1 | J50: 0.249 | K50: 11 | L50: 0.06 | M50: 0.072 | P50: 0.659
A51: B75Z | B51: M | C51: Fieberkrämpfe | D51: 0.347 | E51: 0.347 | H51: 2.8 | I51: 1 | J51: 0.162 | K51: 6 | L51: 0.086 | M51: 0.089 | P51: 1.2761
A52: B76E | B52: M | C52: Anfälle, ein Belegungstag oder ohne komplexe Diagnostik und Therapie, ohne äußerst schwere oder schwere CC, ohne EEG, ohne bestimmte Diagnose, Alter > 5 Jahre, ohne komplexe Diagnose | D52: 0.424 | E52: 0.424 | H52: 3.9 | I52: 1 | J52: 0.228 | K52: 9 | L52: 0.075 | M52: 0.086 | P52: 0.9838
A53: B77Z | B53: M | C53: Kopfschmerzen | D53: 0.367 | E53: 0.367 | H53: 3.1 | I53: 1 | J53: 0.171 | K53: 7 | L53: 0.081 | M53: 0.087 | P53: 0.7566
A54: B78A | B54: M | C54: Intrakranielle Verletzung, Alter < 6 Jahre oder mit komplizierender Diagnose | D54: 0.769 | E54: 0.766 | H54: 6.2 | I54: 1 | J54: 0.464 | K54: 15 | L54: 0.086 | M54: 0.104 | P54: 1.3189
A55: B78B | B55: M | C55: Intrakranielle Verletzung, Alter > 5 Jahre, ohne komplizierende Diagnose | D55: 0.598 | E55: 0.596 | H55: 5.4 | I55: 1 | J55: 0.345 | K55: 13 | L55: 0.077 | M55: 0.091 | P55: 1.1697
A56: B79Z | B56: M | C56: Schädelfrakturen, Somnolenz, Sopor | D56: 0.462 | E56: 0.461 | H56: 3.7 | I56: 1 | J56: 0.247 | K56: 8 | L56: 0.086 | M56: 0.096 | P56: 1.3516
A57: B80Z | B57: M | C57: Andere Kopfverletzungen | D57: 0.239 | E57: 0.238 | H57: 2.4 | I57: 1 | J57: 0.081 | K57: 5 | L57: 0.069 | M57: 0.069 | P57: 1.0796
A58: B81B | B58: M | C58: Andere Erkrankungen des Nervensystems ohne komplexe Diagnose, ohne bestimmte aufwendige / hochaufwendige Behandlung | D58: 0.518 | E58: 0.516 | H58: 5.9 | I58: 1 | J58: 0.27 | K58: 13 | L58: 0.06 | M58: 0.074 | P58: 0.7652
A59: B82Z | B59: M | C59: Andere Erkrankungen an peripheren Nerven | D59: 0.281 | E59: 0.281 | H59: 3.1 | I59: 1 | J59: 0.117 | K59: 7 | L59: 0.062 | M59: 0.067 | P59: 0.6832
A60: B85C | B60: M | C60: Degenerative Krankheiten des Nervensystems ohne hochkomplexe Diagnose, ohne äußerst schwere oder schwere CC oder ein Belegungstag, mit komplexer Diagnose, zerebrale Lähmungen oder Delirium | D60: 0.545 | E60: 0.544 | H60: 6.5 | I60: 1 | J60: 0.364 | K60: 15 | L60: 0.058 | M60: 0.072 | P60: 0.941
A61: B85D | B61: M | C61: Degenerative Krankheiten des Nervensystems ohne hochkomplexe Diagnose, ohne äußerst schwere oder schwere CC oder ein Belegungstag, ohne komplexe Diagnose | D61: 0.449 | E61: 0.448 | H61: 4.4 | I61: 1 | J61: 0.261 | K61: 11 | L61: 0.07 | M61: 0.082 | P61: 0.8496
A62: MDC 02 Krankheiten und Störungen des Auges
A63: C01A | B63: O | C63: Komplexer Eingriff bei penetrierenden Augenverletzungen oder bestimmte Orbitotomie | D63: 1.153 | E63: 1.045 | H63: 6.6 | I63: 1 | J63: 0.206 | K63: 14 | L63: 0.063 | M63: 0.055 | P63: 0.7402
A64: C01B | B64: O | C64: Andere Eingriffe bei penetrierenden Augenverletzungen oder Amnionmembrantransplantation oder bestimmte Biopsie | D64: 0.614 | E64: 0.581 | H64: 4.9 | I64: 1 | J64: 0.315 | K64: 13 | L64: 0.044 | M64: 0.053 | P64: 0.7836
A65: C03A | B65: O | C65: Eingriffe Retina m. PPV, m. ECCE od. b. BNB Auge, m. best. Eingr. Retina od. Entf. Augapf. m. Impl. od. Endopht. od. Eingr. Orbita b. BNB Auge od. best. Eingr. Retina od. ECCE od. kompl. Eingr. od. BNB, Alter < 16 od. Enukl. u. Eingr. Orbita auß. b. BNB | D65: 0.723 | E65: 0.657 | H65: 4.4 | I65: 1 | J65: 0.117 | K65: 10 | L65: 0.038 | M65: 0.044 | P65: 0.8075
A66: C03B | B66: O | C66: Eingriffe an der Retina mit Pars-plana-Vitrektomie, mit extrakapsulärer Extraktion der Linse (ECCE) oder bestimmtem Eingriff an der Retina oder komplexem Eingriff am Auge oder bei bösartiger Neubildung des Auges, Alter > 15 Jahre | D66: 0.512 | E66: 0.467 | H66: 2.8 | I66: 1 | J66: 0.077 | K66: 5 | L66: 0.039 | M66: 0.041 | P66: 0.7184
A67: C03C | B67: O | C67: Eingriffe an der Retina mit Pars-plana-Vitrektomie, ohne extrakapsuläre Extraktion der Linse (ECCE), ohne bestimmten Eingriff an der Retina, ohne komplexen Eingriff am Auge, außer bei bösartiger Neubildung des Auges | D67: 0.384 | E67: 0.353 | H67: 2.5 | I67: 1 | J67: 0.044 | K67: 5 | L67: 0.038 | M67: 0.039 | P67: 0.7623
A68: C04A | B68: O | C68: Hornhauttransplantation mit extrakapsulärer Extraktion der Linse (ECCE) oder Amnionmembrantransplantation oder komplexem Eingriff oder Pars-plana-Vitrektomie oder Alter < 16 Jahre | D68: 1.328 | E68: 1.278 | H68: 5.1 | I68: 1 | J68: 0.161 | K68: 12 | L68: 0.124 | M68: 0.053 | O68: x | P68: 0.688
A69: C04B | B69: O | C69: Hornhauttransplantation ohne extrakapsuläre Extraktion der Linse (ECCE), ohne Amnionmembrantransplantation, ohne komplexen Eingriff, ohne Pars-plana-Vitrektomie, Alter > 15 Jahre | D69: 1.021 | E69: 0.994 | H69: 4.9 | I69: 1 | J69: 0.119 | K69: 7 | L69: 0.154 | M69: 0.041 | O69: x | P69: 0.6892
A70: C05Z | B70: O | C70: Dakryozystorhinostomie | D70: 0.513 | E70: 0.451 | H70: 2.4 | I70: 1 | J70: 0.179 | K70: 6 | L70: 0.046 | M70: 0.047 | P70: 0.7588
A71: C06Z | B71: O | C71: Komplexe Eingriffe bei Glaukom | D71: 0.396 | E71: 0.373 | H71: 4.2 | I71: 1 | J71: 0.1 | K71: 8 | L71: 0.033 | M71: 0.039 | P71: 0.6665
A72: C07A | B72: O | C72: Andere Eingriffe bei Glaukom mit extrakapsulärer Extraktion der Linse (ECCE) oder komplexem Eingriff am Auge oder bestimmten Eingriffen bei Glaukom oder Alter < 6 Jahre | D72: 0.505 | E72: 0.471 | H72: 2.9 | I72: 1 | J72: 0.1 | K72: 6 | L72: 0.043 | M72: 0.046 | P72: 0.7796
A73: C07B | B73: O | C73: Andere Eingriffe bei Glaukom ohne extrakapsuläre Extraktion der Linse (ECCE), ohne komplexen Eingriff am Auge, ohne bestimmte Eingriffe bei Glaukom, Alter > 5 Jahre | D73: 0.222 | E73: 0.207 | H73: 2.4 | I73: 1 | J73: 0.087 | K73: 5 | L73: 0.037 | M73: 0.037 | P73: 0.7179
A74: C08A | B74: O | C74: Beidseitige extrakapsuläre Extraktion der Linse (ECCE) oder extrakapsuläre Extraktion der Linse oder bestimmte andere Eingriffe am Auge bei angeborener Fehlbildung der Linse | D74: 0.61 | E74: 0.559 | H74: 3.9 | I74: 1 | J74: 0.215 | K74: 8 | L74: 0.043 | M74: 0.049 | P74: 0.8506
A75: C08B | B75: O | C75: Extrakapsuläre Extraktion der Linse (ECCE) ohne angeborene Fehlbildung der Linse oder bestimmte Eingriffe am Auge | D75: 0.281 | E75: 0.264 | H75: 2.4 | I75: 1 | J75: 0.041 | K75: 4 | L75: 0.038 | M75: 0.038 | P75: 0.9315
A76: C10A | B76: O | C76: Eingriffe an den Augenmuskeln mit erhöhtem Aufwand | D76: 0.601 | E76: 0.529 | H76: 2.6 | I76: 1 | J76: 0.155 | K76: 5 | L76: 0.048 | M76: 0.049 | P76: 1.2308
A77: C10B | B77: O | C77: Eingriffe an den Augenmuskeln ohne erhöhten Aufwand, mit komplexem Eingriff oder Alter < 6 Jahre | D77: 0.501 | E77: 0.441 | H77: 2.3 | I77: 1 | J77: 0.112 | K77: 4 | L77: 0.067 | M77: 0.047 | P77: 1.218
A78: C10C | B78: O | C78: Eingriffe an den Augenmuskeln ohne erhöhten Aufwand, ohne komplexen Eingriff, Alter > 5 Jahre | D78: 0.461 | E78: 0.412 | H78: 2.3 | I78: 1 | J78: 0.087 | K78: 4 | L78: 0.05 | M78: 0.05 | P78: 1.1596
A79: C12Z | B79: O | C79: Andere Rekonstruktionen der Augenlider | D79: 0.553 | E79: 0.506 | H79: 3 | I79: 1 | J79: 0.252 | K79: 7 | L79: 0.047 | M79: 0.051 | P79: 0.7203
A80: C13Z | B80: O | C80: Eingriffe an Tränendrüse und Tränenwegen | D80: 0.387 | E80: 0.354 | H80: 2.9 | I80: 1 | J80: 0.114 | K80: 7 | L80: 0.047 | M80: 0.05 | P80: 0.8816
A81: C14Z | B81: O | C81: Andere Eingriffe am Auge | D81: 0.263 | E81: 0.244 | H81: 2.8 | I81: 1 | J81: 0.076 | K81: 7 | L81: 0.037 | M81: 0.04 | P81: 0.8397
A82: C15Z | B82: O | C82: Andere Eingriffe an der Retina | D82: 0.452 | E82: 0.412 | H82: 2.5 | I82: 1 | J82: 0.093 | K82: 5 | L82: 0.041 | M82: 0.042 | P82: 0.7628
A83: C16Z | B83: O | C83: Aufwendige Eingriffe am Auge, Alter < 6 Jahre | D83: 0.736 | E83: 0.662 | H83: 3.6 | I83: 1 | J83: 0.138 | K83: 8 | L83: 0.077 | M83: 0.06 | P83: 1.4158
A84: C20A | B84: O | C84: Eingriffe an Kornea, Sklera und Konjunktiva, Eingriffe am Augenlid oder verschiedene Eingriffe an der Linse, Alter < 16 Jahre oder beidseitige Eingriffe an Augen und Tränenwegen oder bei bösartiger Neubildung am Auge | D84: 0.566 | E84: 0.51 | H84: 3.1 | I84: 1 | J84: 0.211 | K84: 7 | L84: 0.075 | M84: 0.057 | P84: 1.0392
A85: C20B | B85: O | C85: Eingriffe an Kornea, Sklera und Konjunktiva, Eingriffe am Augenlid oder verschiedene Eingriffe an der Linse, Alter > 15 Jahre, ohne beidseitige Eingriffe an Augen und Tränenwegen, außer bei bösartiger Neubildung am Auge | D85: 0.39 | E85: 0.35 | H85: 2.9 | I85: 1 | J85: 0.079 | K85: 6 | L85: 0.038 | M85: 0.04 | P85: 0.8059
A86: C60Z | B86: M | C86: Akute und schwere Augeninfektionen | D86: 0.34 | E86: 0.34 | H86: 5.4 | I86: 1 | J86: 0.253 | K86: 12 | L86: 0.044 | M86: 0.053 | P86: 0.7305
A87: C61Z | B87: M | C87: Neuro-ophthalmologische und vaskuläre Erkrankungen des Auges | D87: 0.421 | E87: 0.42 | H87: 4 | I87: 1 | J87: 0.228 | K87: 9 | L87: 0.072 | M87: 0.082 | P87: 0.6627
A88: C62Z | B88: M | C88: Hyphäma und konservativ behandelte Augenverletzungen | D88: 0.225 | E88: 0.224 | H88: 2.9 | I88: 1 | J88: 0.097 | K88: 7 | L88: 0.051 | M88: 0.055 | P88: 0.7907
A89: C63Z | B89: M | C89: Andere Erkrankungen des Auges oder Augenerkrankungen bei Diabetes mellitus | D89: 0.341 | E89: 0.34 | H89: 3.8 | I89: 1 | J89: 0.176 | K89: 9 | L89: 0.061 | M89: 0.069 | P89: 0.7649
A90: C64Z | B90: M | C90: Glaukom, Katarakt und Erkrankungen des Augenlides | D90: 0.139 | E90: 0.139 | H90: 2.2 | I90: 1 | J90: 0.063 | K90: 4 | L90: 0.044 | M90: 0.043 | P90: 0.7624
A91: MDC 03 Krankheiten und Störungen des Ohres, der Nase, des Mundes und des Halses
A92: D01B | B92: O | C92: Kochleaimplantation, unilateral | D92: 6.87 | E92: 6.762 | H92: 4.5 | I92: 1 | J92: 0.24 | K92: 8 | L92: 0.106 | M92: 0.087 | P92: 0.7782
A93: D02A | B93: O | C93: Komplexe Resektionen mit Rekonstruktionen an Kopf und Hals mit komplexem Eingriff oder mit Kombinationseingriff mit äußerst schweren CC | D93: 5.016 | E93: 4.595 | H93: 20.1 | I93: 6 | J93: 0.313 | K93: 36 | L93: 0.208 | M93: 0.104 | P93: 1.3475
A94: D02B | B94: O | C94: Komplexe Resektionen mit Rekonstruktionen an Kopf und Hals ohne komplexen Eingriff, ohne Kombinationseingriff mit äußerst schweren CC | D94: 3.727 | E94: 3.38 | H94: 17 | I94: 5 | J94: 0.265 | K94: 31 | L94: 0.15 | M94: 0.088 | P94: 1.1112
A95: D03A | B95: O | C95: Operative Korrektur einer Lippen-Kiefer-Gaumen-Spalte oder bestimmte plastische Rekonstruktion am Kopf mit Hartgaumenplastik oder bestimmte Knochentransplantation an Kiefer- und Gesichtsschädelknochen oder Alter < 2 Jahre | D95: 1.202 | E95: 1.074 | H95: 4.2 | I95: 1 | J95: 0.183 | K95: 9 | L95: 0.087 | M95: 0.07 | P95: 1.5318
A96: D03B | B96: O | C96: Operative Korrektur einer Lippen-Kiefer-Gaumen-Spalte oder bestimmte plastische Rekonstruktion am Kopf ohne Hartgaumenplastik, ohne bestimmte Knochentransplantation an Kiefer- und Gesichtsschädelknochen, Alter > 1 Jahr | D96: 0.975 | E96: 0.854 | H96: 3.9 | I96: 1 | J96: 0.136 | K96: 9 | L96: 0.049 | M96: 0.056 | P96: 0.931
A97: D04A | B97: O | C97: Bignathe Osteotomie und komplexe Eingriffe am Kiefer oder Rekonstruktion der Trachea oder plastische Rekonstruktion der Ohrmuschel mit mikrovaskulärem Lappen, mit komplexem Eingriff | D97: 1.811 | E97: 1.624 | H97: 4.8 | I97: 1 | J97: 0.229 | K97: 9 | L97: 0.183 | M97: 0.079 | P97: 0.9739
A98: D04B | B98: O | C98: Bignathe Osteotomie und komplexe Eingriffe am Kiefer oder Rekonstruktion der Trachea oder plastische Rekonstruktion der Ohrmuschel mit mikrovaskulärem Lappen, ohne komplexen Eingriff | D98: 1.379 | E98: 1.248 | H98: 5.9 | I98: 1 | J98: 0.251 | K98: 12 | L98: 0.193 | M98: 0.073 | P98: 0.9267
A99: D05A | B99: O | C99: Komplexe Parotidektomie | D99: 1.237 | E99: 1.089 | H99: 3.9 | I99: 1 | J99: 0.183 | K99: 8 | L99: 0.066 | M99: 0.075 | P99: 0.7607
A100: D05B | B100: O | C100: Komplexe Eingriffe an den Speicheldrüsen außer komplexe Parotidektomien | D100: 0.582 | E100: 0.512 | H100: 3 | I100: 1 | J100: 0.08 | K100: 6 | L100: 0.037 | M100: 0.04 | P100: 0.7052
A101: D06A | B101: O | C101: Komplexe Eingriffe an Nasennebenhöhlen, Mastoid, Mittelohr, Speicheldrüsen, Rachen, Alter < 6 Jahre oder Alter > 15 Jahre mit komplexer Prozedur oder Diagnose, mit Resektion des Felsenbeins oder mit intrakraniellem Eingriff bei bösartiger Neubildung | D101: 1.156 | E101: 1.039 | H101: 6 | I101: 1 | J101: 0.241 | K101: 13 | L101: 0.057 | M101: 0.069 | P101: 1.1537
A102: D06B | B102: O | C102: Andere Eingriffe an Nasennebenhöhlen, Mastoid, Mittelohr, Speicheldrüsen, Rachen, Alter > 5 Jahre und Alter < 16 Jahre oder Alter > 15 Jahre, mit komplexer Prozedur oder Diagnose, ohne Resektion am Felsenbein, ohne intrakraniellen Eingriff bei BNB | D102: 0.498 | E102: 0.437 | H102: 3 | I102: 1 | J102: 0.083 | K102: 6 | L102: 0.039 | M102: 0.042 | P102: 0.8078
A103: D06C | B103: O | C103: Bestimmte Eingriffe an Nasennebenhöhlen, Mastoid, Mittelohr, Speicheldrüsen, Rachen, Alter > 15 Jahre, ohne komplexe Prozedur, ohne komplexe Diagnose | D103: 0.426 | E103: 0.373 | H103: 2.8 | I103: 1 | J103: 0.116 | K103: 5 | L103: 0.035 | M103: 0.037 | P103: 0.7967
A104: D08B | B104: O | C104: Eingriffe an Mundhöhle und Mund bei bösartiger Neubildung ohne äußerst schwere CC | D104: 0.618 | E104: 0.57 | H104: 4 | I104: 1 | J104: 0.258 | K104: 9 | L104: 0.115 | M104: 0.069 | P104: 0.8098
A105: D09Z | B105: O | C105: Tonsillektomie bei bösartiger Neubildung oder verschiedene Eingriffe an Ohr, Nase, Mund und Hals mit äußerst schweren CC | D105: 0.903 | E105: 0.827 | H105: 6.1 | I105: 1 | J105: 0.252 | K105: 16 | L105: 0.093 | M105: 0.071 | P105: 1.0268
A106: D12A | B106: O | C106: Andere aufwendige Eingriffe an Ohr, Nase, Mund und Hals | D106: 1.02 | E106: 0.929 | H106: 4.5 | I106: 1 | J106: 0.45 | K106: 13 | L106: 0.073 | M106: 0.086 | P106: 0.9115
A107: D12B | B107: O | C107: Andere Eingriffe an Ohr, Nase, Mund und Hals | D107: 0.433 | E107: 0.384 | H107: 3.4 | I107: 1 | J107: 0.108 | K107: 7 | L107: 0.032 | M107: 0.036 | P107: 0.7708
A108: D13A | B108: O | C108: Kleine Eingriffe an Nase, Ohr, Mund und Hals mit komplizierender Diagnose oder Rekonstruktion des Nasenseptums oder Alter < 16 Jahre mit äußerst schweren CC oder Alter < 1 Jahr | D108: 0.712 | E108: 0.633 | H108: 3 | I108: 1 | J108: 0.318 | K108: 9 | L108: 0.079 | M108: 0.084 | P108: 1.0087
A109: D13B | B109: O | C109: Kleine Eingriffe an Nase, Ohr, Mund und Hals ohne komplizierende Diagnose, ohne Rekonstruktion des Nasenseptums, Alter > 15 Jahre oder ohne äußerst schwere CC, Alter > 0 Jahre | D109: 0.385 | E109: 0.351 | H109: 2.7 | I109: 1 | J109: 0.076 | K109: 6 | L109: 0.052 | M109: 0.054 | P109: 1.3427
A110: D15A | B110: O | C110: Tracheostomie mit äußerst schweren CC oder mit radikaler zervikaler Lymphadenektomie oder Implantation einer Kiefergelenkendoprothese | D110: 2.626 | E110: 2.437 | H110: 16.6 | I110: 5 | J110: 0.245 | K110: 31 | L110: 0.062 | N110: x | P110: 1.2028
A111: D15B | B111: O | C111: Tracheostomie ohne äußerst schwere CC, ohne radikale zervikale Lymphadenektomie | D111: 1.69 | E111: 1.584 | H111: 13.9 | I111: 4 | J111: 0.214 | K111: 26 | L111: 0.054 | N111: x | P111: 1.044
A112: D16Z | B112: O | C112: Materialentfernung an Kiefer und Gesicht | D112: 0.56 | E112: 0.486 | H112: 2.3 | I112: 1 | J112: 0.107 | K112: 5 | L112: 0.05 | M112: 0.05 | P112: 0.8098
A113: D19Z | B113: O | C113: Strahlentherapie bei Krankheiten und Störungen des Ohres, der Nase, des Mundes und des Halses, Bestrahlungen an mindestens 9 Tagen | D113: 2.414 | E113: 2.408 | H113: 20.8 | I113: 6 | J113: 0.332 | K113: 39 | L113: 0.111 | M113: 0.106 | O113: x | P113: 0.7511
A114: D20A | B114: O | C114: Strahlentherapie bei Krankheiten und Störungen des Ohres, der Nase, des Mundes und des Halses, Bestrahlungen an mindestens 5 Tagen | D114: 1.041 | E114: 1.039 | H114: 7.4 | K114: 14 | L114: 0.136 | M114: 0.12 | O114: x | P114: 0.7732
A115: D20B | B115: O | C115: Strahlentherapie bei Krankheiten und Störungen des Ohres, der Nase, des Mundes und des Halses, Bestrahlungen an weniger als 5 Tagen | D115: 0.546 | E115: 0.544 | H115: 3.8 | I115: 1 | J115: 0.26 | K115: 10 | L115: 0.137 | M115: 0.108 | O115: x | P115: 0.832
A116: D22A | B116: O | C116: Eingriffe an Mundhöhle und Mund außer bei bösartiger Neubildung, mit Mundboden- oder Vestibulumplastik oder komplexe Eingriffe am Kopf | D116: 0.758 | E116: 0.686 | H116: 5.2 | I116: 1 | J116: 0.178 | K116: 11 | L116: 0.048 | M116: 0.058 | P116: 0.7799
A117: D22B | B117: O | C117: Eingriffe an Mundhöhle und Mund außer bei bösartiger Neubildung oder Eingriffe an Hals und Kopf, ohne Mundboden- oder Vestibulumplastik, ohne komplexe Eingriffe am Kopf | D117: 0.342 | E117: 0.297 | H117: 2.6 | I117: 1 | J117: 0.075 | K117: 5 | L117: 0.034 | M117: 0.035 | P117: 0.912
A118: D24A | B118: O | C118: Komplexe Hautplastiken und große Eingriffe an Kopf und Hals mit äußerst schweren CC oder mit Kombinationseingriff ohne äußerst schwere CC | D118: 3.441 | E118: 3.152 | H118: 17.7 | I118: 5 | J118: 0.282 | K118: 33 | L118: 0.067 | M118: 0.09 | P118: 1.154
A119: D24B | B119: O | C119: Komplexe Hautplastiken und große Eingriffe an Kopf und Hals ohne äußerst schwere CC, ohne Kombinationseingriff | D119: 1.772 | E119: 1.587 | H119: 6.9 | I119: 1 | J119: 0.332 | K119: 15 | L119: 0.068 | M119: 0.085 | P119: 0.8732
A120: D25C | B120: O | C120: Mäßig komplexe Eingriffe an Kopf und Hals bei bösartiger Neubildung oder mit Eingriff an den oberen Atemwegen, ohne Laryngektomie, ohne äußerst schw. CC, ohne Bestrahlungssim., Konstr. und Anpas. von Fix.-/Behandlungshilf. bei Strahlenth. mit op. Eingr. | D120: 1.489 | E120: 1.347 | H120: 6.9 | I120: 1 | J120: 0.317 | K120: 15 | L120: 0.138 | M120: 0.08 | P120: 0.8705
A121: D25D | B121: O | C121: Mäßig komplexe Eingriffe an Kopf und Hals außer bei bösartiger Neubildung ohne äußerst schwere CC | D121: 0.499 | E121: 0.446 | H121: 4.2 | I121: 1 | J121: 0.108 | K121: 9 | L121: 0.036 | M121: 0.042 | P121: 0.8285
A122: D28Z | B122: O | C122: Andere Eingriffe an Kopf und Hals mit komplexem Eingriff oder bei bösartiger Neubildung oder Rekonstruktion mit Gesichtsepithesen oder totale Auflagerungsplastik der Maxilla | D122: 0.519 | E122: 0.454 | H122: 2.9 | I122: 1 | J122: 0.076 | K122: 6 | L122: 0.101 | N122: x | P122: 0.7932
A123: D29Z | B123: O | C123: Operationen am Kiefer und andere Eingriffe an Kopf und Hals außer bei bösartiger Neubildung | D123: 0.857 | E123: 0.77 | H123: 4.1 | I123: 1 | J123: 0.339 | K123: 9 | L123: 0.056 | M123: 0.064 | P123: 0.7952
A124: D30A | B124: O | C124: Tonsillektomie außer bei BNB od. versch. Eingriffe Ohr, Nase, Mund, Hals oh. äuß. schw. CC, m. aufw. Eingr. od. Eingr. Mundh., Mund, Alter < 3 J. od. m. kompl. Diag. od. Alter < 16 J. m. äuß. schw. od. schw. CC od. m. Eingr. Ohr, Trachea m. äuß. schw. CC | D124: 0.445 | E124: 0.394 | H124: 2.7 | I124: 1 | J124: 0.033 | K124: 5 | L124: 0.037 | M124: 0.039 | P124: 0.8545
A125: D30B | B125: O | C125: Tonsillektomie außer bei BNB oder versch. Eingriffe an Ohr, Nase, Mund und Hals oh. äußerst schw. CC, oh. aufw. Eingriff, oh. kompl. Diagnose, Alter > 15 od. oh. äuß. schw. od. schw. CC, Alter < 12 J. od. Alter > 11 J. b. BNB od. oh. Eingr. Hals, Trachea | D125: 0.351 | E125: 0.32 | H125: 4 | I125: 1 | J125: 0.106 | K125: 8 | L125: 0.033 | M125: 0.037 | P125: 0.815
A126: D30C | B126: O | C126: Kleine Eingriffe an Ohr, Nase, Mund und Hals, Alter > 11 Jahre | D126: 0.279 | E126: 0.26 | H126: 2.4 | I126: 1 | J126: 0.001 | K126: 5 | L126: 0.053 | M126: 0.054 | P126: 1.1554
A127: D35Z | B127: O | C127: Eingriffe an Nase, Nasennebenhöhlen bei bösartiger Neubildung | D127: 0.87 | E127: 0.782 | H127: 3.9 | I127: 1 | J127: 0.186 | K127: 8 | L127: 0.163 | M127: 0.076 | P127: 0.769
A128: D36Z | B128: O | C128: Sehr komplexe Eingriffe an den Nasennebenhöhlen | D128: 0.667 | E128: 0.592 | H128: 2.8 | I128: 1 | J128: 0.197 | K128: 7 | L128: 0.058 | M128: 0.061 | P128: 0.8303
A129: D37A | B129: O | C129: Sehr komplexe Eingriffe an der Nase, Alter < 16 Jahre oder bei Gaumenspalte oder Spaltnase oder plastische Rekonstruktion der Nase mit Rippenknorpeltransplantation | D129: 1.236 | E129: 1.074 | H129: 3.8 | I129: 1 | J129: 0.136 | K129: 8 | L129: 0.05 | M129: 0.057 | P129: 0.7773
A130: D37B | B130: O | C130: Sehr komplexe Eingriffe an der Nase, Alter > 15 Jahre, außer bei Gaumenspalte oder Spaltnase, ohne plastische Rekonstruktion der Nase mit Rippenknorpeltransplantation | D130: 0.491 | E130: 0.429 | H130: 2.6 | I130: 1 | J130: 0.087 | K130: 5 | L130: 0.036 | M130: 0.037 | P130: 0.8647
A131: D38Z | B131: O | C131: Mäßig komplexe Eingriffe an Nase, Nasennebenhöhlen, Gesichtsschädelknochen | D131: 0.395 | E131: 0.345 | H131: 2.8 | I131: 1 | J131: 0.105 | K131: 5 | L131: 0.034 | M131: 0.036 | P131: 0.8384
A132: D39Z | B132: O | C132: Andere Eingriffe an der Nase | D132: 0.385 | E132: 0.349 | H132: 2.8 | I132: 1 | J132: 0.104 | K132: 6 | L132: 0.051 | M132: 0.053 | P132: 0.8079
A133: D40Z | B133: A | C133: Zahnextraktion und -wiederherstellung | D133: 0.443 | E133: 0.404 | H133: 2.5 | I133: 1 | J133: 0.085 | K133: 5 | L133: 0.053 | M133: 0.054 | P133: 1.0422
A134: D60A | B134: M | C134: Bösartige Neubildungen an Ohr, Nase, Mund und Hals, mehr als ein Belegungstag, mit äußerst schweren oder schweren CC | D134: 0.953 | E134: 0.945 | H134: 10.7 | I134: 3 | J134: 0.22 | K134: 23 | L134: 0.083 | M134: 0.076 | O134: x | P134: 1.0348
A135: D60B | B135: M | C135: Bösartige Neubildungen an Ohr, Nase, Mund und Hals, ein Belegungstag oder ohne äußerst schwere oder schwere CC | D135: 0.475 | E135: 0.449 | H135: 3.8 | I135: 1 | J135: 0.172 | K135: 9 | L135: 0.062 | M135: 0.07 | O135: x | P135: 0.8705
A136: D61Z | B136: M | C136: Gleichgewichtsstörung, Hörverlust und Tinnitus | D136: 0.377 | E136: 0.377 | H136: 4.4 | I136: 1 | J136: 0.173 | K136: 9 | L136: 0.06 | M136: 0.07 | P136: 0.6864
A137: D63B | B137: M | C137: Otitis media oder Infektionen der oberen Atemwege oder Blutung aus Nase und Rachen ohne äußerst schwere CC | D137: 0.183 | E137: 0.181 | H137: 3 | I137: 1 | J137: 0.087 | K137: 6 | L137: 0.041 | M137: 0.043 | P137: 0.9571
A138: D64Z | B138: M | C138: Laryngotracheitis, Laryngospasmus und Epiglottitis | D138: 0.203 | E138: 0.202 | H138: 2.4 | I138: 1 | J138: 0.081 | K138: 5 | L138: 0.058 | M138: 0.059 | P138: 1.3933
A139: D65Z | B139: M | C139: Andere Krankheiten an Ohr, Nase, Mund und Hals oder Verletzung und Deformität der Nase | D139: 0.33 | E139: 0.317 | H139: 3.5 | I139: 1 | J139: 0.096 | K139: 8 | L139: 0.053 | M139: 0.059 | P139: 0.8765
A140: D67Z | B140: M | C140: Erkrankungen von Zähnen und Mundhöhle | D140: 0.336 | E140: 0.323 | H140: 3.5 | I140: 1 | J140: 0.102 | K140: 8 | L140: 0.053 | M140: 0.059 | P140: 0.9378
A141: MDC 04 Krankheiten und Störungen der Atmungsorgane
A142: E02B | B142: O | C142: Andere OR-Prozeduren an den Atmungsorganen, Alter > 9 Jahre, mit mäßig aufwendigem Eingriff bei Krankheiten und Störungen der Atmungsorgane oder mehr als ein Belegungstag mit bestimmtem Eingriff an Larynx oder Trachea oder mit äußerst schweren CC | D142: 1.351 | E142: 1.319 | H142: 12.2 | I142: 3 | J142: 0.249 | K142: 25 | L142: 0.057 | M142: 0.076 | P142: 0.7804
A143: E02C | B143: O | C143: Andere OR-Prozeduren an den Atmungsorganen, Alter > 9 J., mehr als 1 BT, ohne best. Eingr. an Larynx oder Trachea, ohne mäßig aufwend. Eingr., ohne äuß. schw. CC, mit best. endoskop. Lungenvolumenred. oder anderem mäßig kompl. Eingr. oder Alter < 18 J. | D143: 0.766 | E143: 0.715 | H143: 4.6 | I143: 1 | J143: 0.217 | K143: 13 | L143: 0.066 | M143: 0.077 | P143: 0.7638
A144: E02D | B144: O | C144: Andere OR-Prozeduren an den Atmungsorganen, Alter > 17 Jahre, mehr als 1 BT, ohne bestimmten Eingriff an Larynx oder Trachea, ohne mäßig aufwendigen Eingriff, ohne äußerst schwere CC, ohne endoskop. Lungenvolumenred., ohne anderen mäßig kompl. Eingriff | D144: 0.687 | E144: 0.67 | H144: 4.9 | K144: 13 | L144: 0.07 | M144: 0.083 | P144: 0.662
A145: E02E | B145: O | C145: Andere OR-Prozeduren an den Atmungsorganen, Alter > 17 J., ohne best. Eingr. an Larynx od. Trachea, ohne mäßig aufwend. Eingr., ohne äuß. schwere CC, ohne endoskop. Lungenvolumenred., ohne andere mäßig kompl. Eingr., ein Belegungstag mit best. Eingriff | D145: 0.451 | E145: 0.43 | H145: 1 | P145: 1.3314
A146: E02F | B146: O | C146: Andere OR-Prozeduren an den Atmungsorganen, Alter > 17 J., ohne best. Eingr. an Larynx od. Trachea, ohne mäßig aufwend. Eingr., ohne äuß. schwere CC, ohne endoskop. Lungenvolumenred., ohne andere mäßig kompl. Eingr., ein Belegungstag ohne best. Eingriff | D146: 0.317 | E146: 0.297 | H146: 1 | P146: 1.2397
A147: E07Z | B147: O | C147: Aufwendige Eingriffe bei Schlafapnoesyndrom | D147: 0.664 | E147: 0.6 | H147: 4.2 | I147: 1 | J147: 0.144 | K147: 9 | L147: 0.048 | M147: 0.055 | P147: 0.6662
A148: E08B | B148: O | C148: Strahlentherapie bei Krankheiten und Störungen der Atmungsorgane ohne operativen Eingriff oder Beatmung > 24 Stunden, mehr als ein Belegungstag, Bestrahlungen an mindestens 9 Tagen | D148: 2.687 | E148: 2.679 | H148: 22.4 | I148: 6 | J148: 0.37 | K148: 40 | L148: 0.116 | N148: x | O148: x | P148: 0.7058
A149: E08C | B149: O | C149: Strahlentherapie bei Krankheiten und Störungen der Atmungsorgane ohne operativen Eingriff od. Beatmung > 24 Stunden, mehr als ein Belegungstag, Bestrahlungen an mindestens 5 Tagen od. mindestens 10 Bestrahlungen od. zerebrale, stereotaktische Bestrahlung | D149: 1.344 | E149: 1.34 | H149: 11.8 | I149: 3 | J149: 0.325 | K149: 26 | L149: 0.11 | M149: 0.101 | O149: x | P149: 0.7509
A150: E08D | B150: O | C150: Strahlentherapie bei Krankheiten und Störungen der Atmungsorgane ohne operativen Eingr. oder Beatmung > 24 Stunden, mehr als ein Belegungstag, Bestrahlungen an weniger als 5 Tagen, weniger als 10 Bestrahlungen, ohne zerebrale, stereotaktische Bestrahlung | D150: 0.893 | E150: 0.889 | H150: 8.9 | I150: 2 | J150: 0.282 | K150: 21 | L150: 0.095 | N150: x | O150: x | P150: 0.7512
A151: E40C | B151: A | C151: Krankheiten und Störungen der Atmungsorgane mit Beatmung > 24 Stunden, mehr als 2 Belegungstage, mit komplexer Prozedur, ohne äußerst schwere CC, außer bei Para- / Tetraplegie | D151: 1.604 | E151: 1.6 | H151: 12.8 | I151: 3 | J151: 0.389 | K151: 25 | L151: 0.085 | M151: 0.112 | O151: x | P151: 2.008
A152: E63B | B152: M | C152: Schlafapnoesyndrom oder Polysomnographie oder kardiorespiratorische Polygraphie bis 2 Belegungstage, Alter > 17 Jahre, ohne bestimmte invasive kardiologische Diagnostik | D152: 0.222 | E152: 0.222 | H152: 2.1 | I152: 1 | J152: 0.096 | K152: 4 | L152: 0.073 | M152: 0.07 | P152: 0.6906
A153: E64A | B153: M | C153: Respiratorische Insuffizienz, mehr als ein Belegungstag, mit äußerst schweren CC oder Lungenembolie | D153: 0.597 | E153: 0.597 | H153: 6.4 | I153: 1 | J153: 0.366 | K153: 14 | L153: 0.062 | M153: 0.077 | P153: 0.8734
A154: E64B | B154: M | C154: Respiratorische Insuffizienz, mehr als ein Belegungstag, ohne äußerst schwere CC, Alter < 16 Jahre | D154: 0.576 | E154: 0.574 | H154: 4.6 | K154: 12 | L154: 0.123 | M154: 0.101 | P154: 1.9775
A155: E64C | B155: M | C155: Respiratorische Insuffizienz, mehr als ein Belegungstag, ohne äußerst schwere CC, Alter > 15 Jahre | D155: 0.482 | E155: 0.482 | H155: 6.4 | K155: 14 | L155: 0.051 | M155: 0.063 | P155: 0.9588
A156: E64D | B156: M | C156: Respiratorische Insuffizienz, ein Belegungstag | D156: 0.18 | E156: 0.18 | H156: 1 | P156: 1.3405
A157: E65A | B157: M | C157: Chronisch-obstruktive Atemwegserkrankung oder bestimmte Atemwegsinfektion mit äuß. schw. CC oder best. hochaufw. Beh. oder Bronchitis und Asthma bronchiale, mehr als ein Belegungstag, mit äuß. schw. oder schw. CC, Alter < 1 Jahr, mit RS-Virus-Infektion | D157: 1.09 | E157: 1.089 | H157: 14.2 | I157: 4 | J157: 0.208 | K157: 28 | L157: 0.051 | M157: 0.069 | P157: 0.9793
A158: E65B | B158: M | C158: Chronisch-obstruktive Atemwegserkrankung oder best. Atemwegsinfektion ohne äußerst schwere CC, mit komplizierender Diagnose oder mit FEV1 < 35% und mehr als ein Belegungstag oder Alter < 1 J. oder mit bestimmter mäßig aufwendiger / aufwendiger Behandlung | D158: 0.588 | E158: 0.587 | H158: 8.3 | I158: 2 | J158: 0.187 | K158: 17 | L158: 0.047 | M158: 0.061 | P158: 0.7742
A159: E65C | B159: M | C159: Chronisch-obstruktive Atemwegserkrankung ohne äußerst schwere CC, ohne komplizierende Diagnose, ohne FEV1 < 35% oder ein Belegungstag oder Alter > 1 Jahr, ohne bestimmte mäßig aufwendige / aufwendige Behandlung | D159: 0.452 | E159: 0.452 | H159: 6.8 | I159: 1 | J159: 0.254 | K159: 14 | L159: 0.045 | M159: 0.056 | P159: 0.7202
A160: E66A | B160: M | C160: Schweres Thoraxtrauma mit komplizierender Diagnose | D160: 0.486 | E160: 0.485 | H160: 5.6 | I160: 1 | J160: 0.234 | K160: 13 | L160: 0.06 | M160: 0.073 | P160: 0.8857
A161: E66B | B161: M | C161: Schweres Thoraxtrauma ohne komplizierende Diagnose | D161: 0.365 | E161: 0.365 | H161: 4.7 | I161: 1 | J161: 0.145 | K161: 10 | L161: 0.054 | M161: 0.063 | P161: 0.8044
A162: E69B | B162: M | C162: Bronchitis und Asthma bronchiale, mehr als 1 BT u. Alter > 55 J. od. mit äuß. schw. od. schw. CC, Alt. > 0 J. od. 1 BT od. oh. äuß. schw. od. schw. CC, Alt. < 1 J. od. flex. Bronchoskopie, Alt. < 16 J. od. best. mäßig aufw. Beh., m. RS-Virus-Infekt. | D162: 0.41 | E162: 0.409 | H162: 6.3 | I162: 1 | J162: 0.247 | K162: 13 | L162: 0.044 | M162: 0.054 | P162: 0.7991
A163: E69C | B163: M | C163: Bronchitis und Asthma bronchiale, ein Belegungstag oder ohne äuß. schw. oder schw. CC oder Alter < 56 Jahre oder Beschwerden und Symptome der Atmung oder Störungen der Atmung mit Ursache in der Neonatalperiode, ohne bestimmte aufw./hochaufw. Behandlung | D163: 0.297 | E163: 0.297 | H163: 3.6 | I163: 1 | J163: 0.121 | K163: 7 | L163: 0.056 | M163: 0.062 | P163: 1.0394
A164: E70Z | B164: M | C164: Keuchhusten und akute Bronchiolitis | D164: 0.304 | E164: 0.304 | H164: 4 | I164: 1 | J164: 0.149 | K164: 9 | L164: 0.053 | M164: 0.06 | P164: 1.4786
A165: E71A | B165: M | C165: Neubildungen der Atmungsorgane, mehr als ein Belegungstag, mit äußerst schweren CC | D165: 1.214 | E165: 1.21 | H165: 14.8 | I165: 4 | J165: 0.23 | K165: 29 | L165: 0.055 | M165: 0.073 | O165: x | P165: 0.8999
A166: E71B | B166: M | C166: Neubildungen der Atmungsorgane, ein Belegungstag oder ohne äußerst schwere CC, mit Ösophagusprothese oder endoskopischer Stufenbiopsie oder endoskopischer Biopsie am Respirationstrakt mit Chemotherapie | D166: 0.944 | E166: 0.94 | H166: 8.8 | I166: 2 | J166: 0.271 | K166: 19 | L166: 0.065 | M166: 0.084 | O166: x | P166: 0.6296
A167: E71C | B167: M | C167: Neubildungen der Atmungsorgane, ein Belegungstag oder ohne äußerst schwere CC, ohne Ösophagusproth., ohne Stufenbiop., ohne Chemotherapie od. ohne endoskop. Biop. am Respir.-Trakt, mit Bronchoskop. mit starrem Instr. oder perkut. Biop. am Respir.-Trakt | D167: 0.574 | E167: 0.57 | H167: 4.9 | I167: 1 | J167: 0.25 | K167: 13 | L167: 0.07 | M167: 0.083 | O167: x | P167: 0.6463
A168: E71D | B168: M | C168: Neubildungen der Atmungsorgane, ein Belegungstag od. ohne äußerst schwere CC, ohne Ösophagusproth., ohne Stufenbiopsie, ohne Chemoth. od. ohne endoskop. Biop. am Respir.-Trakt, ohne Bronchoskopie mit starrem Instr., ohne perkut. Biopsie am Respir.-Trakt | D168: 0.44 | E168: 0.438 | H168: 5.7 | I168: 1 | J168: 0.218 | K168: 13 | L168: 0.051 | M168: 0.062 | O168: x | P168: 0.8247
A169: E73B | B169: M | C169: Pleuraerguss ohne äußerst schwere CC | D169: 0.434 | E169: 0.433 | H169: 4.7 | I169: 1 | J169: 0.276 | K169: 12 | L169: 0.059 | M169: 0.07 | P169: 0.7348
A170: E74Z | B170: M | C170: Interstitielle Lungenerkrankung | D170: 0.527 | E170: 0.525 | H170: 6.2 | I170: 1 | J170: 0.293 | K170: 15 | L170: 0.054 | M170: 0.066 | P170: 0.7184
A171: E75B | B171: M | C171: Andere Krankheiten der Atmungsorgane mit äußerst schweren CC, Alter > 15 Jahre | D171: 0.935 | E171: 0.933 | H171: 11 | I171: 3 | J171: 0.224 | K171: 22 | L171: 0.057 | M171: 0.075 | P171: 1.0828
A172: E75C | B172: M | C172: Andere Krankheiten der Atmungsorgane ohne äußerst schwere CC oder Beschwerden und Symptome der Atmung mit komplexer Diagnose | D172: 0.425 | E172: 0.422 | H172: 5.3 | I172: 1 | J172: 0.207 | K172: 12 | L172: 0.051 | M172: 0.061 | P172: 0.8504
A173: E76C | B173: M | C173: Tuberkulose bis 14 Belegungstag, Alter > 17 Jahre oder ohne äußerst schwere oder schwere CC oder Pneumothorax | D173: 0.582 | E173: 0.58 | H173: 6.4 | I173: 1 | J173: 0.362 | K173: 14 | L173: 0.061 | M173: 0.075 | P173: 0.9491
A174: E78Z | B174: M | C174: Kontrolle oder Optimierung einer bestehenden häuslichen Beatmung, bis 2 Belegungstage | D174: 0.231 | E174: 0.231 | H174: 2 | I174: 1 | J174: 0.089 | K174: 3 | L174: 0.079 | M174: 0.075 | P174: 1.0602
A175: E79A | B175: M | C175: Infektionen und Entzündungen der Atmungsorgane mit komplexer Diagnose oder äußerst schweren CC, mehr als ein Belegungstag oder mit äußerst schweren CC mit bestimmten Infektionen oder Entzündungen | D175: 0.891 | E175: 0.891 | H175: 12.3 | I175: 3 | J175: 0.214 | K175: 24 | L175: 0.049 | M175: 0.065 | P175: 0.9624
A176: E79B | B176: M | C176: Infektionen und Entzündungen der Atmungsorgane ohne komplexe Diagnose, ohne äußerst schwere CC oder ein Belegungstag, bei Para- / Tetraplegie oder mit bestimmter mäßig aufwendiger Behandlung oder mit bestimmter Pneumonie, mehr als ein Belegungstag | D176: 0.569 | E176: 0.569 | H176: 7.5 | I176: 1 | J176: 0.277 | K176: 16 | L176: 0.052 | M176: 0.066 | P176: 1.1471
A177: E79C | B177: M | C177: Infektionen und Entzündungen der Atmungsorgane ohne komplexe Diagnose, ohne äußerst schwere CC oder ein Belegungstag, außer bei Para- / Tetraplegie, ohne bestimmte mäßig aufwendige Behandlung | D177: 0.481 | E177: 0.481 | H177: 7.3 | I177: 1 | J177: 0.278 | K177: 15 | L177: 0.045 | M177: 0.057 | P177: 0.8913
A178: MDC 05 Krankheiten und Störungen des Kreislaufsystems
A179: F01C | B179: O | C179: Implantation Kardioverter / Defibrillator (AICD), Dreikammer-Stimulation oder Defibrillator mit subkutaner Elektrode oder intrakardialer Pulsgenerator, ohne komplizierende Faktoren oder Implantation eines Drucksensors in die Pulmonalarterie | D179: 3.088 | E179: 3.043 | H179: 5.6 | I179: 1 | J179: 0.625 | K179: 16 | L179: 0.055 | M179: 0.066 | P179: 0.8698
A180: F01D | B180: O | C180: Implantation Kardioverter / Defibrillator (AICD), Zwei- oder Einkammer-Stim. mit äußerst schweren CC oder Einkammer-Stim. mit zusätzlichem Herz- oder Gefäßeingriff oder mit IntK > 392 / 368 / - AP oder best. Sondenentfernung oder Alter < 18 Jahre | D180: 3.445 | E180: 3.398 | H180: 13.9 | I180: 4 | J180: 0.264 | K180: 28 | L180: 0.067 | M180: 0.088 | P180: 1.1368
A181: F01E | B181: O | C181: Impl. Kardioverter / Defibrillator (AICD), Zweikammer-Stimulation od. aufwendige Sondenentfernung od. Aggregatwechsel S-ICD ohne Änderung der Sonde, ohne Impl. Drucksens. in Pulmonalarterie, ohne Impl. eines intrakardialen Pulsgenerators, Alter > 17 J. | D181: 2.398 | E181: 2.36 | H181: 6 | I181: 1 | J181: 0.491 | K181: 14 | L181: 0.054 | M181: 0.066 | P181: 0.8656
A182: F01F | B182: O | C182: Impl. Kardioverter / Defibrillator (AICD), Einkammer-Stimulation, ohne zusätzl. Herz- od. Gefäßeingriff, ohne IntK > 392 / 368 / - P., ohne äuß. schw. CC, ohne aufw. Sondenentf., ohne Impl. Drucksens. in Pulmonalart., ohne Impl. Pulsgen., Alter > 17 J. | D182: 1.939 | E182: 1.905 | H182: 5.2 | I182: 1 | J182: 0.406 | K182: 13 | L182: 0.052 | M182: 0.063 | P182: 0.8428
A183: F02A | B183: O | C183: Aggregatwechsel eines Kardioverters / Defibrillators (AICD), Zwei- oder Dreikammer-Stimulation | D183: 1.859 | E183: 1.826 | H183: 2.8 | I183: 1 | J183: 0.234 | K183: 7 | L183: 0.054 | M183: 0.057 | P183: 0.9142
A184: F02B | B184: O | C184: Aggregatwechsel eines Kardioverters / Defibrillators (AICD), Einkammer-Stimulation | D184: 1.575 | E184: 1.542 | H184: 2.9 | I184: 1 | J184: 0.218 | K184: 7 | L184: 0.052 | M184: 0.055 | P184: 0.8931
A185: F08B | B185: O | C185: Rekonstruktive Gefäßeingriffe ohne komplizierende Konstellationen, ohne komplexe Vakuumbehandlung, ohne komplexen Aorteneingriff, mit komplexem Eingriff mit Mehretagen- oder Aorteneingriff oder Re-OP oder bestimmten Bypässen, mit äußerst schweren CC | D185: 4.334 | E185: 4.052 | H185: 23.8 | I185: 7 | J185: 0.282 | K185: 42 | L185: 0.067 | M185: 0.091 | P185: 1.0501
A186: F08C | B186: O | C186: Rekonstruktive Gefäßeingriffe ohne kompl. Konst., ohne kompl. Vakuumbeh., ohne kompl. Aorteneingriff, mit kompl. Eingriff ohne Mehretagen- od. Aorteneingriff, ohne Reop., ohne bestimmten Bypass, mit äußerst schweren CC oder mit bestimmtem Aorteneingriff | D186: 3.398 | E186: 3.184 | H186: 19.4 | I186: 5 | J186: 0.279 | K186: 37 | L186: 0.061 | M186: 0.083 | P186: 0.9103
A187: F08D | B187: O | C187: Rekonstruktive Gefäßeingriffe ohne kompl. Konst., ohne kompl. Aorteneingriff, mit kompl. Eingr. mit Mehretagen- oder Aorteneingriff oder Reop. oder best. Byp., ohne äuß. schw. CC, ohne best. Aorteneingriff oder bestimmter Bypass mit äußerst schweren CC | D187: 2.385 | E187: 2.194 | H187: 13.8 | I187: 4 | J187: 0.214 | K187: 27 | L187: 0.054 | M187: 0.072 | P187: 0.882
A188: F08E | B188: O | C188: Rekonstruktive Gefäßeingriffe ohne kompl. Konst., ohne kompl. Vakuumbeh., ohne kompl. Aorteneingriff, mit komplex. Eingriff, ohne Mehretagen- oder Aorteneingriff, ohne Reop., ohne bestimmten Bypass, ohne äußerst schwere CC, ohne bestimmten Aorteneingriff | D188: 1.935 | E188: 1.78 | H188: 10.4 | I188: 2 | J188: 0.245 | K188: 22 | L188: 0.05 | M188: 0.065 | P188: 0.7526
A189: F08F | B189: O | C189: Rekonstruktive Gefäßeingriffe ohne komplizierende Konstellation, ohne komplexe Vakuumbehandlung, ohne komplexen Aorteneingriff, ohne komplexen Eingriff, ohne bestimmten Aorteneingriff, mit bestimmtem Eingriff | D189: 1.581 | E189: 1.443 | H189: 10.4 | I189: 2 | J189: 0.208 | K189: 20 | L189: 0.042 | M189: 0.055 | P189: 0.6981
A190: F08G | B190: O | C190: Rekonstruktive Gefäßeingriffe ohne komplizierende Konstellation, ohne komplexe Vakuumbehandlung, ohne komplexen Aorteneingriff, ohne komplexen Eingriff, ohne bestimmten Aorteneingriff, ohne bestimmten Eingriff | D190: 1.384 | E190: 1.253 | H190: 7.5 | I190: 1 | J190: 0.244 | K190: 14 | L190: 0.046 | M190: 0.058 | P190: 0.7201
A191: F12B | B191: O | C191: Implantation eines Herzschrittmachers, Dreikammersystem ohne äußerst schwere CC, ohne ablative Maßnahme, ohne PTCA oder Implantation eines Herzschrittmachers ohne aufwendige Sondenentfernung mit komplizierenden Faktoren | D191: 2.08 | E191: 2.047 | H191: 5.8 | I191: 1 | J191: 0.602 | K191: 14 | L191: 0.052 | M191: 0.063 | P191: 0.8481
A192: F12C | B192: O | C192: Implantation eines Herzschrittmachers, Zweikammersystem, mit komplexem Eingriff oder Alter < 16 Jahre | D192: 2.141 | E192: 2.108 | H192: 9.1 | I192: 2 | J192: 0.26 | K192: 19 | L192: 0.06 | M192: 0.078 | P192: 1.0989
A193: F12D | B193: O | C193: Implantation eines Herzschrittmachers, Zweikammersystem, ohne komplexen Eingriff, Alter > 15 Jahre, mit äußerst schweren CC oder isolierter offen chirurgischer Sondenimplantation oder aufwendiger Sondenentfernung oder mäßig komplexer PTCA | D193: 1.966 | E193: 1.927 | H193: 11.9 | I193: 3 | J193: 0.277 | K193: 25 | L193: 0.066 | M193: 0.086 | P193: 1.1626
A194: F12E | B194: O | C194: Implantation eines Herzschrittmachers, Einkammersystem oder Implantation eines Ereignisrekorders, Alter > 15 Jahre, mit invasiver kardiologischer Diagnostik bei bestimmten Eingriffen | D194: 1.476 | E194: 1.468 | H194: 7.9 | I194: 2 | J194: 0.193 | K194: 17 | L194: 0.051 | M194: 0.065 | P194: 0.7734
A195: F12F | B195: O | C195: Impl. HSM, Zweikammersys., oh. äuß. schwere CC, oh. isol. offen chir. Sondenimpl., oh. aufw. Sondenentf., oh. mäßig kompl. PTCA od. Impl. HSM, Einkammersys. od. Impl. Ereignisrekorder, oh. invasive kardiol. Diagnostik bei best. Eingriffen, Alter > 15 J. | D195: 1.026 | E195: 1.004 | H195: 4.4 | I195: 1 | J195: 0.323 | K195: 12 | L195: 0.065 | M195: 0.076 | P195: 0.8834
A196: F13A | B196: O | C196: Amputation bei Kreislauferkrankungen an oberer oder unterer Extremität oder Revisionseingriff mit äußerst schweren CC und mehrzeitigen Revisions- oder Rekonstruktionseingriffen | D196: 3.879 | E196: 3.647 | H196: 38.1 | I196: 12 | J196: 0.193 | K196: 56 | L196: 0.046 | M196: 0.064 | P196: 0.8761
A197: F13B | B197: O | C197: Amputation bei Kreislauferkrankungen an oberer oder unterer Extremität oder Revisionseingriff mit äußerst schweren CC, ohne mehrzeitige Revisions- oder Rekonstruktionseingriffe | D197: 1.513 | E197: 1.452 | H197: 17.7 | I197: 5 | J197: 0.191 | K197: 33 | L197: 0.046 | M197: 0.062 | P197: 0.8366
A198: F13C | B198: O | C198: Amputation bei Kreislauferkrankungen an oberer oder unterer Extremität oder Revisionseingriff ohne äußerst schwere CC | D198: 1.076 | E198: 1.022 | H198: 13.5 | I198: 4 | J198: 0.154 | K198: 26 | L198: 0.04 | M198: 0.053 | P198: 0.7021
A199: F14A | B199: O | C199: Komplexe oder mehrfache Gefäßeingriffe außer große rekonstruktive Eingriffe mit äußerst schweren CC | D199: 3.171 | E199: 2.967 | H199: 22.1 | I199: 6 | J199: 0.248 | K199: 40 | L199: 0.055 | M199: 0.076 | P199: 0.9057
A200: F14B | B200: O | C200: Komplexe oder mehrfache Gefäßeingriffe außer große rekonstruktive Eingriffe, ohne äußerst schwere CC | D200: 1.765 | E200: 1.635 | H200: 10.8 | I200: 3 | J200: 0.201 | K200: 23 | L200: 0.052 | M200: 0.069 | P200: 0.7462
A201: F17B | B201: O | C201: Wechsel eines Herzschrittmachers, Einkammer- oder Zweikammersystem, Alter > 15 Jahre | D201: 0.61 | E201: 0.593 | H201: 2.7 | I201: 1 | J201: 0.063 | K201: 7 | L201: 0.05 | M201: 0.053 | P201: 0.8653
... 595 more rows

Sheet BA2022A (hidden)
A1: Anlage 1 | Q1: aG-DRG-Version 2022 und Pflegeerlöskatalog 2022
A2: Fallpauschalen-Katalog und Pflegeerlöskatalog
A3: Teil e) Bewertungsrelationen mit gezielter Absenkung in Abhängigkeit der Median-Fallzahl bei Versorgung durch Belegabteilungen
A5: DRG | B5: Parti- tion | C5: Bezeichnung | D5: Bewertungsrelation bei Belegoperateur | E5: Bewertungsrelation bei Belegoperateur und Beleganästhesist | F5: Bewertungsrelation bei Belegoperateur und Beleghebamme | G5: Bewertungsrelation bei Belegoperateur, Beleganästhesist und Beleghebamme | H5: Mittlere Verweil- dauer 1) | I5: Untere Grenz-verweildauer: Erster Tag mit Abschlag 2), 5) | J5: Untere Grenz-verweildauer: Bewertungs- relation pro Tag | K5: Obere Grenz-verweildauer: Erster Tag mit zusätzlichem Entgelt 3), 5) | L5: Obere Grenz-verweildauer: Bewertungs- relation pro Tag | M5: Externe Verlegung Abschlag pro Tag (Bewertungsrelation) | N5: Verlegungs- fallpauschale | O5: Ausnahme von Wiederaufnahme 4) | P5: Median-Fallzahl | Q5: Pflegeerlös Bewertungs-relation pro Tag
A6: 1 | B6: 2 | C6: 3 | D6: 4 | E6: 5 | F6: 6 | G6: 7 | H6: 8 | I6: 9 | J6: 10 | K6: 11 | L6: 12 | M6: 13 | N6: 14 | O6: 15 | P6: 16 | Q6: 17
A7: MDC 08 Krankheiten und Störungen an Muskel-Skelett-System und Bindegewebe
A8: I68D | B8: M | C8: Nicht operativ behandelte Erkrankungen und Verletzungen WS, > 1 Belegungstag oder andere Femurfraktur, außer bei Diszitis oder infektiöser Spondylopathie, ohne Kreuzbeinfraktur, ohne best. mäßig aufw., aufw. od. hochaufw. Beh., mit Wirbelsäulenfraktur | D8: 0.436 | E8: 0.435 | H8: 6.5 | I8: 1 | J8: 0.232 | K8: 13 | L8: 0.05 | M8: 0.062 | P8: 27 | Q8: 0.7501
A9: I68E | B9: M | C9: Nicht operativ behandelte Erkrankungen und Verletzungen WS, > 1 Belegungstag oder andere Femurfraktur, außer bei Diszitis oder infektiöser Spondylopathie, ohne Kreuzbeinfraktur, ohne best. mäßig aufw., aufw. od. hochaufw. Beh., oh. Wirbelsäulenfraktur | D9: 0.245 | E9: 0.245 | H9: 5.3 | I9: 1 | J9: 0.127 | K9: 10 | L9: 0.034 | M9: 0.041 | P9: 140 | Q9: 0.6336
A10: I68F | B10: M | C10: Nicht operativ behandelte Erkrankungen und Verletzungen im Wirbelsäulenbereich, ein Belegungstag oder Prellung am Oberschenkel | D10: 0.156 | E10: 0.154 | H10: 1 | P10: 40 | Q10: 1.0087

Sheet ZE2022.A2 (hidden)
A1: Anlage 2 | C1: aG-DRG-Version 2022
A3: Zusatzentgelte-Katalog 1)
A4: - Liste -
A6: ZE | B6: Bezeichnung | C6: Betrag
A7: 1 | B7: 2 | C7: 3
A8: ZE01.01 2) | B8: Hämodialyse, intermittierend, Alter > 14 Jahre | C8: 157.24
A9: ZE01.02 2) | B9: Hämodialyse, intermittierend, Alter < 15 Jahre | C9: 356.58
A10: ZE02 2) | B10: Hämodiafiltration, intermittierend | C10: 164.93
A11: ZE09 | B11: Vollimplantierbare Medikamentenpumpe mit programmierbarem variablen Tagesprofil | C11: 9420.6
A12: ZE10 | B12: Künstlicher Blasenschließmuskel | C12: 3370.92
A13: ZE11 | B13: Wirbelkörperersatz | C13: siehe Anlage 5
A14: ZE17 | B14: Gabe von Gemcitabin, parenteral | C14: siehe Anlage 5
A15: ZE19 | B15: Gabe von Irinotecan, parenteral | C15: siehe Anlage 5
A16: ZE30 3) | B16: Gabe von Prothrombinkomplex, parenteral | C16: siehe Anlage 5
A17: ZE36 | B17: Plasmapherese | C17: siehe Anlage 5
A18: ZE37 | B18: Extrakorporale Photopherese | C18: 1253.24
A19: ZE44 | B19: Gabe von Topotecan, parenteral | C19: siehe Anlage 5
A20: ZE47 | B20: Gabe von Antithrombin III, parenteral | C20: siehe Anlage 5
A21: ZE48 | B21: Gabe von Aldesleukin, parenteral | C21: siehe Anlage 5
A22: ZE50 | B22: Gabe von Cetuximab, parenteral | C22: siehe Anlage 5
A23: ZE51 | B23: Gabe von Human-Immunglobulin, spezifisch gegen Hepatitis-B-surface-Antigen, parenteral | C23: siehe Anlage 5
A24: ZE52 | B24: Gabe von Liposomalem Doxorubicin, parenteral | C24: siehe Anlage 5
A25: ZE56 | B25: Vollimplantierbare Medikamentenpumpe mit konstanter Flussrate | C25: 3488.13
A26: ZE58 | B26: Hydraulische Penisprothesen | C26: 5937.54
A27: ZE60 | B27: Palliativmedizinische Komplexbehandlung | C27: siehe Anlage 5
A28: ZE61 | B28: LDL-Apherese | C28: 1015.62
A29: ZE62 2) | B29: Hämofiltration, intermittierend | C29: 220.27
A30: ZE63 | B30: Gabe von Paclitaxel, parenteral | C30: siehe Anlage 5
A31: ZE64 | B31: Gabe von Human-Immunglobulin, spezifisch gegen Zytomegalie-Virus, parenteral | C31: siehe Anlage 5
A32: ZE67 | B32: Gabe von Human-Immunglobulin, spezifisch gegen Varicella-Zoster-Virus, parenteral | C32: siehe Anlage 5
A33: ZE70 | B33: Gabe von C1-Esteraseinhibitor, parenteral | C33: siehe Anlage 5
A34: ZE72 | B34: Gabe von Pegyliertem liposomalen Doxorubicin, parenteral | C34: siehe Anlage 5
A35: ZE78 | B35: Gabe von Temozolomid, oral | C35: siehe Anlage 5
A36: ZE80 | B36: Gabe von Docetaxel, parenteral | C36: siehe Anlage 5
A37: ZE93 | B37: Gabe von Human-Immunglobulin, polyvalent, parenteral | C37: siehe Anlage 5
A38: ZE96 | B38: Gabe von Carmustin, Implantat, intrathekal | C38: siehe Anlage 5
A39: ZE97 | B39: Gabe von Natalizumab, parenteral | C39: siehe Anlage 5
A40: ZE98 | B40: Gabe von Palivizumab, parenteral | C40: siehe Anlage 5
A41: ZE100 | B41: Implantation eines endobronchialen Klappensystems | C41: siehe Anlage 5
A42: ZE101 | B42: Medikamente-freisetzende Koronarstents | C42: siehe Anlage 5
A43: ZE105 | B43: Selektive Embolisation mit Metallspiralen (Coils) an Kopf, Hals (intra- und extrakraniell) und spinalen Gefäßen oder mit großlumigem Gefäßverschlusskörper | C43: siehe Anlage 5
A44: ZE106 | B44: Selektive Embolisation mit Metallspiralen (Coils), andere Lokalisationen | C44: siehe Anlage 5
A45: ZE107 | B45: Gabe von Erythrozytenkonzentraten | C45: siehe Anlage 5
A46: ZE108 | B46: Gabe von patientenbezogenen Thrombozytenkonzentraten | C46: siehe Anlage 5
A47: ZE110 | B47: Gabe von Liposomalem Amphotericin B, parenteral | C47: siehe Anlage 5
A48: ZE113 | B48: Gabe von Itraconazol, parenteral | C48: siehe Anlage 5
A49: ZE116 | B49: Gabe von Panitumumab, parenteral | C49: siehe Anlage 5
A50: ZE117 | B50: Gabe von Trabectedin, parenteral | C50: siehe Anlage 5
A51: ZE119 2) | B51: Hämofiltration, kontinuierlich | C51: siehe Anlage 5
A52: ZE120 2) | B52: Hämodialyse, kontinuierlich, venovenös, pumpengetrieben (CVVHD) | C52: siehe Anlage 5
A53: ZE121 2) | B53: Hämodiafiltration, kontinuierlich | C53: siehe Anlage 5
A54: ZE122 2) | B54: Peritonealdialyse, intermittierend, maschinell unterstützt (IPD) | C54: 204.32
A55: ZE123 2) | B55: Peritonealdialyse, kontinuierlich, nicht maschinell unterstützt (CAPD) | C55: siehe Anlage 5
A56: ZE125 | B56: Implantation oder Wechsel eines interspinösen Spreizers | C56: siehe Anlage 5
A57: ZE126 | B57: Autogene / Autologe matrixinduzierte Chondrozytentransplantation | C57: 4122.06
A58: ZE132 | B58: Implantation eines Wachstumsstents | C58: siehe Anlage 5
A59: ZE135 | B59: Gabe von Vinflunin, parenteral | C59: siehe Anlage 5
A60: ZE136 | B60: Medikamente-freisetzende Ballons an Koronargefäßen | C60: siehe Anlage 5
A61: ZE137 | B61: Medikamente-freisetzende Ballons an anderen Gefäßen | C61: siehe Anlage 5
A62: ZE138 | B62: Neurostimulatoren zur Rückenmarkstimulation oder zur Stimulation des peripheren Nervensystems, Einkanalstimulator, mit Sondenimplantation | C62: 7085.57
A63: ZE139 | B63: Neurostimulatoren zur Rückenmarkstimulation oder zur Stimulation des peripheren Nervensystems, Einkanalstimulator, ohne Sondenimplantation | C63: 5365.43
A64: ZE140 | B64: Neurostimulatoren zur Rückenmarkstimulation oder zur Stimulation des peripheren Nervensystems, Mehrkanalstimulator, nicht wiederaufladbar, mit Sondenimplantation | C64: 11364.97
A65: ZE141 | B65: Neurostimulatoren zur Rückenmarkstimulation oder zur Stimulation des peripheren Nervensystems, Mehrkanalstimulator, nicht wiederaufladbar, ohne Sondenimplantation | C65: 9932.26
A66: ZE143 | B66: Gabe von Plerixafor, parenteral | C66: siehe Anlage 5
A67: ZE144 | B67: Gabe von Romiplostim, parenteral | C67: siehe Anlage 5
A68: ZE145 | B68: Spezialisierte stationäre palliativmedizinische Komplexbehandlung | C68: siehe Anlage 5
A69: ZE146 | B69: Gabe von Thrombozytenkonzentraten | C69: siehe Anlage 5
A70: ZE147 | B70: Gabe von Apherese-Thrombozytenkonzentraten | C70: siehe Anlage 5
A71: ZE151 | B71: Gabe von Abatacept, intravenös | C71: siehe Anlage 5
A72: ZE152 | B72: Perkutan-transluminale Fremdkörperentfernung und Thrombektomie an intrakraniellen Gefäßen unter Verwendung eines Stentretriever | C72: siehe Anlage 5
A73: ZE153 | B73: Zügeloperation mit alloplastischem Material, adjustierbar | C73: 126.25
A74: ZE154 | B74: Gabe von Eculizumab, parenteral | C74: siehe Anlage 5
A75: ZE156 | B75: Gabe von Decitabin, parenteral | C75: siehe Anlage 5
A76: ZE157 | B76: Gabe von Tocilizumab, intravenös | C76: siehe Anlage 5
A77: ZE158 | B77: Vagusnervstimulationssysteme, mit Sondenimplantation | C77: 11126.56
A78: ZE159 | B78: Vagusnervstimulationssysteme, ohne Sondenimplantation | C78: 8935.16
A79: ZE161 | B79: Radiofrequenzablation Ösophagus | C79: 1439.31
A80: ZE162 4) | B80: Erhöhter Pflegeaufwand bei pflegebedürftigen Patienten (DRG-Tabelle 1) | C80: 15.12
A81: ZE163 5) | B81: Erhöhter Pflegeaufwand bei pflegebedürftigen Patienten (DRG-Tabelle 2) | C81: 31.3
A82: ZE164 | B82: Gabe von pathogeninaktivierten Thrombozytenkonzentraten | C82: siehe Anlage 5
A83: ZE165 | B83: Gabe von pathogeninaktivierten Apherese-Thrombozytenkonzentraten | C83: siehe Anlage 5
A84: ZE168 | B84: Gabe von Ipilimumab, parenteral | C84: siehe Anlage 5
A85: ZE169 | B85: Adjustierbare Harnkontinenztherapien | C85: 2673.9
A86: ZE170 | B86: Suspensionsoperation bei Harninkontinenz des Mannes | C86: 1677.12
A88: Fußnoten:
A90: 1) | B90: Die jeweiligen Definitionen (OPS-Kodes und OPS-Texte) sowie die fehlenden differenzierten €-Beträge sind in Anlage 5 aufgeführt.
A91: 2) | B91: Eine zusätzliche Abrechnung ist im Zusammenhang mit einer Fallpauschale der Basis-DRG L60 oder L71 oder der DRG L90B oder L90C und dem nach Anlage 3b krankenhausindividuell zu vereinbarenden Entgelt L90A nicht möglich.
A92: 3) | B92: Bei der Behandlung von Blutern mit Blutgerinnungsfaktoren erfolgt die Abrechnung der Gabe von Prothrombinkomplex über das ZE2022-97 nach Anlage 4 bzw. 6, die gleichzeitige Abrechnung des ZE30 ist ausgeschlossen.
A93: 4) | B93: Das Zusatzentgelt ist ab einer Mindestverweildauer von 5 Belegungstagen und nur in Verbindung mit einer der in Anlage 8 Tabelle 1 genannten DRG-Fallpauschale abrechenbar.
A94: 5) | B94: Das Zusatzentgelt ist ab einer Mindestverweildauer von 5 Belegungstagen und nur in Verbindung mit einer der in Anlage 8 Tabelle 2 genannten DRG-Fallpauschale abrechenbar.

Sheet ZE2022.A5 (hidden)
A1: Anlage 5 | F1: aG-DRG-Version 2022
A3: Zusatzentgelte-Katalog
A4: - Definition und differenzierte Beträge -
A6: ZE | B6: Bezeichnung | C6: ZED | D6: OPS Version 2022: OPS-Kode | E6: OPS Version 2022: OPS-Text | F6: Betrag
A7: 1 | B7: 2 | C7: 3 | D7: 4 | E7: 5 | F7: 6
A8: ZE01.01 1) | B8: Hämodialyse, intermittierend, Alter > 14 Jahre | D8: 8-854.2 | E8: Hämodialyse: Intermittierend, Antikoagulation mit Heparin oder ohne Antikoagulation | F8: siehe Anlage 2
D9: 8-854.3 | E9: Hämodialyse: Intermittierend, Antikoagulation mit sonstigen Substanzen
D10: 8-854.4 | E10: Hämodialyse: Verlängert intermittierend, Antikoagulation mit Heparin oder ohne Antikoagulation
D11: 8-854.5 | E11: Hämodialyse: Verlängert intermittierend, Antikoagulation mit sonstigen Substanzen
A12: ZE01.02 1) | B12: Hämodialyse, intermittierend, Alter < 15 Jahre | D12: 8-854.2 | E12: Hämodialyse: Intermittierend, Antikoagulation mit Heparin oder ohne Antikoagulation | F12: siehe Anlage 2
D13: 8-854.3 | E13: Hämodialyse: Intermittierend, Antikoagulation mit sonstigen Substanzen
D14: 8-854.4 | E14: Hämodialyse: Verlängert intermittierend, Antikoagulation mit Heparin oder ohne Antikoagulation
D15: 8-854.5 | E15: Hämodialyse: Verlängert intermittierend, Antikoagulation mit sonstigen Substanzen
A16: ZE02 1) | B16: Hämodiafiltration, intermittierend | D16: 8-855.3 | E16: Hämodiafiltration: Intermittierend, Antikoagulation mit Heparin oder ohne Antikoagulation | F16: siehe Anlage 2
D17: 8-855.4 | E17: Hämodiafiltration: Intermittierend, Antikoagulation mit sonstigen Substanzen
D18: 8-855.5 | E18: Hämodiafiltration: Verlängert intermittierend, Antikoagulation mit Heparin oder ohne Antikoagulation
D19: 8-855.6 | E19: Hämodiafiltration: Verlängert intermittierend, Antikoagulation mit sonstigen Substanzen
A20: ZE09 | B20: Vollimplantierbare Medikamentenpumpe mit programmierbarem variablen Tagesprofil | D20: 5-028.11 | E20: Funktionelle Eingriffe an Schädel, Gehirn und Hirnhäuten: Implantation oder Wechsel einer Medikamentenpumpe zur intraventrikulären Infusion: Vollimplantierbare Medikamentenpumpe mit programmierbarem variablen Tagesprofil | F20: siehe Anlage 2
D21: 5-038.41 | E21: Operationen am spinalen Liquorsystem: Implantation oder Wechsel einer Medikamentenpumpe zur intrathekalen und/oder epiduralen Infusion: Vollimplantierbare Medikamentenpumpe mit programmierbarem variablen Tagesprofil
A22: ZE10 | B22: Künstlicher Blasenschließmuskel | D22: 5-597.0* | E22: Eingriffe bei artifiziellem Harnblasensphinkter: Implantation | F22: siehe Anlage 2
D23: 5-597.30 | E23: Eingriffe bei artifiziellem Harnblasensphinkter: Wechsel: Vollständig, bulbär, 1 Cuff
D24: 5-597.31 | E24: Eingriffe bei artifiziellem Harnblasensphinkter: Wechsel: Vollständig, bulbär, 2 Cuffs
D25: 5-597.32 | E25: Eingriffe bei artifiziellem Harnblasensphinkter: Wechsel: Vollständig, am Blasenhals
A26: ZE11 | B26: Wirbelkörperersatz | E26: Wirbelkörperersatz: Wirbelkörperersatz durch Implantat
C27: ZE11.01 | D27: 5-837.00 | E27: 1 Wirbelkörper | F27: 832.87
C28: ZE11.02 | D28: 5-837.01 | E28: 2 Wirbelkörper | F28: 1448.82
C29: ZE11.03 | D29: 5-837.02 | E29: 3 Wirbelkörper | F29: 2064.77
C30: ZE11.04 | D30: 5-837.04 | E30: 4 Wirbelkörper | F30: 2680.72
C31: ZE11.05 | D31: 5-837.05 | E31: 5 oder mehr Wirbelkörper | F31: 3296.67
A32: ZE17 | B32: Gabe von Gemcitabin, parenteral | E32: Applikation von Medikamenten, Liste 1: Gemcitabin, parenteral
C33: ZE17.10 | D33: 6-001.19 | E33: 19,0 g bis unter 22,0 g | F33: 207.34
C34: ZE17.11 | D34: 6-001.1a | E34: 22,0 g bis unter 25,0 g | F34: 238.44
C35: ZE17.12 | D35: 6-001.1b | E35: 25,0 g bis unter 28,0 g | F35: 269.54
C36: ZE17.13 | D36: 6-001.1c | E36: 28,0 g bis unter 31,0 g | F36: 300.64
C37: ZE17.14 | D37: 6-001.1d | E37: 31,0 g bis unter 34,0 g | F37: 331.74
C38: ZE17.15 | D38: 6-001.1e | E38: 34,0 g oder mehr | F38: 362.84
A39: ZE19 | B39: Gabe von Irinotecan, parenteral | E39: Applikation von Medikamenten, Liste 1: Irinotecan, parenteral
C40: ZE19.14 | D40: 6-001.3d | E40: 2.000 mg bis unter 2.200 mg | F40: 143.84
C41: ZE19.15 | D41: 6-001.3e | E41: 2.200 mg bis unter 2.400 mg | F41: 157.76
C42: ZE19.16 | D42: 6-001.3f | E42: 2.400 mg bis unter 2.600 mg | F42: 171.68
C43: ZE19.17 | D43: 6-001.3g | E43: 2.600 mg bis unter 2.800 mg | F43: 185.6
C44: ZE19.18 | D44: 6-001.3h | E44: 2.800 mg bis unter 3.000 mg | F44: 199.52
C45: ZE19.19 | D45: 6-001.3j | E45: 3.000 mg oder mehr | F45: 213.44
A46: ZE30 8) | B46: Gabe von Prothrombinkomplex, parenteral | E46: Transfusion von Plasma und anderen Plasmabestandteilen und gentechnisch hergestellten Plasmaproteinen: Prothrombinkomplex
C47: ZE30.02 | D47: 8-812.53 | E47: 3.500 IE bis unter 4.500 IE | F47: 859.14
C48: ZE30.03 | D48: 8-812.54 | E48: 4.500 IE bis unter 5.500 IE | F48: 1087.02
C49: ZE30.04 | D49: 8-812.55 | E49: 5.500 IE bis unter 6.500 IE | F49: 1311.92
C50: ZE30.05 | D50: 8-812.56 | E50: 6.500 IE bis unter 7.500 IE | F50: 1536.82
C51: ZE30.06 | D51: 8-812.57 | E51: 7.500 IE bis unter 8.500 IE | F51: 1761.72
C52: ZE30.07 | D52: 8-812.58 | E52: 8.500 IE bis unter 9.500 IE | F52: 1986.62
C53: ZE30.08 | D53: 8-812.59 | E53: 9.500 IE bis unter 10.500 IE | F53: 2211.52
C54: ZE30.09 | D54: 8-812.5a | E54: 10.500 IE bis unter 15.500 IE | F54: 2736.28
C55: ZE30.10 | D55: 8-812.5b | E55: 15.500 IE bis unter 20.500 IE | F55: 3860.78
C56: ZE30.11 | D56: 8-812.5c | E56: 20.500 IE bis unter 25.500 IE | F56: 4985.28
C57: ZE30.12 | D57: 8-812.5d | E57: 25.500 IE bis unter 30.500 IE | F57: 6109.78
C58: ZE30.13 | E58: Siehe weitere Differenzierung ZE30.14 - ZE30.23
C59: ZE30.14 | D59: 8-812.5f | E59: 30.500 IE bis unter 40.500 IE | F59: 7421.7
C60: ZE30.15 | D60: 8-812.5g | E60: 40.500 IE bis unter 50.500 IE | F60: 9670.7
C61: ZE30.16 | D61: 8-812.5h | E61: 50.500 IE bis unter 60.500 IE | F61: 11919.7
C62: ZE30.17 | D62: 8-812.5j | E62: 60.500 IE bis unter 80.500 IE | F62: 14730.95
C63: ZE30.18 | D63: 8-812.5k | E63: 80.500 IE bis unter 100.500 IE | F63: 19228.95
C64: ZE30.19 | D64: 8-812.5m | E64: 100.500 IE bis unter 120.500 IE | F64: 23726.95
C65: ZE30.20 | D65: 8-812.5n | E65: 120.500 IE bis unter 140.500 IE | F65: 28224.95
C66: ZE30.21 | D66: 8-812.5p | E66: 140.500 IE bis unter 160.500 IE | F66: 32722.95
C67: ZE30.22 | D67: 8-812.5q | E67: 160.500 IE bis unter 200.500 IE | F67: 38345.45
C68: ZE30.23 | D68: 8-812.5r | E68: 200.500 IE oder mehr | F68: 47341.45
A69: ZE36 | B69: Plasmapherese | E69: Therapeutische Plasmapherese
C70: ZE36.01 | D70: 8-820.00 | E70: 1 Plasmapherese | F70: 1099.79
D71: 8-820.10 | E71: 1 Plasmapherese
D72: 8-820.20 | E72: 1 Plasmapherese
D73: 8-826.*0 | E73: 1 Doppelfiltrationsplasmapherese
C74: ZE36.02 | D74: 8-820.01 | E74: 2 Plasmapheresen | F74: 2199.58
D75: 8-820.11 | E75: 2 Plasmapheresen
D76: 8-820.21 | E76: 2 Plasmapheresen
D77: 8-826.*1 | E77: 2 Doppelfiltrationsplasmapheresen
C78: ZE36.03 | D78: 8-820.02 | E78: 3 Plasmapheresen | F78: 3299.37
D79: 8-820.12 | E79: 3 Plasmapheresen
D80: 8-820.22 | E80: 3 Plasmapheresen
D81: 8-826.*2 | E81: 3 Doppelfiltrationsplasmapheresen
C82: ZE36.04 | D82: 8-820.03 | E82: 4 Plasmapheresen | F82: 4399.16
D83: 8-820.13 | E83: 4 Plasmapheresen
D84: 8-820.23 | E84: 4 Plasmapheresen
D85: 8-826.*3 | E85: 4 Doppelfiltrationsplasmapheresen
C86: ZE36.05 | D86: 8-820.04 | E86: 5 Plasmapheresen | F86: 5498.95
D87: 8-820.14 | E87: 5 Plasmapheresen
D88: 8-820.24 | E88: 5 Plasmapheresen
D89: 8-826.*4 | E89: 5 Doppelfiltrationsplasmapheresen
C90: ZE36.06 | D90: 8-820.08 | E90: 6 Plasmapheresen | F90: 6598.74
D91: 8-820.18 | E91: 6 Plasmapheresen
D92: 8-820.25 | E92: 6 Plasmapheresen
D93: 8-826.*5 | E93: 6 Doppelfiltrationsplasmapheresen
C94: ZE36.07 | D94: 8-820.09 | E94: 7 Plasmapheresen | F94: 7698.53
D95: 8-820.19 | E95: 7 Plasmapheresen
D96: 8-820.26 | E96: 7 Plasmapheresen
D97: 8-826.*6 | E97: 7 Doppelfiltrationsplasmapheresen
C98: ZE36.08 | D98: 8-820.0a | E98: 8 Plasmapheresen | F98: 8798.32
D99: 8-820.1a | E99: 8 Plasmapheresen
D100: 8-820.27 | E100: 8 Plasmapheresen
D101: 8-826.*7 | E101: 8 Doppelfiltrationsplasmapheresen
C102: ZE36.09 | D102: 8-820.0b | E102: 9 Plasmapheresen | F102: 9898.11
D103: 8-820.1b | E103: 9 Plasmapheresen
D104: 8-820.28 | E104: 9 Plasmapheresen
D105: 8-826.*8 | E105: 9 Doppelfiltrationsplasmapheresen
C106: ZE36.10 | D106: 8-820.0c | E106: 10 Plasmapheresen | F106: 10997.9
D107: 8-820.1c | E107: 10 Plasmapheresen
D108: 8-820.29 | E108: 10 Plasmapheresen
D109: 8-826.*9 | E109: 10 Doppelfiltrationsplasmapheresen
C110: ZE36.11 | D110: 8-820.0d | E110: 11 Plasmapheresen | F110: 12097.69
D111: 8-820.1d | E111: 11 Plasmapheresen
D112: 8-820.2a | E112: 11 Plasmapheresen
D113: 8-826.*a | E113: 11 Doppelfiltrationsplasmapheresen
C114: ZE36.12 | D114: 8-820.0e | E114: 12 Plasmapheresen | F114: 13197.48
D115: 8-820.1e | E115: 12 Plasmapheresen
D116: 8-820.2b | E116: 12 Plasmapheresen
D117: 8-826.*b | E117: 12 Doppelfiltrationsplasmapheresen
C118: ZE36.13 | D118: 8-820.0f | E118: 13 Plasmapheresen | F118: 14297.27
D119: 8-820.1f | E119: 13 Plasmapheresen
D120: 8-820.2c | E120: 13 Plasmapheresen
D121: 8-826.*c | E121: 13 Doppelfiltrationsplasmapheresen
C122: ZE36.14 | D122: 8-820.0g | E122: 14 Plasmapheresen | F122: 15397.06
D123: 8-820.1g | E123: 14 Plasmapheresen
D124: 8-820.2d | E124: 14 Plasmapheresen
D125: 8-826.*d | E125: 14 Doppelfiltrationsplasmapheresen
C126: ZE36.15 | D126: 8-820.0h | E126: 15 Plasmapheresen | F126: 16496.85
D127: 8-820.1h | E127: 15 Plasmapheresen
D128: 8-820.2e | E128: 15 Plasmapheresen
D129: 8-826.*e | E129: 15 Doppelfiltrationsplasmapheresen
C130: ZE36.16 | D130: 8-820.0j | E130: 16 bis 17 Plasmapheresen | F130: 18146.54
D131: 8-820.1j | E131: 16 bis 17 Plasmapheresen
D132: 8-820.2f | E132: 16 bis 17 Plasmapheresen
D133: 8-826.*f | E133: 16 bis 17 Doppelfiltrationsplasmapheresen
C134: ZE36.17 | D134: 8-820.0k | E134: 18 bis 19 Plasmapheresen | F134: 20346.12
D135: 8-820.1k | E135: 18 bis 19 Plasmapheresen
D136: 8-820.2g | E136: 18 bis 19 Plasmapheresen
D137: 8-826.*g | E137: 18 bis 19 Doppelfiltrationsplasmapheresen
C138: ZE36.18 | D138: 8-820.0m | E138: 20 bis 21 Plasmapheresen | F138: 22545.7
D139: 8-820.1m | E139: 20 bis 21 Plasmapheresen
D140: 8-820.2h | E140: 20 bis 21 Plasmapheresen
D141: 8-826.*h | E141: 20 bis 21 Doppelfiltrationsplasmapheresen
C142: ZE36.19 | D142: 8-820.0n | E142: 22 bis 23 Plasmapheresen | F142: 24745.28
D143: 8-820.1n | E143: 22 bis 23 Plasmapheresen
D144: 8-820.2j | E144: 22 bis 23 Plasmapheresen
D145: 8-826.*j | E145: 22 bis 23 Doppelfiltrationsplasmapheresen
C146: ZE36.20 | D146: 8-820.0p | E146: 24 bis 25 Plasmapheresen | F146: 26944.86
D147: 8-820.1p | E147: 24 bis 25 Plasmapheresen
D148: 8-820.2k | E148: 24 bis 25 Plasmapheresen
D149: 8-826.*k | E149: 24 bis 25 Doppelfiltrationsplasmapheresen
C150: ZE36.21 | D150: 8-820.0q | E150: 26 bis 28 Plasmapheresen | F150: 29694.33
D151: 8-820.1q | E151: 26 bis 28 Plasmapheresen
D152: 8-820.2m | E152: 26 bis 28 Plasmapheresen
D153: 8-826.*m | E153: 26 bis 28 Doppelfiltrationsplasmapheresen
C154: ZE36.22 | D154: 8-820.0r | E154: 29 bis 31 Plasmapheresen | F154: 32993.7
D155: 8-820.1r | E155: 29 bis 31 Plasmapheresen
D156: 8-820.2n | E156: 29 bis 31 Plasmapheresen
D157: 8-826.*n | E157: 29 bis 31 Doppelfiltrationsplasmapheresen
C158: ZE36.23 | D158: 8-820.0s | E158: 32 bis 34 Plasmapheresen | F158: 36293.07
D159: 8-820.1s | E159: 32 bis 34 Plasmapheresen
D160: 8-820.2p | E160: 32 bis 34 Plasmapheresen
D161: 8-826.*p | E161: 32 bis 34 Doppelfiltrationsplasmapheresen
C162: ZE36.24 | D162: 8-820.0t | E162: 35 bis 39 Plasmapheresen | F162: 40692.23
D163: 8-820.1t | E163: 35 bis 39 Plasmapheresen
D164: 8-820.2q | E164: 35 bis 39 Plasmapheresen
D165: 8-826.*q | E165: 35 bis 39 Doppelfiltrationsplasmapheresen
C166: ZE36.25 | D166: 8-820.0u | E166: 40 bis 44 Plasmapheresen | F166: 46191.18
D167: 8-820.1u | E167: 40 bis 44 Plasmapheresen
D168: 8-820.2r | E168: 40 bis 44 Plasmapheresen
D169: 8-826.*r | E169: 40 bis 44 Doppelfiltrationsplasmapheresen
C170: ZE36.26 | D170: 8-820.0v | E170: 45 bis 49 Plasmapheresen | F170: 51690.13
D171: 8-820.1v | E171: 45 bis 49 Plasmapheresen
D172: 8-820.2s | E172: 45 bis 49 Plasmapheresen
D173: 8-826.*s | E173: 45 bis 49 Doppelfiltrationsplasmapheresen
C174: ZE36.27 | D174: 8-820.0w | E174: 50 oder mehr Plasmapheresen | F174: 57189.08
D175: 8-820.1w | E175: 50 oder mehr Plasmapheresen
D176: 8-820.2t | E176: 50 oder mehr Plasmapheresen
D177: 8-826.*t | E177: 50 oder mehr Doppelfiltrationsplasmapheresen
A178: ZE37 | B178: Extrakorporale Photopherese | D178: 8-824 | E178: Photopherese | F178: siehe Anlage 2
A179: ZE44 | B179: Gabe von Topotecan, parenteral | E179: Applikation von Medikamenten, Liste 2: Topotecan, parenteral
C180: ZE44.01 | D180: 6-002.4c | E180: 30,0 mg bis unter 40,0 mg | F180: 87.42
C181: ZE44.02 | D181: 6-002.4d | E181: 40,0 mg bis unter 50,0 mg | F181: 113.64
C182: ZE44.03 | D182: 6-002.4e | E182: 50,0 mg bis unter 60,0 mg | F182: 139.87
C183: ZE44.04 | D183: 6-002.4f | E183: 60,0 mg bis unter 70,0 mg | F183: 166.09
C184: ZE44.05 | D184: 6-002.4g | E184: 70,0 mg oder mehr | F184: 192.32
A185: ZE47 | B185: Gabe von Antithrombin III, parenteral | E185: Transfusion von Plasmabestandteilen und gentechnisch hergestellten Plasmaproteinen: Antithrombin III
C186: ZE47.016) | D186: 8-810.g1 | E186: 2.000 IE bis unter 3.500 IE | F186: 145
C187: ZE47.026) | D187: 8-810.g2 | E187: 3.500 IE bis unter 5.000 IE | F187: 232
C188: ZE47.036) | D188: 8-810.g3 | E188: 5.000 IE bis unter 7.000 IE | F188: 328.67
C189: ZE47.04 | D189: 8-810.g4 | E189: 7.000 IE bis unter 10.000 IE | F189: 464
C190: ZE47.05 | D190: 8-810.g5 | E190: 10.000 IE bis unter 15.000 IE | F190: 676.67
C191: ZE47.06 | D191: 8-810.g6 | E191: 15.000 IE bis unter 20.000 IE | F191: 966.67
C192: ZE47.07 | D192: 8-810.g7 | E192: 20.000 IE bis unter 25.000 IE | F192: 1256.67
C193: ZE47.08 | D193: 8-810.g8 | E193: 25.000 IE bis unter 30.000 IE | F193: 1546.67
C194: ZE47.09 | D194: 8-810.ga | E194: 30.000 IE bis unter 40.000 IE | F194: 1933.33
C195: ZE47.10 | D195: 8-810.gb | E195: 40.000 IE bis unter 50.000 IE | F195: 2513.33
C196: ZE47.11 | D196: 8-810.gc | E196: 50.000 IE bis unter 60.000 IE | F196: 3093.33
C197: ZE47.12 | D197: 8-810.gd | E197: 60.000 IE bis unter 70.000 IE | F197: 3673.33
C198: ZE47.13 | D198: 8-810.ge | E198: 70.000 IE bis unter 90.000 IE | F198: 4446.67
C199: ZE47.14 | D199: 8-810.gf | E199: 90.000 IE bis unter 110.000 IE | F199: 5606.67
C200: ZE47.15 | D200: 8-810.gg | E200: 110.000 IE bis unter 130.000 IE | F200: 6766.67
C201: ZE47.16 | D201: 8-810.gh | E201: 130.000 IE bis unter 150.000 IE | F201: 7926.67
C202: ZE47.17 | D202: 8-810.gj | E202: 150.000 IE oder mehr | F202: 9086.67
... 1158 more rows

Sheet PF2022 (hidden)
A1: Anlage 3a und 3b | D1: aG-DRG-Version 2022 und Pflegeerlöskatalog 2022
A3: Nicht mit dem Fallpauschalen-Katalog vergütete vollstationäre Leistungen und Pflegeerlöskatalog
A4: Für die nachfolgend aufgeführten Leistungen sind krankenhausindividuelle Entgelte nach § 6 Absatz 1 Satz 1 des Krankenhausentgeltgesetzes zu vereinbaren, soweit diese als Krankenhausleistung erbracht werden dürfen. Nach § 7 Absatz 4 ist für diese Fallpauschalen die nach § 6 Absatz 1 Krankenhausentgeltgesetz bisher krankenhausindividuell vereinbarte Entgelthöhe bis zum Beginn des Wirksamwerdens der neuen Budgetvereinbarung weiter zu erheben.
A6: DRG | B6: Parti- tion | C6: Bezeichnung 6) | D6: Pflegeerlös Bewertungsrelation pro Tag
A7: 1 | B7: 2 | C7: 3 | D7: 4
A8: Prä-MDC
A9: A04A | B9: O | C9: Knochenmarktransplantation / Stammzelltransfusion, allogen, mit zweiter Knochenmarktransplantation / Stammzelltransfusion im selben Aufenthalt | D9: 1
A10: A15A | B10: O | C10: Knochenmarktransplantation / Stammzelltransfusion, autogen, mit zweiter Knochenmarktransplantation / Stammzelltransfusion im selben Aufenthalt | D10: 1
A11: A16A | B11: O | C11: Transplantation von Darm oder Pankreas | D11: 1
A12: A16B | B12: O | C12: Injektion von Pankreasgewebe | D12: 1
A13: A22Z | B13: O | C13: Korrektureingriff bei Doppelfehlbildung | D13: 1
A14: A43Z | B14: A | C14: Frührehabilitation bei Wachkoma und Locked-in-Syndrom | D14: 1.4818
A15: MDC 01 Krankheiten und Störungen des Nervensystems
A16: B11Z | B16: O | C16: Frührehabilitation mit bestimmter OR-Prozedur | D16: 1.4078
A17: B13Z | B17: O | C17: Epilepsiechirurgie mit invasivem präoperativen Video-EEG | D17: 1
A18: B43Z | B18: A | C18: Frührehabilitation bei Krankheiten und Störungen des Nervensystems, mehr als 27 Tage | D18: 1.4024
A19: B46Z | B19: A | C19: Sozial- und neuropädiatrische und pädiatrisch-psychosomatische Therapie bei Krankheiten und Störungen des Nervensystems | D19: 1.3115
A20: B49Z | B20: A | C20: Multimodale Komplexbehandlung bei Morbus Parkinson | D20: 0.7504
A21: B61B | B21: M | C21: Bestimmte akute Erkrankungen und Verletzungen des Rückenmarks ohne komplexen Eingriff oder mehr als 13 Belegungstage oder nicht wegverlegt | D21: 1.4803
A22: B76A | B22: M | C22: Anfälle, mehr als ein Belegungstag, mit komplexer Diagnostik und Therapie | D22: 1.1453
A23: MDC 03 Krankheiten und Störungen des Ohres, der Nase, des Mundes und des Halses
A24: D01A | B24: O | C24: Kochleaimplantation, bilateral | D24: 1.0352
A25: D23Z | B25: O | C25: Implantation eines aktiven mechanischen Hörimplantates | D25: 0.7144
A26: MDC 04 Krankheiten und Störungen der Atmungsorgane
A27: E37Z | B27: O | C27: Längerer stationärer Aufenthalt vor Transplantation bei hoher Dringlichkeitsstufe bei Krankheiten und Störungen der Atmungsorgane | D27: 1
A28: E41Z | B28: A | C28: Frührehabilitation bei Krankheiten und Störungen der Atmungsorgane | D28: 0.8686
A29: E76A | B29: M | C29: Tuberkulose, mehr als 14 Belegungstage | D29: 0.6823
A30: MDC 05 Krankheiten und Störungen des Kreislaufsystems
A31: F29Z | B31: O | C31: Frührehabilitation bei Krankheiten und Störungen des Kreislaufsystems, mit bestimmter OR-Prozedur, außer kardiothorakale Eingriffe | D31: 1
A32: F37Z | B32: O | C32: Längerer stationärer Aufenthalt vor Transplantation bei hoher Dringlichkeitsstufe bei Krankheiten und Störungen des Kreislaufsystems | D32: 0.6284
A33: F45Z | B33: A | C33: Frührehabilitation bei Krankheiten und Störungen des Kreislaufsystems | D33: 0.6823
A34: F96Z | B34: O | C34: Stammzelltransfusion bei Krankheiten und Störungen des Kreislaufsystems | D34: 1
A35: MDC 06 Krankheiten und Störungen der Verdauungsorgane
A36: G51Z | B36: A | C36: Frührehabilitation bei Krankheiten und Störungen der Verdauungsorgane | D36: 0.9894
A37: MDC 07 Krankheiten und Störungen an hepatobiliärem System und Pankreas
A38: H37Z | B38: O | C38: Längerer stationärer Aufenthalt vor Transplantation bei hoher Dringlichkeitsstufe bei Krankheiten und Störungen an hepatobiliärem System und Pankreas | D38: 1
A39: MDC 08 Krankheiten und Störungen an Muskel-Skelett-System und Bindegewebe
A40: I40Z | B40: A | C40: Frührehabilitation bei Krankheiten und Störungen an Muskel-Skelett-System und Bindegewebe | D40: 0.6968
A41: I96Z | B41: O | C41: Frührehabilitation mit bestimmter OR-Prozedur bei Krankheiten und Störungen an Muskel-Skelett-System und Bindegewebe, mehr als 20 Tage | D41: 0.9224
A42: MDC 10 Endokrine, Ernährungs- und Stoffwechselkrankheiten
A43: K01Z | B43: O | C43: Verschiedene Eingriffe bei Diabetes mellitus mit Komplikationen, mit Frührehabilitation oder geriatrischer frührehabilitativer Komplexbehandlung | D43: 0.8781
A44: K43Z | B44: A | C44: Frührehabilitation bei endokrinen, Ernährungs- und Stoffwechselkrankheiten | D44: 0.802
A45: MDC 19 Psychische Krankheiten und Störungen
A46: U01Z | B46: O | C46: Genitalorganumwandelnde Operation | D46: 0.7035
A47: U41Z | B47: A | C47: Sozial- und neuropädiatrische und pädiatrisch-psychosomatische Therapie bei psychischen Krankheiten und Störungen | D47: 0.9761
A48: U42A | B48: A | C48: Multimodale Schmerztherapie bei psychischen Krankheiten und Störungen, Alter < 19 Jahre | D48: 1
A49: U43Z | B49: A | C49: Psychosomatische Therapie, Alter < 18 Jahre | D49: 0.9281
A50: MDC 21A Polytrauma
A51: W01A | B51: O | C51: Polytrauma mit Beatmung > 72 Stunden oder komplexen Eingriffen oder intensivmedizinische Komplexbehandlung > 392 / 368 / 552 Aufwandspunkte, mit Frührehabilitation | D51: 1.7263
A52: W05Z | B52: O | C52: Frührehabilitation bei Polytrauma mit OR-Prozedur | D52: 0.9091
A53: W40Z | B53: A | C53: Frührehabilitation bei Polytrauma | D53: 1.1812
A54: MDC 22 Verbrennungen
A55: Y01Z | B55: O | C55: Operative Eingriffe bei schweren Verbrennungen oder Beatmung > 95 Stunden bei Verbrennungen oder intensivmedizinische Komplexbehandlung > 1176 / 1104 / 1104 Aufwandspunkte bei Verbrennungen | D55: 4.376
A56: Y61Z | B56: M | C56: Schwere Verbrennungen | D56: 1
A57: MDC 23 Faktoren, die den Gesundheitszustand beeinflussen, und andere Inanspruchnahme des Gesundheitswesens
A58: Z02Z | B58: O | C58: Leberspende (Lebendspende) | D58: 1.0087
A59: Z04Z | B59: O | C59: Lungenspende (Lebendspende) | D59: 1
A60: Z41Z | B60: A | C60: Knochenmarkentnahme bei Eigenspender | D60: 1
A61: Z42Z | B61: A | C61: Stammzellentnahme bei Fremdspender | D61: 0.9752
A62: Z43Z | B62: A | C62: Knochenmarkentnahme bei Fremdspender | D62: 1.5769
A63: Prä-MDC
A64: A90A | B64: A | C64: Teilstationäre geriatrische Komplexbehandlung, umfassende Behandlung | D64: 0.2541
A65: A90B | B65: A | C65: Teilstationäre geriatrische Komplexbehandlung, Basisbehandlung | D65: 0.2541
A66: MDC 11 Krankheiten und Störungen der Harnorgane
A67: L90A | B67: M | C67: Niereninsuffizienz, teilstationär, Alter < 15 Jahre | D67: 0.5
A68: MDC 25 Teilstationäre pädiatrische Diagnostik und Behandlung
A69: 740Z | B69: A | C69: Bestimmte radiologische Diagnostik in Sedierung oder Anästhesie, Alter < 18 Jahre, teilstationär | D69: 0.5
A70: 741Z | B70: A | C70: Bestimmte endoskopische Diagnostik in Sedierung oder Anästhesie, Alter < 18 Jahre, teilstationär | D70: 0.5
A71: 742Z | B71: A | C71: Knochenmark-Biopsie oder Liquordiagnostik in Sedierung oder Anästhesie, Alter < 18 Jahre, teilstationär | D71: 0.5
A72: 743Z | B72: A | C72: Bougierung und Dilatation des Ösophagus in Sedierung oder Anästhesie, Alter < 18 Jahre, teilstationär | D72: 0.5
A73: 744Z | B73: A | C73: Dilatation des Anus in Sedierung oder Anästhesie, Alter < 18 Jahre, teilstationär | D73: 0.5
A74: 745Z | B74: A | C74: Dilatation der Vagina in Sedierung oder Anästhesie, Alter < 18 Jahre, teilstationär | D74: 0.5
A75: 746Z | B75: A | C75: Augenuntersuchung in Sedierung oder Anästhesie, Alter < 18 Jahre, teilstationär | D75: 0.5
A76: 747Z | B76: A | C76: Testung oder Nachprogrammierung kardialer Systeme, Alter < 18 Jahre, teilstationär | D76: 0.5
A77: 748Z | B77: A | C77: Bestimmte Behandlung ohne Sedierung oder Anästhesie, Alter < 18 Jahre, teilstationär | D77: 0.5
A78: 749Z | B78: A | C78: Beobachtung bei Vergiftung, Alter < 10 Jahre, teilstationär | D78: 0.5

Sheet HA2018 (hidden)
M1: G-DRG-Version 2018
A2: Fallpauschalen-Katalog
A3: Teil a) Bewertungsrelationen bei Versorgung durch Hauptabteilungen
A5: DRG | B5: Parti- tion | C5: Bezeichnung 6) | D5: Bewertungsrelation bei Hauptabteilung | E5: Bewertungsrelation bei Hauptabteilung und Beleghebamme | F5: Mittlere Verweil- dauer 1) | G5: Untere Grenzverweildauer | I5: Obere Grenzverweildauer | K5: Externe Verlegung Abschlag/Tag (Bewertungsrelation) | L5: Verlegungs- fallpauschale | M5: Ausnahme von Wiederaufnahme 4)
G6: Erster Tag mit Abschlag 2), 5) | H6: Bewertungs- relation/Tag | I6: Erster Tag zus. Entgelt 3), 5) | J6: Bewertungs- relation/Tag
A7: 1 | B7: 2 | C7: 3 | D7: 4 | E7: 5 | F7: 6 | G7: 7 | H7: 8 | I7: 9 | J7: 10 | K7: 11 | L7: 12 | M7: 13
A8: Prä-MDC
A9: A01A | B9: O | C9: Lebertransplantation mit Beatmung > 179 Stunden oder kombinierter Dünndarmtransplantation | D9: 27.807 | F9: 47.2 | G9: 15 | H9: 1.402 | I9: 65 | J9: 0.544 | L9: x | M9: x
A10: A01B | B10: O | C10: Lebertransplantation ohne kombinierte Dünndarmtransplantation mit Beatmung > 59 und < 180 Stunden oder mit Transplantatabstoßung oder mit kombinierter Nierentransplantation oder mit kombinierter Pankreastransplantation oder Alter < 6 Jahre | D10: 15.097 | F10: 33.2 | G10: 10 | H10: 1.061 | I10: 51 | J10: 0.406 | L10: x | M10: x
A11: A01C | B11: O | C11: Lebertransplantation ohne kombinierte Dünndarmtransplantation, ohne Beatmung > 59 Stunden, ohne Transplantatabstoßung, ohne kombinierte Nierentransplantation, ohne kombinierte Pankreastransplantation, Alter > 5 Jahre | D11: 11.087 | F11: 24.7 | G11: 7 | H11: 1.012 | I11: 43 | J11: 0.394 | L11: x | M11: x
A12: A02Z | B12: O | C12: Transplantation von Niere und Pankreas | D12: 10.229 | F12: 24.3 | G12: 7 | H12: 0.937 | I12: 42 | J12: 0.354 | L12: x | M12: x
A13: A03A | B13: O | C13: Lungentransplantation mit Beatmung > 179 Stunden | D13: 28.129 | F13: 45.9 | G13: 14 | H13: 1.421 | I13: 64 | J13: 0.574 | L13: x | M13: x
A14: A03B | B14: O | C14: Lungentransplantation ohne Beatmung > 179 Stunden | D14: 14.814 | F14: 24.8 | G14: 7 | H14: 1.275 | I14: 36 | J14: 0.499 | L14: x | M14: x
A15: A04B | B15: O | C15: Knochenmarktransplantation / Stammzelltransfusion, allogen, außer bei Plasmozytom oder mit Graft-versus-Host-Krankheit Grad III und IV, mit Gabe bestimmter Stammzellen oder Alter < 16 Jahre, mit bestimmter Entnahme oder Stammzellboost | D15: 28.185 | F15: 46.2 | G15: 14 | H15: 1.537 | I15: 64 | J15: 0.628 | L15: x | M15: x
A16: A04C | B16: O | C16: Knochenmarktransplantation / Stammzelltransfusion, allogen, < 16 J., od. GVHD Grad III/IV od. auß. b. Plasmozytom, mit Gabe best. Stammz. od. GVHD III/IV od. HLA-versch., mit best. Entn. od. SZ-Boost od. m. intensivm. Komplexbeh. > 1764 / 1932 / 2760 P. | D16: 28.377 | F16: 58.5 | G16: 18 | H16: 1.413 | I16: 76 | J16: 0.466 | L16: x | M16: x
A17: A04D | B17: O | C17: Knochenmarktransplantation / Stammzelltransfusion, allogen, mit Graft-versus-Host-Krankheit Grad III und IV oder außer bei Plasmozytom, HLA-verschieden oder mit Komplexbehandlung bei multiresistenten Erregern | D17: 16.751 | F17: 41.3 | G17: 13 | H17: 1.148 | I17: 59 | J17: 0.4 | L17: x | M17: x
A18: A04E | B18: O | C18: Knochenmarktransplantation / Stammzelltransfusion, allogen, außer bei Plasmozytom | D18: 15.282 | F18: 37.6 | G18: 12 | H18: 1.13 | I18: 56 | J18: 0.391 | L18: x | M18: x
A19: A05A | B19: O | C19: Herztransplantation mit Beatmung > 179 Stunden oder intensivmedizinischer Komplexbehandlung > 2646 / 2484 / - Aufwandspunkte | D19: 35.798 | F19: 75.6 | G19: 24 | H19: 1.083 | I19: 94 | J19: 0.358 | L19: x | M19: x
A20: A05B | B20: O | C20: Herztransplantation ohne Beatmung > 179 Stunden, ohne intensivmedizinische Komplexbehandlung > 2646 / 2484 / - Aufwandspunkte | D20: 22.932 | F20: 46.2 | G20: 14 | H20: 1.092 | I20: 64 | J20: 0.354 | L20: x | M20: x
A21: A06A | B21: O | C21: Beatmung > 1799 Stunden mit intensivmedizinischer Komplexbehandlung > 2940 / 5520 / 5520 Aufwandspunkte oder mit hochkomplexem Eingriff | D21: 71.528 | F21: 134.1 | I21: 152 | J21: 0.506 | L21: x | M21: x
A22: A06B | B22: O | C22: Beatmung > 1799 Stunden mit komplexer OR-Prozedur oder Polytrauma, ohne hochkomplexen Eingriff, ohne intensivmedizinische Komplexbehandlung > 2940 / 5520 / 5520 Aufwandspunkte | D22: 50.436 | F22: 102.6 | I22: 121 | J22: 0.46 | L22: x | M22: x
A23: A06C | B23: O | C23: Beatmung > 1799 Stunden, ohne komplexe OR-Prozedur, ohne Polytrauma, mit intensivmedizinischer Komplexbehandlung > 588 / 552 / 552 Aufwandspunkte | D23: 42.733 | F23: 101.8 | I23: 120 | J23: 0.356 | L23: x | M23: x
A24: A07A | B24: O | C24: Beatmung > 999 Stunden oder > 499 Stunden mit intensivmedizinischer Komplexbehandlung > 4900 / 4600 / 4600 Aufwandspunkte, mit komplexer OR-Prozedur oder Polytrauma und int. Komplexbeh. > 3920 / 3680 / 3680 P. oder mit hochkompl. oder dreizeitigem Eingr. | D24: 44.47 | F24: 78.3 | G24: 25 | H24: 1.444 | I24: 96 | J24: 0.48 | L24: x | M24: x
A25: A07B | B25: O | C25: Beatmung > 999 Stunden oder > 499 Stunden mit intensivmed. Komplexbeh. > 4900 / 4600 / 4600 Punkte, mit kompl. OR-Proz. und ECMO ab 384 Stunden od. mit Polytrauma od. Alter < 16 J. oder intensivmed. Komplexbeh. > - / 3220 / - Punkte | D25: 36.565 | F25: 69 | G25: 22 | H25: 1.469 | I25: 87 | J25: 0.49 | L25: x | M25: x
A26: A07C | B26: O | C26: Beatmung > 999 Stunden oder > 499 Stunden mit intensivmed. Komplexbeh. > 4900 / 4600 / 4600 Punkte, mit komplexer OR-Prozedur, ohne ECMO ab 384 Stunden, ohne Polytrauma, Alter > 15 Jahre oder mit intensivmed. Komplexbeh. > 2352 / 1932 / 2484 Punkte | D26: 28.731 | F26: 59.4 | G26: 19 | H26: 1.337 | I26: 77 | J26: 0.384 | K26: 0.443 | M26: x
A27: A07D | B27: O | C27: Beatmung > 999 Stunden ohne komplexe OR-Prozedur, ohne Polytrauma, Alter > 15 Jahre, mit intensivmedizinischer Komplexbehandlung > 1176 / 1656 / - und < 2353 / 1933 / 2485 Aufwandspunkte, mit komplexer Diagnose oder komplizierender Konstellation | D27: 27.098 | F27: 57 | G27: 18 | H27: 1.313 | I27: 75 | J27: 0.306 | K27: 0.43 | M27: x
A28: A07E | B28: O | C28: Beatmung > 999 Stunden ohne komplexe OR-Prozedur, ohne Polytrauma, Alter > 15 Jahre, ohne komplexe Diagnose, ohne komplizierende Konstellation, mit intensivmedizinischer Komplexbehandlung > 392 / 368 / 368 Aufwandspunkte oder Beatmung > 1799 Stunden | D28: 22.504 | F28: 58.5 | G28: 19 | H28: 1.097 | I28: 77 | J28: 0.262 | K28: 0.369 | M28: x
A29: A07F | B29: O | C29: Beatmung > 999 Stunden ohne komplexe OR-Prozedur, ohne Polytrauma, Alter > 15 Jahre, ohne komplexe Diagnose, ohne komplizierende Konstellation, ohne intensivmedizinische Komplexbehandlung > 392 / 368 / 368 Aufwandspunkte, ohne Beatmung > 1799 Stunden | D29: 19.874 | F29: 59.1 | I29: 77 | J29: 0.227 | K29: 0.319 | M29: x
A30: A09A | B30: O | C30: Beatmung > 499 Stunden oder > 249 Stunden mit IntK > 2352 / 1932 / 2208 P., mit hochkomplexem Eingriff oder kompl. OR-Proz. und Alter < 16 Jahre, mit IntK > 1764 / 1932 / - P. oder mit sehr kompl. Eingr. und IntK > - / 2208 / - P. | D30: 32.493 | F30: 57.9 | G30: 18 | H30: 1.423 | I30: 76 | J30: 0.467 | L30: x | M30: x
A31: A09B | B31: O | C31: Beatmung > 499 Stunden oder > 249 Stunden mit int. Komplexbeh. > 2352 / 1932 / 2208 P., mit angeb. Fehlbild. od. Tumorerkr., Alter < 3 J. oder mit hochkompl. Eingr. oder mit kompl. OR-Proz. oder int. Komplexbeh. > 1764 / 1932 / - P. und Alter < 16 Jahre | D31: 21.745 | F31: 39.5 | G31: 12 | H31: 1.46 | I31: 57 | J31: 0.481 | L31: x | M31: x
A32: A09C | B32: O | C32: Beatmung > 499 Stunden oder > 249 Stunden mit int. Komplexbeh. > 2352 / 1932 / 2208 P., mit komplexer OR-Prozedur oder Polytrauma oder int. Komplexbeh. > 1764 / 1656 / 2208 P. oder mit komplizierender Konstellation oder Alter < 16 Jahre | D32: 17.99 | F32: 34.7 | G32: 11 | H32: 1.359 | I32: 53 | J32: 0.35 | L32: x | M32: x
A33: A09D | B33: O | C33: Beatmung > 499 Stunden, ohne komplexe OR-Prozedur, ohne Polytrauma, Alter > 15 Jahre, ohne komplizierende Konstellation, mit intensivmedizinischer Komplexbehandlung > 1470 / 1380 / 1656 und < 1765 / 1657 / 2209 Aufwandspunkte | D33: 17.807 | F33: 39.7 | G33: 12 | H33: 1.316 | I33: 58 | J33: 0.302 | K33: 0.421 | M33: x
A34: A09E | B34: O | C34: Beatmung > 499 Stunden, ohne komplexe OR-Prozedur, ohne Polytrauma, Alter > 15 Jahre, ohne komplizierende Konstellation, mit intensivmedizinischer Komplexbehandlung > 1176 / 1104 / 1380 u. < 1471 / 1381 / 1657 Punkte, mit komplexer Diagnose oder Prozedur | D34: 15.474 | F34: 33.7 | G34: 10 | H34: 1.35 | I34: 52 | J34: 0.308 | K34: 0.427 | M34: x
A35: A09F | B35: O | C35: Beatmung > 499 Stunden, ohne komplexe OR-Prozedur, ohne Polytrauma, Alter > 15 Jahre, ohne komplizierende Konstellation, ohne intensivmedizinische Komplexbehandlung > 1176 / 1104 / 1380 Aufwandspunkte, ohne komplexe Diagnose oder Prozedur | D35: 13.232 | F35: 31 | G35: 9 | H35: 1.279 | I35: 47 | J35: 0.288 | K35: 0.399 | M35: x
A36: A11A | B36: O | C36: Beatmung > 249 Stunden oder > 95 Stunden mit intensivmedizinischer Komplexbehandlung > 1764 / 1656 / 1932 Aufwandspunkte mit kompliz. Konstellation und best. OR-Prozedur, Alter < 16 Jahre | D36: 24.649 | F36: 45.4 | G36: 14 | H36: 1.388 | I36: 63 | J36: 0.458 | K36: 0.448 | M36: x
A37: A11B | B37: O | C37: Beatmung > 249 Stunden oder > 95 Stunden mit intensivmedizinischer Komplexbehandlung > 1764 / 1656 / 1656 Aufwandspunkte, mit hochkomplexem Eingriff oder Alter < 2 Jahre bei angeborener Fehlbildung | D37: 19.546 | F37: 35.4 | G37: 11 | H37: 1.269 | I37: 53 | J37: 0.431 | L37: x | M37: x
A38: A11C | B38: O | C38: Beatmung > 249 Stunden oder > 95 Stunden mit intensivmed. Komplexbeh. > 1764 / 1656 / 1656 Punkte., mit kompl. OR-Proz. und Alter < 16 J. oder kompliz. Konst. od. bei Tumor od. angeb. Fehlbild., Alt. < 3 J. od. intensivmed. Komplexbeh. > - / 1104 / - P. | D38: 13.03 | F38: 23.8 | G38: 7 | H38: 1.37 | I38: 42 | J38: 0.461 | L38: x | M38: x
A39: A11D | B39: O | C39: Beatmung > 249 Stunden, ohne komplexe OR-Prozedur, ohne intensivmedizinische Komplexbehandlung > 1764 / 1656 / 1932 Aufwandspunkte, mit komplizierender Konstellation und bestimmter OR-Prozedur, Alter > 15 Jahre | D39: 12.459 | F39: 23.6 | G39: 7 | H39: 1.32 | I39: 42 | J39: 0.448 | L39: x | M39: x
A40: A11E | B40: O | C40: Beatmung > 249 Stunden, mit komplexer OR-Prozedur, ohne hochkomplexen Eingriff, ohne int. Komplexbeh. > 1764 / 1656 / 1656 P., ohne kompliz. Konstellation, Alter > 15 Jahre oder mit intensivmedizinischer Komplexbehandlung > 588 / 828 / - Aufwandspunkte | D40: 11.122 | F40: 22.3 | G40: 6 | H40: 1.431 | I40: 39 | J40: 0.315 | L40: x | M40: x
A41: A11F | B41: O | C41: Beatmung > 249 Stunden oder > 95 Stunden mit intensivmedizinischer Komplexbehandlung > 1764 / 1656 / 1656 Aufwandspunkte, mit bestimmter OR-Prozedur oder kompliz. Konstellation oder intensivmed. Komplexbehandlung > - / - / 1104 P. oder Alter < 6 Jahre | D41: 10.275 | F41: 25 | G41: 7 | H41: 1.178 | I41: 43 | J41: 0.264 | K41: 0.363 | M41: x
A42: A11G | B42: O | C42: Beatmung > 249 Stunden, ohne komplexe oder bestimmte OR-Prozedur, ohne intensivmedizinische Komplexbehandlung > 588 / 828 / 1104 Punkte, ohne kompliz. Konstellation, Alter > 5 Jahre, mit kompl. Diagnose oder Prozedur oder Alter < 16 J. oder schwerste CC | D42: 8.788 | F42: 18.8 | G42: 5 | H42: 1.432 | I42: 32 | J42: 0.32 | K42: 0.434 | M42: x
A43: A11H | B43: O | C43: Beatmung > 249 Stunden, ohne komplexe oder bestimmte OR-Prozedur, ohne IntK > 588 / 828 / 1104 Punkte, ohne komplizierende Konstellation, Alter > 15 Jahre, ohne komplexe Diagnose oder Prozedur, ohne schwerste CC, mit äußerst schweren CC | D43: 8.517 | F43: 21.5 | G43: 6 | H43: 1.182 | I43: 40 | J43: 0.269 | K43: 0.368 | M43: x
A44: A11I | B44: O | C44: Beatmung > 249 Stunden, ohne komplexe oder bestimmte OR-Prozedur, ohne IntK > 588 / 828 / 1104 Punkte, ohne komplizierende Konstellation, Alter > 15 Jahre, ohne komplexe Diagnose oder Prozedur, ohne schwerste CC, ohne äußerst schwere CC | D44: 7.003 | F44: 19.5 | G44: 5 | H44: 1.137 | I44: 35 | J44: 0.245 | K44: 0.333 | M44: x
A45: A13A | B45: O | C45: Beatmung > 95 Std. mit hochkompl. Eingr. od. mit kompl. OR-Proz. u. int. Komplexbeh. > 1176 / 1380 / 1656 P. od. mit kompl. OR-Proz. u. int. Komplexbeh. > - / 1104 / 1104 P. od. b. Lymphom und Leukämie, m. kompliz. Konst. u. best. OR-Proz., Alter < 16 J. | D45: 15.647 | F45: 30.7 | G45: 9 | H45: 1.248 | I45: 49 | J45: 0.407 | L45: x | M45: x
A46: A13B | B46: O | C46: Beatmung > 95 Stunden mit sehr komplexem Eingriff oder mit komplexer OR-Prozedur und komplizierender Konstellation oder mit best. OR-Proz. und kompliz. Konst., Alter < 16 Jahre od. mit intensivmed. Komplexbeh. > - / 1104 / 1104 Punkte und kompliz. Konst. | D46: 10.702 | F46: 19.7 | G46: 6 | H46: 1.051 | I46: 38 | J46: 0.374 | L46: x | M46: x
A47: A13C | B47: O | C47: Beatmung > 95 Stunden ohne komplexe OR-Prozedur, mit bestimmter OR-Proz. und kompliz. Konstellation, Alter > 15 J. oder mit intensivmed. Komplexbeh. > - / 1104 / 1104 Punkte od. Alter < 16 J., außer bei Lymphom und Leukämie, ohne kompliz. Konstellation | D47: 9.495 | F47: 26.9 | G47: 8 | H47: 0.894 | I47: 45 | J47: 0.299 | L47: x | M47: x
A48: A13D | B48: O | C48: Beatmung > 95 Stunden mit komplexer OR-Prozedur, ohne hochkompl. od. sehr kompl. Eingriff, ohne intensivmed. Komplexbeh. > 1176 / 1104 / 1104 Punkte, ohne kompliz. Konst., ohne Eingr. bei angeb. Fehlbild. od. mit intensivmed. Komplexbeh. > - / 828 / - P. | D48: 8.296 | F48: 17.6 | G48: 5 | H48: 1.035 | I48: 35 | J48: 0.247 | L48: x | M48: x
A49: A13E | B49: O | C49: Beatmung > 95 Stunden, ohne komplexe OR-Prozedur, mit bestimmter OR-Prozedur oder komplizierender Konstellation oder mit intensivmedizinischer Komplexbehandlung > 588 / 552 / 552 Aufwandspunkte und < 1177 / 829 / 1105 Aufwandspunkte od. Alter < 16 Jahre | D49: 7.332 | F49: 19.6 | G49: 6 | H49: 0.942 | I49: 37 | J49: 0.236 | L49: x | M49: x
A50: A13F | B50: O | C50: Beatmung > 95 Stunden, ohne bestimmte OR-Prozedur, ohne komplizierende Konstellation, ohne intensivmed. Komplexbeh. > 588 / 552 / 552 Aufwandspunkte, Alter > 15 Jahre, mit komplexer Diagnose oder Prozedur od. intensivmed. Komplexbeh. > - / 368 / - Punkte | D50: 5.104 | F50: 12.9 | G50: 3 | H50: 1.197 | I50: 27 | J50: 0.26 | K50: 0.344 | M50: x
A51: A13G | B51: O | C51: Beatmung > 95 Stunden, mit bestimmter OR-Prozedur oder kompliz. Konstellation, mit äußerst schweren CC, verstorben oder verlegt < 9 Tage oder ohne best. OR-Proz., ohne kompliz. Konst., Alter > 15 J., ohne kompliz. Diagnose od. Prozedur, mit äuß. schw. CC | D51: 4.518 | F51: 13.1 | G51: 3 | H51: 1.084 | I51: 29 | J51: 0.231 | K51: 0.307 | M51: x
A52: A13H | B52: O | C52: Beatmung > 95 Stunden mit bestimmter OR-Prozedur oder kompliz. Konstellation, ohne äußerst schwere CC, verstorben oder verlegt < 9 Tage oder ohne best. OR-Proz., ohne kompliz. Konst., Alter > 15 J., ohne kompliz. Diagnose oder Proz., ohne äuß. schw. CC | D52: 3.6 | F52: 11.4 | G52: 3 | H52: 0.875 | I52: 25 | J52: 0.215 | K52: 0.283 | M52: x
A53: A15B | B53: O | C53: Knochenmarktransplantation / Stammzelltransfusion, autogen, außer bei Plasmozytom, Alter < 16 Jahre oder bestimmte Entnahme oder Stammzellboost oder intensivmedizinische Komplexbehandlung > 588 / 552 / 552 Aufwandspunkte | D53: 12.116 | F53: 27.7 | G53: 8 | H53: 1.191 | I53: 42 | J53: 0.389 | L53: x | M53: x
A54: A15C | B54: O | C54: Knochenmarktransplantation / Stammzelltransfusion, autogen, außer bei Plasmozytom, Alter > 15 Jahre, ohne bestimmte Entnahme, ohne Stammzellboost oder bei Plasmozytom, mit bestimmter Entnahme oder Stammzellboost oder IntK > 392 / 368 / 368 Punkte | D54: 7.977 | F54: 23.4 | G54: 7 | H54: 0.8 | I54: 35 | J54: 0.274 | L54: x | M54: x
A55: A15D | B55: O | C55: Knochenmarktransplantation / Stammzelltransfusion, autogen, bei Plasmozytom, ohne bestimmte Entnahme, ohne Stammzellboost | D55: 5.493 | F55: 19.6 | G55: 6 | H55: 0.594 | I55: 28 | J55: 0.228 | L55: x | M55: x
A56: A17A | B56: O | C56: Nierentransplantation mit postoperativem Versagen des Nierentransplantates oder Alter < 16 Jahre oder AB0-inkompatible Transplantation oder schwerste CC | D56: 8.264 | F56: 25 | G56: 7 | H56: 0.796 | I56: 43 | J56: 0.301 | L56: x | M56: x
A57: A17B | B57: O | C57: Nierentransplantation ohne postoperatives Versagen des Nierentransplantates, Alter > 15 Jahre oder ohne AB0-inkompatible Transplantation, ohne schwerste CC | D57: 5.943 | F57: 17.5 | G57: 5 | H57: 0.735 | I57: 29 | J57: 0.27 | L57: x | M57: x
A58: A18Z | B58: O | C58: Beatmung > 999 Stunden und Transplantation von Leber, Lunge, Herz und Knochenmark oder Stammzelltransfusion | D58: 62.725 | F58: 104.1 | I58: 122 | J58: 0.689 | L58: x | M58: x
A59: A36A | B59: O | C59: Intensivmedizinische Komplexbehandlung > 980 / 1104 / 1656 Aufwandspunkte bei bestimmten Krankheiten und Störungen oder intensivmedizinische Komplexbehandlung > 588 / 552 / 552 P. bei Versagen und Abstoßung eines Transplantates hämatopoetischer Zellen | D59: 18.278 | F59: 40.5 | G59: 13 | H59: 1.196 | I59: 59 | J59: 0.413 | L59: x | M59: x
A60: A36B | B60: O | C60: Intensivmedizinische Komplexbehandlung > 588 / 552 / 828 und < 981 / 1105 / 1657 Aufwandspunkte bei bestimmten Krankheiten und Störungen oder komplizierende Konstellation bei Versagen und Abstoßung eines Transplantates hämatopoetischer Zellen | D60: 9.835 | F60: 28.5 | G60: 9 | H60: 0.89 | I60: 47 | J60: 0.312 | L60: x | M60: x
A61: A36C | B61: O | C61: Intensivmedizinische Komplexbehandlung > - / - / 552 und < - / - / 829 Aufwandspunkte bei bestimmten Krankheiten und Störungen | D61: 8.962 | F61: 27.2 | G61: 8 | H61: 0.859 | I61: 45 | J61: 0.199 | L61: x | M61: x
A62: A42A | B62: A | C62: Stammzellentnahme bei Eigenspender mit Chemotherapie oder mit schwersten CC, Alter > 15 Jahre | D62: 2.679 | F62: 15.3 | G62: 4 | H62: 0.513 | I62: 25 | J62: 0.167 | K62: 0.157 | M62: x
A63: A42B | B63: A | C63: Stammzellentnahme bei Eigenspender, Alter < 16 Jahre | D63: 4.056 | F63: 9.8 | G63: 2 | H63: 1.106 | I63: 22 | J63: 0.186 | K63: 0.308 | M63: x
A64: A42C | B64: A | C64: Stammzellentnahme bei Eigenspender ohne Chemotherapie, Alter > 15 Jahre, ohne schwerste CC | D64: 1.113 | F64: 5 | G64: 1 | H64: 0.578 | I64: 11 | J64: 0.192 | K64: 0.16 | M64: x
A65: A60A | B65: M | C65: Versagen und Abstoßung eines Organtransplantates, mehr als ein Belegungstag, mit Entfernung eines Organtransplantates oder komplexer OR-Prozedur oder äußerst schweren CC oder komplizierender Konstellation | D65: 2.577 | F65: 13.8 | G65: 4 | H65: 0.441 | I65: 29 | J65: 0.18 | L65: x | M65: x
A66: A60B | B66: M | C66: Versagen und Abstoßung eines Organtransplantates, mehr als ein Belegungstag, ohne Entfernung eines Organtransplantates, ohne komplexe OR-Prozedur, ohne äußerst schwere CC, ohne komplizierende Konstellation, Alter < 16 Jahre | D66: 1.275 | F66: 4.7 | I66: 12 | J66: 0.234 | L66: x | M66: x
A67: A60C | B67: M | C67: Versagen und Abstoßung eines Organtransplantates, mehr als ein Belegungstag, ohne Entfernung eines Organtransplantates, ohne komplexe OR-Prozedur, ohne äußerst schwere CC, ohne komplizierende Konstellation, Alter > 15 Jahre | D67: 0.87 | F67: 5.8 | I67: 15 | J67: 0.135 | L67: x | M67: x
A68: A60D | B68: M | C68: Versagen und Abstoßung eines Organtransplantates, ein Belegungstag | D68: 0.333 | F68: 1 | M68: x
A69: A61A | B69: M | C69: Versagen und Abstoßung eines Transplantates hämatopoetischer Zellen, mit äußerst schweren CC oder bestimmter akuter Graft-versus-Host-Krankheit und mehr als ein Belegungstag | D69: 4.366 | F69: 15.8 | G69: 4 | H69: 0.853 | I69: 33 | J69: 0.29 | K69: 0.254 | M69: x
A70: A61B | B70: M | C70: Versagen und Abstoßung eines Transplantates hämatopoetischer Zellen, ohne äußerst schwere CC, ohne bestimmte akute Graft-versus-Host-Krankheit oder ein Belegungstag, mit schweren CC oder Alter < 10 Jahre | D70: 1.618 | F70: 6.8 | G70: 1 | H70: 1.339 | I70: 17 | J70: 0.231 | K70: 0.201 | M70: x
A71: A61C | B71: M | C71: Versagen und Abstoßung eines Transplantates hämatopoetischer Zellen, ohne äußerst schwere oder schwere CC, ohne bestimmte akute Graft-versus-Host-Krankheit oder ein Belegungstag, Alter > 9 Jahre | D71: 0.595 | F71: 2.9 | G71: 1 | H71: 0.346 | I71: 7 | J71: 0.2 | K71: 0.148 | M71: x
A72: A62Z | B72: M | C72: Evaluierungsaufenthalt vor Herztransplantation | D72: 2.783 | F72: 14.1 | G72: 4 | H72: 0.504 | I72: 27 | J72: 0.278 | K72: 0.167 | M72: x
A73: A63Z | B73: M | C73: Evaluierungsaufenthalt vor Lungen- oder Herz-Lungen-Transplantation | D73: 2.722 | F73: 10.5 | G73: 3 | H73: 0.607 | I73: 19 | J73: 0.318 | K73: 0.211 | M73: x
A74: A64Z | B74: M | C74: Evaluierungsaufenthalt vor Leber-, Dünndarm- oder Nieren-Pankreas-Transplantation | D74: 2.287 | F74: 10.9 | G74: 3 | H74: 0.501 | I74: 25 | J74: 0.194 | K74: 0.169 | M74: x
A75: A66Z | B75: M | C75: Evaluierungsaufenthalt vor anderer Organtransplantation | D75: 1.046 | F75: 3.3 | G75: 1 | H75: 0.483 | I75: 8 | J75: 0.289 | K75: 0.223 | M75: x
A76: A69Z | B76: M | C76: Evaluierungsaufenthalt vor Organtransplantation ohne Aufnahme auf eine Warteliste | D76: 2.247 | F76: 12.3 | G76: 3 | H76: 0.487 | I76: 25 | J76: 0.175 | K76: 0.147 | M76: x
A77: MDC 01 Krankheiten und Störungen des Nervensystems
A78: B01A | B78: O | C78: Mehrzeitige komplexe OR-Prozeduren bei Krankheiten und Störungen des Nervensystems, Alter < 18 Jahre | D78: 8.242 | F78: 20.9 | G78: 6 | H78: 0.742 | I78: 38 | J78: 0.309 | K78: 0.237
A79: B01B | B79: O | C79: Mehrzeitige komplexe OR-Prozeduren bei Krankheiten und Störungen des Nervensystems, Alter > 17 Jahre | D79: 6.554 | F79: 21.4 | G79: 6 | H79: 0.579 | I79: 39 | J79: 0.225 | K79: 0.181
A80: B02A | B80: O | C80: Komplexe Kraniotomie oder Wirbelsäulen-Operation, mehr als 8 Bestrahlungen oder bei Neubildung des Nervensystems oder intensivmedizinischer Komplexbehandlung > 392 / 368 / - Aufwandspunkte, Alter < 6 Jahre oder mit schwersten CC | D80: 9.109 | F80: 36.1 | G80: 11 | H80: 0.603 | I80: 54 | J80: 0.201 | L80: x
A81: B02B | B81: O | C81: Komplexe Kraniotomie oder Wirbelsäulen-Operation bei bestimmter Neubildung des Nervensystems oder intensivmedizinischer Komplexbehandlung > 392 / 368 / - Aufwandspunkte, Alter > 5 Jahre, ohne schwerste CC | D81: 7.698 | F81: 20.5 | G81: 6 | H81: 0.922 | I81: 36 | J81: 0.315 | L81: x
A82: B02C | B82: O | C82: Komplexe Kraniotomie oder Wirbelsäulen-Operation, außer bei Neubildung, ohne intensivmedizinische Komplexbehandlung > 392 / 368 / - Aufwandspunkte, Alter < 6 Jahre oder mit bestimmtem Eingriff, Alter < 18 Jahre oder mit best. komplizierenden Faktoren | D82: 4.362 | F82: 12.6 | G82: 3 | H82: 0.619 | I82: 26 | J82: 0.213 | L82: x
A83: B02D | B83: O | C83: Komplexe Kraniotomie oder Wirbelsäulen-Operation, ohne bestimmten komplexen Eingriff, Alter > 5 Jahre, ohne bestimmte komplizierende Faktoren | D83: 4.026 | F83: 12.5 | G83: 3 | H83: 0.835 | I83: 27 | J83: 0.268 | L83: x
A84: B03Z | B84: O | C84: Bestimmte Eingriffe an Wirbelsäule und Rückenmark bei bösartiger Neubildung oder mit intraoperativem Monitoring oder Eingriffe bei zerebraler Lähmung, Muskeldystrophie, Neuropathie oder nicht akuter Para- / Tetraplegie mit äußerst schweren CC | D84: 3.348 | F84: 11.7 | G84: 3 | H84: 0.455 | I84: 25 | J84: 0.166 | K84: 0.143
A85: B04A | B85: O | C85: Interventionelle oder beidseitige Eingriffe an den extrakraniellen Gefäßen mit äußerst schweren CC | D85: 4.485 | F85: 13.2 | G85: 3 | H85: 0.936 | I85: 26 | J85: 0.198 | L85: x
A86: B04B | B86: O | C86: Beidseitige Eingriffe an den extrakraniellen Gefäßen ohne äußerst schwere CC oder mehrzeitige Eingriffe an den extrakraniellen Gefäßen oder äußerst schwere CC | D86: 3.363 | F86: 14 | G86: 4 | H86: 0.474 | I86: 29 | J86: 0.119 | L86: x
A87: B04C | B87: O | C87: Bestimmte interventionelle Eingriffe an den extrakraniellen Gefäßen, ohne mehrzeitige Eingriffe, ohne beidseitige Eingriffe, ohne äußerst schwere CC | D87: 1.572 | F87: 4.4 | G87: 1 | H87: 0.269 | I87: 10 | J87: 0.161 | L87: x
A88: B04D | B88: O | C88: Eingriffe an den extrakraniellen Gefäßen, ohne mehrzeitige Eingriffe, ohne beidseitige Eingriffe, ohne äußerst schwere CC, ohne bestimmte interventionelle Eingriffe | D88: 1.487 | F88: 5.7 | G88: 1 | H88: 0.382 | I88: 10 | J88: 0.094 | L88: x
A89: B05Z | B89: O | C89: Dekompression bei Karpaltunnelsyndrom | D89: 0.565 | F89: 2.6 | G89: 1 | H89: 0.159 | I89: 5 | J89: 0.083 | K89: 0.086
A90: B07Z | B90: O | C90: Eingriffe an peripheren Nerven, Hirnnerven und anderen Teilen des Nervensystems mit äußerst schweren CC oder komplizierender Diagnose | D90: 3.679 | F90: 16.3 | G90: 4 | H90: 0.523 | I90: 34 | J90: 0.112 | K90: 0.151
A91: B09Z | B91: O | C91: Andere Eingriffe am Schädel | D91: 1.301 | F91: 5.7 | G91: 1 | H91: 0.353 | I91: 12 | J91: 0.087 | K91: 0.106
A92: B12Z | B92: O | C92: Implantation eines Herzschrittmachers bei Krankheiten und Störungen des Nervensystems oder perkutan-transluminale Gefäßintervention an Herz und Koronargefäßen | D92: 2.992 | F92: 14 | G92: 4 | H92: 0.436 | I92: 27 | J92: 0.109 | K92: 0.146
A93: B15Z | B93: O | C93: Strahlentherapie bei Krankheiten und Störungen des Nervensystems, Bestrahlungen an mindestens 8 Tagen | D93: 3.263 | F93: 20.4 | G93: 6 | H93: 0.458 | I93: 37 | J93: 0.157 | L93: x | M93: x
A94: B16A | B94: O | C94: Strahlentherapie bei Krankheiten und Störungen des Nervensystems, mehr als ein Belegungstag, Bestrahlungen an mindestens 5 Tagen oder mindestens 11 Bestrahlungen | D94: 1.711 | F94: 9.4 | G94: 2 | H94: 0.561 | I94: 19 | J94: 0.18 | K94: 0.163 | M94: x
A95: B16B | B95: O | C95: Strahlentherapie bei Krankheiten und Störungen des Nervensystems, mehr als ein Belegungstag, Bestrahlungen an weniger als 5 Tagen, weniger als 11 Bestrahlungen | D95: 1.031 | F95: 5.4 | I95: 14 | J95: 0.13 | K95: 0.157 | M95: x
A96: B17A | B96: O | C96: Eingriffe an peripheren Nerven, Hirnnerven und anderen Teilen des Nervensystems oder Eingriff bei zerebraler Lähmung, Muskeldystrophie oder Neuropathie, mit komplexer Diagnose oder Implantation eines Ereignis-Rekorders | D96: 2.547 | F96: 8.3 | G96: 2 | H96: 0.539 | I96: 16 | J96: 0.136 | K96: 0.173
A97: B17B | B97: O | C97: Eingriffe an peripheren Nerven, Hirnnerven und anderen Teilen des Nervensystems oder Eingriff bei zerebraler Lähmung, Muskeldystrophie oder Neuropathie, mit komplexem Eingriff oder ohne komplexen Eingriff, Alter < 16 Jahre | D97: 1.63 | F97: 4.6 | G97: 1 | H97: 0.756 | I97: 10 | J97: 0.094 | K97: 0.11
A98: B17C | B98: O | C98: Eingriffe an peripheren Nerven, Hirnnerven und anderen Teilen des Nervensystems oder Eingriff bei zerebraler Lähmung, Muskeldystrophie oder Neuropathie, Alter < 19 Jahre oder mit schweren CC, Alter > 15 Jahre | D98: 1.86 | F98: 9.8 | G98: 2 | H98: 0.44 | I98: 22 | J98: 0.135 | K98: 0.122
A99: B17D | B99: O | C99: Eingr. an periph. Nerven, Hirnnerven und and. Teilen des Nervensyst. oder Eingr. bei zerebr. Lähmung, Muskeldystr. od. Neurop., Alt. < 19 J. od. mit schw. CC, Alt. > 15 J., ohne mäßig kompl. Eingr. od. oh. schw. CC, Alt. > 18 J., mit mäßig kompl. Eingr. | D99: 1.143 | F99: 4.7 | G99: 1 | H99: 0.447 | I99: 11 | J99: 0.088 | K99: 0.104
A100: B17E | B100: O | C100: Eingriffe an peripheren Nerven, Hirnnerven und anderen Teilen des Nervensystems oder Eingriff bei zerebr. Lähmung, Muskeldystrophie od. Neuropathie, ohne kompl. Diagnose, ohne mäßig kompl. od. kompl. Eingr., ohne äuß. schw. oder schw. CC, Alter > 18 J. | D100: 0.798 | F100: 3 | G100: 1 | H100: 0.222 | I100: 6 | J100: 0.088 | K100: 0.094
A101: B18A | B101: O | C101: Komplexe Eingriffe an Wirbelsäule und Rückenmark bei Krankheiten und Störungen des Nervensystems | D101: 4.785 | F101: 19.1 | G101: 5 | H101: 0.474 | I101: 37 | J101: 0.104 | K101: 0.141
A102: B18B | B102: O | C102: Bestimmte Eingriffe an Wirbelsäule und Rückenmark bei Krankheiten und Störungen des Nervensystems außer bei bösartiger Neubildung oder Revision eines Ventrikelshuntes oder operative Eingriffe bei nicht akuter Para- / Tetraplegie | D102: 2.546 | F102: 10.7 | G102: 3 | H102: 0.354 | I102: 23 | J102: 0.093 | K102: 0.121
A103: B18C | B103: O | C103: Andere Eingriffe an Wirbelsäule und Rückenmark bei Krankheiten und Störungen des Nervensystems außer bei bösartiger Neubildung | D103: 1.91 | F103: 7.4 | G103: 1 | H103: 0.486 | I103: 15 | J103: 0.092 | K103: 0.116
A104: B18D | B104: O | C104: Mäßig komplexe Eingriffe an Wirbelsäule und Rückenmark bei Krankheiten und Störungen des Nervensystems außer bei bösartiger Neubildung | D104: 1.7 | F104: 6.8 | G104: 1 | H104: 0.372 | I104: 15 | J104: 0.076 | K104: 0.095
A105: B19A | B105: O | C105: Implantation, Revision und Entfernung von Neurostimulatoren und Neurostimulationselektroden bei Krankheiten und Störungen des Nervensystems mit Implantation oder Wechsel eines Neurostimulators | D105: 1.369 | F105: 3.8 | G105: 1 | H105: 0.542 | I105: 9 | J105: 0.088 | K105: 0.1
A106: B19B | B106: O | C106: Implantation, Revision und Entfernung von Neurostimulatoren und Neurostimulationselektroden bei Krankheiten und Störungen des Nervensystems mit Implantation oder Wechsel eines permanenten oder temporären Elektrodensystems | D106: 1.812 | F106: 3.9 | G106: 1 | H106: 0.531 | I106: 9 | J106: 0.082 | K106: 0.093
A107: B19C | B107: O | C107: Implantation, Revision und Entfernung von Neurostimulatoren und Neurostimulationselektroden bei Krankheiten und Störungen des Nervensystems ohne Implantation oder Wechsel von Neurostimulatoren und Elektrodensystemen | D107: 0.935 | F107: 3.4 | G107: 1 | H107: 0.315 | I107: 7 | J107: 0.085 | K107: 0.094
A108: B20A | B108: O | C108: Kraniotomie oder große Wirbelsäulen-Operation mit bestimmter komplexer Prozedur, Alter < 18 Jahre | D108: 3.194 | F108: 8.5 | G108: 2 | H108: 0.582 | I108: 16 | J108: 0.256 | L108: x
A109: B20B | B109: O | C109: Kraniotomie oder große WS-Operation mit komplexer Prozedur, Alter > 17 Jahre oder ohne best. komplexe Prozedur, mit intraop. neurophysiol. Monitoring oder komplexer Diagnose oder best. Gefäßinterventionen oder Bohrlochtrepanation mit äußerst schweren CC | D109: 3.114 | F109: 9.8 | G109: 2 | H109: 0.571 | I109: 19 | J109: 0.202 | L109: x
A110: B20C | B110: O | C110: Kraniotomie oder große Wirbelsäulen-Operation ohne komplexe Prozedur, Alter < 3 Jahre oder interventioneller Eingriff oder Alter < 18 Jahre mit großem intrakraniellen Eingriff | D110: 2.104 | F110: 5.6 | G110: 1 | H110: 0.801 | I110: 12 | J110: 0.284 | L110: x
A111: B20D | B111: O | C111: Kraniotomie oder große WS-OP mit komplexer Prozedur oder ohne komplexe Prozedur, Alter > 2 Jahre, mit komplexer Diagnose oder bestimmtem Eingriff bei Trigeminusneuralgie | D111: 2.466 | F111: 8.8 | G111: 2 | H111: 0.51 | I111: 19 | J111: 0.183 | L111: x
A112: B20E | B112: O | C112: Kraniotomie oder große Wirbelsäulen-Operation ohne komplexe Prozedur, Alter > 2 Jahre, ohne komplexe Diagnose, ohne bestimmten Eingriff bei Trigeminusneuralgie | D112: 1.936 | F112: 8.5 | G112: 2 | H112: 0.447 | I112: 18 | J112: 0.174 | L112: x
A113: B21A | B113: O | C113: Implantation eines Neurostimulators zur Hirnstimulation, Mehrelektrodensystem, mit Sondenimplantation | D113: 9.851 | F113: 12.4 | G113: 3 | H113: 0.381 | I113: 21 | J113: 0.123 | K113: 0.114
A114: B21B | B114: O | C114: Implantation eines Neurostimulators zur Hirnstimulation, Mehrelektrodensystem, ohne Sondenimplantation | D114: 4.624 | F114: 4.2 | G114: 1 | H114: 0.274 | I114: 10 | J114: 0.13 | K114: 0.105
A115: B36A | B115: O | C115: Intensivmedizinische Komplexbehandlung > 1764 / 1656 / 1656 Aufwandspunkte oder > 1176 / 1104 / 1104 Aufwandspunkte mit bestimmter OR-Prozedur bei Krankheiten und Störungen des Nervensystems | D115: 16.577 | F115: 34.1 | G115: 10 | H115: 1.339 | I115: 52 | J115: 0.432 | L115: x | M115: x
A116: B36B | B116: O | C116: Intensivmedizinische Komplexbehandlung > 1176 / 1104 / 1104 Aufwandspunkte ohne bestimmte OR-Prozedur oder > 588 / 552 / 552 Punkte mit bestimmter OR-Prozedur bei Krankheiten und Störungen des Nervensystems oder bestimmte hochaufwendige Implantate | D116: 10.414 | F116: 23.7 | G116: 7 | H116: 1.129 | I116: 41 | J116: 0.381 | L116: x | M116: x
A117: B39A | B117: O | C117: Neurologische Komplexbehandlung des akuten Schlaganfalls mit bestimmter OR-Prozedur, mehr als 72 Stunden mit komplexem Eingriff oder mit komplizierender Konstellation oder intensivmedizinischer Komplexbehandlung > 392 / 368 / - Aufwandspunkte | D117: 4.997 | F117: 13.9 | G117: 4 | H117: 0.875 | I117: 28 | J117: 0.314 | L117: x
A118: B39B | B118: O | C118: Neurologische Komplexbehandlung des akuten Schlaganfalls mit bestimmter OR-Prozedur, bis 72 Stunden mit komplexem Eingriff oder mehr als 72 Stunden, ohne kompl. Eingr., ohne kompliz. Konst., ohne intensivmed. Komplexbehandlung > 392 / 368 / - Punkte | D118: 3.478 | F118: 11.3 | G118: 3 | H118: 0.756 | I118: 23 | J118: 0.187 | L118: x
A119: B39C | B119: O | C119: Neurologische Komplexbehandlung des akuten Schlaganfalls mit best. OR-Prozedur, bis 72 Std., ohne kompl. Eing., ohne kompliz. Konst., ohne intensivmed. Komplexbeh. > 392 / 368 / - P. oder and. neurolog. Komplexbeh. des akuten Schlaganf., mehr als 72 Std. | D119: 2.636 | F119: 10.6 | G119: 3 | H119: 0.5 | I119: 20 | J119: 0.132 | L119: x
A120: B42A | B120: A | C120: Frührehabilitation bei Krankheiten und Störungen des Nervensystems bis 27 Tage mit neurologischer Komplexbehandlung des akuten Schlaganfalls oder fachübergreifende u. andere Frührehabilitation mit neurologischer Komplexbehandlung des akuten Schlaganfalls | D120: 4.119 | F120: 22.6 | I120: 33 | J120: 0.126 | K120: 0.172
A121: B42B | B121: A | C121: Frührehabilitation bei Krankheiten und Störungen des Nervensystems bis 27 Tage ohne neurologische Komplexbehandlung des akuten Schlaganfalls | D121: 3.504 | F121: 21 | I121: 31 | J121: 0.115 | K121: 0.157
A122: B44A | B122: A | C122: Geriatrische frührehabilitative Komplexbehandlung bei Krankheiten und Störungen des Nervensystems mit schwerer motorischer Funktionseinschränkung, mit neurologischer Komplexbehandlung des akuten Schlaganfalls | D122: 3.486 | F122: 25.3 | I122: 38 | J122: 0.095 | K122: 0.13
A123: B44B | B123: A | C123: Geriatrische frührehab. Komplexbehandlung bei Krankh. u. Stör. d. Nervensyst. m. schw. mot. Funktionseinschr., mit and. neurolog. Komplexbeh. d. akuten Schlaganfalls od. oh. schw. mot. Funktionseinschr., m. neurolog. Komplexbeh. d. akuten Schlaganfalls | D123: 3.079 | F123: 23.6 | I123: 33 | J123: 0.09 | K123: 0.124
A124: B44C | B124: A | C124: Geriatrische frührehabilitative Komplexbehandlung bei Krankheiten und Störungen des Nervensystems mit schwerer motorischer Funktionseinschränkung oder ohne schwere mot. Funktionseinschränkung, mit anderer neurolog. Komplexbeh. des akuten Schlaganfalls | D124: 2.102 | F124: 20.4 | I124: 30 | J124: 0.071 | K124: 0.097
A125: B44D | B125: A | C125: Geriatrische frührehabilitative Komplexbehandlung bei Krankheiten und Störungen des Nervensystems ohne schwere motorische Funktionseinschränkung, ohne Komplexbehandlung des akuten Schlaganfalls | D125: 1.81 | F125: 18.6 | I125: 26 | J125: 0.067 | K125: 0.091
A126: B45Z | B126: A | C126: Intensivmedizinische Komplexbehandlung > 392 / 368 / 828 Aufwandspunkte bei Krankheiten und Störungen des Nervensystems | D126: 6.376 | F126: 21.3 | G126: 6 | H126: 0.888 | I126: 38 | J126: 0.291 | K126: 0.278 | M126: x
A127: B47A | B127: A | C127: Multimodale Schmerztherapie bei Krankheiten und Störungen des Nervensystems, mindestens 14 Behandlungstage | D127: 1.691 | F127: 16.7 | I127: 21 | J127: 0.075 | K127: 0.094 | M127: x
A128: B47B | B128: A | C128: Multimodale Schmerztherapie bei Krankheiten und Störungen des Nervensystems, weniger als 14 Behandlungstage | D128: 1.209 | F128: 10.4 | I128: 17 | J128: 0.075 | K128: 0.104 | M128: x
A129: B48Z | B129: A | C129: Frührehabilitation bei Multipler Sklerose und zerebellarer Ataxie, nicht akuter Para- / Tetraplegie oder anderen neurologischen Erkrankungen | D129: 1.984 | F129: 18.6 | I129: 24 | J129: 0.074 | K129: 0.101
A130: B60A | B130: M | C130: Nicht akute Paraplegie / Tetraplegie, mehr als ein Belegungstag | D130: 0.977 | F130: 6.6 | I130: 16 | J130: 0.102 | K130: 0.127
A131: B60B | B131: M | C131: Nicht akute Paraplegie / Tetraplegie, ein Belegungstag | D131: 0.299 | F131: 1
A132: B61A | B132: M | C132: Bestimmte akute Erkrankungen und Verletzungen des Rückenmarks mit komplexem Eingriff, weniger als 14 Belegungstage, wegverlegt | D132: 4.078 | F132: 8.5 | G132: 2 | H132: 0.745 | L132: x
A133: B63Z | B133: M | C133: Demenz und andere chronische Störungen der Hirnfunktion | D133: 0.8 | F133: 6.4 | G133: 1 | H133: 0.54 | I133: 14 | J133: 0.087 | K133: 0.107
A134: B64Z | B134: M | C134: Delirium | D134: 0.874 | F134: 6.6 | G134: 1 | H134: 0.61 | I134: 15 | J134: 0.092 | K134: 0.114
A135: B66A | B135: M | C135: Neubildungen des Nervensystems mit äußerst schweren CC, mehr als ein Belegungstag, Alter < 10 Jahre oder mit komplizierender Konstellation | D135: 3.302 | F135: 13.2 | G135: 3 | H135: 0.783 | I135: 29 | J135: 0.238 | K135: 0.221 | M135: x
A136: B66B | B136: M | C136: Neubildungen des Nervensystems mit äußerst schweren CC, mehr als ein Belegungstag, Alter > 9 Jahre, ohne komplizierende Konstellation | D136: 1.718 | F136: 12.1 | G136: 3 | H136: 0.423 | I136: 26 | J136: 0.097 | K136: 0.129 | M136: x
A137: B66C | B137: M | C137: Neubildungen des Nervensystems, ein Belegungstag oder ohne äußerst schwere CC, Alter < 16 Jahre | D137: 0.884 | F137: 3.3 | G137: 1 | H137: 0.44 | I137: 7 | J137: 0.253 | K137: 0.195 | M137: x
A138: B66D | B138: M | C138: Neubildungen des Nervensystems, ein Belegungstag oder ohne äußerst schwere CC, Alter > 15 Jahre | D138: 0.834 | F138: 5.8 | G138: 1 | H138: 0.537 | I138: 14 | J138: 0.1 | K138: 0.121 | M138: x
A139: B67A | B139: M | C139: Morbus Parkinson mit äußerst schweren CC oder schwerster Beeinträchtigung | D139: 1.53 | F139: 13.3 | G139: 3 | H139: 0.379 | I139: 26 | J139: 0.08 | K139: 0.106
A140: B67B | B140: M | C140: Morbus Parkinson ohne äußerst schwere CC, ohne schwerste Beeinträchtigung | D140: 1.032 | F140: 9.4 | G140: 2 | H140: 0.341 | I140: 19 | J140: 0.076 | K140: 0.099
A141: B68A | B141: M | C141: Multiple Sklerose und zerebellare Ataxie mit äußerst schweren CC, mehr als ein Belegungstag | D141: 1.827 | F141: 14.4 | G141: 4 | H141: 0.359 | I141: 28 | J141: 0.087 | K141: 0.116
A142: B68B | B142: M | C142: Multiple Sklerose und zerebellare Ataxie, ein Belegungstag oder ohne äußerst schwere CC, Alter < 16 Jahre | D142: 1.034 | F142: 5.1 | G142: 1 | H142: 0.724 | I142: 11 | J142: 0.199 | K142: 0.166
A143: B68C | B143: M | C143: Multiple Sklerose und zerebellare Ataxie, ein Belegungstag oder ohne äußerst schwere CC, Alter > 15 Jahre, mit komplexer Diagnose | D143: 0.908 | F143: 6.3 | G143: 1 | H143: 0.598 | I143: 14 | J143: 0.1 | K143: 0.124
A144: B68D | B144: M | C144: Multiple Sklerose und zerebellare Ataxie, ein Belegungstag oder ohne äußerst schwere CC, Alter > 15 Jahre, ohne komplexe Diagnose | D144: 0.763 | F144: 6.6 | G144: 1 | H144: 0.553 | I144: 15 | J144: 0.08 | K144: 0.099
A145: B69A | B145: M | C145: Transitorische ischämische Attacke (TIA) und extrakranielle Gefäßverschlüsse mit neurologischer Komplexbehandlung des akuten Schlaganfalls, mehr als 72 Stunden | D145: 1.465 | F145: 5.6 | I145: 11 | J145: 0.182 | K145: 0.22
A146: B69B | B146: M | C146: Transitorische ischämische Attacke (TIA) und extrakranielle Gefäßverschlüsse mit neurologischer Komplexbehandlung des akuten Schlaganfalls, bis 72 Stunden, mit äußerst schweren CC | D146: 1.93 | F146: 10.6 | G146: 3 | H146: 0.474 | I146: 23 | J146: 0.125 | K146: 0.164
A147: B69C | B147: M | C147: Transitorische ischämische Attacke (TIA) und extrakranielle Gefäßverschlüsse mit neurol. Komplexbehandlung des akuten Schlaganfalls, bis 72 Std., ohne äuß. schw. CC oder mit anderer neurol. Komplexbeh. des akuten Schlaganfalls oder mit äuß. schw. CC | D147: 1.009 | F147: 4.7 | G147: 1 | H147: 0.456 | I147: 10 | J147: 0.149 | K147: 0.175
A148: B69D | B148: M | C148: Transitorische ischämische Attacke (TIA) und extrakranielle Gefäßverschlüsse ohne neurologische Komplexbehandlung des akuten Schlaganfalls, ohne andere neurologische Komplexbehandlung des akuten Schlaganfalls, ohne äußerst schwere CC | D148: 0.721 | F148: 4.6 | G148: 1 | H148: 0.405 | I148: 10 | J148: 0.108 | K148: 0.126
A149: B70A | B149: M | C149: Apoplexie mit neurologischer Komplexbehandlung des akuten Schlaganfalls, mehr als 72 Stunden, mit komplizierender Diagnose | D149: 2.407 | F149: 11.2 | G149: 3 | H149: 0.594 | I149: 22 | J149: 0.149 | L149: x
A150: B70B | B150: M | C150: Apoplexie mit neurologischer Komplexbehandlung des akuten Schlaganfalls, mehr als 72 Stunden, ohne komplizierende Diagnose oder mit komplexem zerebrovaskulären Vasospasmus oder intensivmedizinischer Komplexbehandlung > 196 / 184 / - Aufwandspunkte | D150: 1.884 | F150: 8.6 | G150: 2 | H150: 0.62 | I150: 17 | J150: 0.152 | L150: x
A151: B70C | B151: M | C151: Apoplexie ohne komplexen zerebrovask. Vasospasmus, mit neurol. Komplexbeh. des akuten Schlaganfalls bis 72 Std., mit komplizierender Diagnose oder systemischer Thrombolyse oder mit anderer neurol. Komplexbeh. des akuten Schlaganfalls, mehr als 72 Std. | D151: 1.572 | F151: 7.8 | G151: 2 | H151: 0.52 | I151: 16 | J151: 0.139 | K151: 0.176
A152: B70D | B152: M | C152: Apoplexie ohne komplexen zerebrovask. Vasospasmus, ohne komplizierende Diagnose oder systemische Thrombolyse, mit neurol. Komplexbeh. des akuten Schlaganfalls bis 72 Std. oder mit anderer neurol. Komplexbeh. des akuten Schlaganfalls bis 72 Std. | D152: 1.263 | F152: 6.8 | G152: 1 | H152: 0.624 | I152: 14 | J152: 0.128 | K152: 0.16
A153: B70E | B153: M | C153: Apoplexie ohne neurologische Komplexbehandlung des akuten Schlaganfalls, ohne andere neurol. Komplexbeh. des akuten Schlaganfalls, mehr als 72 Stunden, ohne komplexen zerebrovask. Vasospasmus, mit komplizierender Diagnose oder systemischer Thrombolyse | D153: 1.548 | F153: 9.1 | G153: 2 | H153: 0.511 | I153: 19 | J153: 0.117 | K153: 0.151
A154: B70F | B154: M | C154: Apoplexie ohne neurologische Komplexbehandlung des akuten Schlaganfalls, ohne andere neurologische Komplexbehandlung des akuten Schlaganfalls, ohne komplexen zerebrovaskulären Vasospasmus, ohne komplizierende Diagnose, ohne systemische Thrombolyse | D154: 1.002 | F154: 7.5 | G154: 1 | H154: 0.494 | I154: 15 | J154: 0.092 | K154: 0.116
A155: B70G | B155: M | C155: Apoplexie mit neurologischer Komplexbehandlung des akuten Schlaganfalls oder mit anderer neurologischer Komplexbehandlung des akuten Schlaganfalls, verstorben < 4 Tage nach Aufnahme | D155: 0.931 | F155: 2.5 | L155: x
A156: B70H | B156: M | C156: Apoplexie ohne neurologische Komplexbehandlung des akuten Schlaganfalls, ohne andere neurologische Komplexbehandlung des akuten Schlaganfalls, verstorben < 4 Tage nach Aufnahme | D156: 0.794 | F156: 2.4 | L156: x
A157: B70I | B157: M | C157: Apoplexie, ein Belegungstag | D157: 0.321 | F157: 1
A158: B71A | B158: M | C158: Erkrankungen an Hirnnerven und peripheren Nerven mit komplexer Diagnose oder Komplexbehandlung der Hand, mehr als ein Belegungstag, mit äußerst schweren CC oder bei Para- / Tetraplegie mit äußerst schweren oder schweren CC | D158: 3.985 | F158: 20.6 | G158: 6 | H158: 0.559 | I158: 37 | J158: 0.133 | K158: 0.181
A159: B71B | B159: M | C159: Erkrankungen an Hirnnerven und peripheren Nerven mit komplexer Diagnose, mit schweren CC oder bei Para- / Tetraplegie oder mit Komplexbehandlung der Hand oder ohne komplexe Diagnose, mit äußerst schweren oder schweren CC, bei Para- / Tetraplegie | D159: 1.76 | F159: 11.8 | G159: 3 | H159: 0.434 | I159: 24 | J159: 0.103 | K159: 0.136
A160: B71C | B160: M | C160: Erkrankungen an Hirnnerven u. periph. Nerven ohne Komplexb. d. Hand od. m. kompl. Diagnose, ohne schw. CC od. außer b. Para- / Tetraplegie od. ohne kompl. Diagn., m. äuß. schw. od. schw. CC, auß. b. Para- / Tetrapl. od. ohne schw. CC, b. Para- / Tetrapl. | D160: 1.068 | F160: 8.1 | G160: 2 | H160: 0.35 | I160: 17 | J160: 0.091 | K160: 0.116
A161: B71D | B161: M | C161: Erkrankungen an Hirnnerven und peripheren Nerven ohne komplexe Diagnose, ohne Komplexbehandlung der Hand, ohne äußerst schwere oder schwere CC, außer bei Para- / Tetraplegie | D161: 0.668 | F161: 4.8 | G161: 1 | H161: 0.397 | I161: 11 | J161: 0.095 | K161: 0.113
A162: B72A | B162: M | C162: Infektion des Nervensystems außer Virusmeningitis, Alter < 16 Jahre | D162: 1.273 | F162: 7.1 | G162: 1 | H162: 0.954 | I162: 17 | J162: 0.182 | K162: 0.154
A163: B72B | B163: M | C163: Infektion des Nervensystems außer Virusmeningitis, mehr als ein Belegungstag | D163: 1.351 | F163: 9.3 | G163: 2 | H163: 0.446 | I163: 21 | J163: 0.1 | K163: 0.129
A164: B73Z | B164: M | C164: Virusmeningitis oder Infektion des Nervensystems, Alter > 15 Jahre oder ein Belegungstag | D164: 0.969 | F164: 7.1 | G164: 1 | H164: 0.661 | I164: 15 | J164: 0.095 | K164: 0.119
A165: B74Z | B165: M | C165: Komplexbehandlung bei multiresistenten Erregern bei Krankheiten und Störungen des Nervensystems | D165: 4.987 | F165: 30 | I165: 45 | J165: 0.114 | K165: 0.158
A166: B75Z | B166: M | C166: Fieberkrämpfe | D166: 0.542 | F166: 2.9 | G166: 1 | H166: 0.269 | I166: 6 | J166: 0.13 | K166: 0.138
A167: B76B | B167: M | C167: Anfälle, mehr als ein Belegungstag, ohne komplexe Diagnostik und Therapie, mit schweren CC, Alter < 3 Jahre oder mit komplexer Diagnose oder mit äußerst schweren CC oder ohne äußerst schwere oder schwere CC, mit EEG, mit komplexer Diagnose | D167: 1.753 | F167: 9.5 | G167: 2 | H167: 0.575 | I167: 22 | J167: 0.127 | K167: 0.164
A168: B76C | B168: M | C168: Anfälle, mehr als ein Belegungstag, ohne komplexe Diagnostik und Therapie, mit äuß. schweren CC, ohne kompl. Diagnose oder mit schweren CC, Alter > 2 Jahre oder ohne schwere CC, mit EEG oder best. Diagnose, ohne kompl. Diagnose, mit angeb. Fehlbildung | D168: 1.869 | F168: 11.3 | G168: 3 | H168: 0.459 | I168: 24 | J168: 0.114 | K168: 0.149
A169: B76D | B169: M | C169: Anfälle, ein Belegungstag oder ohne komplexe Diagnostik und Therapie, ohne äußerst schwere oder schwere CC, mit EEG oder bestimmter Diagnose, ohne komplexe Diagnose, ohne angeborene Fehlbildung, Alter < 1 Jahr | D169: 1.061 | F169: 5.8 | G169: 1 | H169: 0.519 | I169: 15 | J169: 0.179 | K169: 0.153
A170: B76E | B170: M | C170: Anfälle, mehr als ein Belegungstag, ohne komplexe Diagnostik und Therapie, mit schw. CC, Alter > 2 Jahre, ohne kompl. Diagn. oder ohne äuß. schw. oder schwere CC, mit EEG oder best. Diagnose, ohne kompl. Diagn., ohne angeb. Fehlbild., Alter > 0 Jahre | D170: 0.848 | F170: 5.3 | G170: 1 | H170: 0.596 | I170: 13 | J170: 0.11 | K170: 0.133
A171: B76F | B171: M | C171: Anfälle, ein Belegungstag oder ohne komplexe Diagnostik und Therapie, ohne äußerst schwere oder schwere CC, ohne EEG, ohne bestimmte Diagnose, Alter < 6 Jahre oder mit komplexer Diagnose | D171: 0.773 | F171: 4.3 | G171: 1 | H171: 0.467 | I171: 10 | J171: 0.124 | K171: 0.143
A172: B76G | B172: M | C172: Anfälle, ein Belegungstag oder ohne komplexe Diagnostik und Therapie, ohne äußerst schwere oder schwere CC, ohne EEG, ohne bestimmte Diagnose, Alter > 5 Jahre, ohne komplexe Diagnose | D172: 0.638 | F172: 4 | G172: 1 | H172: 0.376 | I172: 9 | J172: 0.111 | K172: 0.127
A173: B77Z | B173: M | C173: Kopfschmerzen | D173: 0.56 | F173: 3.4 | G173: 1 | H173: 0.289 | I173: 7 | J173: 0.115 | K173: 0.127
A174: B78A | B174: M | C174: Intrakranielle Verletzung, Alter < 1 Jahr oder mit komplizierender Diagnose | D174: 1.192 | F174: 6.6 | G174: 1 | H174: 0.829 | I174: 15 | J174: 0.125 | K174: 0.155
A175: B78B | B175: M | C175: Intrakranielle Verletzung, Alter > 0 Jahre, ohne komplizierende Diagnose | D175: 1.018 | F175: 5.9 | G175: 1 | H175: 0.704 | I175: 14 | J175: 0.119 | K175: 0.146
A176: B79Z | B176: M | C176: Schädelfrakturen, Somnolenz, Sopor | D176: 0.718 | F176: 3.8 | G176: 1 | H176: 0.434 | I176: 9 | J176: 0.13 | K176: 0.147
A177: B80Z | B177: M | C177: Andere Kopfverletzungen | D177: 0.367 | F177: 2.3 | G177: 1 | H177: 0.155 | I177: 5 | J177: 0.111 | K177: 0.11
A178: B81A | B178: M | C178: Andere Erkrankungen des Nervensystems mit komplexer Diagnose oder bestimmter aufwendiger / hochaufwendiger Behandlung | D178: 1.619 | F178: 8 | G178: 2 | H178: 0.53 | I178: 19 | J178: 0.14 | K178: 0.177
A179: B81B | B179: M | C179: Andere Erkrankungen des Nervensystems ohne komplexe Diagnose, ohne bestimmte aufwendige / hochaufwendige Behandlung | D179: 0.737 | F179: 4.9 | G179: 1 | H179: 0.427 | I179: 11 | J179: 0.103 | K179: 0.122
A180: B82Z | B180: M | C180: Andere Erkrankungen an peripheren Nerven | D180: 0.425 | F180: 3.3 | G180: 1 | H180: 0.211 | I180: 7 | J180: 0.087 | K180: 0.095
A181: B84Z | B181: M | C181: Vaskuläre Myelopathien | D181: 1.549 | F181: 9 | G181: 2 | H181: 0.507 | I181: 18 | J181: 0.118 | K181: 0.152
A182: B85A | B182: M | C182: Degenerative Krankheiten des Nervensystems mit hochkomplexer Diagnose oder mit äußerst schweren oder schweren CC, mehr als ein Belegungstag, mit komplexer Diagnose | D182: 2.238 | F182: 14.5 | G182: 4 | H182: 0.44 | I182: 29 | J182: 0.107 | K182: 0.142
A183: B85B | B183: M | C183: Degenerative Krankheiten des Nervensystems mit äußerst schweren oder schweren CC, mehr als ein Belegungstag, ohne komplexe Diagnose, ohne hochkomplexe Diagnose | D183: 1.329 | F183: 9.8 | G183: 2 | H183: 0.436 | I183: 21 | J183: 0.093 | K183: 0.121
A184: B85C | B184: M | C184: Degenerative Krankheiten des Nervensystems ohne hochkomplexe Diagnose, ohne äußerst schwere oder schwere CC oder ein Belegungstag, mit komplexer Diagnose oder zerebrale Lähmungen | D184: 0.862 | F184: 6.3 | G184: 1 | H184: 0.538 | I184: 15 | J184: 0.094 | K184: 0.116
A185: B85D | B185: M | C185: Degenerative Krankheiten des Nervensystems ohne hochkomplexe Diagnose, ohne äußerst schwere oder schwere CC oder ein Belegungstag, ohne komplexe Diagnose | D185: 0.751 | F185: 5.3 | G185: 1 | H185: 0.463 | I185: 12 | J185: 0.098 | K185: 0.117
A186: B86Z | B186: M | C186: Rückenmarkkompression, nicht näher bezeichnet und Krankheit des Rückenmarkes, nicht näher bezeichnet | D186: 1.244 | F186: 7.6 | G186: 2 | H186: 0.41 | I186: 17 | J186: 0.113 | K186: 0.143
A187: MDC 02 Krankheiten und Störungen des Auges
A188: C01A | B188: O | C188: Komplexer Eingriff bei penetrierenden Augenverletzungen oder bestimmte Orbitotomie | D188: 1.681 | F188: 7 | G188: 1 | H188: 0.403 | I188: 15 | J188: 0.115 | K188: 0.101
A189: C01B | B189: O | C189: Andere Eingriffe bei penetrierenden Augenverletzungen oder Amnionmembrantransplantation oder bestimmte Biopsie | D189: 1.012 | F189: 5.8 | G189: 1 | H189: 0.52 | I189: 13 | J189: 0.078 | K189: 0.095
A190: C02A | B190: O | C190: Enukleationen und Eingriffe an der Orbita bei bösartiger Neubildung oder Strahlentherapie bei bösartiger Neubildung | D190: 1.766 | F190: 7.1 | G190: 1 | H190: 0.541 | I190: 16 | J190: 0.174 | K190: 0.133 | M190: x
A191: C02B | B191: O | C191: Enukleationen und Eingriffe an der Orbita außer bei bösartiger Neubildung | D191: 1.183 | F191: 5.1 | G191: 1 | H191: 0.524 | I191: 11 | J191: 0.084 | K191: 0.1
A192: C03A | B192: O | C192: Eingriffe an der Retina mit Pars-plana-Vitrektomie, mit extrakapsulärer Extraktion der Linse (ECCE) oder bei bösartiger Neubildung des Auges, mit best. Eingriff an der Retina oder Entfernung des Augapfels mit gleichzeitiger Einführung eines Implantates | D192: 1.142 | F192: 4.1 | G192: 1 | H192: 0.235 | I192: 9 | J192: 0.08 | K192: 0.092
A193: C03B | B193: O | C193: Eingriffe an der Retina mit Pars-plana-Vitrektomie, mit extrakapsulärer Extraktion der Linse (ECCE) oder bestimmtem Eingriff an der Retina oder bei bösartiger Neubildung des Auges | D193: 0.986 | F193: 3.9 | G193: 1 | H193: 0.313 | I193: 8 | J193: 0.078 | K193: 0.089
A194: C03C | B194: O | C194: Eingriffe an der Retina mit Pars-plana-Vitrektomie, ohne extrakapsuläre Extraktion der Linse (ECCE), ohne bestimmten Eingriff an der Retina, außer bei bösartiger Neubildung des Auges | D194: 0.821 | F194: 3.6 | G194: 1 | H194: 0.194 | I194: 7 | J194: 0.077 | K194: 0.086
A195: C04A | B195: O | C195: Hornhauttransplantation mit extrakapsulärer Extraktion der Linse (ECCE), Amnionmembrantransplantation oder Alter < 16 Jahre | D195: 1.788 | F195: 6.6 | G195: 1 | H195: 0.348 | I195: 13 | J195: 0.171 | K195: 0.092 | M195: x
A196: C04B | B196: O | C196: Hornhauttransplantation ohne extrakapsuläre Extraktion der Linse (ECCE), ohne Amnionmembrantransplantation, Alter > 15 Jahre | D196: 1.671 | F196: 6 | G196: 1 | H196: 0.334 | I196: 12 | J196: 0.181 | K196: 0.095 | M196: x
A197: C05Z | B197: O | C197: Dakryozystorhinostomie | D197: 0.792 | F197: 3.1 | G197: 1 | H197: 0.181 | I197: 6 | J197: 0.084 | K197: 0.091
A198: C06Z | B198: O | C198: Komplexe Eingriffe bei Glaukom | D198: 0.892 | F198: 4.8 | G198: 1 | H198: 0.284 | I198: 11 | J198: 0.074 | K198: 0.088
A199: C07A | B199: O | C199: Andere Eingriffe bei Glaukom mit extrakapsulärer Extraktion der Linse (ECCE) | D199: 0.657 | F199: 2.8 | G199: 1 | H199: 0.236 | I199: 6 | J199: 0.08 | K199: 0.084
A200: C07B | B200: O | C200: Andere Eingriffe bei Glaukom ohne extrakapsuläre Extraktion der Linse (ECCE) | D200: 0.529 | F200: 3.5 | G200: 1 | H200: 0.196 | I200: 8 | J200: 0.074 | K200: 0.083
A201: C08A | B201: O | C201: Beidseitige extrakapsuläre Extraktion der Linse (ECCE) oder extrakapsuläre Extraktion der Linse bei angeborener Fehlbildung der Linse | D201: 0.706 | F201: 2.6 | G201: 1 | H201: 0.182 | I201: 5 | J201: 0.089 | K201: 0.092
... 1083 more rows

Sheet HA2018A (hidden)
N1: G-DRG-Version 2018
A2: Fallpauschalen-Katalog
A3: Teil d) Bewertungsrelationen mit gezielter Absenkung in Abhängigkeit der Median-Fallzahl bei Versorgung durch Hauptabteilungen
A5: DRG | B5: Parti- tion | C5: Bezeichnung 6) | D5: Bewertungsrelation bei Hauptabteilung | E5: Bewertungsrelation bei Hauptabteilung und Beleghebamme | F5: Mittlere Verweil- dauer 1) | G5: Untere Grenzverweildauer | I5: Obere Grenzverweildauer | K5: Externe Verlegung Abschlag/Tag (Bewertungsrelation) | L5: Verlegungs- fallpauschale | M5: Ausnahme von Wiederaufnahme 4) | N5: Median-Fallzahl
G6: Erster Tag mit Abschlag 2), 5) | H6: Bewertungs- relation/Tag | I6: Erster Tag zus. Entgelt 3), 5) | J6: Bewertungs- relation/Tag
A7: 1 | B7: 2 | C7: 3 | D7: 4 | E7: 5 | F7: 6 | G7: 7 | H7: 8 | I7: 9 | J7: 10 | K7: 11 | L7: 12 | M7: 13 | N7: 14
A8: MDC 08 Krankheiten und Störungen an Muskel-Skelett-System und Bindegewebe
A9: I68D | B9: M | C9: Nicht operativ behandelte Erkrankungen und Verletzungen im Wirbelsäulenbereich, mehr als ein Belegungstag oder andere Femurfraktur, außer bei Diszitis oder infektiöser Spondylopathie, ohne Kreuzbeinfraktur | D9: 0.534 | F9: 5 | G9: 1 | H9: 0.343 | I9: 11 | J9: 0.078 | K9: 0.093 | N9: 176
A10: I68E | B10: M | C10: Nicht operativ behandelte Erkrankungen und Verletzungen im Wirbelsäulenbereich, ein Belegungstag | D10: 0.212 | F10: 1 | N10: 37

Sheet BA2018 (hidden)
O1: G-DRG-Version 2018
A2: Fallpauschalen-Katalog
A3: Teil b) Bewertungsrelationen bei Versorgung durch Belegabteilungen
A5: DRG | B5: Parti- tion | C5: Bezeichnung 6) | D5: Bewertungsrelation bei Belegoperateur | E5: Bewertungsrelation bei Belegoperateur und Beleganästhesist | F5: Bewertungsrelation bei Belegoperateur und Beleghebamme | G5: Bewertungsrelation bei Belegoperateur, -anästhesist und -hebamme | H5: Mittlere Verweil- dauer 1) | I5: Untere Grenzverweildauer | K5: Obere Grenzverweildauer | M5: Externe Verlegung Abschlag/Tag (Bewertungsrelation) | N5: Verlegungs- fallpauschale | O5: Ausnahme von Wiederaufnahme 4)
I6: Erster Tag mit Abschlag 2), 5) | J6: Bewertungs- relation/Tag | K6: Erster Tag zus. Entgelt 3), 5) | L6: Bewertungs- relation/Tag
A7: 1 | B7: 2 | C7: 3 | D7: 4 | E7: 5 | F7: 6 | G7: 7 | H7: 8 | I7: 9 | J7: 10 | K7: 11 | L7: 12 | M7: 13 | N7: 14 | O7: 15
A8: Prä-MDC
A9: A11E | B9: O | C9: Beatmung > 249 Stunden, mit komplexer OR-Prozedur, ohne hochkomplexen Eingriff, ohne int. Komplexbeh. > 1764 / 1656 / 1656 P., ohne kompliz. Konstellation, Alter > 15 Jahre oder mit intensivmedizinischer Komplexbehandlung > 588 / 828 / - Aufwandspunkte | D9: 10.891 | E9: 10.767 | H9: 22.3 | I9: 6 | J9: 1.422 | K9: 39 | L9: 0.313 | N9: x | O9: x
B10: O | C10: Beatmung > 249 Stunden oder > 95 Stunden mit intensivmedizinischer Komplexbehandlung > 1764 / 1656 / 1656 Aufwandspunkte, mit bestimmter OR-Prozedur oder kompliz. Konstellation oder intensivmed. Komplexbehandlung > - / - / 1104 P. oder Alter < 6 Jahre | D10: 10.01 | E10: 9.905 | H10: 25 | I10: 7 | J10: 1.163 | K10: 43 | L10: 0.261 | M10: 0.358 | O10: x
A11: A11G | B11: O | C11: Beatmung > 249 Stunden, ohne komplexe oder bestimmte OR-Prozedur, ohne intensivmedizinische Komplexbehandlung > 588 / 828 / 1104 Punkte, ohne kompliz. Konstellation, Alter > 5 Jahre, mit kompl. Diagnose oder Prozedur oder Alter < 16 J. oder schwerste CC | D11: 8.718 | E11: 8.705 | H11: 18.8 | I11: 5 | J11: 1.425 | K11: 32 | L11: 0.318 | M11: 0.432 | O11: x
A12: A11H | B12: O | C12: Beatmung > 249 Stunden, ohne komplexe oder bestimmte OR-Prozedur, ohne IntK > 588 / 828 / 1104 Punkte, ohne komplizierende Konstellation, Alter > 15 Jahre, ohne komplexe Diagnose oder Prozedur, ohne schwerste CC, mit äußerst schweren CC | D12: 8.401 | E12: 8.392 | H12: 21.5 | I12: 6 | J12: 1.171 | K12: 40 | L12: 0.267 | M12: 0.364 | O12: x
A13: A11I | B13: O | C13: Beatmung > 249 Stunden, ohne komplexe oder bestimmte OR-Prozedur, ohne IntK > 588 / 828 / 1104 Punkte, ohne komplizierende Konstellation, Alter > 15 Jahre, ohne komplexe Diagnose oder Prozedur, ohne schwerste CC, ohne äußerst schwere CC | D13: 6.909 | E13: 6.904 | H13: 19.5 | I13: 5 | J13: 1.126 | K13: 35 | L13: 0.242 | M13: 0.329 | O13: x
A14: A13B | B14: O | C14: Beatmung > 95 Stunden mit sehr komplexem Eingriff oder mit komplexer OR-Prozedur und komplizierender Konstellation oder mit best. OR-Proz. und kompliz. Konst., Alter < 16 Jahre od. mit intensivmed. Komplexbeh. > - / 1104 / 1104 Punkte und kompliz. Konst. | D14: 9.938 | E14: 9.622 | H14: 19.7 | I14: 6 | J14: 1.027 | K14: 38 | L14: 0.365 | N14: x | O14: x
A15: A13C | B15: O | C15: Beatmung > 95 Stunden ohne komplexe OR-Prozedur, mit bestimmter OR-Proz. und kompliz. Konstellation, Alter > 15 J. oder mit intensivmed. Komplexbeh. > - / 1104 / 1104 Punkte od. Alter < 16 J., außer bei Lymphom und Leukämie, ohne kompliz. Konstellation | D15: 8.994 | E15: 8.819 | H15: 26.9 | I15: 8 | J15: 0.868 | K15: 45 | L15: 0.291 | N15: x | O15: x
A16: A13D | B16: O | C16: Beatmung > 95 Stunden mit komplexer OR-Prozedur, ohne hochkompl. od. sehr kompl. Eingriff, ohne intensivmed. Komplexbeh. > 1176 / 1104 / 1104 Punkte, ohne kompliz. Konst., ohne Eingr. bei angeb. Fehlbild. od. mit intensivmed. Komplexbeh. > - / 828 / - P. | D16: 7.88 | E16: 7.685 | H16: 17.6 | I16: 5 | J16: 1.016 | K16: 35 | L16: 0.242 | N16: x | O16: x
A17: A13E | B17: O | C17: Beatmung > 95 Stunden, ohne komplexe OR-Prozedur, mit bestimmter OR-Prozedur oder komplizierender Konstellation oder mit intensivmedizinischer Komplexbehandlung > 588 / 552 / 552 Aufwandspunkte und < 1177 / 829 / 1105 Aufwandspunkte od. Alter < 16 Jahre | D17: 7.073 | E17: 6.994 | H17: 19.6 | I17: 6 | J17: 0.923 | K17: 37 | L17: 0.231 | N17: x | O17: x
A18: A13F | B18: O | C18: Beatmung > 95 Stunden, ohne bestimmte OR-Prozedur, ohne komplizierende Konstellation, ohne intensivmed. Komplexbeh. > 588 / 552 / 552 Aufwandspunkte, Alter > 15 Jahre, mit komplexer Diagnose oder Prozedur od. intensivmed. Komplexbeh. > - / 368 / - Punkte | D18: 4.999 | E18: 4.985 | H18: 12.9 | I18: 3 | J18: 1.182 | K18: 27 | L18: 0.257 | M18: 0.34 | O18: x
A19: A13G | B19: O | C19: Beatmung > 95 Stunden, mit bestimmter OR-Prozedur oder kompliz. Konstellation, mit äußerst schweren CC, verstorben oder verlegt < 9 Tage oder ohne best. OR-Proz., ohne kompliz. Konst., Alter > 15 J., ohne kompliz. Diagnose od. Prozedur, mit äuß. schw. CC | D19: 4.413 | E19: 4.396 | H19: 13.1 | I19: 3 | J19: 1.065 | K19: 29 | L19: 0.228 | M19: 0.302 | O19: x
A20: A13H | B20: O | C20: Beatmung > 95 Stunden mit bestimmter OR-Prozedur oder kompliz. Konstellation, ohne äußerst schwere CC, verstorben oder verlegt < 9 Tage oder ohne best. OR-Proz., ohne kompliz. Konst., Alter > 15 J., ohne kompliz. Diagnose oder Proz., ohne äuß. schw. CC | D20: 3.525 | E20: 3.518 | H20: 11.4 | I20: 3 | J20: 0.86 | K20: 25 | L20: 0.211 | M20: 0.277 | O20: x
A21: A15D | B21: O | C21: Knochenmarktransplantation / Stammzelltransfusion, autogen, bei Plasmozytom, ohne bestimmte Entnahme, ohne Stammzellboost | D21: 4.958 | E21: 4.958 | H21: 19.6 | I21: 6 | J21: 0.519 | K21: 28 | L21: 0.201 | N21: x | O21: x
A22: A42C | B22: A | C22: Stammzellentnahme bei Eigenspender ohne Chemotherapie, Alter > 15 Jahre, ohne schwerste CC | D22: 0.993 | E22: 0.992 | H22: 5 | I22: 1 | J22: 0.504 | K22: 11 | L22: 0.17 | M22: 0.141 | O22: x
A23: A60C | B23: M | C23: Versagen und Abstoßung eines Organtransplantates, mehr als ein Belegungstag, ohne Entfernung eines Organtransplantates, ohne komplexe OR-Prozedur, ohne äußerst schwere CC, ohne komplizierende Konstellation, Alter > 15 Jahre | D23: 0.741 | E23: 0.734 | H23: 5.8 | K23: 15 | L23: 0.116 | N23: x | O23: x
A24: A60D | B24: M | C24: Versagen und Abstoßung eines Organtransplantates, ein Belegungstag | D24: 0.294 | E24: 0.293 | H24: 1 | O24: x
A25: MDC 01 Krankheiten und Störungen des Nervensystems
A26: B02A | B26: O | C26: Komplexe Kraniotomie oder Wirbelsäulen-Operation, mehr als 8 Bestrahlungen oder bei Neubildung des Nervensystems oder intensivmedizinischer Komplexbehandlung > 392 / 368 / - Aufwandspunkte, Alter < 6 Jahre oder mit schwersten CC | D26: 8.252 | E26: 8.013 | H26: 36.1 | I26: 11 | J26: 0.557 | K26: 54 | L26: 0.185 | N26: x
A27: B02B | B27: O | C27: Komplexe Kraniotomie oder Wirbelsäulen-Operation bei bestimmter Neubildung des Nervensystems oder intensivmedizinischer Komplexbehandlung > 392 / 368 / - Aufwandspunkte, Alter > 5 Jahre, ohne schwerste CC | D27: 7.38 | E27: 7.218 | H27: 20.5 | I27: 6 | J27: 0.901 | K27: 36 | L27: 0.308 | N27: x
A28: B02C | B28: O | C28: Komplexe Kraniotomie oder Wirbelsäulen-Operation, außer bei Neubildung, ohne intensivmedizinische Komplexbehandlung > 392 / 368 / - Aufwandspunkte, Alter < 6 Jahre oder mit bestimmtem Eingriff, Alter < 18 Jahre oder mit best. komplizierenden Faktoren | D28: 3.834 | E28: 3.603 | H28: 12.6 | I28: 3 | J28: 0.571 | K28: 26 | L28: 0.198 | N28: x
A29: B02D | B29: O | C29: Komplexe Kraniotomie oder Wirbelsäulen-Operation, ohne bestimmten komplexen Eingriff, Alter > 5 Jahre, ohne bestimmte komplizierende Faktoren | D29: 3.826 | E29: 3.735 | H29: 12.5 | I29: 3 | J29: 0.801 | K29: 27 | L29: 0.256 | N29: x
A30: B04C | B30: O | C30: Bestimmte interventionelle Eingriffe an den extrakraniellen Gefäßen, ohne mehrzeitige Eingriffe, ohne beidseitige Eingriffe, ohne äußerst schwere CC | D30: 1.415 | E30: 1.392 | H30: 3.6 | I30: 1 | J30: 0.191 | K30: 9 | L30: 0.175 | N30: x
A31: B04D | B31: O | C31: Eingriffe an den extrakraniellen Gefäßen, ohne mehrzeitige Eingriffe, ohne beidseitige Eingriffe, ohne äußerst schwere CC, ohne bestimmte interventionelle Eingriffe | D31: 1.272 | E31: 1.176 | H31: 6.2 | I31: 1 | J31: 0.349 | K31: 11 | L31: 0.079 | N31: x
A32: B05Z | B32: O | C32: Dekompression bei Karpaltunnelsyndrom | D32: 0.468 | E32: 0.43 | H32: 2.5 | I32: 1 | J32: 0.129 | K32: 5 | L32: 0.071 | M32: 0.072
A33: B09Z | B33: O | C33: Andere Eingriffe am Schädel | D33: 1.077 | E33: 1 | H33: 5.4 | I33: 1 | J33: 0.288 | K33: 12 | L33: 0.075 | M33: 0.09
A34: B15Z | B34: O | C34: Strahlentherapie bei Krankheiten und Störungen des Nervensystems, Bestrahlungen an mindestens 8 Tagen | D34: 2.884 | E34: 2.882 | H34: 20.4 | I34: 6 | J34: 0.405 | K34: 37 | L34: 0.139 | N34: x | O34: x
A35: B16A | B35: O | C35: Strahlentherapie bei Krankheiten und Störungen des Nervensystems, mehr als ein Belegungstag, Bestrahlungen an mindestens 5 Tagen oder mindestens 11 Bestrahlungen | D35: 1.572 | E35: 1.571 | H35: 10 | I35: 2 | J35: 0.517 | K35: 20 | L35: 0.155 | M35: 0.141 | O35: x
A36: B16B | B36: O | C36: Strahlentherapie bei Krankheiten und Störungen des Nervensystems, mehr als ein Belegungstag, Bestrahlungen an weniger als 5 Tagen, weniger als 11 Bestrahlungen | D36: 0.998 | E36: 0.997 | H36: 6.4 | K36: 15 | L36: 0.107 | M36: 0.133 | O36: x
A37: B17B | B37: O | C37: Eingriffe an peripheren Nerven, Hirnnerven und anderen Teilen des Nervensystems oder Eingriff bei zerebraler Lähmung, Muskeldystrophie oder Neuropathie, mit komplexem Eingriff oder ohne komplexen Eingriff, Alter < 16 Jahre | D37: 1.331 | E37: 1.193 | H37: 4.6 | I37: 1 | J37: 0.607 | K37: 10 | L37: 0.078 | M37: 0.092
A38: B17C | B38: O | C38: Eingriffe an peripheren Nerven, Hirnnerven und anderen Teilen des Nervensystems oder Eingriff bei zerebraler Lähmung, Muskeldystrophie oder Neuropathie, Alter < 19 Jahre oder mit schweren CC, Alter > 15 Jahre | D38: 1.593 | E38: 1.522 | H38: 9.8 | I38: 2 | J38: 0.385 | K38: 22 | L38: 0.118 | M38: 0.107
A39: B17D | B39: O | C39: Eingr. an periph. Nerven, Hirnnerven und and. Teilen des Nervensyst. oder Eingr. bei zerebr. Lähmung, Muskeldystr. od. Neurop., Alt. < 19 J. od. mit schw. CC, Alt. > 15 J., ohne mäßig kompl. Eingr. od. oh. schw. CC, Alt. > 18 J., mit mäßig kompl. Eingr. | D39: 0.894 | E39: 0.821 | H39: 3.8 | I39: 1 | J39: 0.367 | K39: 10 | L39: 0.082 | M39: 0.092
A40: B17E | B40: O | C40: Eingriffe an peripheren Nerven, Hirnnerven und anderen Teilen des Nervensystems oder Eingriff bei zerebr. Lähmung, Muskeldystrophie od. Neuropathie, ohne kompl. Diagnose, ohne mäßig kompl. od. kompl. Eingr., ohne äuß. schw. oder schw. CC, Alter > 18 J. | D40: 0.646 | E40: 0.583 | H40: 2.8 | I40: 1 | J40: 0.179 | K40: 6 | L40: 0.075 | M40: 0.079
A41: B18A | B41: O | C41: Komplexe Eingriffe an Wirbelsäule und Rückenmark bei Krankheiten und Störungen des Nervensystems | D41: 4.17 | E41: 3.95 | H41: 19.1 | I41: 5 | J41: 0.423 | K41: 37 | L41: 0.093 | M41: 0.126
A42: B18B | B42: O | C42: Bestimmte Eingriffe an Wirbelsäule und Rückenmark bei Krankheiten und Störungen des Nervensystems außer bei bösartiger Neubildung oder Revision eines Ventrikelshuntes oder operative Eingriffe bei nicht akuter Para- / Tetraplegie | D42: 2.187 | E42: 2.054 | H42: 10.7 | I42: 3 | J42: 0.309 | K42: 23 | L42: 0.081 | M42: 0.106
A43: B18C | B43: O | C43: Andere Eingriffe an Wirbelsäule und Rückenmark bei Krankheiten und Störungen des Nervensystems außer bei bösartiger Neubildung | D43: 1.575 | E43: 1.456 | H43: 6.9 | I43: 1 | J43: 0.397 | K43: 14 | L43: 0.081 | M43: 0.101
A44: B18D | B44: O | C44: Mäßig komplexe Eingriffe an Wirbelsäule und Rückenmark bei Krankheiten und Störungen des Nervensystems außer bei bösartiger Neubildung | D44: 1.407 | E44: 1.291 | H44: 6.8 | I44: 1 | J44: 0.319 | K44: 15 | L44: 0.066 | M44: 0.082
A45: B19A | B45: O | C45: Implantation, Revision und Entfernung von Neurostimulatoren und Neurostimulationselektroden bei Krankheiten und Störungen des Nervensystems mit Implantation oder Wechsel eines Neurostimulators | D45: 1.216 | E45: 1.153 | H45: 3.8 | I45: 1 | J45: 0.489 | K45: 9 | L45: 0.076 | M45: 0.086
A46: B19B | B46: O | C46: Implantation, Revision und Entfernung von Neurostimulatoren und Neurostimulationselektroden bei Krankheiten und Störungen des Nervensystems mit Implantation oder Wechsel eines permanenten oder temporären Elektrodensystems | D46: 1.643 | E46: 1.574 | H46: 3.9 | I46: 1 | J46: 0.467 | K46: 9 | L46: 0.067 | M46: 0.077
A47: B19C | B47: O | C47: Implantation, Revision und Entfernung von Neurostimulatoren und Neurostimulationselektroden bei Krankheiten und Störungen des Nervensystems ohne Implantation oder Wechsel von Neurostimulatoren und Elektrodensystemen | D47: 0.787 | E47: 0.729 | H47: 3.4 | I47: 1 | J47: 0.261 | K47: 7 | L47: 0.07 | M47: 0.077
A48: B20B | B48: O | C48: Kraniotomie oder große WS-Operation mit komplexer Prozedur, Alter > 17 Jahre oder ohne best. komplexe Prozedur, mit intraop. neurophysiol. Monitoring oder komplexer Diagnose oder best. Gefäßinterventionen oder Bohrlochtrepanation mit äußerst schweren CC | D48: 2.807 | E48: 2.638 | H48: 11.3 | I48: 3 | J48: 0.412 | K48: 20 | L48: 0.197 | N48: x
A49: B20C | B49: O | C49: Kraniotomie oder große Wirbelsäulen-Operation ohne komplexe Prozedur, Alter < 3 Jahre oder interventioneller Eingriff oder Alter < 18 Jahre mit großem intrakraniellen Eingriff | D49: 1.948 | E49: 1.855 | H49: 5.6 | I49: 1 | J49: 0.744 | K49: 12 | L49: 0.266 | N49: x
